Workbook

Sheet Control
A1: State Inventory Tool - Carbon Dioxide, Methane, and Nitrous Oxide Emissions from Agriculture Module Version 2024.1
A2: This module provides default activity data, emission factors, and other relevant metrics for 1990-2021. Emissions factors for 2022-2025 are proxied to 2021 values.
A3: 1. Choose a State.
A4: This is very important - it selects the correct default variables for your state.
A6: Steps 2. - 6. Fill In the emission factors that are used throughout the module and then proceed to the corresponding sector worksheet to input activity data.
A7: Either type in the value or click the default box. The default GWPs used in this module are from the IPCC Fifth Assessment Report (AR5) but can be adjusted in the Constants tab to reflect other sources.
A9: 2. Enteric Fermentation Emission Factors
A10: Animal Group | B10: Default Factor (kg/animal/Yr) | C10: Factor Used | D10: Use Default? (Check for Yes)
A11: Dairy Cattle
A12: Dairy Cows | B12: varies by year
A13: Dairy Replacement Heifers | B13: varies by year
A14: Replacements 0-12 mos. | B14: varies by year
A15: Replacements 12-24 mos. | B15: varies by year
A16: Beef Cattle
A17: Beef Cows | B17: varies by year
A18: Beef Replacement Heifers | B18: varies by year
A19: Replacements 0-12 mos. | B19: varies by year
A20: Replacements 12-24 mos. | B20: varies by year
A21: Heifer Stockers | B21: varies by year
A22: Steer Stockers | B22: varies by year
A23: Feedlot Heifers | B23: varies by year
A24: Feedlot Steer | B24: varies by year
A25: Bulls | B25: varies by year
A26: Other
A27: Sheep | B27: ='enteric EFs'!B4 -> 8
A28: Goats | B28: ='enteric EFs'!B5 -> 5
A29: Swine | B29: ='enteric EFs'!B6 -> 1.5
A30: Horses | B30: ='enteric EFs'!B7 -> 18
A31: Mules/Asses | B31: ='enteric EFs'!B8 -> 10 | C31: =B31 -> 10
A34: 3. Manure Management Animal Calculation Values
B35: Typical Animal Mass (TAM) | F35: Volatile Solids (VS) | J35: Max Pot. Emissions (BO)
B36: (kg) | F36: (kg/head/year) for cattle except calves, and (kg/1000 kg animal mass/day) for calves and other livestock | J36: (m3 CH4/ kg VS)
A37: Animal | B37: Default Factor | D37: Use Default? | F37: Default Factor | H37: Use Default? | J37: Default Factor | L37: Use Default?
A38: =A11 -> Dairy Cattle
A39: =A12 -> Dairy Cows | B39: varies by year | F39: varies by year | J39: 0.24
A40: =A13 -> Dairy Replacement Heifers | B40: varies by year | F40: varies by year | J40: 0.17
A41: =A16 -> Beef Cattle
A42: =A23 -> Feedlot Heifers | B42: varies by year | F42: varies by year | J42: 0.33
A43: =A24 -> Feedlot Steer | B43: varies by year | F43: varies by year | J43: 0.33
A44: =A25 -> Bulls | B44: varies by year | F44: varies by year | J44: 0.17
A45: Calves | B45: varies by year | F45: varies by year | J45: 0.17
A46: =A17 -> Beef Cows | B46: varies by year | F46: varies by year | J46: 0.17
A47: =A18 -> Beef Replacement Heifers | B47: varies by year | F47: varies by year | J47: 0.17
A48: =A22 -> Steer Stockers | B48: varies by year | F48: varies by year | J48: 0.17
A49: =A21 -> Heifer Stockers | B49: varies by year | F49: varies by year | J49: 0.17
A50: Swine
A51: Breeding Swine | B51: 198 | F51: varies by year | J51: 0.48
A52: Market Under 60 lbs | B52: 15.88 | F52: 8.8 | J52: 0.48
A53: Market 60-119 lbs | B53: 40.6 | F53: 5.4 | J53: 0.48
A54: Market 120-179 lbs | B54: 67.82 | F54: 5.4 | J54: 0.48
A55: Market over 180 lbs | B55: 90.75 | F55: 5.4 | J55: 0.48
A56: Poultry
A57: Layers
A58: Hens > 1 yr | B58: 1.8 | F58: varies by year | J58: 0.39
A59: Pullets | B59: 1.8 | F59: varies by year | J59: 0.39
A60: Chickens | B60: 1.8 | F60: varies by year | J60: 0.39
A61: Broilers | B61: 0.9 | F61: varies by year | J61: 0.36
A62: Turkeys | B62: 6.8 | F62: varies by year | J62: 0.36
A63: Other
A64: Sheep on Feed | B64: 25 | F64: varies by year | J64: 0.36
A65: Sheep Not on Feed | B65: 80 | F65: varies by year | J65: 0.19
A66: Goats | B66: 64 | F66: 9.5 | J66: 0.17
A67: Horses | B67: 450 | F67: varies by year | J67: 0.33
A71: 4a. Ag Soils-Plant-Residues & Legumes
A72: Crop | B72: Residue Dry Matter Fraction | F72: Fraction Residue Applied | J72: Nitrogen Content of Residue
B73: Default Factor | D73: Use Default? | F73: Default Factor | H73: Use Default? | J73: Default Factor | L73: Use Default?
A75: Alfalfa | B75: 0.85 | F75: 0 | J75: NA
A76: Corn for Grain | B76: 0.91 | F76: 0.9 | J76: 0.0058
A77: All Wheat | B77: 0.93 | F77: 0.9 | J77: 0.0062
A78: Barley | B78: 0.93 | F78: 0.9 | J78: 0.0077
A79: Sorghum | B79: 0.91 | F79: 0.9 | J79: 0.0108
A80: Oats | B80: 0.92 | F80: 0.9 | J80: 0.007
A81: Rye | B81: 0.9 | F81: 0.9 | J81: 0.0048
A82: Millet | B82: 0.89 | F82: 0.89 | J82: 0.007
A83: Rice | B83: 0.91 | F83: 1 | J83: 0.0072
A84: Soybeans | B84: 0.87 | F84: 0.9 | J84: 0.023
A85: Peanuts | B85: 0.86 | F85: 0.9 | J85: 0.0106
A86: Dry Edible Beans | B86: 0.87 | F86: 1.55 | J86: 0.0168
A87: Dry Edible Peas | B87: 0.87 | F87: 0.9 | J87: 0.0168
A88: Austrian Winter Peas | B88: 0.87 | F88: 0.9 | J88: 0.0168
A89: Lentils | B89: 0.85 | F89: 1.55 | J89: 0.0168
A90: Wrinkled Seed Peas | B90: 0.87 | F90: 0.9 | J90: 0.0168
A92: 4b. Ag Soils-Plant-Fertilizers
A96: 4c. Ag Soils-Animal Calculation Values
A97: Please note that TAM values are entered above in the Manure Management Animal Calculation Values section. Please select the defaults or enter your own values there,
C98: Typical Animal Mass (TAM) | F98: K-Nitrogen
C99: =B36 -> (kg) | F99: (kg/head/year) for cattle except calves, and (kg/1000 kg animal mass/day) for calves and other livestock
A100: Animal | C100: Factor Used | F100: Default Factor | G100: Factor Used | H100: Units | I100: Use Default?
A101: =A38 -> Dairy Cattle
A102: Dairy Cows | C102: =C39 -> 0 | F102: varies by year | H102: kg/head/year
A103: Dairy Replacement Heifers | C103: =C40 -> 0 | F103: varies by year
A104: Beef Cattle
A105: Feedlot Heifers | C105: =C42 -> 0 | F105: varies by year | H105: kg/head/year
A106: Feedlot Steer | C106: =C43 -> 0 | F106: varies by year | H106: kg/head/year
A107: Bulls | C107: =C44 -> 0 | F107: varies by year | H107: kg/head/year
A108: Calves | C108: =C45 -> 0 | F108: varies by year | H108: kg/1000 kg animal mass/day
A109: Beef Cows | C109: =C46 -> 0 | F109: varies by year | H109: kg/head/year
A110: =A48 -> Steer Stockers | C110: =C48 -> 0 | F110: varies by year | H110: kg/head/year
A111: Total Beef Heifers | C111: =IF(ISNUMBER(AVERAGE(C47,C49)),AVERAGE(C47,C49),"varies by year") -> varies by year | F111: varies by year | H111: kg/head/year
A112: =A50 -> Swine
A113: =A51 -> Breeding Swine | C113: =C51 -> 0 | F113: varies by year | H113: kg/1000 kg animal mass/day
A114: =A52 -> Market Under 60 lbs | C114: =C52 -> 0 | F114: varies by year
A115: =A53 -> Market 60-119 lbs | C115: =C53 -> 0 | F115: varies by year
A116: =A54 -> Market 120-179 lbs | C116: =C54 -> 0 | F116: varies by year
A117: =A55 -> Market over 180 lbs | C117: =C55 -> 0 | F117: varies by year
A118: Poultry
A119: Layers
A120: Hens > 1 yr | C120: =C58 -> 0 | F120: varies by year | H120: kg/1000 kg animal mass/day
A121: Pullets | C121: =C59 -> 0 | F121: varies by year
A122: Chickens | C122: 0 | F122: varies by year
A123: Broilers | C123: 0 | F123: varies by year
A124: Turkeys | C124: 0 | F124: varies by year
A125: Other
A126: Sheep on Feed | C126: 0 | F126: varies by year | H126: kg/1000 kg animal mass/day
A127: Sheep Not on Feed | C127: 0 | F127: varies by year
A128: Goats | C128: 0 | F128: varies by year
A129: Horses | C129: 0 | F129: varies by year
A132: 5. Rice Cultivation--Seasonal Emission Factors
A134: Crop Season | B134: Default Factor | C134: Factor Used | D134: Use Default?
C135: kg CH4/ha-season
A136: Primary | B136: 237.0933333
A137: Ratoon | B137: 780
A139: 6. CO2 from Liming of Soils
B140: Default Factors | C140: Values Used | D140: Use Default?
A141: metric ton C/metric ton limestone | B141: 0.059
A142: metric ton C/metric ton dolomite | B142: 0.064
A143: 7. CO2 from Urea Fertilization
B144: Default Factors | C144: Values Used | D144: Use Default?
A145: metric ton C/metric ton urea | B145: 0.2
A148: 8. Agricultural Residue Burning
A149: The unshaded values are entered above in the Ag Soils-Plant-Residues & Legumes section.
A151: Crop | B151: Residue/Crop Ratio | F151: Fraction of Residue Burned | J151: Dry Matter Fraction
B152: Default Factor | C152: Factor Used | D152: Use Default? | F152: Default Factor | G152: Factor Used | H152: Use Default? | J152: Default Factor | K152: Factor Used | L152: Use Default?
A154: Barley | B154: 1.2 | F154: varies by year | K154: =C78 -> 0
A155: Corn | B155: 1 | F155: varies by year | K155: =C76 -> 0
A156: Peanuts | B156: 1 | F156: varies by year | K156: =C85 -> 0
A157: Rice | B157: 1.4 | F157: varies by year | K157: =C83 -> 0
A158: Soybeans | B158: 2.1 | F158: varies by year | K158: =C84 -> 0
A159: Sugarcane | B159: 0.2 | F159: varies by year | J159: 0.62
A160: Wheat | B160: 1.3 | F160: varies by year | K160: =C77 -> 0
B163: Burning Efficiency | F163: Combustion Efficiency
B164: Default Factor | C164: Factor Used | D164: Use Default? | F164: Default Factor | G164: Factor Used | H164: Use Default?
A166: Barley | B166: 0.93 | F166: 0.88
A167: Corn | B167: 0.93 | F167: 0.88
A168: Peanuts | B168: 0.93 | F168: 0.88
A169: Rice | B169: 0.93 | F169: 0.88
A170: Soybeans | B170: 0.93 | F170: 0.88
A171: Sugarcane | B171: 0.93 | F171: 0.88
A172: Wheat | B172: 0.93 | F172: 0.88
B175: Carbon Content | F175: Nitrogen Content
B176: Default Factor | C176: Factor Used | D176: Use Default? | F176: Default Factor | G176: Factor Used | H176: Use Default?
A178: Barley | B178: 0.4485 | G178: =K78 -> 0
A179: Corn | B179: 0.4478 | G179: =K76 -> 0
A180: Peanuts | B180: 0.45 | G180: =K85 -> 0
A181: Rice | B181: 0.3806 | G181: =K83 -> 0
A182: Soybeans | B182: 0.45 | G182: =K84 -> 0
A183: Sugarcane | B183: 0.4235 | F183: 0.004
A184: Wheat | B184: 0.4428 | G184: =K77 -> 0
A187: ="9. View summary information for "&StateName&"." -> 9. View summary information for Alaska.
A196: 10. Export the results for use in the Synthesis Tool.

Sheet Dataframe (hidden)
A1: Emissions (MMTCO2 Eq.) | B1: Category | C1: 1990 | D1: 1991 | E1: 1992 | F1: 1993 | G1: 1994 | H1: 1995 | I1: 1996 | J1: 1997 | K1: 1998 | L1: 1999 | M1: 2000 | N1: 2001 | O1: 2002 | P1: 2003 | Q1: 2004 | R1: 2005 | S1: 2006 | T1: 2007 | U1: 2008 | V1: 2009 | W1: 2010 | X1: 2011 | Y1: 2012 | Z1: 2013 | AA1: 2014 | AB1: 2015 | AC1: 2016 | AD1: 2017 | AE1: 2018 | AF1: 2019 | AG1: 2020 | AH1: 2021 | AI1: 2022 | AJ1: 2023 | AK1: 2024 | AL1: 2025
A2: CO2 - Liming | B2: ="Agriculture - "&A2 -> Agriculture - CO2 - Liming | C2: =Summary!C72 -> 0 | D2: =Summary!D72 -> 0 | E2: =Summary!E72 -> 0 | F2: =Summary!F72 -> 0 | G2: =Summary!G72 -> 0 | H2: =Summary!H72 -> 0 | I2: =Summary!I72 -> 0 | J2: =Summary!J72 -> 0 | K2: =Summary!K72 -> 0 | L2: =Summary!L72 -> 0 | M2: =Summary!M72 -> 0 | N2: =Summary!N72 -> 0 | O2: =Summary!O72 -> 0 | P2: =Summary!P72 -> 0 | Q2: =Summary!Q72 -> 0 | R2: =Summary!R72 -> 0 | S2: =Summary!S72 -> 0 | T2: =Summary!T72 -> 0 | U2: =Summary!U72 -> 0 | V2: =Summary!V72 -> 0 | W2: =Summary!W72 -> 0 | X2: =Summary!X72 -> 0 | Y2: =Summary!Y72 -> 0 | Z2: =Summary!Z72 -> 0 | AA2: =Summary!AA72 -> 0 | AB2: =Summary!AB72 -> 0 | AC2: =Summary!AC72 -> 0 | AD2: =Summary!AD72 -> 0 | AE2: =Summary!AE72 -> 0 | AF2: =Summary!AF72 -> 0 | AG2: =Summary!AG72 -> 0 | AH2: =Summary!AH72 -> 0 | AI2: =Summary!AI72 -> 0 | AJ2: =Summary!AJ72 -> 0 | AK2: =Summary!AK72 -> 0 | AL2: =Summary!AL72 -> 0
A3: CO2 - Urea Fertilization | B3: ="Agriculture - "&A3 -> Agriculture - CO2 - Urea Fertilization | C3: =Summary!C73 -> 0 | D3: =Summary!D73 -> 0 | E3: =Summary!E73 -> 0 | F3: =Summary!F73 -> 0 | G3: =Summary!G73 -> 0 | H3: =Summary!H73 -> 0 | I3: =Summary!I73 -> 0 | J3: =Summary!J73 -> 0 | K3: =Summary!K73 -> 0 | L3: =Summary!L73 -> 0 | M3: =Summary!M73 -> 0 | N3: =Summary!N73 -> 0 | O3: =Summary!O73 -> 0 | P3: =Summary!P73 -> 0 | Q3: =Summary!Q73 -> 0 | R3: =Summary!R73 -> 0 | S3: =Summary!S73 -> 0 | T3: =Summary!T73 -> 0 | U3: =Summary!U73 -> 0 | V3: =Summary!V73 -> 0 | W3: =Summary!W73 -> 0 | X3: =Summary!X73 -> 0 | Y3: =Summary!Y73 -> 0 | Z3: =Summary!Z73 -> 0 | AA3: =Summary!AA73 -> 0 | AB3: =Summary!AB73 -> 0 | AC3: =Summary!AC73 -> 0 | AD3: =Summary!AD73 -> 0 | AE3: =Summary!AE73 -> 0 | AF3: =Summary!AF73 -> 0 | AG3: =Summary!AG73 -> 0 | AH3: =Summary!AH73 -> 0 | AI3: =Summary!AI73 -> 0 | AJ3: =Summary!AJ73 -> 0 | AK3: =Summary!AK73 -> 0 | AL3: =Summary!AL73 -> 0
A4: CH4 - Enteric Fermentation | B4: Agriculture - CH4 - Enteric Fermentation | C4: =Summary!C78 -> 0 | D4: =Summary!D78 -> 0 | E4: =Summary!E78 -> 0 | F4: =Summary!F78 -> 0 | G4: =Summary!G78 -> 0 | H4: =Summary!H78 -> 0 | I4: =Summary!I78 -> 0 | J4: =Summary!J78 -> 0 | K4: =Summary!K78 -> 0 | L4: =Summary!L78 -> 0 | M4: =Summary!M78 -> 0 | N4: =Summary!N78 -> 0 | O4: =Summary!O78 -> 0 | P4: =Summary!P78 -> 0 | Q4: =Summary!Q78 -> 0 | R4: =Summary!R78 -> 0 | S4: =Summary!S78 -> 0 | T4: =Summary!T78 -> 0 | U4: =Summary!U78 -> 0 | V4: =Summary!V78 -> 0 | W4: =Summary!W78 -> 0 | X4: =Summary!X78 -> 0 | Y4: =Summary!Y78 -> 0 | Z4: =Summary!Z78 -> 0 | AA4: =Summary!AA78 -> 0 | AB4: =Summary!AB78 -> 0 | AC4: =Summary!AC78 -> 0 | AD4: =Summary!AD78 -> 0 | AE4: =Summary!AE78 -> 0 | AF4: =Summary!AF78 -> 0 | AG4: =Summary!AG78 -> 0 | AH4: =Summary!AH78 -> 0 | AI4: =Summary!AI78 -> 0 | AJ4: =Summary!AJ78 -> 0 | AK4: =Summary!AK78 -> 0 | AL4: =Summary!AL78 -> 0
A5: CH4 - Manure Management | B5: Agriculture - CH4 - Manure Management | C5: =Summary!C79 -> 0 | D5: =Summary!D79 -> 0 | E5: =Summary!E79 -> 0 | F5: =Summary!F79 -> 0 | G5: =Summary!G79 -> 0 | H5: =Summary!H79 -> 0 | I5: =Summary!I79 -> 0 | J5: =Summary!J79 -> 0 | K5: =Summary!K79 -> 0 | L5: =Summary!L79 -> 0 | M5: =Summary!M79 -> 0 | N5: =Summary!N79 -> 0 | O5: =Summary!O79 -> 0 | P5: =Summary!P79 -> 0 | Q5: =Summary!Q79 -> 0 | R5: =Summary!R79 -> 0 | S5: =Summary!S79 -> 0 | T5: =Summary!T79 -> 0 | U5: =Summary!U79 -> 0 | V5: =Summary!V79 -> 0 | W5: =Summary!W79 -> 0 | X5: =Summary!X79 -> 0 | Y5: =Summary!Y79 -> 0 | Z5: =Summary!Z79 -> 0 | AA5: =Summary!AA79 -> 0 | AB5: =Summary!AB79 -> 0 | AC5: =Summary!AC79 -> 0 | AD5: =Summary!AD79 -> 0 | AE5: =Summary!AE79 -> 0 | AF5: =Summary!AF79 -> 0 | AG5: =Summary!AG79 -> 0 | AH5: =Summary!AH79 -> 0 | AI5: =Summary!AI79 -> 0 | AJ5: =Summary!AJ79 -> 0 | AK5: =Summary!AK79 -> 0 | AL5: =Summary!AL79 -> 0
A6: CH4 - Rice Cultivation | B6: Agriculture - CH4 - Rice Cultivation | C6: =Summary!C80 -> 0 | D6: =Summary!D80 -> 0 | E6: =Summary!E80 -> 0 | F6: =Summary!F80 -> 0 | G6: =Summary!G80 -> 0 | H6: =Summary!H80 -> 0 | I6: =Summary!I80 -> 0 | J6: =Summary!J80 -> 0 | K6: =Summary!K80 -> 0 | L6: =Summary!L80 -> 0 | M6: =Summary!M80 -> 0 | N6: =Summary!N80 -> 0 | O6: =Summary!O80 -> 0 | P6: =Summary!P80 -> 0 | Q6: =Summary!Q80 -> 0 | R6: =Summary!R80 -> 0 | S6: =Summary!S80 -> 0 | T6: =Summary!T80 -> 0 | U6: =Summary!U80 -> 0 | V6: =Summary!V80 -> 0 | W6: =Summary!W80 -> 0 | X6: =Summary!X80 -> 0 | Y6: =Summary!Y80 -> 0 | Z6: =Summary!Z80 -> 0 | AA6: =Summary!AA80 -> 0 | AB6: =Summary!AB80 -> 0 | AC6: =Summary!AC80 -> 0 | AD6: =Summary!AD80 -> 0 | AE6: =Summary!AE80 -> 0 | AF6: =Summary!AF80 -> 0 | AG6: =Summary!AG80 -> 0 | AH6: =Summary!AH80 -> 0 | AI6: =Summary!AI80 -> 0 | AJ6: =Summary!AJ80 -> 0 | AK6: =Summary!AK80 -> 0 | AL6: =Summary!AL80 -> 0
A7: CH4 - Agricultural Residue Burning | B7: Agriculture - CH4 - Agricultural Residue Burning | C7: =Summary!C81 -> 0 | D7: =Summary!D81 -> 0 | E7: =Summary!E81 -> 0 | F7: =Summary!F81 -> 0 | G7: =Summary!G81 -> 0 | H7: =Summary!H81 -> 0 | I7: =Summary!I81 -> 0 | J7: =Summary!J81 -> 0 | K7: =Summary!K81 -> 0 | L7: =Summary!L81 -> 0 | M7: =Summary!M81 -> 0 | N7: =Summary!N81 -> 0 | O7: =Summary!O81 -> 0 | P7: =Summary!P81 -> 0 | Q7: =Summary!Q81 -> 0 | R7: =Summary!R81 -> 0 | S7: =Summary!S81 -> 0 | T7: =Summary!T81 -> 0 | U7: =Summary!U81 -> 0 | V7: =Summary!V81 -> 0 | W7: =Summary!W81 -> 0 | X7: =Summary!X81 -> 0 | Y7: =Summary!Y81 -> 0 | Z7: =Summary!Z81 -> 0 | AA7: =Summary!AA81 -> 0 | AB7: =Summary!AB81 -> 0 | AC7: =Summary!AC81 -> 0 | AD7: =Summary!AD81 -> 0 | AE7: =Summary!AE81 -> 0 | AF7: =Summary!AF81 -> 0 | AG7: =Summary!AG81 -> 0 | AH7: =Summary!AH81 -> 0 | AI7: =Summary!AI81 -> 0 | AJ7: =Summary!AJ81 -> 0 | AK7: =Summary!AK81 -> 0 | AL7: =Summary!AL81 -> 0
A8: N2O - Manure Management | B8: Agriculture - N2O - Manure Management | C8: =Summary!C86 -> 0 | D8: =Summary!D86 -> 0 | E8: =Summary!E86 -> 0 | F8: =Summary!F86 -> 0 | G8: =Summary!G86 -> 0 | H8: =Summary!H86 -> 0 | I8: =Summary!I86 -> 0 | J8: =Summary!J86 -> 0 | K8: =Summary!K86 -> 0 | L8: =Summary!L86 -> 0 | M8: =Summary!M86 -> 0 | N8: =Summary!N86 -> 0 | O8: =Summary!O86 -> 0 | P8: =Summary!P86 -> 0 | Q8: =Summary!Q86 -> 0 | R8: =Summary!R86 -> 0 | S8: =Summary!S86 -> 0 | T8: =Summary!T86 -> 0 | U8: =Summary!U86 -> 0 | V8: =Summary!V86 -> 0 | W8: =Summary!W86 -> 0 | X8: =Summary!X86 -> 0 | Y8: =Summary!Y86 -> 0 | Z8: =Summary!Z86 -> 0 | AA8: =Summary!AA86 -> 0 | AB8: =Summary!AB86 -> 0 | AC8: =Summary!AC86 -> 0 | AD8: =Summary!AD86 -> 0 | AE8: =Summary!AE86 -> 0 | AF8: =Summary!AF86 -> 0 | AG8: =Summary!AG86 -> 0 | AH8: =Summary!AH86 -> 0 | AI8: =Summary!AI86 -> 0 | AJ8: =Summary!AJ86 -> 0 | AK8: =Summary!AK86 -> 0 | AL8: =Summary!AL86 -> 0
A9: N2O - Ag Soils | B9: Agriculture - N2O - Ag Soils | C9: =Summary!C87 -> 0 | D9: =Summary!D87 -> 0 | E9: =Summary!E87 -> 0 | F9: =Summary!F87 -> 0 | G9: =Summary!G87 -> 0 | H9: =Summary!H87 -> 0 | I9: =Summary!I87 -> 0 | J9: =Summary!J87 -> 0 | K9: =Summary!K87 -> 0 | L9: =Summary!L87 -> 0 | M9: =Summary!M87 -> 0 | N9: =Summary!N87 -> 0 | O9: =Summary!O87 -> 0 | P9: =Summary!P87 -> 0 | Q9: =Summary!Q87 -> 0 | R9: =Summary!R87 -> 0 | S9: =Summary!S87 -> 0 | T9: =Summary!T87 -> 0 | U9: =Summary!U87 -> 0 | V9: =Summary!V87 -> 0 | W9: =Summary!W87 -> 0 | X9: =Summary!X87 -> 0 | Y9: =Summary!Y87 -> 0 | Z9: =Summary!Z87 -> 0 | AA9: =Summary!AA87 -> 0 | AB9: =Summary!AB87 -> 0 | AC9: =Summary!AC87 -> 0 | AD9: =Summary!AD87 -> 0 | AE9: =Summary!AE87 -> 0 | AF9: =Summary!AF87 -> 0 | AG9: =Summary!AG87 -> 0 | AH9: =Summary!AH87 -> 0 | AI9: =Summary!AI87 -> 0 | AJ9: =Summary!AJ87 -> 0 | AK9: =Summary!AK87 -> 0 | AL9: =Summary!AL87 -> 0
A10: N2O - Agricultural Residue Burning | B10: Agriculture - N2O - Agricultural Residue Burning | C10: =-Summary!C88 -> 0 | D10: =-Summary!D88 -> 0 | E10: =-Summary!E88 -> 0 | F10: =-Summary!F88 -> 0 | G10: =-Summary!G88 -> 0 | H10: =-Summary!H88 -> 0 | I10: =-Summary!I88 -> 0 | J10: =-Summary!J88 -> 0 | K10: =-Summary!K88 -> 0 | L10: =-Summary!L88 -> 0 | M10: =-Summary!M88 -> 0 | N10: =-Summary!N88 -> 0 | O10: =-Summary!O88 -> 0 | P10: =-Summary!P88 -> 0 | Q10: =-Summary!Q88 -> 0 | R10: =-Summary!R88 -> 0 | S10: =-Summary!S88 -> 0 | T10: =-Summary!T88 -> 0 | U10: =-Summary!U88 -> 0 | V10: =-Summary!V88 -> 0 | W10: =-Summary!W88 -> 0 | X10: =-Summary!X88 -> 0 | Y10: =-Summary!Y88 -> 0 | Z10: =-Summary!Z88 -> 0 | AA10: =-Summary!AA88 -> 0 | AB10: =-Summary!AB88 -> 0 | AC10: =-Summary!AC88 -> 0 | AD10: =-Summary!AD88 -> 0 | AE10: =-Summary!AE88 -> 0 | AF10: =-Summary!AF88 -> 0 | AG10: =-Summary!AG88 -> 0 | AH10: =-Summary!AH88 -> 0 | AI10: =-Summary!AI88 -> 0 | AJ10: =-Summary!AJ88 -> 0 | AK10: =-Summary!AK88 -> 0 | AL10: =-Summary!AL88 -> 0

Sheet Dataframe_Sum (hidden)
A1: Emissions (MMTCO2 Eq.) | B1: Category | C1: 1990 | D1: 1991 | E1: 1992 | F1: 1993 | G1: 1994 | H1: 1995 | I1: 1996 | J1: 1997 | K1: 1998 | L1: 1999 | M1: 2000 | N1: 2001 | O1: 2002 | P1: 2003 | Q1: 2004 | R1: 2005 | S1: 2006 | T1: 2007 | U1: 2008 | V1: 2009 | W1: 2010 | X1: 2011 | Y1: 2012 | Z1: 2013 | AA1: 2014 | AB1: 2015 | AC1: 2016 | AD1: 2017 | AE1: 2018 | AF1: 2019 | AG1: 2020 | AH1: 2021 | AI1: 2022 | AJ1: 2023 | AK1: 2024 | AL1: 2025
A2: Total | B2: ="Agriculture - "&A2 -> Agriculture - Total | C2: =Summary!C32 -> 0 | D2: =Summary!D32 -> 0 | E2: =Summary!E32 -> 0 | F2: =Summary!F32 -> 0 | G2: =Summary!G32 -> 0 | H2: =Summary!H32 -> 0 | I2: =Summary!I32 -> 0 | J2: =Summary!J32 -> 0 | K2: =Summary!K32 -> 0 | L2: =Summary!L32 -> 0 | M2: =Summary!M32 -> 0 | N2: =Summary!N32 -> 0 | O2: =Summary!O32 -> 0 | P2: =Summary!P32 -> 0 | Q2: =Summary!Q32 -> 0 | R2: =Summary!R32 -> 0 | S2: =Summary!S32 -> 0 | T2: =Summary!T32 -> 0 | U2: =Summary!U32 -> 0 | V2: =Summary!V32 -> 0 | W2: =Summary!W32 -> 0 | X2: =Summary!X32 -> 0 | Y2: =Summary!Y32 -> 0 | Z2: =Summary!Z32 -> 0 | AA2: =Summary!AA32 -> 0 | AB2: =Summary!AB32 -> 0 | AC2: =Summary!AC32 -> 0 | AD2: =Summary!AD32 -> 0 | AE2: =Summary!AE32 -> 0 | AF2: =Summary!AF32 -> 0 | AG2: =Summary!AG32 -> 0 | AH2: =Summary!AH32 -> 0 | AI2: =Summary!AI32 -> 0 | AJ2: =Summary!AJ32 -> 0 | AK2: =Summary!AK32 -> 0 | AL2: =Summary!AL32 -> 0
A3: Enteric Fermentation | B3: ="Agriculture - "&A3 -> Agriculture - Enteric Fermentation | C3: =Summary!C25 -> 0 | D3: =Summary!D25 -> 0 | E3: =Summary!E25 -> 0 | F3: =Summary!F25 -> 0 | G3: =Summary!G25 -> 0 | H3: =Summary!H25 -> 0 | I3: =Summary!I25 -> 0 | J3: =Summary!J25 -> 0 | K3: =Summary!K25 -> 0 | L3: =Summary!L25 -> 0 | M3: =Summary!M25 -> 0 | N3: =Summary!N25 -> 0 | O3: =Summary!O25 -> 0 | P3: =Summary!P25 -> 0 | Q3: =Summary!Q25 -> 0 | R3: =Summary!R25 -> 0 | S3: =Summary!S25 -> 0 | T3: =Summary!T25 -> 0 | U3: =Summary!U25 -> 0 | V3: =Summary!V25 -> 0 | W3: =Summary!W25 -> 0 | X3: =Summary!X25 -> 0 | Y3: =Summary!Y25 -> 0 | Z3: =Summary!Z25 -> 0 | AA3: =Summary!AA25 -> 0 | AB3: =Summary!AB25 -> 0 | AC3: =Summary!AC25 -> 0 | AD3: =Summary!AD25 -> 0 | AE3: =Summary!AE25 -> 0 | AF3: =Summary!AF25 -> 0 | AG3: =Summary!AG25 -> 0 | AH3: =Summary!AH25 -> 0 | AI3: =Summary!AI25 -> 0 | AJ3: =Summary!AJ25 -> 0 | AK3: =Summary!AK25 -> 0 | AL3: =Summary!AL25 -> 0
A4: Manure Management | B4: Agriculture - Manure Management | C4: =Summary!C26 -> 0 | D4: =Summary!D26 -> 0 | E4: =Summary!E26 -> 0 | F4: =Summary!F26 -> 0 | G4: =Summary!G26 -> 0 | H4: =Summary!H26 -> 0 | I4: =Summary!I26 -> 0 | J4: =Summary!J26 -> 0 | K4: =Summary!K26 -> 0 | L4: =Summary!L26 -> 0 | M4: =Summary!M26 -> 0 | N4: =Summary!N26 -> 0 | O4: =Summary!O26 -> 0 | P4: =Summary!P26 -> 0 | Q4: =Summary!Q26 -> 0 | R4: =Summary!R26 -> 0 | S4: =Summary!S26 -> 0 | T4: =Summary!T26 -> 0 | U4: =Summary!U26 -> 0 | V4: =Summary!V26 -> 0 | W4: =Summary!W26 -> 0 | X4: =Summary!X26 -> 0 | Y4: =Summary!Y26 -> 0 | Z4: =Summary!Z26 -> 0 | AA4: =Summary!AA26 -> 0 | AB4: =Summary!AB26 -> 0 | AC4: =Summary!AC26 -> 0 | AD4: =Summary!AD26 -> 0 | AE4: =Summary!AE26 -> 0 | AF4: =Summary!AF26 -> 0 | AG4: =Summary!AG26 -> 0 | AH4: =Summary!AH26 -> 0 | AI4: =Summary!AI26 -> 0 | AJ4: =Summary!AJ26 -> 0 | AK4: =Summary!AK26 -> 0 | AL4: =Summary!AL26 -> 0
A5: Agricultural Soil Management | B5: Agriculture - Agricultural Soil Management | C5: =Summary!C27 -> 0 | D5: =Summary!D27 -> 0 | E5: =Summary!E27 -> 0 | F5: =Summary!F27 -> 0 | G5: =Summary!G27 -> 0 | H5: =Summary!H27 -> 0 | I5: =Summary!I27 -> 0 | J5: =Summary!J27 -> 0 | K5: =Summary!K27 -> 0 | L5: =Summary!L27 -> 0 | M5: =Summary!M27 -> 0 | N5: =Summary!N27 -> 0 | O5: =Summary!O27 -> 0 | P5: =Summary!P27 -> 0 | Q5: =Summary!Q27 -> 0 | R5: =Summary!R27 -> 0 | S5: =Summary!S27 -> 0 | T5: =Summary!T27 -> 0 | U5: =Summary!U27 -> 0 | V5: =Summary!V27 -> 0 | W5: =Summary!W27 -> 0 | X5: =Summary!X27 -> 0 | Y5: =Summary!Y27 -> 0 | Z5: =Summary!Z27 -> 0 | AA5: =Summary!AA27 -> 0 | AB5: =Summary!AB27 -> 0 | AC5: =Summary!AC27 -> 0 | AD5: =Summary!AD27 -> 0 | AE5: =Summary!AE27 -> 0 | AF5: =Summary!AF27 -> 0 | AG5: =Summary!AG27 -> 0 | AH5: =Summary!AH27 -> 0 | AI5: =Summary!AI27 -> 0 | AJ5: =Summary!AJ27 -> 0 | AK5: =Summary!AK27 -> 0 | AL5: =Summary!AL27 -> 0
A6: Rice Cultivation | B6: Agriculture - Rice Cultivation | C6: =Summary!C28 -> 0 | D6: =Summary!D28 -> 0 | E6: =Summary!E28 -> 0 | F6: =Summary!F28 -> 0 | G6: =Summary!G28 -> 0 | H6: =Summary!H28 -> 0 | I6: =Summary!I28 -> 0 | J6: =Summary!J28 -> 0 | K6: =Summary!K28 -> 0 | L6: =Summary!L28 -> 0 | M6: =Summary!M28 -> 0 | N6: =Summary!N28 -> 0 | O6: =Summary!O28 -> 0 | P6: =Summary!P28 -> 0 | Q6: =Summary!Q28 -> 0 | R6: =Summary!R28 -> 0 | S6: =Summary!S28 -> 0 | T6: =Summary!T28 -> 0 | U6: =Summary!U28 -> 0 | V6: =Summary!V28 -> 0 | W6: =Summary!W28 -> 0 | X6: =Summary!X28 -> 0 | Y6: =Summary!Y28 -> 0 | Z6: =Summary!Z28 -> 0 | AA6: =Summary!AA28 -> 0 | AB6: =Summary!AB28 -> 0 | AC6: =Summary!AC28 -> 0 | AD6: =Summary!AD28 -> 0 | AE6: =Summary!AE28 -> 0 | AF6: =Summary!AF28 -> 0 | AG6: =Summary!AG28 -> 0 | AH6: =Summary!AH28 -> 0 | AI6: =Summary!AI28 -> 0 | AJ6: =Summary!AJ28 -> 0 | AK6: =Summary!AK28 -> 0 | AL6: =Summary!AL28 -> 0
A7: Liming | B7: Agriculture - Liming | C7: =Summary!C29 -> 0 | D7: =Summary!D29 -> 0 | E7: =Summary!E29 -> 0 | F7: =Summary!F29 -> 0 | G7: =Summary!G29 -> 0 | H7: =Summary!H29 -> 0 | I7: =Summary!I29 -> 0 | J7: =Summary!J29 -> 0 | K7: =Summary!K29 -> 0 | L7: =Summary!L29 -> 0 | M7: =Summary!M29 -> 0 | N7: =Summary!N29 -> 0 | O7: =Summary!O29 -> 0 | P7: =Summary!P29 -> 0 | Q7: =Summary!Q29 -> 0 | R7: =Summary!R29 -> 0 | S7: =Summary!S29 -> 0 | T7: =Summary!T29 -> 0 | U7: =Summary!U29 -> 0 | V7: =Summary!V29 -> 0 | W7: =Summary!W29 -> 0 | X7: =Summary!X29 -> 0 | Y7: =Summary!Y29 -> 0 | Z7: =Summary!Z29 -> 0 | AA7: =Summary!AA29 -> 0 | AB7: =Summary!AB29 -> 0 | AC7: =Summary!AC29 -> 0 | AD7: =Summary!AD29 -> 0 | AE7: =Summary!AE29 -> 0 | AF7: =Summary!AF29 -> 0 | AG7: =Summary!AG29 -> 0 | AH7: =Summary!AH29 -> 0 | AI7: =Summary!AI29 -> 0 | AJ7: =Summary!AJ29 -> 0 | AK7: =Summary!AK29 -> 0 | AL7: =Summary!AL29 -> 0
A8: Urea Fertlization | B8: Agriculture - Urea Fertlization | C8: =Summary!C30 -> 0 | D8: =Summary!D30 -> 0 | E8: =Summary!E30 -> 0 | F8: =Summary!F30 -> 0 | G8: =Summary!G30 -> 0 | H8: =Summary!H30 -> 0 | I8: =Summary!I30 -> 0 | J8: =Summary!J30 -> 0 | K8: =Summary!K30 -> 0 | L8: =Summary!L30 -> 0 | M8: =Summary!M30 -> 0 | N8: =Summary!N30 -> 0 | O8: =Summary!O30 -> 0 | P8: =Summary!P30 -> 0 | Q8: =Summary!Q30 -> 0 | R8: =Summary!R30 -> 0 | S8: =Summary!S30 -> 0 | T8: =Summary!T30 -> 0 | U8: =Summary!U30 -> 0 | V8: =Summary!V30 -> 0 | W8: =Summary!W30 -> 0 | X8: =Summary!X30 -> 0 | Y8: =Summary!Y30 -> 0 | Z8: =Summary!Z30 -> 0 | AA8: =Summary!AA30 -> 0 | AB8: =Summary!AB30 -> 0 | AC8: =Summary!AC30 -> 0 | AD8: =Summary!AD30 -> 0 | AE8: =Summary!AE30 -> 0 | AF8: =Summary!AF30 -> 0 | AG8: =Summary!AG30 -> 0 | AH8: =Summary!AH30 -> 0 | AI8: =Summary!AI30 -> 0 | AJ8: =Summary!AJ30 -> 0 | AK8: =Summary!AK30 -> 0 | AL8: =Summary!AL30 -> 0
A9: Ag Residue Burning | B9: Agriculture - Ag Residue Burning | C9: =Summary!C31 -> 0 | D9: =Summary!D31 -> 0 | E9: =Summary!E31 -> 0 | F9: =Summary!F31 -> 0 | G9: =Summary!G31 -> 0 | H9: =Summary!H31 -> 0 | I9: =Summary!I31 -> 0 | J9: =Summary!J31 -> 0 | K9: =Summary!K31 -> 0 | L9: =Summary!L31 -> 0 | M9: =Summary!M31 -> 0 | N9: =Summary!N31 -> 0 | O9: =Summary!O31 -> 0 | P9: =Summary!P31 -> 0 | Q9: =Summary!Q31 -> 0 | R9: =Summary!R31 -> 0 | S9: =Summary!S31 -> 0 | T9: =Summary!T31 -> 0 | U9: =Summary!U31 -> 0 | V9: =Summary!V31 -> 0 | W9: =Summary!W31 -> 0 | X9: =Summary!X31 -> 0 | Y9: =Summary!Y31 -> 0 | Z9: =Summary!Z31 -> 0 | AA9: =Summary!AA31 -> 0 | AB9: =Summary!AB31 -> 0 | AC9: =Summary!AC31 -> 0 | AD9: =Summary!AD31 -> 0 | AE9: =Summary!AE31 -> 0 | AF9: =Summary!AF31 -> 0 | AG9: =Summary!AG31 -> 0 | AH9: =Summary!AH31 -> 0 | AI9: =Summary!AI31 -> 0 | AJ9: =Summary!AJ31 -> 0 | AK9: =Summary!AK31 -> 0 | AL9: =Summary!AL31 -> 0

Sheet Enteric Fermentation
B1: =StateName -> Alaska | C1: ="2. Enteric Fermentation Emissions in "&StateName -> 2. Enteric Fermentation Emissions in Alaska
C3: Enteric Fermentation | F3: 1990
D4: Number of Animals ('000 head) | F4: Emission Factor (kg CH4/head) | H4: Emissions (kg CH4) | J4: Emissions (MMTCH4) | L4: Emissions (MMTCE) | N4: Emissions (MMTCO2E)
A5: 2 | C5: =Control!$A$11 -> Dairy Cattle
A6: ='animal data'!D2 -> 2 | B6: =$F$3 -> 1990 | C6: =Control!$A$12 -> Dairy Cows | E6: x | F6: =IF(DairycowEF=Control!$B$12,VLOOKUP($B$1,DairyCows_EF,$A$5,FALSE),DairycowEF) -> 0 | G6: = | H6: =D6*F6*1000 -> 0 | I6: = | J6: =H6/1000*10^-6 -> 0 | K6: = | L6: =(J6*CH4GWP)*(C_CO2) -> 0 | M6: = | N6: =L6/C_CO2 -> 0
A7: ='animal data'!E2 -> 3 | B7: =$F$3 -> 1990 | C7: =Control!$A$13 -> Dairy Replacement Heifers | E7: x | F7: =IF(DairyRep=Control!$B$13,VLOOKUP($B$1,DairyReplTotal_EF,$A$5,FALSE),DairyRep) -> 0 | G7: = | H7: =D7*F7*1000 -> 0 | I7: = | J7: =H7/1000*10^-6 -> 0 | K7: = | L7: =(J7*CH4GWP)*(C_CO2) -> 0 | M7: = | N7: =L7/C_CO2 -> 0
A8: ='animal data'!F2 -> 4 | B8: =$F$3 -> 1990 | C8: =Control!$A$14 -> Replacements 0-12 mos. | E8: x | F8: =IF(DairyRep0_12=Control!$B$14,VLOOKUP($B$1,DairyRepl7_11_EF,$A$5,FALSE),DairyRep0_12) -> 0 | G8: = | H8: =D8*F8*1000 -> 0 | I8: = | J8: =H8/1000*10^-6 -> 0 | K8: = | L8: =(J8*CH4GWP)*(C_CO2) -> 0 | M8: = | N8: =L8/C_CO2 -> 0
A9: ='animal data'!G2 -> 5 | B9: =$F$3 -> 1990 | C9: =Control!$A$15 -> Replacements 12-24 mos. | E9: x | F9: =IF(DairyRep12_24=Control!$B$15,VLOOKUP($B$1,DairyRepl12_24_EF,$A$5,FALSE),DairyRep12_24) -> 0 | G9: = | H9: =D9*F9*1000 -> 0 | I9: = | J9: =H9/1000*10^-6 -> 0 | K9: = | L9: =(J9*CH4GWP)*(C_CO2) -> 0 | M9: = | N9: =L9/C_CO2 -> 0
C10: =Control!$A$16 -> Beef Cattle
A11: ='animal data'!H2 -> 6 | B11: =$F$3 -> 1990 | C11: =Control!$A$17 -> Beef Cows | E11: x | F11: =IF(BeefcowEF=Control!$B$17,VLOOKUP($B$1,BeefCows_EF,$A$5,FALSE),BeefcowEF) -> 0 | G11: = | H11: =D11*F11*1000 -> 0 | I11: = | J11: =H11/1000*10^-6 -> 0 | K11: = | L11: =(J11*CH4GWP)*(C_CO2) -> 0 | M11: = | N11: =L11/C_CO2 -> 0
A12: ='animal data'!I2 -> 7 | B12: 1990 | C12: =Control!$A$18 -> Beef Replacement Heifers | E12: x | F12: =IF(BeefRep=Control!$B$18,VLOOKUP($B$1,BeefRepl_Total_EF,$A$5,FALSE),BeefRep) -> 0 | G12: = | H12: =D12*F12*1000 -> 0 | I12: = | J12: =H12/1000*10^-6 -> 0 | K12: = | L12: 0 | M12: = | N12: 0
A13: ='animal data'!J2 -> 8 | B13: 1990 | C13: =Control!$A$19 -> Replacements 0-12 mos. | E13: x | F13: =IF(BeefRep0_12=Control!$B$19,VLOOKUP($B$1,BeefRepl_7_11_EF,$A$5,FALSE),BeefRep0_12) -> 0 | G13: = | H13: 0 | I13: = | J13: 0 | K13: = | L13: 0 | M13: = | N13: 0
A14: ='animal data'!K2 -> 9 | B14: 1990 | C14: =Control!$A$20 -> Replacements 12-24 mos. | E14: x | F14: =IF(BeefRep12_24=Control!$B$20,VLOOKUP($B$1,BeefRepl_12_24_EF,$A$5,FALSE),BeefRep12_24) -> 0 | G14: = | H14: 0 | I14: = | J14: 0 | K14: = | L14: 0 | M14: = | N14: 0
A15: ='animal data'!L2 -> 10 | B15: 1990 | C15: =Control!$A$21 -> Heifer Stockers | E15: x | F15: =IF(H_Stock_EF=Control!$B$21,VLOOKUP($B$1,HeiferStockers_EF,$A$5,FALSE),H_Stock_EF) -> 0 | G15: = | H15: =D15*F15*1000 -> 0 | I15: = | J15: 0 | K15: = | L15: 0 | M15: = | N15: 0
A16: ='animal data'!M2 -> 11 | B16: 1990 | C16: =Control!$A$22 -> Steer Stockers | E16: x | F16: =IF(St_Stock_EF=Control!$B$22,VLOOKUP($B$1,SteerStockers_EF,$A$5,FALSE),St_Stock_EF) -> 0 | G16: = | H16: =D16*F16*1000 -> 0 | I16: = | J16: 0 | K16: = | L16: 0 | M16: = | N16: 0
A17: ='animal data'!Q2 -> 15 | B17: 1990 | C17: =Control!$A$23 -> Feedlot Heifers | E17: x | F17: =IF(FE_H_EF=Control!$B$23,VLOOKUP($B$1,HeiferFeedlot_EF,$A$5,FALSE),FE_H_EF) -> 0 | G17: = | H17: 0 | I17: = | J17: 0 | K17: = | L17: 0 | M17: = | N17: 0
A18: ='animal data'!R2 -> 16 | B18: 1990 | C18: =Control!$A$24 -> Feedlot Steer | E18: x | F18: =IF(FE_St_EF=Control!$B$24,VLOOKUP($B$1,SteerFeedlot_EF,$A$5,FALSE),FE_St_EF) -> 0 | G18: = | H18: 0 | I18: = | J18: 0 | K18: = | L18: 0 | M18: = | N18: 0
A19: ='animal data'!N2 -> 12 | B19: 1990 | C19: =Control!$A$25 -> Bulls | E19: x | F19: =IF(BeefbullEF=Control!$B$25,VLOOKUP($B$1,Bulls_EF,$A$5,FALSE),BeefbullEF) -> 0 | G19: = | H19: 0 | I19: = | J19: 0 | K19: = | L19: 0 | M19: = | N19: 0
C20: =Control!$A$26 -> Other
A21: ='animal data'!AD2 -> 28 | B21: =$F$3 -> 1990 | C21: =Control!$A$27 -> Sheep | E21: x | F21: =SheepEF -> 0 | G21: = | H21: =D21*F21*1000 -> 0 | I21: = | J21: 0 | K21: = | L21: =(J21*CH4GWP)*(C_CO2) -> 0 | M21: = | N21: =L21/C_CO2 -> 0
A22: ='animal data'!AG2 -> 31 | B22: =$F$3 -> 1990 | C22: =Control!$A$28 -> Goats | E22: x | F22: =GoatEF -> 0 | G22: = | H22: =D22*F22*1000 -> 0 | I22: = | J22: 0 | K22: = | L22: =(J22*CH4GWP)*(C_CO2) -> 0 | M22: = | N22: =L22/C_CO2 -> 0
A23: ='animal data'!S2 -> 17 | B23: =$F$3 -> 1990 | C23: =Control!$A$29 -> Swine | E23: x | F23: =SwineEF -> 0 | G23: = | H23: =D23*F23*1000 -> 0 | I23: = | J23: 0 | K23: = | L23: =(J23*CH4GWP)*(C_CO2) -> 0 | M23: = | N23: =L23/C_CO2 -> 0
A24: ='animal data'!AH2 -> 32 | B24: =$F$3 -> 1990 | C24: =Control!$A$30 -> Horses | E24: x | F24: =HorseEF -> 0 | G24: = | H24: =D24*F24*1000 -> 0 | I24: = | J24: 0 | K24: = | L24: =(J24*CH4GWP)*(C_CO2) -> 0 | M24: = | N24: =L24/C_CO2 -> 0
C25: TOTAL | H25: =SUM(H6:H24) -> 0 | J25: =SUM(J6:J24) -> 0 | L25: =SUM(L6:L24) -> 0 | N25: =SUM(N6:N24) -> 0
C27: Enteric Fermentation | F27: 1991
D28: Number of Animals ('000 head) | F28: Emission Factor (kg CH4/head) | H28: Emissions (kg CH4) | J28: Emissions (MMTCH4) | L28: Emissions (MMTCE) | N28: Emissions (MMTCO2E)
A29: =A5+1 -> 3 | C29: =$C$5 -> Dairy Cattle
A30: =$A$6 -> 2 | B30: =F$27 -> 1991 | C30: =$C$6 -> Dairy Cows | E30: x | F30: =IF(DairycowEF=Control!$B$12,VLOOKUP($B$1,DairyCows_EF,$A$29,FALSE),DairycowEF) -> 0 | G30: = | H30: =D30*F30*1000 -> 0 | I30: = | J30: =H30/1000*10^-6 -> 0 | K30: = | L30: =(J30*CH4GWP)*(C_CO2) -> 0 | M30: = | N30: =L30/C_CO2 -> 0
A31: =$A$7 -> 3 | B31: =F$27 -> 1991 | C31: =$C$7 -> Dairy Replacement Heifers | E31: x | F31: =IF(DairyRep=Control!$B$13,VLOOKUP($B$1,DairyReplTotal_EF,$A$29,FALSE),DairyRep) -> 0 | G31: = | H31: =D31*F31*1000 -> 0 | I31: = | J31: =H31/1000*10^-6 -> 0 | K31: = | L31: =(J31*CH4GWP)*(C_CO2) -> 0 | M31: = | N31: =L31/C_CO2 -> 0
A32: =$A$8 -> 4 | B32: 1991 | C32: =$C$8 -> Replacements 0-12 mos. | E32: x | F32: =IF(DairyRep0_12=Control!$B$14,VLOOKUP($B$1,DairyRepl7_11_EF,$A$29,FALSE),DairyRep0_12) -> 0 | G32: = | H32: =D32*F32*1000 -> 0 | I32: = | J32: =H32/1000*10^-6 -> 0 | K32: = | L32: =(J32*CH4GWP)*(C_CO2) -> 0 | M32: = | N32: =L32/C_CO2 -> 0
A33: =$A$9 -> 5 | B33: 1991 | C33: =$C$9 -> Replacements 12-24 mos. | E33: x | F33: =IF(DairyRep12_24=Control!$B$15,VLOOKUP($B$1,DairyRepl12_24_EF,$A$29,FALSE),DairyRep12_24) -> 0 | G33: = | H33: =D33*F33*1000 -> 0 | I33: = | J33: =H33/1000*10^-6 -> 0 | K33: = | L33: =(J33*CH4GWP)*(C_CO2) -> 0 | M33: = | N33: =L33/C_CO2 -> 0
B34: 1991 | C34: =$C$10 -> Beef Cattle
A35: =$A$11 -> 6 | B35: 1991 | C35: =$C$11 -> Beef Cows | E35: x | F35: =IF(BeefcowEF=Control!$B$17,VLOOKUP($B$1,BeefCows_EF,$A$29,FALSE),BeefcowEF) -> 0 | G35: = | H35: =D35*F35*1000 -> 0 | I35: = | J35: =H35/1000*10^-6 -> 0 | K35: = | L35: =(J35*CH4GWP)*(C_CO2) -> 0 | M35: = | N35: =L35/C_CO2 -> 0
A36: =$A$12 -> 7 | B36: 1991 | C36: =$C$12 -> Beef Replacement Heifers | E36: x | F36: =IF(BeefRep=Control!$B$18,VLOOKUP($B$1,BeefRepl_Total_EF,$A$29,FALSE),BeefRep) -> 0 | G36: = | H36: =D36*F36*1000 -> 0 | I36: = | J36: =H36/1000*10^-6 -> 0 | K36: = | L36: 0 | M36: = | N36: 0
A37: =$A$13 -> 8 | B37: 1991 | C37: =$C$13 -> Replacements 0-12 mos. | E37: x | F37: =IF(BeefRep0_12=Control!$B$19,VLOOKUP($B$1,BeefRepl_7_11_EF,$A$29,FALSE),BeefRep0_12) -> 0 | G37: = | H37: 0 | I37: = | J37: 0 | K37: = | L37: 0 | M37: = | N37: 0
A38: =$A$14 -> 9 | B38: 1991 | C38: =$C$14 -> Replacements 12-24 mos. | E38: x | F38: =IF(BeefRep12_24=Control!$B$20,VLOOKUP($B$1,BeefRepl_12_24_EF,$A$29,FALSE),BeefRep12_24) -> 0 | G38: = | H38: 0 | I38: = | J38: 0 | K38: = | L38: 0 | M38: = | N38: 0
A39: =$A$15 -> 10 | B39: 1991 | C39: =$C$15 -> Heifer Stockers | E39: x | F39: =IF(H_Stock_EF=Control!$B$21,VLOOKUP($B$1,HeiferStockers_EF,$A$29,FALSE),H_Stock_EF) -> 0 | G39: = | H39: =D39*F39*1000 -> 0 | I39: = | J39: 0 | K39: = | L39: =(J39*CH4GWP)*(C_CO2) -> 0 | M39: = | N39: 0
A40: =$A$16 -> 11 | B40: 1991 | C40: =$C$16 -> Steer Stockers | E40: x | F40: =IF(St_Stock_EF=Control!$B$22,VLOOKUP($B$1,SteerStockers_EF,$A$29,FALSE),St_Stock_EF) -> 0 | G40: = | H40: =D40*F40*1000 -> 0 | I40: = | J40: 0 | K40: = | L40: =(J40*CH4GWP)*(C_CO2) -> 0 | M40: = | N40: 0
A41: =$A$17 -> 15 | B41: 1991 | C41: =$C$17 -> Feedlot Heifers | E41: x | F41: =IF(FE_H_EF=Control!$B$23,VLOOKUP($B$1,HeiferFeedlot_EF,$A$29,FALSE),FE_H_EF) -> 0 | G41: = | H41: 0 | I41: = | J41: 0 | K41: = | L41: 0 | M41: = | N41: 0
A42: =$A$18 -> 16 | B42: 1991 | C42: =$C$18 -> Feedlot Steer | E42: x | F42: =IF(FE_St_EF=Control!$B$24,VLOOKUP($B$1,SteerFeedlot_EF,$A$29,FALSE),FE_St_EF) -> 0 | G42: = | H42: 0 | I42: = | J42: 0 | K42: = | L42: 0 | M42: = | N42: 0
A43: =$A$19 -> 12 | B43: 1991 | C43: =$C$19 -> Bulls | E43: x | F43: =IF(BeefbullEF=Control!$B$25,VLOOKUP($B$1,Bulls_EF,$A$29,FALSE),BeefbullEF) -> 0 | G43: = | H43: 0 | I43: = | J43: 0 | K43: = | L43: 0 | M43: = | N43: 0
B44: 1991 | C44: =$C$20 -> Other
A45: =$A$21 -> 28 | B45: 1991 | C45: =$C$21 -> Sheep | E45: x | F45: =SheepEF -> 0 | G45: = | H45: =D45*F45*1000 -> 0 | I45: = | J45: 0 | K45: = | L45: =(J45*CH4GWP)*(C_CO2) -> 0 | M45: = | N45: =L45/C_CO2 -> 0
A46: =$A$22 -> 31 | B46: 1991 | C46: =$C$22 -> Goats | E46: x | F46: =GoatEF -> 0 | G46: = | H46: =D46*F46*1000 -> 0 | I46: = | J46: 0 | K46: = | L46: =(J46*CH4GWP)*(C_CO2) -> 0 | M46: = | N46: =L46/C_CO2 -> 0
A47: =$A$23 -> 17 | B47: 1991 | C47: =$C$23 -> Swine | E47: x | F47: =SwineEF -> 0 | G47: = | H47: =D47*F47*1000 -> 0 | I47: = | J47: 0 | K47: = | L47: =(J47*CH4GWP)*(C_CO2) -> 0 | M47: = | N47: =L47/C_CO2 -> 0
A48: =$A$24 -> 32 | B48: 1991 | C48: =$C$24 -> Horses | E48: x | F48: =HorseEF -> 0 | G48: = | H48: =D48*F48*1000 -> 0 | I48: = | J48: 0 | K48: = | L48: =(J48*CH4GWP)*(C_CO2) -> 0 | M48: = | N48: =L48/C_CO2 -> 0
C49: =$C$25 -> TOTAL | H49: =SUM(H30:H48) -> 0 | J49: =SUM(J30:J48) -> 0 | L49: =SUM(L30:L48) -> 0 | N49: =SUM(N30:N48) -> 0
C51: Enteric Fermentation | F51: 1992
D52: Number of Animals ('000 head) | F52: Emission Factor (kg CH4/head) | H52: Emissions (kg CH4) | J52: Emissions (MMTCH4) | L52: Emissions (MMTCE) | N52: Emissions (MMTCO2E)
A53: =A29+1 -> 4 | C53: =$C$5 -> Dairy Cattle
A54: =$A$6 -> 2 | B54: =F$51 -> 1992 | C54: =$C$6 -> Dairy Cows | E54: x | F54: =IF(DairycowEF=Control!$B$12,VLOOKUP($B$1,DairyCows_EF,$A$53,FALSE),DairycowEF) -> 0 | G54: = | H54: =D54*F54*1000 -> 0 | I54: = | J54: =H54/1000*10^-6 -> 0 | K54: = | L54: =(J54*CH4GWP)*(C_CO2) -> 0 | M54: = | N54: =L54/C_CO2 -> 0
A55: =$A$7 -> 3 | B55: =F$51 -> 1992 | C55: =$C$7 -> Dairy Replacement Heifers | E55: x | F55: =IF(DairyRep=Control!$B$13,VLOOKUP($B$1,DairyReplTotal_EF,$A$53,FALSE),DairyRep) -> 0 | G55: = | H55: =D55*F55*1000 -> 0 | I55: = | J55: =H55/1000*10^-6 -> 0 | K55: = | L55: =(J55*CH4GWP)*(C_CO2) -> 0 | M55: = | N55: =L55/C_CO2 -> 0
A56: =$A$8 -> 4 | B56: 1992 | C56: =$C$8 -> Replacements 0-12 mos. | E56: x | F56: =IF(DairyRep0_12=Control!$B$14,VLOOKUP($B$1,DairyRepl7_11_EF,$A$53,FALSE),DairyRep0_12) -> 0 | G56: = | H56: =D56*F56*1000 -> 0 | I56: = | J56: =H56/1000*10^-6 -> 0 | K56: = | L56: =(J56*CH4GWP)*(C_CO2) -> 0 | M56: = | N56: =L56/C_CO2 -> 0
A57: =$A$9 -> 5 | B57: 1992 | C57: =$C$9 -> Replacements 12-24 mos. | E57: x | F57: =IF(DairyRep12_24=Control!$B$15,VLOOKUP($B$1,DairyRepl12_24_EF,$A$53,FALSE),DairyRep12_24) -> 0 | G57: = | H57: =D57*F57*1000 -> 0 | I57: = | J57: =H57/1000*10^-6 -> 0 | K57: = | L57: =(J57*CH4GWP)*(C_CO2) -> 0 | M57: = | N57: =L57/C_CO2 -> 0
B58: 1992 | C58: =$C$10 -> Beef Cattle
A59: =$A$11 -> 6 | B59: 1992 | C59: =$C$11 -> Beef Cows | E59: x | F59: =IF(BeefcowEF=Control!$B$17,VLOOKUP($B$1,BeefCows_EF,$A$53,FALSE),BeefcowEF) -> 0 | G59: = | H59: =D59*F59*1000 -> 0 | I59: = | J59: =H59/1000*10^-6 -> 0 | K59: = | L59: =(J59*CH4GWP)*(C_CO2) -> 0 | M59: = | N59: =L59/C_CO2 -> 0
A60: =$A$12 -> 7 | B60: 1992 | C60: =$C$12 -> Beef Replacement Heifers | E60: x | F60: =IF(BeefRep=Control!$B$18,VLOOKUP($B$1,BeefRepl_Total_EF,$A$53,FALSE),BeefRep) -> 0 | G60: = | H60: =D60*F60*1000 -> 0 | I60: = | J60: =H60/1000*10^-6 -> 0 | K60: = | L60: 0 | M60: = | N60: 0
A61: =$A$13 -> 8 | B61: 1992 | C61: =$C$13 -> Replacements 0-12 mos. | E61: x | F61: =IF(BeefRep0_12=Control!$B$19,VLOOKUP($B$1,BeefRepl_7_11_EF,$A$53,FALSE),BeefRep0_12) -> 0 | G61: = | H61: 0 | I61: = | J61: 0 | K61: = | L61: 0 | M61: = | N61: 0
A62: =$A$14 -> 9 | B62: 1992 | C62: =$C$14 -> Replacements 12-24 mos. | E62: x | F62: =IF(BeefRep12_24=Control!$B$20,VLOOKUP($B$1,BeefRepl_12_24_EF,$A$53,FALSE),BeefRep12_24) -> 0 | G62: = | H62: =D62*F62*1000 -> 0 | I62: = | J62: 0 | K62: = | L62: 0 | M62: = | N62: 0
A63: =$A$15 -> 10 | B63: 1992 | C63: =$C$15 -> Heifer Stockers | E63: x | F63: =IF(H_Stock_EF=Control!$B$21,VLOOKUP($B$1,HeiferStockers_EF,$A$53,FALSE),H_Stock_EF) -> 0 | G63: = | H63: =D63*F63*1000 -> 0 | I63: = | J63: 0 | K63: = | L63: 0 | M63: = | N63: 0
A64: =$A$16 -> 11 | B64: 1992 | C64: =$C$16 -> Steer Stockers | E64: x | F64: =IF(St_Stock_EF=Control!$B$22,VLOOKUP($B$1,SteerStockers_EF,$A$53,FALSE),St_Stock_EF) -> 0 | G64: = | H64: 0 | I64: = | J64: 0 | K64: = | L64: 0 | M64: = | N64: 0
A65: =$A$17 -> 15 | B65: 1992 | C65: =$C$17 -> Feedlot Heifers | E65: x | F65: =IF(FE_H_EF=Control!$B$23,VLOOKUP($B$1,HeiferFeedlot_EF,$A$53,FALSE),FE_H_EF) -> 0 | G65: = | H65: 0 | I65: = | J65: 0 | K65: = | L65: 0 | M65: = | N65: 0
A66: =$A$18 -> 16 | B66: 1992 | C66: =$C$18 -> Feedlot Steer | E66: x | F66: =IF(FE_St_EF=Control!$B$24,VLOOKUP($B$1,SteerFeedlot_EF,$A$53,FALSE),FE_St_EF) -> 0 | G66: = | H66: 0 | I66: = | J66: 0 | K66: = | L66: 0 | M66: = | N66: 0
A67: =$A$19 -> 12 | B67: 1992 | C67: =$C$19 -> Bulls | E67: x | F67: =IF(BeefbullEF=Control!$B$25,VLOOKUP($B$1,Bulls_EF,$A$53,FALSE),BeefbullEF) -> 0 | G67: = | H67: 0 | I67: = | J67: 0 | K67: = | L67: 0 | M67: = | N67: 0
B68: 1992 | C68: =$C$20 -> Other
A69: =$A$21 -> 28 | B69: 1992 | C69: =$C$21 -> Sheep | E69: x | F69: =SheepEF -> 0 | G69: = | H69: =D69*F69*1000 -> 0 | I69: = | J69: 0 | K69: = | L69: =(J69*CH4GWP)*(C_CO2) -> 0 | M69: = | N69: =L69/C_CO2 -> 0
A70: =$A$22 -> 31 | B70: 1992 | C70: =$C$22 -> Goats | E70: x | F70: =GoatEF -> 0 | G70: = | H70: =D70*F70*1000 -> 0 | I70: = | J70: 0 | K70: = | L70: =(J70*CH4GWP)*(C_CO2) -> 0 | M70: = | N70: =L70/C_CO2 -> 0
A71: =$A$23 -> 17 | B71: 1992 | C71: =$C$23 -> Swine | E71: x | F71: =SwineEF -> 0 | G71: = | H71: =D71*F71*1000 -> 0 | I71: = | J71: 0 | K71: = | L71: =(J71*CH4GWP)*(C_CO2) -> 0 | M71: = | N71: =L71/C_CO2 -> 0
A72: =$A$24 -> 32 | B72: 1992 | C72: =$C$24 -> Horses | E72: x | F72: =HorseEF -> 0 | G72: = | H72: =D72*F72*1000 -> 0 | I72: = | J72: 0 | K72: = | L72: =(J72*CH4GWP)*(C_CO2) -> 0 | M72: = | N72: =L72/C_CO2 -> 0
C73: =$C$25 -> TOTAL | H73: =SUM(H54:H72) -> 0 | J73: =SUM(J54:J72) -> 0 | L73: =SUM(L54:L72) -> 0 | N73: =SUM(N54:N72) -> 0
C75: Enteric Fermentation | F75: 1993
D76: Number of Animals ('000 head) | F76: Emission Factor (kg CH4/head) | H76: Emissions (kg CH4) | J76: Emissions (MMTCH4) | L76: Emissions (MMTCE) | N76: Emissions (MMTCO2E)
A77: =A53+1 -> 5 | C77: =$C$5 -> Dairy Cattle
A78: =$A$6 -> 2 | B78: =$F$75 -> 1993 | C78: =$C$6 -> Dairy Cows | E78: x | F78: =IF(DairycowEF=Control!$B$12,VLOOKUP($B$1,DairyCows_EF,$A$77,FALSE),DairycowEF) -> 0 | G78: = | H78: =D78*F78*1000 -> 0 | I78: = | J78: =H78/1000*10^-6 -> 0 | K78: = | L78: =(J78*CH4GWP)*(C_CO2) -> 0 | M78: = | N78: =L78/C_CO2 -> 0
A79: =$A$7 -> 3 | B79: =$F$75 -> 1993 | C79: =$C$7 -> Dairy Replacement Heifers | E79: x | F79: =IF(DairyRep=Control!$B$13,VLOOKUP($B$1,DairyReplTotal_EF,$A$77,FALSE),DairyRep) -> 0 | G79: = | H79: =D79*F79*1000 -> 0 | I79: = | J79: =H79/1000*10^-6 -> 0 | K79: = | L79: =(J79*CH4GWP)*(C_CO2) -> 0 | M79: = | N79: =L79/C_CO2 -> 0
A80: =$A$8 -> 4 | B80: 1993 | C80: =$C$8 -> Replacements 0-12 mos. | E80: x | F80: =IF(DairyRep0_12=Control!$B$14,VLOOKUP($B$1,DairyRepl7_11_EF,$A$77,FALSE),DairyRep0_12) -> 0 | G80: = | H80: =D80*F80*1000 -> 0 | I80: = | J80: =H80/1000*10^-6 -> 0 | K80: = | L80: =(J80*CH4GWP)*(C_CO2) -> 0 | M80: = | N80: =L80/C_CO2 -> 0
A81: =$A$9 -> 5 | B81: 1993 | C81: =$C$9 -> Replacements 12-24 mos. | E81: x | F81: =IF(DairyRep12_24=Control!$B$15,VLOOKUP($B$1,DairyRepl12_24_EF,$A$77,FALSE),DairyRep12_24) -> 0 | G81: = | H81: =D81*F81*1000 -> 0 | I81: = | J81: =H81/1000*10^-6 -> 0 | K81: = | L81: =(J81*CH4GWP)*(C_CO2) -> 0 | M81: = | N81: =L81/C_CO2 -> 0
B82: 1993 | C82: =$C$10 -> Beef Cattle
A83: =$A$11 -> 6 | B83: 1993 | C83: =$C$11 -> Beef Cows | E83: x | F83: =IF(BeefcowEF=Control!$B$17,VLOOKUP($B$1,BeefCows_EF,$A$77,FALSE),BeefcowEF) -> 0 | G83: = | H83: =D83*F83*1000 -> 0 | I83: = | J83: =H83/1000*10^-6 -> 0 | K83: = | L83: =(J83*CH4GWP)*(C_CO2) -> 0 | M83: = | N83: =L83/C_CO2 -> 0
A84: =$A$12 -> 7 | B84: 1993 | C84: =$C$12 -> Beef Replacement Heifers | E84: x | F84: =IF(BeefRep=Control!$B$18,VLOOKUP($B$1,BeefRepl_Total_EF,$A$77,FALSE),BeefRep) -> 0 | G84: = | H84: =D84*F84*1000 -> 0 | I84: = | J84: =H84/1000*10^-6 -> 0 | K84: = | L84: 0 | M84: = | N84: 0
A85: =$A$13 -> 8 | B85: 1993 | C85: =$C$13 -> Replacements 0-12 mos. | E85: x | F85: =IF(BeefRep0_12=Control!$B$19,VLOOKUP($B$1,BeefRepl_7_11_EF,$A$77,FALSE),BeefRep0_12) -> 0 | G85: = | H85: 0 | I85: = | J85: 0 | K85: = | L85: 0 | M85: = | N85: 0
A86: =$A$14 -> 9 | B86: 1993 | C86: =$C$14 -> Replacements 12-24 mos. | E86: x | F86: =IF(BeefRep12_24=Control!$B$20,VLOOKUP($B$1,BeefRepl_12_24_EF,$A$77,FALSE),BeefRep12_24) -> 0 | G86: = | H86: 0 | I86: = | J86: 0 | K86: = | L86: 0 | M86: = | N86: 0
A87: =$A$15 -> 10 | B87: 1993 | C87: =$C$15 -> Heifer Stockers | E87: x | F87: =IF(H_Stock_EF=Control!$B$21,VLOOKUP($B$1,HeiferStockers_EF,$A$77,FALSE),H_Stock_EF) -> 0 | G87: = | H87: 0 | I87: = | J87: 0 | K87: = | L87: 0 | M87: = | N87: 0
A88: =$A$16 -> 11 | B88: 1993 | C88: =$C$16 -> Steer Stockers | E88: x | F88: =IF(St_Stock_EF=Control!$B$22,VLOOKUP($B$1,SteerStockers_EF,$A$77,FALSE),St_Stock_EF) -> 0 | G88: = | H88: 0 | I88: = | J88: 0 | K88: = | L88: 0 | M88: = | N88: 0
A89: =$A$17 -> 15 | B89: 1993 | C89: =$C$17 -> Feedlot Heifers | E89: x | F89: =IF(FE_H_EF=Control!$B$23,VLOOKUP($B$1,HeiferFeedlot_EF,$A$77,FALSE),FE_H_EF) -> 0 | G89: = | H89: 0 | I89: = | J89: 0 | K89: = | L89: 0 | M89: = | N89: 0
A90: =$A$18 -> 16 | B90: 1993 | C90: =$C$18 -> Feedlot Steer | E90: x | F90: =IF(FE_St_EF=Control!$B$24,VLOOKUP($B$1,SteerFeedlot_EF,$A$77,FALSE),FE_St_EF) -> 0 | G90: = | H90: 0 | I90: = | J90: 0 | K90: = | L90: 0 | M90: = | N90: 0
A91: =$A$19 -> 12 | B91: 1993 | C91: =$C$19 -> Bulls | E91: x | F91: =IF(BeefbullEF=Control!$B$25,VLOOKUP($B$1,Bulls_EF,$A$77,FALSE),BeefbullEF) -> 0 | G91: = | H91: 0 | I91: = | J91: 0 | K91: = | L91: 0 | M91: = | N91: 0
B92: 1993 | C92: =$C$20 -> Other
A93: =$A$21 -> 28 | B93: 1993 | C93: =$C$21 -> Sheep | E93: x | F93: =SheepEF -> 0 | G93: = | H93: =D93*F93*1000 -> 0 | I93: = | J93: 0 | K93: = | L93: =(J93*CH4GWP)*(C_CO2) -> 0 | M93: = | N93: =L93/C_CO2 -> 0
A94: =$A$22 -> 31 | B94: 1993 | C94: =$C$22 -> Goats | E94: x | F94: =GoatEF -> 0 | G94: = | H94: =D94*F94*1000 -> 0 | I94: = | J94: 0 | K94: = | L94: =(J94*CH4GWP)*(C_CO2) -> 0 | M94: = | N94: =L94/C_CO2 -> 0
A95: =$A$23 -> 17 | B95: 1993 | C95: =$C$23 -> Swine | E95: x | F95: =SwineEF -> 0 | G95: = | H95: =D95*F95*1000 -> 0 | I95: = | J95: 0 | K95: = | L95: =(J95*CH4GWP)*(C_CO2) -> 0 | M95: = | N95: =L95/C_CO2 -> 0
A96: =$A$24 -> 32 | B96: 1993 | C96: =$C$24 -> Horses | E96: x | F96: =HorseEF -> 0 | G96: = | H96: =D96*F96*1000 -> 0 | I96: = | J96: 0 | K96: = | L96: =(J96*CH4GWP)*(C_CO2) -> 0 | M96: = | N96: =L96/C_CO2 -> 0
C97: =$C$25 -> TOTAL | H97: =SUM(H78:H96) -> 0 | J97: =SUM(J78:J96) -> 0 | L97: =SUM(L78:L96) -> 0 | N97: =SUM(N78:N96) -> 0
C99: Enteric Fermentation | F99: 1994
D100: Number of Animals ('000 head) | F100: Emission Factor (kg CH4/head) | H100: Emissions (kg CH4) | J100: Emissions (MMTCH4) | L100: Emissions (MMTCE) | N100: Emissions (MMTCO2E)
A101: =A77+1 -> 6 | C101: =$C$5 -> Dairy Cattle
A102: =$A$6 -> 2 | B102: =$F$99 -> 1994 | C102: =$C$6 -> Dairy Cows | E102: x | F102: =IF(DairycowEF=Control!$B$12,VLOOKUP($B$1,DairyCows_EF,$A$101,FALSE),DairycowEF) -> 0 | G102: = | H102: =D102*F102*1000 -> 0 | I102: = | J102: =H102/1000*10^-6 -> 0 | K102: = | L102: =(J102*CH4GWP)*(C_CO2) -> 0 | M102: = | N102: =L102/C_CO2 -> 0
A103: =$A$7 -> 3 | B103: =$F$99 -> 1994 | C103: =$C$7 -> Dairy Replacement Heifers | E103: x | F103: =IF(DairyRep=Control!$B$13,VLOOKUP($B$1,DairyReplTotal_EF,$A$101,FALSE),DairyRep) -> 0 | G103: = | H103: =D103*F103*1000 -> 0 | I103: = | J103: =H103/1000*10^-6 -> 0 | K103: = | L103: =(J103*CH4GWP)*(C_CO2) -> 0 | M103: = | N103: =L103/C_CO2 -> 0
A104: =$A$8 -> 4 | B104: 1994 | C104: =$C$8 -> Replacements 0-12 mos. | E104: x | F104: =IF(DairyRep0_12=Control!$B$14,VLOOKUP($B$1,DairyRepl7_11_EF,$A$101,FALSE),DairyRep0_12) -> 0 | G104: = | H104: =D104*F104*1000 -> 0 | I104: = | J104: =H104/1000*10^-6 -> 0 | K104: = | L104: =(J104*CH4GWP)*(C_CO2) -> 0 | M104: = | N104: =L104/C_CO2 -> 0
A105: =$A$9 -> 5 | B105: 1994 | C105: =$C$9 -> Replacements 12-24 mos. | E105: x | F105: =IF(DairyRep12_24=Control!$B$15,VLOOKUP($B$1,DairyRepl12_24_EF,$A$101,FALSE),DairyRep12_24) -> 0 | G105: = | H105: =D105*F105*1000 -> 0 | I105: = | J105: =H105/1000*10^-6 -> 0 | K105: = | L105: =(J105*CH4GWP)*(C_CO2) -> 0 | M105: = | N105: =L105/C_CO2 -> 0
B106: 1994 | C106: =$C$10 -> Beef Cattle
A107: =$A$11 -> 6 | B107: 1994 | C107: =$C$11 -> Beef Cows | E107: x | F107: =IF(BeefcowEF=Control!$B$17,VLOOKUP($B$1,BeefCows_EF,$A$101,FALSE),BeefcowEF) -> 0 | G107: = | H107: =D107*F107*1000 -> 0 | I107: = | J107: =H107/1000*10^-6 -> 0 | K107: = | L107: =(J107*CH4GWP)*(C_CO2) -> 0 | M107: = | N107: =L107/C_CO2 -> 0
A108: =$A$12 -> 7 | B108: 1994 | C108: =$C$12 -> Beef Replacement Heifers | E108: x | F108: =IF(BeefRep=Control!$B$18,VLOOKUP($B$1,BeefRepl_Total_EF,$A$101,FALSE),BeefRep) -> 0 | G108: = | H108: =D108*F108*1000 -> 0 | I108: = | J108: =H108/1000*10^-6 -> 0 | K108: = | L108: 0 | M108: = | N108: 0
A109: =$A$13 -> 8 | B109: 1994 | C109: =$C$13 -> Replacements 0-12 mos. | E109: x | F109: =IF(BeefRep0_12=Control!$B$19,VLOOKUP($B$1,BeefRepl_7_11_EF,$A$101,FALSE),BeefRep0_12) -> 0 | G109: = | H109: 0 | I109: = | J109: 0 | K109: = | L109: 0 | M109: = | N109: 0
A110: =$A$14 -> 9 | B110: 1994 | C110: =$C$14 -> Replacements 12-24 mos. | E110: x | F110: =IF(BeefRep12_24=Control!$B$20,VLOOKUP($B$1,BeefRepl_12_24_EF,$A$101,FALSE),BeefRep12_24) -> 0 | G110: = | H110: 0 | I110: = | J110: 0 | K110: = | L110: 0 | M110: = | N110: 0
A111: =$A$15 -> 10 | B111: 1994 | C111: =$C$15 -> Heifer Stockers | E111: x | F111: =IF(H_Stock_EF=Control!$B$21,VLOOKUP($B$1,HeiferStockers_EF,$A$101,FALSE),H_Stock_EF) -> 0 | G111: = | H111: 0 | I111: = | J111: 0 | K111: = | L111: 0 | M111: = | N111: 0
A112: =$A$16 -> 11 | B112: 1994 | C112: =$C$16 -> Steer Stockers | E112: x | F112: =IF(St_Stock_EF=Control!$B$22,VLOOKUP($B$1,SteerStockers_EF,$A$101,FALSE),St_Stock_EF) -> 0 | G112: = | H112: 0 | I112: = | J112: 0 | K112: = | L112: 0 | M112: = | N112: 0
A113: =$A$17 -> 15 | B113: 1994 | C113: =$C$17 -> Feedlot Heifers | E113: x | F113: =IF(FE_H_EF=Control!$B$23,VLOOKUP($B$1,HeiferFeedlot_EF,$A$101,FALSE),FE_H_EF) -> 0 | G113: = | H113: 0 | I113: = | J113: 0 | K113: = | L113: 0 | M113: = | N113: 0
A114: =$A$18 -> 16 | B114: 1994 | C114: =$C$18 -> Feedlot Steer | E114: x | F114: =IF(FE_St_EF=Control!$B$24,VLOOKUP($B$1,SteerFeedlot_EF,$A$101,FALSE),FE_St_EF) -> 0 | G114: = | H114: 0 | I114: = | J114: 0 | K114: = | L114: 0 | M114: = | N114: 0
A115: =$A$19 -> 12 | B115: 1994 | C115: =$C$19 -> Bulls | E115: x | F115: =IF(BeefbullEF=Control!$B$25,VLOOKUP($B$1,Bulls_EF,$A$101,FALSE),BeefbullEF) -> 0 | G115: = | H115: 0 | I115: = | J115: 0 | K115: = | L115: 0 | M115: = | N115: 0
B116: 1994 | C116: =$C$20 -> Other
A117: =$A$21 -> 28 | B117: 1994 | C117: =$C$21 -> Sheep | E117: x | F117: =SheepEF -> 0 | G117: = | H117: =D117*F117*1000 -> 0 | I117: = | J117: 0 | K117: = | L117: =(J117*CH4GWP)*(C_CO2) -> 0 | M117: = | N117: =L117/C_CO2 -> 0
A118: =$A$22 -> 31 | B118: 1994 | C118: =$C$22 -> Goats | E118: x | F118: =GoatEF -> 0 | G118: = | H118: =D118*F118*1000 -> 0 | I118: = | J118: 0 | K118: = | L118: =(J118*CH4GWP)*(C_CO2) -> 0 | M118: = | N118: =L118/C_CO2 -> 0
A119: =$A$23 -> 17 | B119: 1994 | C119: =$C$23 -> Swine | E119: x | F119: =SwineEF -> 0 | G119: = | H119: =D119*F119*1000 -> 0 | I119: = | J119: 0 | K119: = | L119: =(J119*CH4GWP)*(C_CO2) -> 0 | M119: = | N119: =L119/C_CO2 -> 0
A120: =$A$24 -> 32 | B120: 1994 | C120: =$C$24 -> Horses | E120: x | F120: =HorseEF -> 0 | G120: = | H120: =D120*F120*1000 -> 0 | I120: = | J120: 0 | K120: = | L120: =(J120*CH4GWP)*(C_CO2) -> 0 | M120: = | N120: =L120/C_CO2 -> 0
C121: =$C$25 -> TOTAL | H121: =SUM(H102:H120) -> 0 | J121: =SUM(J102:J120) -> 0 | L121: =SUM(L102:L120) -> 0 | N121: =SUM(N102:N120) -> 0
C123: Enteric Fermentation | F123: 1995
D124: Number of Animals ('000 head) | F124: Emission Factor (kg CH4/head) | H124: Emissions (kg CH4) | J124: Emissions (MMTCH4) | L124: Emissions (MMTCE) | N124: Emissions (MMTCO2E)
A125: =A101+1 -> 7 | C125: =$C$5 -> Dairy Cattle
A126: =$A$6 -> 2 | B126: =$F$123 -> 1995 | C126: =$C$6 -> Dairy Cows | E126: x | F126: =IF(DairycowEF=Control!$B$12,VLOOKUP($B$1,DairyCows_EF,$A$125,FALSE),DairycowEF) -> 0 | G126: = | H126: =D126*F126*1000 -> 0 | I126: = | J126: =H126/1000*10^-6 -> 0 | K126: = | L126: =(J126*CH4GWP)*(C_CO2) -> 0 | M126: = | N126: =L126/C_CO2 -> 0
A127: =$A$7 -> 3 | B127: =$F$123 -> 1995 | C127: =$C$7 -> Dairy Replacement Heifers | E127: x | F127: =IF(DairyRep=Control!$B$13,VLOOKUP($B$1,DairyReplTotal_EF,$A$125,FALSE),DairyRep) -> 0 | G127: = | H127: =D127*F127*1000 -> 0 | I127: = | J127: =H127/1000*10^-6 -> 0 | K127: = | L127: =(J127*CH4GWP)*(C_CO2) -> 0 | M127: = | N127: =L127/C_CO2 -> 0
A128: =$A$8 -> 4 | B128: 1995 | C128: =$C$8 -> Replacements 0-12 mos. | E128: x | F128: =IF(DairyRep0_12=Control!$B$14,VLOOKUP($B$1,DairyRepl7_11_EF,$A$125,FALSE),DairyRep0_12) -> 0 | G128: = | H128: =D128*F128*1000 -> 0 | I128: = | J128: =H128/1000*10^-6 -> 0 | K128: = | L128: =(J128*CH4GWP)*(C_CO2) -> 0 | M128: = | N128: =L128/C_CO2 -> 0
A129: =$A$9 -> 5 | B129: 1995 | C129: =$C$9 -> Replacements 12-24 mos. | E129: x | F129: =IF(DairyRep12_24=Control!$B$15,VLOOKUP($B$1,DairyRepl12_24_EF,$A$125,FALSE),DairyRep12_24) -> 0 | G129: = | H129: =D129*F129*1000 -> 0 | I129: = | J129: =H129/1000*10^-6 -> 0 | K129: = | L129: =(J129*CH4GWP)*(C_CO2) -> 0 | M129: = | N129: =L129/C_CO2 -> 0
B130: 1995 | C130: =$C$10 -> Beef Cattle
A131: =$A$11 -> 6 | B131: 1995 | C131: =$C$11 -> Beef Cows | E131: x | F131: =IF(BeefcowEF=Control!$B$17,VLOOKUP($B$1,BeefCows_EF,$A$125,FALSE),BeefcowEF) -> 0 | G131: = | H131: =D131*F131*1000 -> 0 | I131: = | J131: =H131/1000*10^-6 -> 0 | K131: = | L131: =(J131*CH4GWP)*(C_CO2) -> 0 | M131: = | N131: =L131/C_CO2 -> 0
A132: =$A$12 -> 7 | B132: 1995 | C132: =$C$12 -> Beef Replacement Heifers | E132: x | F132: =IF(BeefRep=Control!$B$18,VLOOKUP($B$1,BeefRepl_Total_EF,$A$125,FALSE),BeefRep) -> 0 | G132: = | H132: =D132*F132*1000 -> 0 | I132: = | J132: =H132/1000*10^-6 -> 0 | K132: = | L132: 0 | M132: = | N132: 0
A133: =$A$13 -> 8 | B133: 1995 | C133: =$C$13 -> Replacements 0-12 mos. | E133: x | F133: =IF(BeefRep0_12=Control!$B$19,VLOOKUP($B$1,BeefRepl_7_11_EF,$A$125,FALSE),BeefRep0_12) -> 0 | G133: = | H133: 0 | I133: = | J133: 0 | K133: = | L133: 0 | M133: = | N133: 0
A134: =$A$14 -> 9 | B134: 1995 | C134: =$C$14 -> Replacements 12-24 mos. | E134: x | F134: =IF(BeefRep12_24=Control!$B$20,VLOOKUP($B$1,BeefRepl_12_24_EF,$A$125,FALSE),BeefRep12_24) -> 0 | G134: = | H134: 0 | I134: = | J134: 0 | K134: = | L134: 0 | M134: = | N134: 0
A135: =$A$15 -> 10 | B135: 1995 | C135: =$C$15 -> Heifer Stockers | E135: x | F135: =IF(H_Stock_EF=Control!$B$21,VLOOKUP($B$1,HeiferStockers_EF,$A$125,FALSE),H_Stock_EF) -> 0 | G135: = | H135: 0 | I135: = | J135: 0 | K135: = | L135: 0 | M135: = | N135: 0
A136: =$A$16 -> 11 | B136: 1995 | C136: =$C$16 -> Steer Stockers | E136: x | F136: =IF(St_Stock_EF=Control!$B$22,VLOOKUP($B$1,SteerStockers_EF,$A$125,FALSE),St_Stock_EF) -> 0 | G136: = | H136: 0 | I136: = | J136: 0 | K136: = | L136: 0 | M136: = | N136: 0
A137: =$A$17 -> 15 | B137: 1995 | C137: =$C$17 -> Feedlot Heifers | E137: x | F137: =IF(FE_H_EF=Control!$B$23,VLOOKUP($B$1,HeiferFeedlot_EF,$A$125,FALSE),FE_H_EF) -> 0 | G137: = | H137: 0 | I137: = | J137: 0 | K137: = | L137: 0 | M137: = | N137: 0
A138: =$A$18 -> 16 | B138: 1995 | C138: =$C$18 -> Feedlot Steer | E138: x | F138: =IF(FE_St_EF=Control!$B$24,VLOOKUP($B$1,SteerFeedlot_EF,$A$125,FALSE),FE_St_EF) -> 0 | G138: = | H138: 0 | I138: = | J138: 0 | K138: = | L138: 0 | M138: = | N138: 0
A139: =$A$19 -> 12 | B139: 1995 | C139: =$C$19 -> Bulls | E139: x | F139: =IF(BeefbullEF=Control!$B$25,VLOOKUP($B$1,Bulls_EF,$A$125,FALSE),BeefbullEF) -> 0 | G139: = | H139: 0 | I139: = | J139: 0 | K139: = | L139: 0 | M139: = | N139: 0
B140: 1995 | C140: =$C$20 -> Other
A141: =$A$21 -> 28 | B141: 1995 | C141: =$C$21 -> Sheep | E141: x | F141: =SheepEF -> 0 | G141: = | H141: =D141*F141*1000 -> 0 | I141: = | J141: 0 | K141: = | L141: =(J141*CH4GWP)*(C_CO2) -> 0 | M141: = | N141: =L141/C_CO2 -> 0
A142: =$A$22 -> 31 | B142: 1995 | C142: =$C$22 -> Goats | E142: x | F142: =GoatEF -> 0 | G142: = | H142: =D142*F142*1000 -> 0 | I142: = | J142: 0 | K142: = | L142: =(J142*CH4GWP)*(C_CO2) -> 0 | M142: = | N142: =L142/C_CO2 -> 0
A143: =$A$23 -> 17 | B143: 1995 | C143: =$C$23 -> Swine | E143: x | F143: =SwineEF -> 0 | G143: = | H143: =D143*F143*1000 -> 0 | I143: = | J143: 0 | K143: = | L143: =(J143*CH4GWP)*(C_CO2) -> 0 | M143: = | N143: =L143/C_CO2 -> 0
A144: =$A$24 -> 32 | B144: 1995 | C144: =$C$24 -> Horses | E144: x | F144: =HorseEF -> 0 | G144: = | H144: =D144*F144*1000 -> 0 | I144: = | J144: 0 | K144: = | L144: =(J144*CH4GWP)*(C_CO2) -> 0 | M144: = | N144: =L144/C_CO2 -> 0
C145: =$C$25 -> TOTAL | H145: =SUM(H126:H144) -> 0 | J145: =SUM(J126:J144) -> 0 | L145: =SUM(L126:L144) -> 0 | N145: =SUM(N126:N144) -> 0
C147: Enteric Fermentation | F147: 1996
D148: Number of Animals ('000 head) | F148: Emission Factor (kg CH4/head) | H148: Emissions (kg CH4) | J148: Emissions (MMTCH4) | L148: Emissions (MMTCE) | N148: Emissions (MMTCO2E)
A149: =A125+1 -> 8 | C149: =$C$5 -> Dairy Cattle
A150: =$A$6 -> 2 | B150: =$F$147 -> 1996 | C150: =$C$6 -> Dairy Cows | E150: x | F150: =IF(DairycowEF=Control!$B$12,VLOOKUP($B$1,DairyCows_EF,$A$149,FALSE),DairycowEF) -> 0 | G150: = | H150: =D150*F150*1000 -> 0 | I150: = | J150: =H150/1000*10^-6 -> 0 | K150: = | L150: =(J150*CH4GWP)*(C_CO2) -> 0 | M150: = | N150: =L150/C_CO2 -> 0
A151: =$A$7 -> 3 | B151: =$F$147 -> 1996 | C151: =$C$7 -> Dairy Replacement Heifers | E151: x | F151: =IF(DairyRep=Control!$B$13,VLOOKUP($B$1,DairyReplTotal_EF,$A$149,FALSE),DairyRep) -> 0 | G151: = | H151: =D151*F151*1000 -> 0 | I151: = | J151: =H151/1000*10^-6 -> 0 | K151: = | L151: =(J151*CH4GWP)*(C_CO2) -> 0 | M151: = | N151: =L151/C_CO2 -> 0
A152: =$A$8 -> 4 | B152: 1996 | C152: =$C$8 -> Replacements 0-12 mos. | E152: x | F152: =IF(DairyRep0_12=Control!$B$14,VLOOKUP($B$1,DairyRepl7_11_EF,$A$149,FALSE),DairyRep0_12) -> 0 | G152: = | H152: =D152*F152*1000 -> 0 | I152: = | J152: =H152/1000*10^-6 -> 0 | K152: = | L152: =(J152*CH4GWP)*(C_CO2) -> 0 | M152: = | N152: =L152/C_CO2 -> 0
A153: =$A$9 -> 5 | B153: 1996 | C153: =$C$9 -> Replacements 12-24 mos. | E153: x | F153: =IF(DairyRep12_24=Control!$B$15,VLOOKUP($B$1,DairyRepl12_24_EF,$A$149,FALSE),DairyRep12_24) -> 0 | G153: = | H153: =D153*F153*1000 -> 0 | I153: = | J153: =H153/1000*10^-6 -> 0 | K153: = | L153: =(J153*CH4GWP)*(C_CO2) -> 0 | M153: = | N153: =L153/C_CO2 -> 0
B154: 1996 | C154: =$C$10 -> Beef Cattle
A155: =$A$11 -> 6 | B155: 1996 | C155: =$C$11 -> Beef Cows | E155: x | F155: =IF(BeefcowEF=Control!$B$17,VLOOKUP($B$1,BeefCows_EF,$A$149,FALSE),BeefcowEF) -> 0 | G155: = | H155: =D155*F155*1000 -> 0 | I155: = | J155: =H155/1000*10^-6 -> 0 | K155: = | L155: =(J155*CH4GWP)*(C_CO2) -> 0 | M155: = | N155: =L155/C_CO2 -> 0
A156: =$A$12 -> 7 | B156: 1996 | C156: =$C$12 -> Beef Replacement Heifers | E156: x | F156: =IF(BeefRep=Control!$B$18,VLOOKUP($B$1,BeefRepl_Total_EF,$A$149,FALSE),BeefRep) -> 0 | G156: = | H156: =D156*F156*1000 -> 0 | I156: = | J156: =H156/1000*10^-6 -> 0 | K156: = | L156: 0 | M156: = | N156: 0
A157: =$A$13 -> 8 | B157: 1996 | C157: =$C$13 -> Replacements 0-12 mos. | E157: x | F157: =IF(BeefRep0_12=Control!$B$19,VLOOKUP($B$1,BeefRepl_7_11_EF,$A$149,FALSE),BeefRep0_12) -> 0 | G157: = | H157: 0 | I157: = | J157: 0 | K157: = | L157: 0 | M157: = | N157: 0
A158: =$A$14 -> 9 | B158: 1996 | C158: =$C$14 -> Replacements 12-24 mos. | E158: x | F158: =IF(BeefRep12_24=Control!$B$20,VLOOKUP($B$1,BeefRepl_12_24_EF,$A$149,FALSE),BeefRep12_24) -> 0 | G158: = | H158: 0 | I158: = | J158: 0 | K158: = | L158: 0 | M158: = | N158: 0
A159: =$A$15 -> 10 | B159: 1996 | C159: =$C$15 -> Heifer Stockers | E159: x | F159: =IF(H_Stock_EF=Control!$B$21,VLOOKUP($B$1,HeiferStockers_EF,$A$149,FALSE),H_Stock_EF) -> 0 | G159: = | H159: 0 | I159: = | J159: 0 | K159: = | L159: 0 | M159: = | N159: 0
A160: =$A$16 -> 11 | B160: 1996 | C160: =$C$16 -> Steer Stockers | E160: x | F160: =IF(St_Stock_EF=Control!$B$22,VLOOKUP($B$1,SteerStockers_EF,$A$149,FALSE),St_Stock_EF) -> 0 | G160: = | H160: 0 | I160: = | J160: 0 | K160: = | L160: 0 | M160: = | N160: 0
A161: =$A$17 -> 15 | B161: 1996 | C161: =$C$17 -> Feedlot Heifers | E161: x | F161: =IF(FE_H_EF=Control!$B$23,VLOOKUP($B$1,HeiferFeedlot_EF,$A$149,FALSE),FE_H_EF) -> 0 | G161: = | H161: 0 | I161: = | J161: 0 | K161: = | L161: 0 | M161: = | N161: 0
A162: =$A$18 -> 16 | B162: 1996 | C162: =$C$18 -> Feedlot Steer | E162: x | F162: =IF(FE_St_EF=Control!$B$24,VLOOKUP($B$1,SteerFeedlot_EF,$A$149,FALSE),FE_St_EF) -> 0 | G162: = | H162: 0 | I162: = | J162: 0 | K162: = | L162: 0 | M162: = | N162: 0
A163: =$A$19 -> 12 | B163: 1996 | C163: =$C$19 -> Bulls | E163: x | F163: =IF(BeefbullEF=Control!$B$25,VLOOKUP($B$1,Bulls_EF,$A$149,FALSE),BeefbullEF) -> 0 | G163: = | H163: 0 | I163: = | J163: 0 | K163: = | L163: 0 | M163: = | N163: 0
B164: 1996 | C164: =$C$20 -> Other
A165: =$A$21 -> 28 | B165: 1996 | C165: =$C$21 -> Sheep | E165: x | F165: =SheepEF -> 0 | G165: = | H165: =D165*F165*1000 -> 0 | I165: = | J165: 0 | K165: = | L165: =(J165*CH4GWP)*(C_CO2) -> 0 | M165: = | N165: =L165/C_CO2 -> 0
A166: =$A$22 -> 31 | B166: 1996 | C166: =$C$22 -> Goats | E166: x | F166: =GoatEF -> 0 | G166: = | H166: =D166*F166*1000 -> 0 | I166: = | J166: 0 | K166: = | L166: =(J166*CH4GWP)*(C_CO2) -> 0 | M166: = | N166: =L166/C_CO2 -> 0
A167: =$A$23 -> 17 | B167: 1996 | C167: =$C$23 -> Swine | E167: x | F167: =SwineEF -> 0 | G167: = | H167: =D167*F167*1000 -> 0 | I167: = | J167: 0 | K167: = | L167: =(J167*CH4GWP)*(C_CO2) -> 0 | M167: = | N167: =L167/C_CO2 -> 0
A168: =$A$24 -> 32 | B168: 1996 | C168: =$C$24 -> Horses | E168: x | F168: =HorseEF -> 0 | G168: = | H168: =D168*F168*1000 -> 0 | I168: = | J168: 0 | K168: = | L168: =(J168*CH4GWP)*(C_CO2) -> 0 | M168: = | N168: =L168/C_CO2 -> 0
C169: =$C$25 -> TOTAL | H169: =SUM(H150:H168) -> 0 | J169: =SUM(J150:J168) -> 0 | L169: =SUM(L150:L168) -> 0 | N169: =SUM(N150:N168) -> 0
C171: Enteric Fermentation | F171: 1997
D172: Number of Animals ('000 head) | F172: Emission Factor (kg CH4/head) | H172: Emissions (kg CH4) | J172: Emissions (MMTCH4) | L172: Emissions (MMTCE) | N172: Emissions (MMTCO2E)
A173: =A149+1 -> 9 | C173: =$C$5 -> Dairy Cattle
A174: =$A$6 -> 2 | B174: =$F$171 -> 1997 | C174: =$C$6 -> Dairy Cows | E174: x | F174: =IF(DairycowEF=Control!$B$12,VLOOKUP($B$1,DairyCows_EF,$A$173,FALSE),DairycowEF) -> 0 | G174: = | H174: =D174*F174*1000 -> 0 | I174: = | J174: =H174/1000*10^-6 -> 0 | K174: = | L174: =(J174*CH4GWP)*(C_CO2) -> 0 | M174: = | N174: =L174/C_CO2 -> 0
A175: =$A$7 -> 3 | B175: =$F$171 -> 1997 | C175: =$C$7 -> Dairy Replacement Heifers | E175: x | F175: =IF(DairyRep=Control!$B$13,VLOOKUP($B$1,DairyReplTotal_EF,$A$173,FALSE),DairyRep) -> 0 | G175: = | H175: =D175*F175*1000 -> 0 | I175: = | J175: =H175/1000*10^-6 -> 0 | K175: = | L175: =(J175*CH4GWP)*(C_CO2) -> 0 | M175: = | N175: =L175/C_CO2 -> 0
A176: =$A$8 -> 4 | B176: 1997 | C176: =$C$8 -> Replacements 0-12 mos. | E176: x | F176: =IF(DairyRep0_12=Control!$B$14,VLOOKUP($B$1,DairyRepl7_11_EF,$A$173,FALSE),DairyRep0_12) -> 0 | G176: = | H176: =D176*F176*1000 -> 0 | I176: = | J176: =H176/1000*10^-6 -> 0 | K176: = | L176: =(J176*CH4GWP)*(C_CO2) -> 0 | M176: = | N176: =L176/C_CO2 -> 0
A177: =$A$9 -> 5 | B177: 1997 | C177: =$C$9 -> Replacements 12-24 mos. | E177: x | F177: =IF(DairyRep12_24=Control!$B$15,VLOOKUP($B$1,DairyRepl12_24_EF,$A$173,FALSE),DairyRep12_24) -> 0 | G177: = | H177: =D177*F177*1000 -> 0 | I177: = | J177: =H177/1000*10^-6 -> 0 | K177: = | L177: =(J177*CH4GWP)*(C_CO2) -> 0 | M177: = | N177: =L177/C_CO2 -> 0
B178: 1997 | C178: =$C$10 -> Beef Cattle
A179: =$A$11 -> 6 | B179: 1997 | C179: =$C$11 -> Beef Cows | E179: x | F179: =IF(BeefcowEF=Control!$B$17,VLOOKUP($B$1,BeefCows_EF,$A$173,FALSE),BeefcowEF) -> 0 | G179: = | H179: =D179*F179*1000 -> 0 | I179: = | J179: =H179/1000*10^-6 -> 0 | K179: = | L179: =(J179*CH4GWP)*(C_CO2) -> 0 | M179: = | N179: =L179/C_CO2 -> 0
A180: =$A$12 -> 7 | B180: 1997 | C180: =$C$12 -> Beef Replacement Heifers | E180: x | F180: =IF(BeefRep=Control!$B$18,VLOOKUP($B$1,BeefRepl_Total_EF,$A$173,FALSE),BeefRep) -> 0 | G180: = | H180: =D180*F180*1000 -> 0 | I180: = | J180: =H180/1000*10^-6 -> 0 | K180: = | L180: 0 | M180: = | N180: 0
A181: =$A$13 -> 8 | B181: 1997 | C181: =$C$13 -> Replacements 0-12 mos. | E181: x | F181: =IF(BeefRep0_12=Control!$B$19,VLOOKUP($B$1,BeefRepl_7_11_EF,$A$173,FALSE),BeefRep0_12) -> 0 | G181: = | H181: 0 | I181: = | J181: 0 | K181: = | L181: 0 | M181: = | N181: 0
A182: =$A$14 -> 9 | B182: 1997 | C182: =$C$14 -> Replacements 12-24 mos. | E182: x | F182: =IF(BeefRep12_24=Control!$B$20,VLOOKUP($B$1,BeefRepl_12_24_EF,$A$173,FALSE),BeefRep12_24) -> 0 | G182: = | H182: 0 | I182: = | J182: 0 | K182: = | L182: 0 | M182: = | N182: 0
A183: =$A$15 -> 10 | B183: 1997 | C183: =$C$15 -> Heifer Stockers | E183: x | F183: =IF(H_Stock_EF=Control!$B$21,VLOOKUP($B$1,HeiferStockers_EF,$A$173,FALSE),H_Stock_EF) -> 0 | G183: = | H183: 0 | I183: = | J183: 0 | K183: = | L183: 0 | M183: = | N183: 0
A184: =$A$16 -> 11 | B184: 1997 | C184: =$C$16 -> Steer Stockers | E184: x | F184: =IF(St_Stock_EF=Control!$B$22,VLOOKUP($B$1,SteerStockers_EF,$A$173,FALSE),St_Stock_EF) -> 0 | G184: = | H184: 0 | I184: = | J184: 0 | K184: = | L184: 0 | M184: = | N184: 0
A185: =$A$17 -> 15 | B185: 1997 | C185: =$C$17 -> Feedlot Heifers | E185: x | F185: =IF(FE_H_EF=Control!$B$23,VLOOKUP($B$1,HeiferFeedlot_EF,$A$173,FALSE),FE_H_EF) -> 0 | G185: = | H185: 0 | I185: = | J185: 0 | K185: = | L185: 0 | M185: = | N185: 0
A186: =$A$18 -> 16 | B186: 1997 | C186: =$C$18 -> Feedlot Steer | E186: x | F186: =IF(FE_St_EF=Control!$B$24,VLOOKUP($B$1,SteerFeedlot_EF,$A$173,FALSE),FE_St_EF) -> 0 | G186: = | H186: 0 | I186: = | J186: 0 | K186: = | L186: 0 | M186: = | N186: 0
A187: =$A$19 -> 12 | B187: 1997 | C187: =$C$19 -> Bulls | E187: x | F187: =IF(BeefbullEF=Control!$B$25,VLOOKUP($B$1,Bulls_EF,$A$173,FALSE),BeefbullEF) -> 0 | G187: = | H187: 0 | I187: = | J187: 0 | K187: = | L187: 0 | M187: = | N187: 0
B188: 1997 | C188: =$C$20 -> Other
A189: =$A$21 -> 28 | B189: 1997 | C189: =$C$21 -> Sheep | E189: x | F189: =SheepEF -> 0 | G189: = | H189: =D189*F189*1000 -> 0 | I189: = | J189: 0 | K189: = | L189: =(J189*CH4GWP)*(C_CO2) -> 0 | M189: = | N189: =L189/C_CO2 -> 0
A190: =$A$22 -> 31 | B190: 1997 | C190: =$C$22 -> Goats | E190: x | F190: =GoatEF -> 0 | G190: = | H190: =D190*F190*1000 -> 0 | I190: = | J190: 0 | K190: = | L190: =(J190*CH4GWP)*(C_CO2) -> 0 | M190: = | N190: =L190/C_CO2 -> 0
A191: =$A$23 -> 17 | B191: 1997 | C191: =$C$23 -> Swine | E191: x | F191: =SwineEF -> 0 | G191: = | H191: =D191*F191*1000 -> 0 | I191: = | J191: 0 | K191: = | L191: =(J191*CH4GWP)*(C_CO2) -> 0 | M191: = | N191: =L191/C_CO2 -> 0
A192: =$A$24 -> 32 | B192: 1997 | C192: =$C$24 -> Horses | E192: x | F192: =HorseEF -> 0 | G192: = | H192: =D192*F192*1000 -> 0 | I192: = | J192: 0 | K192: = | L192: =(J192*CH4GWP)*(C_CO2) -> 0 | M192: = | N192: =L192/C_CO2 -> 0
C193: =$C$25 -> TOTAL | H193: =SUM(H174:H192) -> 0 | J193: =SUM(J174:J192) -> 0 | L193: =SUM(L174:L192) -> 0 | N193: =SUM(N174:N192) -> 0
C195: Enteric Fermentation | F195: 1998
D196: Number of Animals ('000 head) | F196: Emission Factor (kg CH4/head) | H196: Emissions (kg CH4) | J196: Emissions (MMTCH4) | L196: Emissions (MMTCE) | N196: Emissions (MMTCO2E)
A197: =A173+1 -> 10 | C197: =$C$5 -> Dairy Cattle
A198: =$A$6 -> 2 | B198: =$F$195 -> 1998 | C198: =$C$6 -> Dairy Cows | E198: x | F198: =IF(DairycowEF=Control!$B$12,VLOOKUP($B$1,DairyCows_EF,$A$197,FALSE),DairycowEF) -> 0 | G198: = | H198: =D198*F198*1000 -> 0 | I198: = | J198: =H198/1000*10^-6 -> 0 | K198: = | L198: =(J198*CH4GWP)*(C_CO2) -> 0 | M198: = | N198: =L198/C_CO2 -> 0
A199: =$A$7 -> 3 | B199: =$F$195 -> 1998 | C199: =$C$7 -> Dairy Replacement Heifers | E199: x | F199: =IF(DairyRep=Control!$B$13,VLOOKUP($B$1,DairyReplTotal_EF,$A$197,FALSE),DairyRep) -> 0 | G199: = | H199: =D199*F199*1000 -> 0 | I199: = | J199: =H199/1000*10^-6 -> 0 | K199: = | L199: =(J199*CH4GWP)*(C_CO2) -> 0 | M199: = | N199: =L199/C_CO2 -> 0
A200: =$A$8 -> 4 | B200: 1998 | C200: =$C$8 -> Replacements 0-12 mos. | E200: x | F200: =IF(DairyRep0_12=Control!$B$14,VLOOKUP($B$1,DairyRepl7_11_EF,$A$197,FALSE),DairyRep0_12) -> 0 | G200: = | H200: =D200*F200*1000 -> 0 | I200: = | J200: =H200/1000*10^-6 -> 0 | K200: = | L200: =(J200*CH4GWP)*(C_CO2) -> 0 | M200: = | N200: =L200/C_CO2 -> 0
A201: =$A$9 -> 5 | B201: 1998 | C201: =$C$9 -> Replacements 12-24 mos. | E201: x | F201: =IF(DairyRep12_24=Control!$B$15,VLOOKUP($B$1,DairyRepl12_24_EF,$A$197,FALSE),DairyRep12_24) -> 0 | G201: = | H201: =D201*F201*1000 -> 0 | I201: = | J201: =H201/1000*10^-6 -> 0 | K201: = | L201: =(J201*CH4GWP)*(C_CO2) -> 0 | M201: = | N201: =L201/C_CO2 -> 0
B202: 1998 | C202: =$C$10 -> Beef Cattle
A203: =$A$11 -> 6 | B203: 1998 | C203: =$C$11 -> Beef Cows | E203: x | F203: =IF(BeefcowEF=Control!$B$17,VLOOKUP($B$1,BeefCows_EF,$A$197,FALSE),BeefcowEF) -> 0 | G203: = | H203: =D203*F203*1000 -> 0 | I203: = | J203: =H203/1000*10^-6 -> 0 | K203: = | L203: =(J203*CH4GWP)*(C_CO2) -> 0 | M203: = | N203: =L203/C_CO2 -> 0
A204: =$A$12 -> 7 | B204: 1998 | C204: =$C$12 -> Beef Replacement Heifers | E204: x | F204: =IF(BeefRep=Control!$B$18,VLOOKUP($B$1,BeefRepl_Total_EF,$A$197,FALSE),BeefRep) -> 0 | G204: = | H204: =D204*F204*1000 -> 0 | I204: = | J204: =H204/1000*10^-6 -> 0 | K204: = | L204: 0 | M204: = | N204: 0
A205: =$A$13 -> 8 | B205: 1998 | C205: =$C$13 -> Replacements 0-12 mos. | E205: x | F205: =IF(BeefRep0_12=Control!$B$19,VLOOKUP($B$1,BeefRepl_7_11_EF,$A$197,FALSE),BeefRep0_12) -> 0 | G205: = | H205: 0 | I205: = | J205: 0 | K205: = | L205: 0 | M205: = | N205: 0
A206: =$A$14 -> 9 | B206: 1998 | C206: =$C$14 -> Replacements 12-24 mos. | E206: x | F206: =IF(BeefRep12_24=Control!$B$20,VLOOKUP($B$1,BeefRepl_12_24_EF,$A$197,FALSE),BeefRep12_24) -> 0 | G206: = | H206: 0 | I206: = | J206: 0 | K206: = | L206: 0 | M206: = | N206: 0
A207: =$A$15 -> 10 | B207: 1998 | C207: =$C$15 -> Heifer Stockers | E207: x | F207: =IF(H_Stock_EF=Control!$B$21,VLOOKUP($B$1,HeiferStockers_EF,$A$197,FALSE),H_Stock_EF) -> 0 | G207: = | H207: 0 | I207: = | J207: 0 | K207: = | L207: 0 | M207: = | N207: 0
A208: =$A$16 -> 11 | B208: 1998 | C208: =$C$16 -> Steer Stockers | E208: x | F208: =IF(St_Stock_EF=Control!$B$22,VLOOKUP($B$1,SteerStockers_EF,$A$197,FALSE),St_Stock_EF) -> 0 | G208: = | H208: 0 | I208: = | J208: 0 | K208: = | L208: 0 | M208: = | N208: 0
A209: =$A$17 -> 15 | B209: 1998 | C209: =$C$17 -> Feedlot Heifers | E209: x | F209: =IF(FE_H_EF=Control!$B$23,VLOOKUP($B$1,HeiferFeedlot_EF,$A$197,FALSE),FE_H_EF) -> 0 | G209: = | H209: 0 | I209: = | J209: 0 | K209: = | L209: 0 | M209: = | N209: 0
... 629 more rows

Sheet CH4 from Manure Management
B1: =StateName -> Alaska | C1: ="3a. CH4 from Manure Management in "&StateName -> 3a. CH4 from Manure Management in Alaska
C3: CH4 from Manure Management | J3: 1990
D4: Number of Animals ('000 head) | F4: Typical Animal Mass (TAM) (kg) | H4: Volatile Solids (VS) | J4: Total VS (kg/yr) | L4: Max Pot. Emissions (m3 CH4/ kg VS) | N4: Weighted MCF | P4: Emissions (m3 CH4) | R4: Emissions (Metric Tons CH4) | T4: Emissions (MMTCH4) | V4: Emissions (MMTCE) | X4: Emissions (MMTCO2E)
A5: 2 | C5: =Control!A38 -> Dairy Cattle | H5: [kg VS/head/year]
A6: ='animal data'!D2 -> 2 | B6: =J$3 -> 1990 | C6: =Control!$A$39 -> Dairy Cows | F6: x | H6: =IF(Control!G$39=VS_dairycow,VLOOKUP($B$1,VS_dairycow3,A5,FALSE),Control!G$39) -> 0 | I6: = | J6: =D6*H6*1000 -> 0 | K6: x | L6: =Control!K$39 -> 0 | M6: x | N6: =VLOOKUP($B6&State,MCFs,2,FALSE) -> 0.004346875 | O6: = | P6: =(J6*L6)*N6 -> 0 | Q6: = | R6: =P6*kg_m3/kg.MT -> 0 | S6: = | T6: =R6/1000000 -> 0 | U6: = | V6: =(T6*CH4GWP)*C_CO2 -> 0 | W6: = | X6: =V6/C_CO2 -> 0
A7: ='animal data'!E2 -> 3 | B7: =J$3 -> 1990 | C7: =Control!$A$40 -> Dairy Replacement Heifers | F7: x | H7: =IF(Control!G$40=VS_dairyheifer,VLOOKUP($B$1,VS_dairyheifer3,A5,FALSE),Control!G$40) -> 0 | I7: = | J7: =D7*H7*1000 -> 0 | K7: x | L7: =Control!K$40 -> 0 | M7: x | N7: =VLOOKUP($B7&State,MCFs,3,FALSE) -> 0.01157227394 | O7: = | P7: =(J7*L7)*N7 -> 0 | Q7: = | R7: =P7*kg_m3/kg.MT -> 0 | S7: = | T7: =R7/1000000 -> 0 | U7: = | V7: =(T7*CH4GWP)*C_CO2 -> 0 | W7: = | X7: =V7/C_CO2 -> 0
B8: 1990 | C8: =Control!$A$41 -> Beef Cattle
A9: ='animal data'!Q2 -> 15 | B9: 1990 | C9: =Control!$A$42 -> Feedlot Heifers | F9: x | H9: =IF(Control!G$42=VS_feedlotheifer,VLOOKUP($B$1,VS_feedlotheifer3,A5,FALSE),Control!G$42) -> 0 | I9: = | J9: =D9*H9*1000 -> 0 | K9: x | L9: =Control!K$42 -> 0 | M9: x | N9: =VLOOKUP($B9&State,MCFs,4,FALSE) -> 0.01204395613 | O9: = | P9: =(J9*L9)*N9 -> 0 | Q9: = | R9: =P9*kg_m3/kg.MT -> 0 | S9: = | T9: =R9/1000000 -> 0 | U9: = | V9: =(T9*CH4GWP)*C_CO2 -> 0 | W9: = | X9: =V9/C_CO2 -> 0
A10: ='animal data'!R2 -> 16 | B10: 1990 | C10: =Control!$A$43 -> Feedlot Steer | F10: x | H10: =IF(Control!G$43=VS_feedlotsteer,VLOOKUP($B$1,VS_feedlotsteer3,A5,FALSE),Control!G$43) -> 0 | I10: = | J10: 0 | K10: x | L10: =Control!K$43 -> 0 | M10: x | N10: =VLOOKUP($B10&State,MCFs,5,FALSE) -> 0.01204395613 | O10: = | P10: =(J10*L10)*N10 -> 0 | Q10: = | R10: 0 | S10: = | T10: 0 | U10: = | V10: 0 | W10: = | X10: 0
A11: ='animal data'!N2 -> 12 | B11: 1990 | C11: =Control!$A$44 -> Bulls | F11: x | H11: =IF(Control!G$44=VS_NOFbulls,VLOOKUP($B$1,VS_NOFbulls3,A5,FALSE),Control!G$44) -> 0 | I11: = | J11: 0 | K11: x | L11: =Control!K$44 -> 0 | M11: x | N11: =VLOOKUP(State,MCF,2,FALSE)*VLOOKUP(State,manure_nofbeef,2,FALSE) -> 0.015 | O11: = | P11: 0 | Q11: = | R11: 0 | S11: = | T11: 0 | U11: = | V11: 0 | W11: = | X11: 0
A12: ='animal data'!P2 -> 14 | B12: 1990 | C12: =Control!$A$45 -> Calves | E12: x | F12: =IF(TAM_NOFcalf=Control!$B$45,INDEX(TAM_NOFcalf2,MATCH($B12,'TAM and NEx Rates'!$A$3:$A$45,0)),TAM_NOFcalf) -> 0 | G12: x | H12: =IF(Control!G$45=VS_NOFcalves,INDEX(VS_NOFcalves2,MATCH($B12,'VS-CattleNEW'!$AO$4:$AO$34,0)),Control!G$45) -> 0 | I12: = | J12: =D12*F12*H12*days_yr -> 0 | K12: x | L12: =Control!K$45 -> 0 | M12: x | N12: 0.015 | O12: = | P12: 0 | Q12: = | R12: 0 | S12: = | T12: 0 | U12: = | V12: 0 | W12: = | X12: 0
A13: ='animal data'!H2 -> 6 | B13: 1990 | C13: =Control!$A$46 -> Beef Cows | F13: x | H13: =IF(Control!G$46=VS_NOFcows,VLOOKUP($B$1,VS_NOFcows3,A5,FALSE),Control!G$46) -> 0 | I13: = | J13: 0 | K13: x | L13: =Control!K$46 -> 0 | M13: x | N13: 0.015 | O13: = | P13: 0 | Q13: = | R13: 0 | S13: = | T13: 0 | U13: = | V13: 0 | W13: = | X13: 0
A14: ='animal data'!I2 -> 7 | B14: =J$3 -> 1990 | C14: =Control!$A$47 -> Beef Replacement Heifers | F14: x | H14: =IF(Control!G$47=VS_BeefReplace,VLOOKUP($B$1,VS_BeefReplace3,A5,FALSE),Control!G$47) -> 0 | I14: = | J14: 0 | K14: x | L14: =Control!K$46 -> 0 | M14: x | N14: 0.015 | O14: = | P14: =(J14*L14)*N14 -> 0 | Q14: = | R14: =P14*kg_m3/kg.MT -> 0 | S14: = | T14: =R14/1000000 -> 0 | U14: = | V14: 0 | W14: = | X14: 0
A15: ='animal data'!M2 -> 11 | B15: 1990 | C15: =Control!$A$48 -> Steer Stockers | F15: x | H15: =IF(Control!G$48=VS_NOFsteers,VLOOKUP($B$1,VS_NOFsteers3,A5,FALSE),Control!G$48) -> 0 | I15: = | J15: 0 | K15: x | L15: =Control!K$48 -> 0 | M15: x | N15: 0.015 | O15: = | P15: 0 | Q15: = | R15: 0 | S15: = | T15: 0 | U15: = | V15: 0 | W15: = | X15: 0
A16: 10 | B16: 1990 | C16: =Control!$A$49 -> Heifer Stockers | F16: x | H16: =IF(Control!G$49=VS_NOFheifers,VLOOKUP($B$1,VS_NOFheifers3,A5,FALSE),Control!G$49) -> 0 | I16: = | J16: 0 | K16: x | L16: =Control!K$49 -> 0 | M16: x | N16: 0.015 | O16: = | P16: 0 | Q16: = | R16: 0 | S16: = | T16: 0 | U16: = | V16: 0 | W16: = | X16: 0
B17: 1990 | C17: =Control!$A$50 -> Swine | H17: [kg VS/1000 kg animal mass/day]
A18: ='animal data'!T2 -> 18 | B18: 1990 | C18: =Control!$A$51 -> Breeding Swine | E18: x | F18: =Control!C$51 -> 0 | G18: x | H18: =IF(Control!G$51=VS_breedswine,INDEX(VS_breedswine2,MATCH($B18,'VS-CattleNEW'!$AO$4:$AO$34,0)),Control!G$51) -> 0 | I18: = | J18: =D18*F18*H18*days_yr -> 0 | K18: x | L18: =Control!K$51 -> 0 | M18: x | N18: =VLOOKUP($B18&State,MCFs,7,FALSE) -> 0.01 | O18: = | P18: =(J18*L18)*N18 -> 0 | Q18: = | R18: =P18*kg_m3/kg.MT -> 0 | S18: = | T18: =R18/1000000 -> 0 | U18: = | V18: =(T18*CH4GWP)*C_CO2 -> 0 | W18: = | X18: =V18/C_CO2 -> 0
A19: ='animal data'!U2 -> 19 | B19: 1990 | C19: =Control!$A$52 -> Market Under 60 lbs | E19: x | F19: =Control!C$52 -> 0 | G19: x | H19: =Control!G$52 -> 0 | I19: = | J19: =D19*F19*H19*days_yr -> 0 | K19: x | L19: =Control!K$52 -> 0 | M19: x | N19: =VLOOKUP($B19&State,MCFs,6,FALSE) -> 0.01 | O19: = | P19: =(J19*L19)*N19 -> 0 | Q19: = | R19: =P19*kg_m3/kg.MT -> 0 | S19: = | T19: =R19/1000000 -> 0 | U19: = | V19: =(T19*CH4GWP)*C_CO2 -> 0 | W19: = | X19: =V19/C_CO2 -> 0
A20: ='animal data'!V2 -> 20 | B20: 1990 | C20: =Control!$A$53 -> Market 60-119 lbs | E20: x | F20: =Control!C$53 -> 0 | G20: x | H20: =Control!G$53 -> 0 | I20: = | J20: =D20*F20*H20*days_yr -> 0 | K20: x | L20: =Control!K$53 -> 0 | M20: x | N20: =VLOOKUP($B20&State,MCFs,6,FALSE) -> 0.01 | O20: = | P20: =(J20*L20)*N20 -> 0 | Q20: = | R20: =P20*kg_m3/kg.MT -> 0 | S20: = | T20: =R20/1000000 -> 0 | U20: = | V20: =(T20*CH4GWP)*C_CO2 -> 0 | W20: = | X20: =V20/C_CO2 -> 0
A21: ='animal data'!W2 -> 21 | B21: 1990 | C21: =Control!$A$54 -> Market 120-179 lbs | E21: x | F21: =Control!C$54 -> 0 | G21: x | H21: =Control!G$54 -> 0 | I21: = | J21: =D21*F21*H21*days_yr -> 0 | K21: x | L21: =Control!K$54 -> 0 | M21: x | N21: =VLOOKUP($B21&State,MCFs,6,FALSE) -> 0.01 | O21: = | P21: =(J21*L21)*N21 -> 0 | Q21: = | R21: =P21*kg_m3/kg.MT -> 0 | S21: = | T21: =R21/1000000 -> 0 | U21: = | V21: =(T21*CH4GWP)*C_CO2 -> 0 | W21: = | X21: =V21/C_CO2 -> 0
A22: ='animal data'!X2 -> 22 | B22: 1990 | C22: =Control!$A$55 -> Market over 180 lbs | E22: x | F22: =Control!C$55 -> 0 | G22: x | H22: =Control!G$55 -> 0 | I22: = | J22: =D22*F22*H22*days_yr -> 0 | K22: x | L22: =Control!K$55 -> 0 | M22: x | N22: =VLOOKUP($B22&State,MCFs,6,FALSE) -> 0.01 | O22: = | P22: =(J22*L22)*N22 -> 0 | Q22: = | R22: =P22*kg_m3/kg.MT -> 0 | S22: = | T22: =R22/1000000 -> 0 | U22: = | V22: =(T22*CH4GWP)*C_CO2 -> 0 | W22: = | X22: =V22/C_CO2 -> 0
B23: 1990 | C23: =Control!$A$56 -> Poultry
B24: 1990 | C24: =Control!$A$57 -> Layers
A25: ='animal data'!Y2 -> 23 | B25: 1990 | C25: =Control!$A$58 -> Hens > 1 yr | E25: x | F25: =Control!C$58 -> 0 | G25: x | H25: =IF(Control!G$58=VS_hens,INDEX(VS_hens2,MATCH($B25,'VS-CattleNEW'!$AO$4:$AO$34,0)),Control!G$58) -> 0 | I25: = | J25: =D25*F25*H25*days_yr -> 0 | K25: x | L25: =Control!K$58 -> 0 | M25: x | N25: =VLOOKUP($B25&State,MCFs,8,FALSE) -> 0.106483543 | O25: = | P25: =(J25*L25)*N25 -> 0 | Q25: = | R25: =P25*kg_m3/kg.MT -> 0 | S25: = | T25: =R25/1000000 -> 0 | U25: = | V25: =(T25*CH4GWP)*C_CO2 -> 0 | W25: = | X25: =V25/C_CO2 -> 0
A26: ='animal data'!Z2 -> 24 | B26: 1990 | C26: =Control!$A$59 -> Pullets | E26: x | F26: =Control!C$59 -> 0 | G26: x | H26: =IF(Control!G$59=VS_pullets,INDEX(VS_pullets2,MATCH($B26,'VS-CattleNEW'!$AO$4:$AO$34,0)),Control!G$59) -> 0 | I26: = | J26: =D26*F26*H26*days_yr -> 0 | K26: x | L26: =Control!K$59 -> 0 | M26: x | N26: =VLOOKUP($B26&State,MCFs,8,FALSE) -> 0.106483543 | O26: = | P26: =(J26*L26)*N26 -> 0 | Q26: = | R26: =P26*kg_m3/kg.MT -> 0 | S26: = | T26: =R26/1000000 -> 0 | U26: = | V26: =(T26*CH4GWP)*C_CO2 -> 0 | W26: = | X26: =V26/C_CO2 -> 0
A27: ='animal data'!AA2 -> 25 | B27: 1990 | C27: =Control!$A$60 -> Chickens | E27: x | F27: =Control!C$60 -> 0 | G27: x | H27: =IF(Control!G$60=VS_chickens,INDEX(VS_chickens2,MATCH($B27,'VS-CattleNEW'!$AO$4:$AO$34,0)),Control!G$60) -> 0 | I27: = | J27: =D27*F27*H27*days_yr -> 0 | K27: x | L27: =Control!K$60 -> 0 | M27: x | N27: =VLOOKUP($B27&State,MCFs,8,FALSE) -> 0.106483543 | O27: = | P27: =(J27*L27)*N27 -> 0 | Q27: = | R27: =P27*kg_m3/kg.MT -> 0 | S27: = | T27: =R27/1000000 -> 0 | U27: = | V27: =(T27*CH4GWP)*C_CO2 -> 0 | W27: = | X27: =V27/C_CO2 -> 0
A28: ='animal data'!AB2 -> 26 | B28: 1990 | C28: =Control!$A$61 -> Broilers | E28: x | F28: =Control!C$61 -> 0 | G28: x | H28: =IF(Control!G$61=VS_broilers,INDEX(VS_broilers2,MATCH($B28,'VS-CattleNEW'!$AO$4:$AO$34,0)),Control!G$61) -> 0 | I28: = | J28: =D28*F28*H28*days_yr -> 0 | K28: x | L28: =Control!K$61 -> 0 | M28: x | N28: =BroilerMCF -> 0.015 | O28: = | P28: =(J28*L28)*N28 -> 0 | Q28: = | R28: =P28*kg_m3/kg.MT -> 0 | S28: = | T28: =R28/1000000 -> 0 | U28: = | V28: =(T28*CH4GWP)*C_CO2 -> 0 | W28: = | X28: =V28/C_CO2 -> 0
A29: ='animal data'!AC2 -> 27 | B29: 1990 | C29: =Control!$A$62 -> Turkeys | E29: x | F29: =Control!C$62 -> 0 | G29: x | H29: =IF(Control!G$62=VS_turkeys,INDEX(VS_turkeys2,MATCH($B29,'VS-CattleNEW'!$AO$4:$AO$34,0)),Control!G$62) -> 0 | I29: = | J29: =D29*F29*H29*days_yr -> 0 | K29: x | L29: =Control!K$62 -> 0 | M29: x | N29: =TurkeyMCF -> 0.015 | O29: = | P29: =(J29*L29)*N29 -> 0 | Q29: = | R29: =P29*kg_m3/kg.MT -> 0 | S29: = | T29: =R29/1000000 -> 0 | U29: = | V29: =(T29*CH4GWP)*C_CO2 -> 0 | W29: = | X29: =V29/C_CO2 -> 0
B30: 1990 | C30: =Control!$A$63 -> Other
A31: ='animal data'!AE2 -> 29 | B31: 1990 | C31: =Control!$A$64 -> Sheep on Feed | E31: x | F31: =Control!C$64 -> 0 | G31: x | H31: =IF(Control!G$64=VS_sheepOF,INDEX(VS_sheep,MATCH($B31,'VS-CattleNEW'!$AO$4:$AO$34,0)),Control!G$64) -> 0 | I31: = | J31: =D31*F31*H31*days_yr -> 0 | K31: x | L31: =Control!K$64 -> 0 | M31: x | N31: =(VLOOKUP(State,MCF,2,FALSE)*VLOOKUP(State,manure_sheep,2,FALSE))+(VLOOKUP(State,MCF,3,FALSE)*(1-VLOOKUP(State,manure_sheep,2,FALSE))) -> 0.015 | O31: = | P31: =(J31*L31)*N31 -> 0 | Q31: = | R31: =P31*kg_m3/kg.MT -> 0 | S31: = | T31: =R31/1000000 -> 0 | U31: = | V31: =(T31*CH4GWP)*C_CO2 -> 0 | W31: = | X31: =V31/C_CO2 -> 0
A32: ='animal data'!AF2 -> 30 | B32: 1990 | C32: =Control!$A$65 -> Sheep Not on Feed | E32: x | F32: =Control!C$65 -> 0 | G32: x | H32: =IF(Control!G$65=VS_sheepNOF,INDEX(VS_sheep,MATCH($B32,'VS-CattleNEW'!$AO$4:$AO$34,0)),Control!G$65) -> 0 | I32: = | J32: =D32*F32*H32*days_yr -> 0 | K32: x | L32: =Control!K$65 -> 0 | M32: x | N32: =(VLOOKUP(State,MCF,2,FALSE)*VLOOKUP(State,manure_sheep,3,FALSE)) -> 0.01154146552 | O32: = | P32: =(J32*L32)*N32 -> 0 | Q32: = | R32: =P32*kg_m3/kg.MT -> 0 | S32: = | T32: =R32/1000000 -> 0 | U32: = | V32: =(T32*CH4GWP)*C_CO2 -> 0 | W32: = | X32: =V32/C_CO2 -> 0
A33: ='animal data'!AG2 -> 31 | B33: 1990 | C33: =Control!$A$66 -> Goats | E33: x | F33: =Control!C$66 -> 0 | G33: x | H33: =Control!G$66 -> 0 | I33: = | J33: =D33*F33*H33*days_yr -> 0 | K33: x | L33: =Control!K$66 -> 0 | M33: x | N33: =(VLOOKUP(State,MCF,2,FALSE)*VLOOKUP(State,manure_goats,2,FALSE)) -> 0.015 | O33: = | P33: =(J33*L33)*N33 -> 0 | Q33: = | R33: =P33*kg_m3/kg.MT -> 0 | S33: = | T33: =R33/1000000 -> 0 | U33: = | V33: =(T33*CH4GWP)*C_CO2 -> 0 | W33: = | X33: =V33/C_CO2 -> 0
A34: ='animal data'!AH2 -> 32 | B34: 1990 | C34: =Control!$A$67 -> Horses | E34: x | F34: =Control!C$67 -> 0 | G34: x | H34: =IF(Control!G$67=VS_horses,INDEX(VS_horses2,MATCH($B34,'VS-CattleNEW'!$AO$4:$AO$34,0)),Control!G$67) -> 0 | I34: = | J34: =D34*F34*H34*days_yr -> 0 | K34: x | L34: =Control!K$67 -> 0 | M34: x | N34: =(VLOOKUP(State,MCF,2,FALSE)*VLOOKUP(State,manure_horses,2,FALSE)) -> 0.015 | O34: = | P34: =(J34*L34)*N34 -> 0 | Q34: = | R34: =P34*kg_m3/kg.MT -> 0 | S34: = | T34: =R34/1000000 -> 0 | U34: = | V34: =(T34*CH4GWP)*C_CO2 -> 0 | W34: = | X34: =V34/C_CO2 -> 0
C35: TOTAL | P35: =SUM(P6:P34) -> 0 | R35: =SUM(R6:R34) -> 0 | T35: =SUM(T6:T34) -> 0 | V35: =SUM(V6:V34) -> 0 | X35: =SUM(X6:X34) -> 0
C37: 1
C38: 2
C39: 3
C40: 4
C41: 5
C42: 6
C43: 7
C44: CH4 from Manure Management | J44: 1991
D45: Number of Animals ('000 head) | F45: Typical Animal Mass (TAM) (kg) | H45: Volatile Solids (VS) | J45: Total VS (kg/yr) | L45: Max Pot. Emissions (m3 CH4/ kg VS) | N45: Weighted MCF | P45: Emissions (m3 CH4) | R45: Emissions (Metric Tons CH4) | T45: Emissions (MMTCH4) | V45: Emissions (MMTCE) | X45: Emissions (MMTCO2E)
A46: =A5+1 -> 3 | C46: =$C$5 -> Dairy Cattle | H46: [kg VS/head/year]
A47: =$A$6 -> 2 | B47: =J44 -> 1991 | C47: =$C$6 -> Dairy Cows | F47: x | H47: =IF(Control!G$39=VS_dairycow,VLOOKUP($B$1,VS_dairycow3,A46,FALSE),Control!G$39) -> 0 | I47: = | J47: =D47*H47*1000 -> 0 | K47: x | L47: =Control!K$39 -> 0 | M47: x | N47: =VLOOKUP($B47&State,MCFs,2,FALSE) -> 0.004346875 | O47: = | P47: =(J47*L47)*N47 -> 0 | Q47: = | R47: =P47*kg_m3/kg.MT -> 0 | S47: = | T47: =R47/1000000 -> 0 | U47: = | V47: =(T47*CH4GWP)*C_CO2 -> 0 | W47: = | X47: =V47/C_CO2 -> 0
A48: =$A$7 -> 3 | B48: =B47 -> 1991 | C48: =$C$7 -> Dairy Replacement Heifers | F48: x | H48: =IF(Control!G$40=VS_dairyheifer,VLOOKUP($B$1,VS_dairyheifer3,A46,FALSE),Control!G$40) -> 0 | I48: = | J48: =D48*H48*1000 -> 0 | K48: x | L48: =Control!K$40 -> 0 | M48: x | N48: =VLOOKUP($B48&State,MCFs,3,FALSE) -> 0.01157227394 | O48: = | P48: =(J48*L48)*N48 -> 0 | Q48: = | R48: =P48*kg_m3/kg.MT -> 0 | S48: = | T48: =R48/1000000 -> 0 | U48: = | V48: =(T48*CH4GWP)*C_CO2 -> 0 | W48: = | X48: =V48/C_CO2 -> 0
A49: =$A$8 -> 0 | B49: =B48 -> 1991 | C49: =$C$8 -> Beef Cattle
A50: =$A$9 -> 15 | B50: 1991 | C50: =$C$9 -> Feedlot Heifers | F50: x | H50: =IF(Control!G$42=VS_feedlotheifer,VLOOKUP($B$1,VS_feedlotheifer3,A46,FALSE),Control!G$42) -> 0 | I50: = | J50: =D50*H50*1000 -> 0 | K50: x | L50: =Control!K$42 -> 0 | M50: x | N50: =VLOOKUP($B50&State,MCFs,4,FALSE) -> 0.01204395613 | O50: = | P50: =(J50*L50)*N50 -> 0 | Q50: = | R50: =P50*kg_m3/kg.MT -> 0 | S50: = | T50: =R50/1000000 -> 0 | U50: = | V50: =(T50*CH4GWP)*C_CO2 -> 0 | W50: = | X50: =V50/C_CO2 -> 0
A51: =$A$10 -> 16 | B51: 1991 | C51: =$C$10 -> Feedlot Steer | F51: x | H51: =IF(Control!G$43=VS_feedlotsteer,VLOOKUP($B$1,VS_feedlotsteer3,A46,FALSE),Control!G$43) -> 0 | I51: = | J51: 0 | K51: x | L51: =Control!K$43 -> 0 | M51: x | N51: =VLOOKUP($B51&State,MCFs,5,FALSE) -> 0.01204395613 | O51: = | P51: 0 | Q51: = | R51: 0 | S51: = | T51: 0 | U51: = | V51: 0 | W51: = | X51: 0
A52: =$A$11 -> 12 | B52: 1991 | C52: =$C$11 -> Bulls | F52: x | H52: =IF(Control!G$44=VS_NOFbulls,VLOOKUP($B$1,VS_NOFbulls3,A46,FALSE),Control!G$44) -> 0 | I52: = | J52: 0 | K52: x | L52: =Control!K$44 -> 0 | M52: x | N52: =VLOOKUP(State,MCF,2,FALSE)*VLOOKUP(State,manure_nofbeef,2,FALSE) -> 0.015 | O52: = | P52: 0 | Q52: = | R52: 0 | S52: = | T52: 0 | U52: = | V52: 0 | W52: = | X52: 0
A53: =$A$12 -> 14 | B53: 1991 | C53: =$C$12 -> Calves | F53: =IF(TAM_NOFcalf=Control!$B$45,INDEX(TAM_NOFcalf2,MATCH($B53,'TAM and NEx Rates'!$A$3:$A$45,0)),TAM_NOFcalf) -> 0 | H53: =IF(Control!G$45=VS_NOFcalves,INDEX(VS_NOFcalves2,MATCH($B53,'VS-CattleNEW'!$AO$4:$AO$34,0)),Control!G$45) -> 0 | I53: = | J53: =D53*F53*H53*days_yr -> 0 | K53: x | L53: =Control!K$45 -> 0 | M53: x | N53: 0.015 | O53: = | P53: 0 | Q53: = | R53: 0 | S53: = | T53: 0 | U53: = | V53: 0 | W53: = | X53: 0
A54: =$A$13 -> 6 | B54: 1991 | C54: =$C$13 -> Beef Cows | F54: x | H54: =IF(Control!G$46=VS_NOFcows,VLOOKUP($B$1,VS_NOFcows3,A46,FALSE),Control!G$46) -> 0 | I54: = | J54: 0 | K54: x | L54: =Control!K$46 -> 0 | M54: x | N54: 0.015 | O54: = | P54: 0 | Q54: = | R54: 0 | S54: = | T54: 0 | U54: = | V54: 0 | W54: = | X54: 0
A55: =$A$14 -> 7 | B55: 1991 | C55: =$C$14 -> Beef Replacement Heifers | F55: x | H55: =IF(Control!G$47=VS_BeefReplace,VLOOKUP($B$1,VS_BeefReplace3,A46,FALSE),Control!G$47) -> 0 | I55: = | J55: 0 | K55: x | L55: =Control!K$46 -> 0 | M55: x | N55: 0.015 | O55: = | P55: =(J55*L55)*N55 -> 0 | Q55: = | R55: =P55*kg_m3/kg.MT -> 0 | S55: = | T55: =R55/1000000 -> 0 | U55: = | V55: =(T55*CH4GWP)*C_CO2 -> 0 | W55: = | X55: 0
A56: =$A$15 -> 11 | B56: =B54 -> 1991 | C56: =$C$15 -> Steer Stockers | F56: x | H56: =IF(Control!G$48=VS_NOFsteers,VLOOKUP($B$1,VS_NOFsteers3,A46,FALSE),Control!G$48) -> 0 | I56: = | J56: 0 | K56: x | L56: =Control!K$48 -> 0 | M56: x | N56: 0.015 | O56: = | P56: 0 | Q56: = | R56: 0 | S56: = | T56: 0 | U56: = | V56: 0 | W56: = | X56: 0
A57: =$A$16 -> 10 | B57: 1991 | C57: =$C$16 -> Heifer Stockers | F57: x | H57: =IF(Control!G$49=VS_NOFheifers,VLOOKUP($B$1,VS_NOFheifers3,A46,FALSE),Control!G$49) -> 0 | I57: = | J57: 0 | K57: x | L57: =Control!K$49 -> 0 | M57: x | N57: 0.015 | O57: = | P57: 0 | Q57: = | R57: 0 | S57: = | T57: 0 | U57: = | V57: 0 | W57: = | X57: 0
A58: =$A$17 -> 0 | B58: 1991 | C58: =$C$17 -> Swine | H58: [kg VS/1000 kg animal mass/day]
A59: =$A$18 -> 18 | B59: 1991 | C59: =$C$18 -> Breeding Swine | E59: x | F59: =Control!C$51 -> 0 | G59: x | H59: =IF(Control!G$51=VS_breedswine,INDEX(VS_breedswine2,MATCH($B59,'VS-CattleNEW'!$AO$4:$AO$34,0)),Control!G$51) -> 0 | I59: = | J59: =D59*F59*H59*days_yr -> 0 | K59: x | L59: =Control!K$51 -> 0 | M59: x | N59: =VLOOKUP($B59&State,MCFs,7,FALSE) -> 0.01 | O59: = | P59: =(J59*L59)*N59 -> 0 | Q59: = | R59: =P59*kg_m3/kg.MT -> 0 | S59: = | T59: =R59/1000000 -> 0 | U59: = | V59: =(T59*CH4GWP)*C_CO2 -> 0 | W59: = | X59: =V59/C_CO2 -> 0
A60: =$A$19 -> 19 | B60: 1991 | C60: =$C$19 -> Market Under 60 lbs | E60: x | F60: =Control!C$52 -> 0 | G60: x | H60: =Control!G$52 -> 0 | I60: = | J60: =D60*F60*H60*days_yr -> 0 | K60: x | L60: =Control!K$52 -> 0 | M60: x | N60: =VLOOKUP($B60&State,MCFs,6,FALSE) -> 0.01 | O60: = | P60: =(J60*L60)*N60 -> 0 | Q60: = | R60: =P60*kg_m3/kg.MT -> 0 | S60: = | T60: =R60/1000000 -> 0 | U60: = | V60: =(T60*CH4GWP)*C_CO2 -> 0 | W60: = | X60: =V60/C_CO2 -> 0
A61: =$A$20 -> 20 | B61: 1991 | C61: =$C$20 -> Market 60-119 lbs | E61: x | F61: =Control!C$53 -> 0 | G61: x | H61: =Control!G$53 -> 0 | I61: = | J61: =D61*F61*H61*days_yr -> 0 | K61: x | L61: =Control!K$53 -> 0 | M61: x | N61: =VLOOKUP($B61&State,MCFs,6,FALSE) -> 0.01 | O61: = | P61: =(J61*L61)*N61 -> 0 | Q61: = | R61: =P61*kg_m3/kg.MT -> 0 | S61: = | T61: =R61/1000000 -> 0 | U61: = | V61: =(T61*CH4GWP)*C_CO2 -> 0 | W61: = | X61: =V61/C_CO2 -> 0
A62: =$A$21 -> 21 | B62: 1991 | C62: =$C$21 -> Market 120-179 lbs | E62: x | F62: =Control!C$54 -> 0 | G62: x | H62: =Control!G$54 -> 0 | I62: = | J62: =D62*F62*H62*days_yr -> 0 | K62: x | L62: =Control!K$54 -> 0 | M62: x | N62: =VLOOKUP($B62&State,MCFs,6,FALSE) -> 0.01 | O62: = | P62: =(J62*L62)*N62 -> 0 | Q62: = | R62: =P62*kg_m3/kg.MT -> 0 | S62: = | T62: =R62/1000000 -> 0 | U62: = | V62: =(T62*CH4GWP)*C_CO2 -> 0 | W62: = | X62: =V62/C_CO2 -> 0
A63: =$A$22 -> 22 | B63: 1991 | C63: =$C$22 -> Market over 180 lbs | E63: x | F63: =Control!C$55 -> 0 | G63: x | H63: =Control!G$55 -> 0 | I63: = | J63: =D63*F63*H63*days_yr -> 0 | K63: x | L63: =Control!K$55 -> 0 | M63: x | N63: =VLOOKUP($B63&State,MCFs,6,FALSE) -> 0.01 | O63: = | P63: =(J63*L63)*N63 -> 0 | Q63: = | R63: =P63*kg_m3/kg.MT -> 0 | S63: = | T63: =R63/1000000 -> 0 | U63: = | V63: =(T63*CH4GWP)*C_CO2 -> 0 | W63: = | X63: =V63/C_CO2 -> 0
A64: =$A$23 -> 0 | B64: 1991 | C64: =$C$23 -> Poultry
A65: =$A$24 -> 0 | B65: 1991 | C65: =$C$24 -> Layers
A66: =$A$25 -> 23 | B66: 1991 | C66: =$C$25 -> Hens > 1 yr | E66: x | F66: =Control!C$58 -> 0 | G66: x | H66: =IF(Control!G$58=VS_hens,INDEX(VS_hens2,MATCH($B66,'VS-CattleNEW'!$AO$4:$AO$34,0)),Control!G$58) -> 0 | I66: = | J66: =D66*F66*H66*days_yr -> 0 | K66: x | L66: =Control!K$58 -> 0 | M66: x | N66: =VLOOKUP($B66&State,MCFs,8,FALSE) -> 0.1100069004 | O66: = | P66: =(J66*L66)*N66 -> 0 | Q66: = | R66: =P66*kg_m3/kg.MT -> 0 | S66: = | T66: =R66/1000000 -> 0 | U66: = | V66: =(T66*CH4GWP)*C_CO2 -> 0 | W66: = | X66: =V66/C_CO2 -> 0
A67: =$A$26 -> 24 | B67: 1991 | C67: =Control!$A$59 -> Pullets | E67: x | F67: =Control!C$59 -> 0 | G67: x | H67: =IF(Control!G$59=VS_pullets,INDEX(VS_pullets2,MATCH($B67,'VS-CattleNEW'!$AO$4:$AO$34,0)),Control!G$59) -> 0 | I67: = | J67: =D67*F67*H67*days_yr -> 0 | K67: x | L67: =Control!K$59 -> 0 | M67: x | N67: =VLOOKUP($B67&State,MCFs,8,FALSE) -> 0.1100069004 | O67: = | P67: =(J67*L67)*N67 -> 0 | Q67: = | R67: =P67*kg_m3/kg.MT -> 0 | S67: = | T67: =R67/1000000 -> 0 | U67: = | V67: =(T67*CH4GWP)*C_CO2 -> 0 | W67: = | X67: =V67/C_CO2 -> 0
A68: =$A$27 -> 25 | B68: 1991 | C68: =Control!$A$60 -> Chickens | E68: x | F68: =Control!C$60 -> 0 | G68: x | H68: =IF(Control!G$60=VS_chickens,INDEX(VS_chickens2,MATCH($B68,'VS-CattleNEW'!$AO$4:$AO$34,0)),Control!G$60) -> 0 | I68: = | J68: =D68*F68*H68*days_yr -> 0 | K68: x | L68: =Control!K$60 -> 0 | M68: x | N68: =VLOOKUP($B68&State,MCFs,8,FALSE) -> 0.1100069004 | O68: = | P68: =(J68*L68)*N68 -> 0 | Q68: = | R68: =P68*kg_m3/kg.MT -> 0 | S68: = | T68: =R68/1000000 -> 0 | U68: = | V68: =(T68*CH4GWP)*C_CO2 -> 0 | W68: = | X68: =V68/C_CO2 -> 0
A69: =$A$28 -> 26 | B69: 1991 | C69: =Control!$A$61 -> Broilers | E69: x | F69: =Control!C$61 -> 0 | G69: x | H69: =IF(Control!G$61=VS_broilers,INDEX(VS_broilers2,MATCH($B69,'VS-CattleNEW'!$AO$4:$AO$34,0)),Control!G$61) -> 0 | I69: = | J69: =D69*F69*H69*days_yr -> 0 | K69: x | L69: =Control!K$61 -> 0 | M69: x | N69: =BroilerMCF -> 0.015 | O69: = | P69: =(J69*L69)*N69 -> 0 | Q69: = | R69: =P69*kg_m3/kg.MT -> 0 | S69: = | T69: =R69/1000000 -> 0 | U69: = | V69: =(T69*CH4GWP)*C_CO2 -> 0 | W69: = | X69: =V69/C_CO2 -> 0
A70: =$A$29 -> 27 | B70: 1991 | C70: =Control!$A$62 -> Turkeys | E70: x | F70: =Control!C$62 -> 0 | G70: x | H70: =IF(Control!G$62=VS_turkeys,INDEX(VS_turkeys2,MATCH($B70,'VS-CattleNEW'!$AO$4:$AO$34,0)),Control!G$62) -> 0 | I70: = | J70: =D70*F70*H70*days_yr -> 0 | K70: x | L70: =Control!K$62 -> 0 | M70: x | N70: =TurkeyMCF -> 0.015 | O70: = | P70: =(J70*L70)*N70 -> 0 | Q70: = | R70: =P70*kg_m3/kg.MT -> 0 | S70: = | T70: =R70/1000000 -> 0 | U70: = | V70: =(T70*CH4GWP)*C_CO2 -> 0 | W70: = | X70: =V70/C_CO2 -> 0
A71: =$A$30 -> 0 | B71: 1991 | C71: =Control!$A$63 -> Other
A72: =$A$31 -> 29 | B72: 1991 | C72: =Control!$A$64 -> Sheep on Feed | E72: x | F72: =Control!C$64 -> 0 | G72: x | H72: =IF(Control!G$64=VS_sheepOF,INDEX(VS_sheep,MATCH($B72,'VS-CattleNEW'!$AO$4:$AO$34,0)),Control!G$64) -> 0 | I72: = | J72: =D72*F72*H72*days_yr -> 0 | K72: x | L72: =Control!K$64 -> 0 | M72: x | N72: =(VLOOKUP(State,MCF,2,FALSE)*VLOOKUP(State,manure_sheep,2,FALSE))+(VLOOKUP(State,MCF,3,FALSE)*(1-VLOOKUP(State,manure_sheep,2,FALSE))) -> 0.015 | O72: = | P72: =(J72*L72)*N72 -> 0 | Q72: = | R72: =P72*kg_m3/kg.MT -> 0 | S72: = | T72: =R72/1000000 -> 0 | U72: = | V72: =(T72*CH4GWP)*C_CO2 -> 0 | W72: = | X72: =V72/C_CO2 -> 0
A73: =$A$32 -> 30 | B73: 1991 | C73: =$C$32 -> Sheep Not on Feed | E73: x | F73: =Control!C$65 -> 0 | G73: x | H73: =IF(Control!G$65=VS_sheepNOF,INDEX(VS_sheep,MATCH($B73,'VS-CattleNEW'!$AO$4:$AO$34,0)),Control!G$65) -> 0 | I73: = | J73: =D73*F73*H73*days_yr -> 0 | K73: x | L73: =Control!K$65 -> 0 | M73: x | N73: =(VLOOKUP(State,MCF,2,FALSE)*VLOOKUP(State,manure_sheep,3,FALSE)) -> 0.01154146552 | O73: = | P73: =(J73*L73)*N73 -> 0 | Q73: = | R73: =P73*kg_m3/kg.MT -> 0 | S73: = | T73: =R73/1000000 -> 0 | U73: = | V73: =(T73*CH4GWP)*C_CO2 -> 0 | W73: = | X73: =V73/C_CO2 -> 0
A74: =$A$33 -> 31 | B74: 1991 | C74: =$C$33 -> Goats | E74: x | F74: =Control!C$66 -> 0 | G74: x | H74: =Control!G$66 -> 0 | I74: = | J74: =D74*F74*H74*days_yr -> 0 | K74: x | L74: =Control!K$66 -> 0 | M74: x | N74: =(VLOOKUP(State,MCF,2,FALSE)*VLOOKUP(State,manure_goats,2,FALSE)) -> 0.015 | O74: = | P74: =(J74*L74)*N74 -> 0 | Q74: = | R74: =P74*kg_m3/kg.MT -> 0 | S74: = | T74: =R74/1000000 -> 0 | U74: = | V74: =(T74*CH4GWP)*C_CO2 -> 0 | W74: = | X74: =V74/C_CO2 -> 0
A75: =$A$34 -> 32 | B75: 1991 | C75: =$C$34 -> Horses | E75: x | F75: =Control!C$67 -> 0 | G75: x | H75: =IF(Control!G$67=VS_horses,INDEX(VS_horses2,MATCH($B75,'VS-CattleNEW'!$AO$4:$AO$34,0)),Control!G$67) -> 0 | I75: = | J75: =D75*F75*H75*days_yr -> 0 | K75: x | L75: =Control!K$67 -> 0 | M75: x | N75: =(VLOOKUP(State,MCF,2,FALSE)*VLOOKUP(State,manure_horses,2,FALSE)) -> 0.015 | O75: = | P75: =(J75*L75)*N75 -> 0 | Q75: = | R75: =P75*kg_m3/kg.MT -> 0 | S75: = | T75: =R75/1000000 -> 0 | U75: = | V75: =(T75*CH4GWP)*C_CO2 -> 0 | W75: = | X75: =V75/C_CO2 -> 0
B76: 1991 | C76: =$C$35 -> TOTAL | P76: =SUM(P47:P75) -> 0 | R76: =SUM(R47:R75) -> 0 | T76: =SUM(T47:T75) -> 0 | V76: =SUM(V47:V75) -> 0 | X76: =SUM(X47:X75) -> 0
C78: 1
C79: 2
C80: 3
C81: 4
C82: 5
C83: 6
C84: 7
C85: CH4 from Manure Management | J85: 1992
D86: Number of Animals ('000 head) | F86: Typical Animal Mass (TAM) (kg) | H86: Volatile Solids (VS) | J86: Total VS (kg/yr) | L86: Max Pot. Emissions (m3 CH4/ kg VS) | N86: Weighted MCF | P86: Emissions (m3 CH4) | R86: Emissions (Metric Tons CH4) | T86: Emissions (MMTCH4) | V86: Emissions (MMTCE) | X86: Emissions (MMTCO2E)
A87: =A46+1 -> 4 | C87: =$C$5 -> Dairy Cattle | H87: [kg VS/head/year]
A88: =$A$6 -> 2 | B88: =J85 -> 1992 | C88: =$C$6 -> Dairy Cows | F88: x | H88: =IF(Control!G$39=VS_dairycow,VLOOKUP($B$1,VS_dairycow3,A87,FALSE),Control!G$39) -> 0 | I88: = | J88: =D88*H88*1000 -> 0 | K88: x | L88: =Control!K$39 -> 0 | M88: x | N88: =VLOOKUP($B88&State,MCFs,2,FALSE) -> 0.004346875 | O88: = | P88: =(J88*L88)*N88 -> 0 | Q88: = | R88: =P88*kg_m3/kg.MT -> 0 | S88: = | T88: =R88/1000000 -> 0 | U88: = | V88: =(T88*CH4GWP)*C_CO2 -> 0 | W88: = | X88: =V88/C_CO2 -> 0
A89: =$A$7 -> 3 | B89: =B88 -> 1992 | C89: =$C$7 -> Dairy Replacement Heifers | F89: x | H89: =IF(Control!G$40=VS_dairyheifer,VLOOKUP($B$1,VS_dairyheifer3,A87,FALSE),Control!G$40) -> 0 | I89: = | J89: =D89*H89*1000 -> 0 | K89: x | L89: =Control!K$40 -> 0 | M89: x | N89: =VLOOKUP($B89&State,MCFs,3,FALSE) -> 0.01157227394 | O89: = | P89: =(J89*L89)*N89 -> 0 | Q89: = | R89: =P89*kg_m3/kg.MT -> 0 | S89: = | T89: =R89/1000000 -> 0 | U89: = | V89: =(T89*CH4GWP)*C_CO2 -> 0 | W89: = | X89: =V89/C_CO2 -> 0
A90: =$A$8 -> 0 | B90: =B89 -> 1992 | C90: =$C$8 -> Beef Cattle
A91: =$A$9 -> 15 | B91: 1992 | C91: =$C$9 -> Feedlot Heifers | F91: x | H91: =IF(Control!G$42=VS_feedlotheifer,VLOOKUP($B$1,VS_feedlotheifer3,A87,FALSE),Control!G$42) -> 0 | I91: = | J91: =D91*H91*1000 -> 0 | K91: x | L91: =Control!K$42 -> 0 | M91: x | N91: =VLOOKUP($B91&State,MCFs,4,FALSE) -> 0.01204395613 | O91: = | P91: =(J91*L91)*N91 -> 0 | Q91: = | R91: =P91*kg_m3/kg.MT -> 0 | S91: = | T91: =R91/1000000 -> 0 | U91: = | V91: =(T91*CH4GWP)*C_CO2 -> 0 | W91: = | X91: =V91/C_CO2 -> 0
A92: =$A$10 -> 16 | B92: 1992 | C92: =$C$10 -> Feedlot Steer | F92: x | H92: =IF(Control!G$43=VS_feedlotsteer,VLOOKUP($B$1,VS_feedlotsteer3,A87,FALSE),Control!G$43) -> 0 | I92: = | J92: 0 | K92: x | L92: =Control!K$43 -> 0 | M92: x | N92: =VLOOKUP($B92&State,MCFs,5,FALSE) -> 0.01204395613 | O92: = | P92: 0 | Q92: = | R92: 0 | S92: = | T92: 0 | U92: = | V92: 0 | W92: = | X92: 0
A93: =$A$11 -> 12 | B93: 1992 | C93: =$C$11 -> Bulls | F93: x | H93: =IF(Control!G$44=VS_NOFbulls,VLOOKUP($B$1,VS_NOFbulls3,A87,FALSE),Control!G$44) -> 0 | I93: = | J93: 0 | K93: x | L93: =Control!K$44 -> 0 | M93: x | N93: =VLOOKUP(State,MCF,2,FALSE)*VLOOKUP(State,manure_nofbeef,2,FALSE) -> 0.015 | O93: = | P93: 0 | Q93: = | R93: 0 | S93: = | T93: 0 | U93: = | V93: 0 | W93: = | X93: 0
A94: =$A$12 -> 14 | B94: 1992 | C94: =$C$12 -> Calves | E94: x | F94: =IF(TAM_NOFcalf=Control!$B$45,INDEX(TAM_NOFcalf2,MATCH($B94,'TAM and NEx Rates'!$A$3:$A$45,0)),TAM_NOFcalf) -> 0 | G94: x | H94: =IF(Control!G$45=VS_NOFcalves,INDEX(VS_NOFcalves2,MATCH($B94,'VS-CattleNEW'!$AO$4:$AO$34,0)),Control!G$45) -> 0 | I94: = | J94: =D94*F94*H94*days_yr -> 0 | K94: x | L94: =Control!K$45 -> 0 | M94: x | N94: 0.015 | O94: = | P94: 0 | Q94: = | R94: 0 | S94: = | T94: 0 | U94: = | V94: 0 | W94: = | X94: 0
A95: =$A$13 -> 6 | B95: 1992 | C95: =$C$13 -> Beef Cows | F95: x | H95: =IF(Control!G$46=VS_NOFcows,VLOOKUP($B$1,VS_NOFcows3,A87,FALSE),Control!G$46) -> 0 | I95: = | J95: 0 | K95: x | L95: =Control!K$46 -> 0 | M95: x | N95: 0.015 | O95: = | P95: 0 | Q95: = | R95: 0 | S95: = | T95: 0 | U95: = | V95: 0 | W95: = | X95: 0
A96: =$A$14 -> 7 | B96: 1992 | C96: =$C$14 -> Beef Replacement Heifers | F96: x | H96: =IF(Control!G$47=VS_BeefReplace,VLOOKUP($B$1,VS_BeefReplace3,A87,FALSE),Control!G$47) -> 0 | I96: = | J96: 0 | K96: x | L96: =Control!K$46 -> 0 | M96: x | N96: 0.015 | O96: = | P96: =(J96*L96)*N96 -> 0 | Q96: = | R96: =P96*kg_m3/kg.MT -> 0 | S96: = | T96: =R96/1000000 -> 0 | U96: = | V96: =(T96*CH4GWP)*C_CO2 -> 0 | W96: = | X96: 0
A97: =$A$15 -> 11 | B97: =B95 -> 1992 | C97: =$C$15 -> Steer Stockers | F97: x | H97: =IF(Control!G$48=VS_NOFsteers,VLOOKUP($B$1,VS_NOFsteers3,A87,FALSE),Control!G$48) -> 0 | I97: = | J97: 0 | K97: x | L97: =Control!K$48 -> 0 | M97: x | N97: 0.015 | O97: = | P97: 0 | Q97: = | R97: 0 | S97: = | T97: 0 | U97: = | V97: 0 | W97: = | X97: 0
A98: =$A$16 -> 10 | B98: 1992 | C98: =$C$16 -> Heifer Stockers | F98: x | H98: =IF(Control!G$49=VS_NOFheifers,VLOOKUP($B$1,VS_NOFheifers3,A87,FALSE),Control!G$49) -> 0 | I98: = | J98: 0 | K98: x | L98: =Control!K$49 -> 0 | M98: x | N98: 0.015 | O98: = | P98: 0 | Q98: = | R98: 0 | S98: = | T98: 0 | U98: = | V98: 0 | W98: = | X98: 0
A99: =$A$17 -> 0 | B99: 1992 | C99: =$C$17 -> Swine | H99: [kg VS/1000 kg animal mass/day]
A100: =$A$18 -> 18 | B100: 1992 | C100: =$C$18 -> Breeding Swine | E100: x | F100: =Control!C$51 -> 0 | G100: x | H100: =IF(Control!G$51=VS_breedswine,INDEX(VS_breedswine2,MATCH($B100,'VS-CattleNEW'!$AO$4:$AO$34,0)),Control!G$51) -> 0 | I100: = | J100: =D100*F100*H100*days_yr -> 0 | K100: x | L100: =Control!K$51 -> 0 | M100: x | N100: =VLOOKUP($B100&State,MCFs,7,FALSE) -> 0.01 | O100: = | P100: =(J100*L100)*N100 -> 0 | Q100: = | R100: =P100*kg_m3/kg.MT -> 0 | S100: = | T100: =R100/1000000 -> 0 | U100: = | V100: =(T100*CH4GWP)*C_CO2 -> 0 | W100: = | X100: =V100/C_CO2 -> 0
A101: =$A$19 -> 19 | B101: 1992 | C101: =$C$19 -> Market Under 60 lbs | E101: x | F101: =Control!C$52 -> 0 | G101: x | H101: =Control!G$52 -> 0 | I101: = | J101: =D101*F101*H101*days_yr -> 0 | K101: x | L101: =Control!K$52 -> 0 | M101: x | N101: =VLOOKUP($B101&State,MCFs,6,FALSE) -> 0.01 | O101: = | P101: =(J101*L101)*N101 -> 0 | Q101: = | R101: =P101*kg_m3/kg.MT -> 0 | S101: = | T101: =R101/1000000 -> 0 | U101: = | V101: =(T101*CH4GWP)*C_CO2 -> 0 | W101: = | X101: =V101/C_CO2 -> 0
A102: =$A$20 -> 20 | B102: 1992 | C102: =$C$20 -> Market 60-119 lbs | E102: x | F102: =Control!C$53 -> 0 | G102: x | H102: =Control!G$53 -> 0 | I102: = | J102: =D102*F102*H102*days_yr -> 0 | K102: x | L102: =Control!K$53 -> 0 | M102: x | N102: =VLOOKUP($B102&State,MCFs,6,FALSE) -> 0.01 | O102: = | P102: =(J102*L102)*N102 -> 0 | Q102: = | R102: =P102*kg_m3/kg.MT -> 0 | S102: = | T102: =R102/1000000 -> 0 | U102: = | V102: =(T102*CH4GWP)*C_CO2 -> 0 | W102: = | X102: =V102/C_CO2 -> 0
A103: =$A$21 -> 21 | B103: 1992 | C103: =$C$21 -> Market 120-179 lbs | E103: x | F103: =Control!C$54 -> 0 | G103: x | H103: =Control!G$54 -> 0 | I103: = | J103: =D103*F103*H103*days_yr -> 0 | K103: x | L103: =Control!K$54 -> 0 | M103: x | N103: =VLOOKUP($B103&State,MCFs,6,FALSE) -> 0.01 | O103: = | P103: =(J103*L103)*N103 -> 0 | Q103: = | R103: =P103*kg_m3/kg.MT -> 0 | S103: = | T103: =R103/1000000 -> 0 | U103: = | V103: =(T103*CH4GWP)*C_CO2 -> 0 | W103: = | X103: =V103/C_CO2 -> 0
A104: =$A$22 -> 22 | B104: 1992 | C104: =$C$22 -> Market over 180 lbs | E104: x | F104: =Control!C$55 -> 0 | G104: x | H104: =Control!G$55 -> 0 | I104: = | J104: =D104*F104*H104*days_yr -> 0 | K104: x | L104: =Control!K$55 -> 0 | M104: x | N104: =VLOOKUP($B104&State,MCFs,6,FALSE) -> 0.01 | O104: = | P104: =(J104*L104)*N104 -> 0 | Q104: = | R104: =P104*kg_m3/kg.MT -> 0 | S104: = | T104: =R104/1000000 -> 0 | U104: = | V104: =(T104*CH4GWP)*C_CO2 -> 0 | W104: = | X104: =V104/C_CO2 -> 0
A105: =$A$23 -> 0 | B105: 1992 | C105: =$C$23 -> Poultry
A106: =$A$24 -> 0 | B106: 1992 | C106: =$C$24 -> Layers
A107: =$A$25 -> 23 | B107: 1992 | C107: =$C$25 -> Hens > 1 yr | E107: x | F107: =Control!C$58 -> 0 | G107: x | H107: =IF(Control!G$58=VS_hens,INDEX(VS_hens2,MATCH($B107,'VS-CattleNEW'!$AO$4:$AO$34,0)),Control!G$58) -> 0 | I107: = | J107: =D107*F107*H107*days_yr -> 0 | K107: x | L107: =Control!K$58 -> 0 | M107: x | N107: =VLOOKUP($B107&State,MCFs,8,FALSE) -> 0.1135302577 | O107: = | P107: =(J107*L107)*N107 -> 0 | Q107: = | R107: =P107*kg_m3/kg.MT -> 0 | S107: = | T107: =R107/1000000 -> 0 | U107: = | V107: =(T107*CH4GWP)*C_CO2 -> 0 | W107: = | X107: =V107/C_CO2 -> 0
A108: =$A$26 -> 24 | B108: 1992 | C108: =Control!$A$59 -> Pullets | E108: x | F108: =Control!C$59 -> 0 | G108: x | H108: =IF(Control!G$59=VS_pullets,INDEX(VS_pullets2,MATCH($B108,'VS-CattleNEW'!$AO$4:$AO$34,0)),Control!G$59) -> 0 | I108: = | J108: =D108*F108*H108*days_yr -> 0 | K108: x | L108: =Control!K$59 -> 0 | M108: x | N108: =VLOOKUP($B108&State,MCFs,8,FALSE) -> 0.1135302577 | O108: = | P108: =(J108*L108)*N108 -> 0 | Q108: = | R108: =P108*kg_m3/kg.MT -> 0 | S108: = | T108: =R108/1000000 -> 0 | U108: = | V108: =(T108*CH4GWP)*C_CO2 -> 0 | W108: = | X108: =V108/C_CO2 -> 0
A109: =$A$27 -> 25 | B109: 1992 | C109: =Control!$A$60 -> Chickens | E109: x | F109: =Control!C$60 -> 0 | G109: x | H109: =IF(Control!G$60=VS_chickens,INDEX(VS_chickens2,MATCH($B109,'VS-CattleNEW'!$AO$4:$AO$34,0)),Control!G$60) -> 0 | I109: = | J109: =D109*F109*H109*days_yr -> 0 | K109: x | L109: =Control!K$60 -> 0 | M109: x | N109: =VLOOKUP($B109&State,MCFs,8,FALSE) -> 0.1135302577 | O109: = | P109: =(J109*L109)*N109 -> 0 | Q109: = | R109: =P109*kg_m3/kg.MT -> 0 | S109: = | T109: =R109/1000000 -> 0 | U109: = | V109: =(T109*CH4GWP)*C_CO2 -> 0 | W109: = | X109: =V109/C_CO2 -> 0
A110: =$A$28 -> 26 | B110: 1992 | C110: =Control!$A$61 -> Broilers | E110: x | F110: =Control!C$61 -> 0 | G110: x | H110: =IF(Control!G$61=VS_broilers,INDEX(VS_broilers2,MATCH($B110,'VS-CattleNEW'!$AO$4:$AO$34,0)),Control!G$61) -> 0 | I110: = | J110: =D110*F110*H110*days_yr -> 0 | K110: x | L110: =Control!K$61 -> 0 | M110: x | N110: =BroilerMCF -> 0.015 | O110: = | P110: =(J110*L110)*N110 -> 0 | Q110: = | R110: =P110*kg_m3/kg.MT -> 0 | S110: = | T110: =R110/1000000 -> 0 | U110: = | V110: =(T110*CH4GWP)*C_CO2 -> 0 | W110: = | X110: =V110/C_CO2 -> 0
A111: =$A$29 -> 27 | B111: 1992 | C111: =Control!$A$62 -> Turkeys | E111: x | F111: =Control!C$62 -> 0 | G111: x | H111: =IF(Control!G$62=VS_turkeys,INDEX(VS_turkeys2,MATCH($B111,'VS-CattleNEW'!$AO$4:$AO$34,0)),Control!G$62) -> 0 | I111: = | J111: =D111*F111*H111*days_yr -> 0 | K111: x | L111: =Control!K$62 -> 0 | M111: x | N111: =TurkeyMCF -> 0.015 | O111: = | P111: =(J111*L111)*N111 -> 0 | Q111: = | R111: =P111*kg_m3/kg.MT -> 0 | S111: = | T111: =R111/1000000 -> 0 | U111: = | V111: =(T111*CH4GWP)*C_CO2 -> 0 | W111: = | X111: =V111/C_CO2 -> 0
A112: =$A$30 -> 0 | B112: 1992 | C112: =Control!$A$63 -> Other
A113: =$A$31 -> 29 | B113: 1992 | C113: =Control!$A$64 -> Sheep on Feed | E113: x | F113: =Control!C$64 -> 0 | G113: x | H113: =IF(Control!G$64=VS_sheepOF,INDEX(VS_sheep,MATCH($B113,'VS-CattleNEW'!$AO$4:$AO$34,0)),Control!G$64) -> 0 | I113: = | J113: =D113*F113*H113*days_yr -> 0 | K113: x | L113: =Control!K$64 -> 0 | M113: x | N113: =(VLOOKUP(State,MCF,2,FALSE)*VLOOKUP(State,manure_sheep,2,FALSE))+(VLOOKUP(State,MCF,3,FALSE)*(1-VLOOKUP(State,manure_sheep,2,FALSE))) -> 0.015 | O113: = | P113: =(J113*L113)*N113 -> 0 | Q113: = | R113: =P113*kg_m3/kg.MT -> 0 | S113: = | T113: =R113/1000000 -> 0 | U113: = | V113: =(T113*CH4GWP)*C_CO2 -> 0 | W113: = | X113: =V113/C_CO2 -> 0
A114: =$A$32 -> 30 | B114: 1992 | C114: =$C$32 -> Sheep Not on Feed | E114: x | F114: =Control!C$65 -> 0 | G114: x | H114: =IF(Control!G$65=VS_sheepNOF,INDEX(VS_sheep,MATCH($B114,'VS-CattleNEW'!$AO$4:$AO$34,0)),Control!G$65) -> 0 | I114: = | J114: =D114*F114*H114*days_yr -> 0 | K114: x | L114: =Control!K$65 -> 0 | M114: x | N114: =(VLOOKUP(State,MCF,2,FALSE)*VLOOKUP(State,manure_sheep,3,FALSE)) -> 0.01154146552 | O114: = | P114: =(J114*L114)*N114 -> 0 | Q114: = | R114: =P114*kg_m3/kg.MT -> 0 | S114: = | T114: =R114/1000000 -> 0 | U114: = | V114: =(T114*CH4GWP)*C_CO2 -> 0 | W114: = | X114: =V114/C_CO2 -> 0
A115: =$A$33 -> 31 | B115: 1992 | C115: =$C$33 -> Goats | E115: x | F115: =Control!C$66 -> 0 | G115: x | H115: =Control!G$66 -> 0 | I115: = | J115: =D115*F115*H115*days_yr -> 0 | K115: x | L115: =Control!K$66 -> 0 | M115: x | N115: =(VLOOKUP(State,MCF,2,FALSE)*VLOOKUP(State,manure_goats,2,FALSE)) -> 0.015 | O115: = | P115: =(J115*L115)*N115 -> 0 | Q115: = | R115: =P115*kg_m3/kg.MT -> 0 | S115: = | T115: =R115/1000000 -> 0 | U115: = | V115: =(T115*CH4GWP)*C_CO2 -> 0 | W115: = | X115: =V115/C_CO2 -> 0
A116: =$A$34 -> 32 | B116: 1992 | C116: =$C$34 -> Horses | E116: x | F116: =Control!C$67 -> 0 | G116: x | H116: =IF(Control!G$67=VS_horses,INDEX(VS_horses2,MATCH($B116,'VS-CattleNEW'!$AO$4:$AO$34,0)),Control!G$67) -> 0 | I116: = | J116: =D116*F116*H116*days_yr -> 0 | K116: x | L116: =Control!K$67 -> 0 | M116: x | N116: =(VLOOKUP(State,MCF,2,FALSE)*VLOOKUP(State,manure_horses,2,FALSE)) -> 0.015 | O116: = | P116: =(J116*L116)*N116 -> 0 | Q116: = | R116: =P116*kg_m3/kg.MT -> 0 | S116: = | T116: =R116/1000000 -> 0 | U116: = | V116: =(T116*CH4GWP)*C_CO2 -> 0 | W116: = | X116: =V116/C_CO2 -> 0
B117: 1992 | C117: =$C$35 -> TOTAL | P117: =SUM(P88:P116) -> 0 | R117: =SUM(R88:R116) -> 0 | T117: =SUM(T88:T116) -> 0 | V117: =SUM(V88:V116) -> 0 | X117: =SUM(X88:X116) -> 0
C119: 1
C120: 2
C121: 3
C122: 4
C123: 5
C124: 6
C125: 7
C126: CH4 from Manure Management | J126: 1993
D127: Number of Animals ('000 head) | F127: Typical Animal Mass (TAM) (kg) | H127: Volatile Solids (VS) | J127: Total VS (kg/yr) | L127: Max Pot. Emissions (m3 CH4/ kg VS) | N127: Weighted MCF | P127: Emissions (m3 CH4) | R127: Emissions (Metric Tons CH4) | T127: Emissions (MMTCH4) | V127: Emissions (MMTCE) | X127: Emissions (MMTCO2E)
A128: =A87+1 -> 5 | C128: =$C$5 -> Dairy Cattle | H128: [kg VS/head/year]
A129: =$A$6 -> 2 | B129: =J126 -> 1993 | C129: =$C$6 -> Dairy Cows | F129: x | H129: =IF(Control!G$39=VS_dairycow,VLOOKUP($B$1,VS_dairycow3,A128,FALSE),Control!G$39) -> 0 | I129: = | J129: =D129*H129*1000 -> 0 | K129: x | L129: =Control!K$39 -> 0 | M129: x | N129: =VLOOKUP($B129&State,MCFs,2,FALSE) -> 0.03799817797 | O129: = | P129: =(J129*L129)*N129 -> 0 | Q129: = | R129: =P129*kg_m3/kg.MT -> 0 | S129: = | T129: =R129/1000000 -> 0 | U129: = | V129: =(T129*CH4GWP)*C_CO2 -> 0 | W129: = | X129: =V129/C_CO2 -> 0
A130: =$A$7 -> 3 | B130: =B129 -> 1993 | C130: =$C$7 -> Dairy Replacement Heifers | F130: x | H130: =IF(Control!G$40=VS_dairyheifer,VLOOKUP($B$1,VS_dairyheifer3,A128,FALSE),Control!G$40) -> 0 | I130: = | J130: =D130*H130*1000 -> 0 | K130: x | L130: =Control!K$40 -> 0 | M130: x | N130: =VLOOKUP($B130&State,MCFs,3,FALSE) -> 0.01157227394 | O130: = | P130: =(J130*L130)*N130 -> 0 | Q130: = | R130: =P130*kg_m3/kg.MT -> 0 | S130: = | T130: =R130/1000000 -> 0 | U130: = | V130: =(T130*CH4GWP)*C_CO2 -> 0 | W130: = | X130: =V130/C_CO2 -> 0
A131: =$A$8 -> 0 | B131: =B130 -> 1993 | C131: =$C$8 -> Beef Cattle
A132: =$A$9 -> 15 | B132: 1993 | C132: =$C$9 -> Feedlot Heifers | F132: x | H132: =IF(Control!G$42=VS_feedlotheifer,VLOOKUP($B$1,VS_feedlotheifer3,A128,FALSE),Control!G$42) -> 0 | I132: = | J132: =D132*H132*1000 -> 0 | K132: x | L132: =Control!K$42 -> 0 | M132: x | N132: =VLOOKUP($B132&State,MCFs,4,FALSE) -> 0.01204395613 | O132: = | P132: =(J132*L132)*N132 -> 0 | Q132: = | R132: =P132*kg_m3/kg.MT -> 0 | S132: = | T132: =R132/1000000 -> 0 | U132: = | V132: =(T132*CH4GWP)*C_CO2 -> 0 | W132: = | X132: =V132/C_CO2 -> 0
A133: =$A$10 -> 16 | B133: 1993 | C133: =$C$10 -> Feedlot Steer | F133: x | H133: =IF(Control!G$43=VS_feedlotsteer,VLOOKUP($B$1,VS_feedlotsteer3,A128,FALSE),Control!G$43) -> 0 | I133: = | J133: 0 | K133: x | L133: =Control!K$43 -> 0 | M133: x | N133: =VLOOKUP($B133&State,MCFs,5,FALSE) -> 0.01204395613 | O133: = | P133: 0 | Q133: = | R133: 0 | S133: = | T133: 0 | U133: = | V133: 0 | W133: = | X133: 0
A134: =$A$11 -> 12 | B134: 1993 | C134: =$C$11 -> Bulls | F134: x | H134: =IF(Control!G$44=VS_NOFbulls,VLOOKUP($B$1,VS_NOFbulls3,A128,FALSE),Control!G$44) -> 0 | I134: = | J134: 0 | K134: x | L134: =Control!K$44 -> 0 | M134: x | N134: =VLOOKUP(State,MCF,2,FALSE)*VLOOKUP(State,manure_nofbeef,2,FALSE) -> 0.015 | O134: = | P134: 0 | Q134: = | R134: 0 | S134: = | T134: 0 | U134: = | V134: 0 | W134: = | X134: 0
A135: =$A$12 -> 14 | B135: 1993 | C135: =$C$12 -> Calves | E135: x | F135: =IF(TAM_NOFcalf=Control!$B$45,INDEX(TAM_NOFcalf2,MATCH($B135,'TAM and NEx Rates'!$A$3:$A$45,0)),TAM_NOFcalf) -> 0 | G135: x | H135: =IF(Control!G$45=VS_NOFcalves,INDEX(VS_NOFcalves2,MATCH($B135,'VS-CattleNEW'!$AO$4:$AO$34,0)),Control!G$45) -> 0 | I135: = | J135: =D135*F135*H135*days_yr -> 0 | K135: x | L135: =Control!K$45 -> 0 | M135: x | N135: 0.015 | O135: = | P135: 0 | Q135: = | R135: 0 | S135: = | T135: 0 | U135: = | V135: 0 | W135: = | X135: 0
A136: =$A$13 -> 6 | B136: 1993 | C136: =$C$13 -> Beef Cows | F136: x | H136: =IF(Control!G$46=VS_NOFcows,VLOOKUP($B$1,VS_NOFcows3,A128,FALSE),Control!G$46) -> 0 | I136: = | J136: 0 | K136: x | L136: =Control!K$46 -> 0 | M136: x | N136: 0.015 | O136: = | P136: 0 | Q136: = | R136: 0 | S136: = | T136: 0 | U136: = | V136: 0 | W136: = | X136: 0
A137: =$A$14 -> 7 | B137: 1993 | C137: =$C$14 -> Beef Replacement Heifers | F137: x | H137: =IF(Control!G$47=VS_BeefReplace,VLOOKUP($B$1,VS_BeefReplace3,A128,FALSE),Control!G$47) -> 0 | I137: = | J137: 0 | K137: x | L137: =Control!K$46 -> 0 | M137: x | N137: 0.015 | O137: = | P137: =(J137*L137)*N137 -> 0 | Q137: = | R137: =P137*kg_m3/kg.MT -> 0 | S137: = | T137: =R137/1000000 -> 0 | U137: = | V137: =(T137*CH4GWP)*C_CO2 -> 0 | W137: = | X137: 0
A138: =$A$15 -> 11 | B138: =B136 -> 1993 | C138: =$C$15 -> Steer Stockers | F138: x | H138: =IF(Control!G$48=VS_NOFsteers,VLOOKUP($B$1,VS_NOFsteers3,A128,FALSE),Control!G$48) -> 0 | I138: = | J138: 0 | K138: x | L138: =Control!K$48 -> 0 | M138: x | N138: 0.015 | O138: = | P138: 0 | Q138: = | R138: 0 | S138: = | T138: 0 | U138: = | V138: 0 | W138: = | X138: 0
A139: =$A$16 -> 10 | B139: 1993 | C139: =$C$16 -> Heifer Stockers | F139: x | H139: =IF(Control!G$49=VS_NOFheifers,VLOOKUP($B$1,VS_NOFheifers3,A128,FALSE),Control!G$49) -> 0 | I139: = | J139: 0 | K139: x | L139: =Control!K$49 -> 0 | M139: x | N139: 0.015 | O139: = | P139: 0 | Q139: = | R139: 0 | S139: = | T139: 0 | U139: = | V139: 0 | W139: = | X139: 0
A140: =$A$17 -> 0 | B140: 1993 | C140: =$C$17 -> Swine | H140: [kg VS/1000 kg animal mass/day]
A141: =$A$18 -> 18 | B141: 1993 | C141: =$C$18 -> Breeding Swine | E141: x | F141: =Control!C$51 -> 0 | G141: x | H141: =IF(Control!G$51=VS_breedswine,INDEX(VS_breedswine2,MATCH($B141,'VS-CattleNEW'!$AO$4:$AO$34,0)),Control!G$51) -> 0 | I141: = | J141: =D141*F141*H141*days_yr -> 0 | K141: x | L141: =Control!K$51 -> 0 | M141: x | N141: =VLOOKUP($B141&State,MCFs,7,FALSE) -> 0.01 | O141: = | P141: =(J141*L141)*N141 -> 0 | Q141: = | R141: =P141*kg_m3/kg.MT -> 0 | S141: = | T141: =R141/1000000 -> 0 | U141: = | V141: =(T141*CH4GWP)*C_CO2 -> 0 | W141: = | X141: =V141/C_CO2 -> 0
A142: =$A$19 -> 19 | B142: 1993 | C142: =$C$19 -> Market Under 60 lbs | E142: x | F142: =Control!C$52 -> 0 | G142: x | H142: =Control!G$52 -> 0 | I142: = | J142: =D142*F142*H142*days_yr -> 0 | K142: x | L142: =Control!K$52 -> 0 | M142: x | N142: =VLOOKUP($B142&State,MCFs,6,FALSE) -> 0.01 | O142: = | P142: =(J142*L142)*N142 -> 0 | Q142: = | R142: =P142*kg_m3/kg.MT -> 0 | S142: = | T142: =R142/1000000 -> 0 | U142: = | V142: =(T142*CH4GWP)*C_CO2 -> 0 | W142: = | X142: =V142/C_CO2 -> 0
A143: =$A$20 -> 20 | B143: 1993 | C143: =$C$20 -> Market 60-119 lbs | E143: x | F143: =Control!C$53 -> 0 | G143: x | H143: =Control!G$53 -> 0 | I143: = | J143: =D143*F143*H143*days_yr -> 0 | K143: x | L143: =Control!K$53 -> 0 | M143: x | N143: =VLOOKUP($B143&State,MCFs,6,FALSE) -> 0.01 | O143: = | P143: =(J143*L143)*N143 -> 0 | Q143: = | R143: =P143*kg_m3/kg.MT -> 0 | S143: = | T143: =R143/1000000 -> 0 | U143: = | V143: =(T143*CH4GWP)*C_CO2 -> 0 | W143: = | X143: =V143/C_CO2 -> 0
A144: =$A$21 -> 21 | B144: 1993 | C144: =$C$21 -> Market 120-179 lbs | E144: x | F144: =Control!C$54 -> 0 | G144: x | H144: =Control!G$54 -> 0 | I144: = | J144: =D144*F144*H144*days_yr -> 0 | K144: x | L144: =Control!K$54 -> 0 | M144: x | N144: =VLOOKUP($B144&State,MCFs,6,FALSE) -> 0.01 | O144: = | P144: =(J144*L144)*N144 -> 0 | Q144: = | R144: =P144*kg_m3/kg.MT -> 0 | S144: = | T144: =R144/1000000 -> 0 | U144: = | V144: =(T144*CH4GWP)*C_CO2 -> 0 | W144: = | X144: =V144/C_CO2 -> 0
A145: =$A$22 -> 22 | B145: 1993 | C145: =$C$22 -> Market over 180 lbs | E145: x | F145: =Control!C$55 -> 0 | G145: x | H145: =Control!G$55 -> 0 | I145: = | J145: =D145*F145*H145*days_yr -> 0 | K145: x | L145: =Control!K$55 -> 0 | M145: x | N145: =VLOOKUP($B145&State,MCFs,6,FALSE) -> 0.01 | O145: = | P145: =(J145*L145)*N145 -> 0 | Q145: = | R145: =P145*kg_m3/kg.MT -> 0 | S145: = | T145: =R145/1000000 -> 0 | U145: = | V145: =(T145*CH4GWP)*C_CO2 -> 0 | W145: = | X145: =V145/C_CO2 -> 0
A146: =$A$23 -> 0 | B146: 1993 | C146: =$C$23 -> Poultry
A147: =$A$24 -> 0 | B147: 1993 | C147: =$C$24 -> Layers
A148: =$A$25 -> 23 | B148: 1993 | C148: =$C$25 -> Hens > 1 yr | E148: x | F148: =Control!C$58 -> 0 | G148: x | H148: =IF(Control!G$58=VS_hens,INDEX(VS_hens2,MATCH($B148,'VS-CattleNEW'!$AO$4:$AO$34,0)),Control!G$58) -> 0 | I148: = | J148: =D148*F148*H148*days_yr -> 0 | K148: x | L148: =Control!K$58 -> 0 | M148: x | N148: =VLOOKUP($B148&State,MCFs,8,FALSE) -> 0.117053615 | O148: = | P148: =(J148*L148)*N148 -> 0 | Q148: = | R148: =P148*kg_m3/kg.MT -> 0 | S148: = | T148: =R148/1000000 -> 0 | U148: = | V148: =(T148*CH4GWP)*C_CO2 -> 0 | W148: = | X148: =V148/C_CO2 -> 0
A149: =$A$26 -> 24 | B149: 1993 | C149: =Control!$A$59 -> Pullets | E149: x | F149: =Control!C$59 -> 0 | G149: x | H149: =IF(Control!G$59=VS_pullets,INDEX(VS_pullets2,MATCH($B149,'VS-CattleNEW'!$AO$4:$AO$34,0)),Control!G$59) -> 0 | I149: = | J149: =D149*F149*H149*days_yr -> 0 | K149: x | L149: =Control!K$59 -> 0 | M149: x | N149: =VLOOKUP($B149&State,MCFs,8,FALSE) -> 0.117053615 | O149: = | P149: =(J149*L149)*N149 -> 0 | Q149: = | R149: =P149*kg_m3/kg.MT -> 0 | S149: = | T149: =R149/1000000 -> 0 | U149: = | V149: =(T149*CH4GWP)*C_CO2 -> 0 | W149: = | X149: =V149/C_CO2 -> 0
A150: =$A$27 -> 25 | B150: 1993 | C150: =Control!$A$60 -> Chickens | E150: x | F150: =Control!C$60 -> 0 | G150: x | H150: =IF(Control!G$60=VS_chickens,INDEX(VS_chickens2,MATCH($B150,'VS-CattleNEW'!$AO$4:$AO$34,0)),Control!G$60) -> 0 | I150: = | J150: =D150*F150*H150*days_yr -> 0 | K150: x | L150: =Control!K$60 -> 0 | M150: x | N150: =VLOOKUP($B150&State,MCFs,8,FALSE) -> 0.117053615 | O150: = | P150: =(J150*L150)*N150 -> 0 | Q150: = | R150: =P150*kg_m3/kg.MT -> 0 | S150: = | T150: =R150/1000000 -> 0 | U150: = | V150: =(T150*CH4GWP)*C_CO2 -> 0 | W150: = | X150: =V150/C_CO2 -> 0
A151: =$A$28 -> 26 | B151: 1993 | C151: =Control!$A$61 -> Broilers | E151: x | F151: =Control!C$61 -> 0 | G151: x | H151: =IF(Control!G$61=VS_broilers,INDEX(VS_broilers2,MATCH($B151,'VS-CattleNEW'!$AO$4:$AO$34,0)),Control!G$61) -> 0 | I151: = | J151: =D151*F151*H151*days_yr -> 0 | K151: x | L151: =Control!K$61 -> 0 | M151: x | N151: =BroilerMCF -> 0.015 | O151: = | P151: =(J151*L151)*N151 -> 0 | Q151: = | R151: =P151*kg_m3/kg.MT -> 0 | S151: = | T151: =R151/1000000 -> 0 | U151: = | V151: =(T151*CH4GWP)*C_CO2 -> 0 | W151: = | X151: =V151/C_CO2 -> 0
A152: =$A$29 -> 27 | B152: 1993 | C152: =Control!$A$62 -> Turkeys | E152: x | F152: =Control!C$62 -> 0 | G152: x | H152: =IF(Control!G$62=VS_turkeys,INDEX(VS_turkeys2,MATCH($B152,'VS-CattleNEW'!$AO$4:$AO$34,0)),Control!G$62) -> 0 | I152: = | J152: =D152*F152*H152*days_yr -> 0 | K152: x | L152: =Control!K$62 -> 0 | M152: x | N152: =TurkeyMCF -> 0.015 | O152: = | P152: =(J152*L152)*N152 -> 0 | Q152: = | R152: =P152*kg_m3/kg.MT -> 0 | S152: = | T152: =R152/1000000 -> 0 | U152: = | V152: =(T152*CH4GWP)*C_CO2 -> 0 | W152: = | X152: =V152/C_CO2 -> 0
A153: =$A$30 -> 0 | B153: 1993 | C153: =Control!$A$63 -> Other
A154: =$A$31 -> 29 | B154: 1993 | C154: =Control!$A$64 -> Sheep on Feed | E154: x | F154: =Control!C$64 -> 0 | G154: x | H154: =IF(Control!G$64=VS_sheepOF,INDEX(VS_sheep,MATCH($B154,'VS-CattleNEW'!$AO$4:$AO$34,0)),Control!G$64) -> 0 | I154: = | J154: =D154*F154*H154*days_yr -> 0 | K154: x | L154: =Control!K$64 -> 0 | M154: x | N154: =(VLOOKUP(State,MCF,2,FALSE)*VLOOKUP(State,manure_sheep,2,FALSE))+(VLOOKUP(State,MCF,3,FALSE)*(1-VLOOKUP(State,manure_sheep,2,FALSE))) -> 0.015 | O154: = | P154: =(J154*L154)*N154 -> 0 | Q154: = | R154: =P154*kg_m3/kg.MT -> 0 | S154: = | T154: =R154/1000000 -> 0 | U154: = | V154: =(T154*CH4GWP)*C_CO2 -> 0 | W154: = | X154: =V154/C_CO2 -> 0
A155: =$A$32 -> 30 | B155: 1993 | C155: =$C$32 -> Sheep Not on Feed | E155: x | F155: =Control!C$65 -> 0 | G155: x | H155: =IF(Control!G$65=VS_sheepNOF,INDEX(VS_sheep,MATCH($B155,'VS-CattleNEW'!$AO$4:$AO$34,0)),Control!G$65) -> 0 | I155: = | J155: =D155*F155*H155*days_yr -> 0 | K155: x | L155: =Control!K$65 -> 0 | M155: x | N155: =(VLOOKUP(State,MCF,2,FALSE)*VLOOKUP(State,manure_sheep,3,FALSE)) -> 0.01154146552 | O155: = | P155: =(J155*L155)*N155 -> 0 | Q155: = | R155: =P155*kg_m3/kg.MT -> 0 | S155: = | T155: =R155/1000000 -> 0 | U155: = | V155: =(T155*CH4GWP)*C_CO2 -> 0 | W155: = | X155: =V155/C_CO2 -> 0
A156: =$A$33 -> 31 | B156: 1993 | C156: =$C$33 -> Goats | E156: x | F156: =Control!C$66 -> 0 | G156: x | H156: =Control!G$66 -> 0 | I156: = | J156: =D156*F156*H156*days_yr -> 0 | K156: x | L156: =Control!K$66 -> 0 | M156: x | N156: =(VLOOKUP(State,MCF,2,FALSE)*VLOOKUP(State,manure_goats,2,FALSE)) -> 0.015 | O156: = | P156: =(J156*L156)*N156 -> 0 | Q156: = | R156: =P156*kg_m3/kg.MT -> 0 | S156: = | T156: =R156/1000000 -> 0 | U156: = | V156: =(T156*CH4GWP)*C_CO2 -> 0 | W156: = | X156: =V156/C_CO2 -> 0
A157: =$A$34 -> 32 | B157: 1993 | C157: =$C$34 -> Horses | E157: x | F157: =Control!C$67 -> 0 | G157: x | H157: =IF(Control!G$67=VS_horses,INDEX(VS_horses2,MATCH($B157,'VS-CattleNEW'!$AO$4:$AO$34,0)),Control!G$67) -> 0 | I157: = | J157: =D157*F157*H157*days_yr -> 0 | K157: x | L157: =Control!K$67 -> 0 | M157: x | N157: =(VLOOKUP(State,MCF,2,FALSE)*VLOOKUP(State,manure_horses,2,FALSE)) -> 0.015 | O157: = | P157: =(J157*L157)*N157 -> 0 | Q157: = | R157: =P157*kg_m3/kg.MT -> 0 | S157: = | T157: =R157/1000000 -> 0 | U157: = | V157: =(T157*CH4GWP)*C_CO2 -> 0 | W157: = | X157: =V157/C_CO2 -> 0
B158: 1993 | C158: =$C$35 -> TOTAL | P158: =SUM(P129:P157) -> 0 | R158: =SUM(R129:R157) -> 0 | T158: =SUM(T129:T157) -> 0 | V158: =SUM(V129:V157) -> 0 | X158: =SUM(X129:X157) -> 0
C160: 1
C161: 2
C162: 3
C163: 4
C164: 5
C165: 6
C166: 7
C167: CH4 from Manure Management | J167: 1994
D168: Number of Animals ('000 head) | F168: Typical Animal Mass (TAM) (kg) | H168: Volatile Solids (VS) | J168: Total VS (kg/yr) | L168: Max Pot. Emissions (m3 CH4/ kg VS) | N168: Weighted MCF | P168: Emissions (m3 CH4) | R168: Emissions (Metric Tons CH4) | T168: Emissions (MMTCH4) | V168: Emissions (MMTCE) | X168: Emissions (MMTCO2E)
A169: =A128+1 -> 6 | C169: =$C$5 -> Dairy Cattle | H169: [kg VS/head/year]
A170: =$A$6 -> 2 | B170: =J167 -> 1994 | C170: =$C$6 -> Dairy Cows | F170: x | H170: =IF(Control!G$39=VS_dairycow,VLOOKUP($B$1,VS_dairycow3,A169,FALSE),Control!G$39) -> 0 | I170: = | J170: =D170*H170*1000 -> 0 | K170: x | L170: =Control!K$39 -> 0 | M170: x | N170: =VLOOKUP($B170&State,MCFs,2,FALSE) -> 0.07253565584 | O170: = | P170: =(J170*L170)*N170 -> 0 | Q170: = | R170: =P170*kg_m3/kg.MT -> 0 | S170: = | T170: =R170/1000000 -> 0 | U170: = | V170: =(T170*CH4GWP)*C_CO2 -> 0 | W170: = | X170: =V170/C_CO2 -> 0
A171: =$A$7 -> 3 | B171: =B170 -> 1994 | C171: =$C$7 -> Dairy Replacement Heifers | F171: x | H171: =IF(Control!G$40=VS_dairyheifer,VLOOKUP($B$1,VS_dairyheifer3,A169,FALSE),Control!G$40) -> 0 | I171: = | J171: =D171*H171*1000 -> 0 | K171: x | L171: =Control!K$40 -> 0 | M171: x | N171: =VLOOKUP($B171&State,MCFs,3,FALSE) -> 0.01159736921 | O171: = | P171: =(J171*L171)*N171 -> 0 | Q171: = | R171: =P171*kg_m3/kg.MT -> 0 | S171: = | T171: =R171/1000000 -> 0 | U171: = | V171: =(T171*CH4GWP)*C_CO2 -> 0 | W171: = | X171: =V171/C_CO2 -> 0
A172: =$A$8 -> 0 | B172: =B171 -> 1994 | C172: =$C$8 -> Beef Cattle
A173: =$A$9 -> 15 | B173: 1994 | C173: =$C$9 -> Feedlot Heifers | F173: x | H173: =IF(Control!G$42=VS_feedlotheifer,VLOOKUP($B$1,VS_feedlotheifer3,A169,FALSE),Control!G$42) -> 0 | I173: = | J173: =D173*H173*1000 -> 0 | K173: x | L173: =Control!K$42 -> 0 | M173: x | N173: =VLOOKUP($B173&State,MCFs,4,FALSE) -> 0.01207657998 | O173: = | P173: =(J173*L173)*N173 -> 0 | Q173: = | R173: =P173*kg_m3/kg.MT -> 0 | S173: = | T173: =R173/1000000 -> 0 | U173: = | V173: =(T173*CH4GWP)*C_CO2 -> 0 | W173: = | X173: =V173/C_CO2 -> 0
A174: =$A$10 -> 16 | B174: 1994 | C174: =$C$10 -> Feedlot Steer | F174: x | H174: =IF(Control!G$43=VS_feedlotsteer,VLOOKUP($B$1,VS_feedlotsteer3,A169,FALSE),Control!G$43) -> 0 | I174: = | J174: 0 | K174: x | L174: =Control!K$43 -> 0 | M174: x | N174: =VLOOKUP($B174&State,MCFs,5,FALSE) -> 0.01207657998 | O174: = | P174: 0 | Q174: = | R174: 0 | S174: = | T174: 0 | U174: = | V174: 0 | W174: = | X174: 0
A175: =$A$11 -> 12 | B175: 1994 | C175: =$C$11 -> Bulls | F175: x | H175: =IF(Control!G$44=VS_NOFbulls,VLOOKUP($B$1,VS_NOFbulls3,A169,FALSE),Control!G$44) -> 0 | I175: = | J175: 0 | K175: x | L175: =Control!K$44 -> 0 | M175: x | N175: =VLOOKUP(State,MCF,2,FALSE)*VLOOKUP(State,manure_nofbeef,2,FALSE) -> 0.015 | O175: = | P175: 0 | Q175: = | R175: 0 | S175: = | T175: 0 | U175: = | V175: 0 | W175: = | X175: 0
A176: =$A$12 -> 14 | B176: 1994 | C176: =$C$12 -> Calves | E176: x | F176: =IF(TAM_NOFcalf=Control!$B$45,INDEX(TAM_NOFcalf2,MATCH($B176,'TAM and NEx Rates'!$A$3:$A$45,0)),TAM_NOFcalf) -> 0 | G176: x | H176: =IF(Control!G$45=VS_NOFcalves,INDEX(VS_NOFcalves2,MATCH($B176,'VS-CattleNEW'!$AO$4:$AO$34,0)),Control!G$45) -> 0 | I176: = | J176: =D176*F176*H176*days_yr -> 0 | K176: x | L176: =Control!K$45 -> 0 | M176: x | N176: 0.015 | O176: = | P176: 0 | Q176: = | R176: 0 | S176: = | T176: 0 | U176: = | V176: 0 | W176: = | X176: 0
A177: =$A$13 -> 6 | B177: 1994 | C177: =$C$13 -> Beef Cows | F177: x | H177: =IF(Control!G$46=VS_NOFcows,VLOOKUP($B$1,VS_NOFcows3,A169,FALSE),Control!G$46) -> 0 | I177: = | J177: 0 | K177: x | L177: =Control!K$46 -> 0 | M177: x | N177: 0.015 | O177: = | P177: 0 | Q177: = | R177: 0 | S177: = | T177: 0 | U177: = | V177: 0 | W177: = | X177: 0
A178: =$A$14 -> 7 | B178: 1994 | C178: =$C$14 -> Beef Replacement Heifers | F178: x | H178: =IF(Control!G$47=VS_BeefReplace,VLOOKUP($B$1,VS_BeefReplace3,A169,FALSE),Control!G$47) -> 0 | I178: = | J178: 0 | K178: x | L178: =Control!K$46 -> 0 | M178: x | N178: 0.015 | O178: = | P178: =(J178*L178)*N178 -> 0 | Q178: = | R178: =P178*kg_m3/kg.MT -> 0 | S178: = | T178: =R178/1000000 -> 0 | U178: = | V178: =(T178*CH4GWP)*C_CO2 -> 0 | W178: = | X178: 0
A179: =$A$15 -> 11 | B179: =B177 -> 1994 | C179: =$C$15 -> Steer Stockers | F179: x | H179: =IF(Control!G$48=VS_NOFsteers,VLOOKUP($B$1,VS_NOFsteers3,A169,FALSE),Control!G$48) -> 0 | I179: = | J179: 0 | K179: x | L179: =Control!K$48 -> 0 | M179: x | N179: 0.015 | O179: = | P179: 0 | Q179: = | R179: 0 | S179: = | T179: 0 | U179: = | V179: 0 | W179: = | X179: 0
A180: =$A$16 -> 10 | B180: 1994 | C180: =$C$16 -> Heifer Stockers | F180: x | H180: =IF(Control!G$49=VS_NOFheifers,VLOOKUP($B$1,VS_NOFheifers3,A169,FALSE),Control!G$49) -> 0 | I180: = | J180: 0 | K180: x | L180: =Control!K$49 -> 0 | M180: x | N180: 0.015 | O180: = | P180: 0 | Q180: = | R180: 0 | S180: = | T180: 0 | U180: = | V180: 0 | W180: = | X180: 0
A181: =$A$17 -> 0 | B181: 1994 | C181: =$C$17 -> Swine | H181: [kg VS/1000 kg animal mass/day]
A182: =$A$18 -> 18 | B182: 1994 | C182: =$C$18 -> Breeding Swine | E182: x | F182: =Control!C$51 -> 0 | G182: x | H182: =IF(Control!G$51=VS_breedswine,INDEX(VS_breedswine2,MATCH($B182,'VS-CattleNEW'!$AO$4:$AO$34,0)),Control!G$51) -> 0 | I182: = | J182: =D182*F182*H182*days_yr -> 0 | K182: x | L182: =Control!K$51 -> 0 | M182: x | N182: =VLOOKUP($B182&State,MCFs,7,FALSE) -> 0.01 | O182: = | P182: =(J182*L182)*N182 -> 0 | Q182: = | R182: =P182*kg_m3/kg.MT -> 0 | S182: = | T182: =R182/1000000 -> 0 | U182: = | V182: =(T182*CH4GWP)*C_CO2 -> 0 | W182: = | X182: =V182/C_CO2 -> 0
A183: =$A$19 -> 19 | B183: 1994 | C183: =$C$19 -> Market Under 60 lbs | E183: x | F183: =Control!C$52 -> 0 | G183: x | H183: =Control!G$52 -> 0 | I183: = | J183: =D183*F183*H183*days_yr -> 0 | K183: x | L183: =Control!K$52 -> 0 | M183: x | N183: =VLOOKUP($B183&State,MCFs,6,FALSE) -> 0.01 | O183: = | P183: =(J183*L183)*N183 -> 0 | Q183: = | R183: =P183*kg_m3/kg.MT -> 0 | S183: = | T183: =R183/1000000 -> 0 | U183: = | V183: =(T183*CH4GWP)*C_CO2 -> 0 | W183: = | X183: =V183/C_CO2 -> 0
A184: =$A$20 -> 20 | B184: 1994 | C184: =$C$20 -> Market 60-119 lbs | E184: x | F184: =Control!C$53 -> 0 | G184: x | H184: =Control!G$53 -> 0 | I184: = | J184: =D184*F184*H184*days_yr -> 0 | K184: x | L184: =Control!K$53 -> 0 | M184: x | N184: =VLOOKUP($B184&State,MCFs,6,FALSE) -> 0.01 | O184: = | P184: =(J184*L184)*N184 -> 0 | Q184: = | R184: =P184*kg_m3/kg.MT -> 0 | S184: = | T184: =R184/1000000 -> 0 | U184: = | V184: =(T184*CH4GWP)*C_CO2 -> 0 | W184: = | X184: =V184/C_CO2 -> 0
A185: =$A$21 -> 21 | B185: 1994 | C185: =$C$21 -> Market 120-179 lbs | E185: x | F185: =Control!C$54 -> 0 | G185: x | H185: =Control!G$54 -> 0 | I185: = | J185: =D185*F185*H185*days_yr -> 0 | K185: x | L185: =Control!K$54 -> 0 | M185: x | N185: =VLOOKUP($B185&State,MCFs,6,FALSE) -> 0.01 | O185: = | P185: =(J185*L185)*N185 -> 0 | Q185: = | R185: =P185*kg_m3/kg.MT -> 0 | S185: = | T185: =R185/1000000 -> 0 | U185: = | V185: =(T185*CH4GWP)*C_CO2 -> 0 | W185: = | X185: =V185/C_CO2 -> 0
A186: =$A$22 -> 22 | B186: 1994 | C186: =$C$22 -> Market over 180 lbs | E186: x | F186: =Control!C$55 -> 0 | G186: x | H186: =Control!G$55 -> 0 | I186: = | J186: =D186*F186*H186*days_yr -> 0 | K186: x | L186: =Control!K$55 -> 0 | M186: x | N186: =VLOOKUP($B186&State,MCFs,6,FALSE) -> 0.01 | O186: = | P186: =(J186*L186)*N186 -> 0 | Q186: = | R186: =P186*kg_m3/kg.MT -> 0 | S186: = | T186: =R186/1000000 -> 0 | U186: = | V186: =(T186*CH4GWP)*C_CO2 -> 0 | W186: = | X186: =V186/C_CO2 -> 0
A187: =$A$23 -> 0 | B187: 1994 | C187: =$C$23 -> Poultry
A188: =$A$24 -> 0 | B188: 1994 | C188: =$C$24 -> Layers
A189: =$A$25 -> 23 | B189: 1994 | C189: =$C$25 -> Hens > 1 yr | E189: x | F189: =Control!C$58 -> 0 | G189: x | H189: =IF(Control!G$58=VS_hens,INDEX(VS_hens2,MATCH($B189,'VS-CattleNEW'!$AO$4:$AO$34,0)),Control!G$58) -> 0 | I189: = | J189: =D189*F189*H189*days_yr -> 0 | K189: x | L189: =Control!K$58 -> 0 | M189: x | N189: =VLOOKUP($B189&State,MCFs,8,FALSE) -> 0.1219702787 | O189: = | P189: =(J189*L189)*N189 -> 0 | Q189: = | R189: =P189*kg_m3/kg.MT -> 0 | S189: = | T189: =R189/1000000 -> 0 | U189: = | V189: =(T189*CH4GWP)*C_CO2 -> 0 | W189: = | X189: =V189/C_CO2 -> 0
A190: =$A$26 -> 24 | B190: 1994 | C190: =Control!$A$59 -> Pullets | E190: x | F190: =Control!C$59 -> 0 | G190: x | H190: =IF(Control!G$59=VS_pullets,INDEX(VS_pullets2,MATCH($B190,'VS-CattleNEW'!$AO$4:$AO$34,0)),Control!G$59) -> 0 | I190: = | J190: =D190*F190*H190*days_yr -> 0 | K190: x | L190: =Control!K$59 -> 0 | M190: x | N190: =VLOOKUP($B190&State,MCFs,8,FALSE) -> 0.1219702787 | O190: = | P190: =(J190*L190)*N190 -> 0 | Q190: = | R190: =P190*kg_m3/kg.MT -> 0 | S190: = | T190: =R190/1000000 -> 0 | U190: = | V190: =(T190*CH4GWP)*C_CO2 -> 0 | W190: = | X190: =V190/C_CO2 -> 0
A191: =$A$27 -> 25 | B191: 1994 | C191: =Control!$A$60 -> Chickens | E191: x | F191: =Control!C$60 -> 0 | G191: x | H191: =IF(Control!G$60=VS_chickens,INDEX(VS_chickens2,MATCH($B191,'VS-CattleNEW'!$AO$4:$AO$34,0)),Control!G$60) -> 0 | I191: = | J191: =D191*F191*H191*days_yr -> 0 | K191: x | L191: =Control!K$60 -> 0 | M191: x | N191: =VLOOKUP($B191&State,MCFs,8,FALSE) -> 0.1219702787 | O191: = | P191: =(J191*L191)*N191 -> 0 | Q191: = | R191: =P191*kg_m3/kg.MT -> 0 | S191: = | T191: =R191/1000000 -> 0 | U191: = | V191: =(T191*CH4GWP)*C_CO2 -> 0 | W191: = | X191: =V191/C_CO2 -> 0
A192: =$A$28 -> 26 | B192: 1994 | C192: =Control!$A$61 -> Broilers | E192: x | F192: =Control!C$61 -> 0 | G192: x | H192: =IF(Control!G$61=VS_broilers,INDEX(VS_broilers2,MATCH($B192,'VS-CattleNEW'!$AO$4:$AO$34,0)),Control!G$61) -> 0 | I192: = | J192: =D192*F192*H192*days_yr -> 0 | K192: x | L192: =Control!K$61 -> 0 | M192: x | N192: =BroilerMCF -> 0.015 | O192: = | P192: =(J192*L192)*N192 -> 0 | Q192: = | R192: =P192*kg_m3/kg.MT -> 0 | S192: = | T192: =R192/1000000 -> 0 | U192: = | V192: =(T192*CH4GWP)*C_CO2 -> 0 | W192: = | X192: =V192/C_CO2 -> 0
A193: =$A$29 -> 27 | B193: 1994 | C193: =Control!$A$62 -> Turkeys | E193: x | F193: =Control!C$62 -> 0 | G193: x | H193: =IF(Control!G$62=VS_turkeys,INDEX(VS_turkeys2,MATCH($B193,'VS-CattleNEW'!$AO$4:$AO$34,0)),Control!G$62) -> 0 | I193: = | J193: =D193*F193*H193*days_yr -> 0 | K193: x | L193: =Control!K$62 -> 0 | M193: x | N193: =TurkeyMCF -> 0.015 | O193: = | P193: =(J193*L193)*N193 -> 0 | Q193: = | R193: =P193*kg_m3/kg.MT -> 0 | S193: = | T193: =R193/1000000 -> 0 | U193: = | V193: =(T193*CH4GWP)*C_CO2 -> 0 | W193: = | X193: =V193/C_CO2 -> 0
A194: =$A$30 -> 0 | B194: 1994 | C194: =Control!$A$63 -> Other
A195: =$A$31 -> 29 | B195: 1994 | C195: =Control!$A$64 -> Sheep on Feed | E195: x | F195: =Control!C$64 -> 0 | G195: x | H195: =IF(Control!G$64=VS_sheepOF,INDEX(VS_sheep,MATCH($B195,'VS-CattleNEW'!$AO$4:$AO$34,0)),Control!G$64) -> 0 | I195: = | J195: =D195*F195*H195*days_yr -> 0 | K195: x | L195: =Control!K$64 -> 0 | M195: x | N195: =(VLOOKUP(State,MCF,2,FALSE)*VLOOKUP(State,manure_sheep,2,FALSE))+(VLOOKUP(State,MCF,3,FALSE)*(1-VLOOKUP(State,manure_sheep,2,FALSE))) -> 0.015 | O195: = | P195: =(J195*L195)*N195 -> 0 | Q195: = | R195: =P195*kg_m3/kg.MT -> 0 | S195: = | T195: =R195/1000000 -> 0 | U195: = | V195: =(T195*CH4GWP)*C_CO2 -> 0 | W195: = | X195: =V195/C_CO2 -> 0
A196: =$A$32 -> 30 | B196: 1994 | C196: =$C$32 -> Sheep Not on Feed | E196: x | F196: =Control!C$65 -> 0 | G196: x | H196: =IF(Control!G$65=VS_sheepNOF,INDEX(VS_sheep,MATCH($B196,'VS-CattleNEW'!$AO$4:$AO$34,0)),Control!G$65) -> 0 | I196: = | J196: =D196*F196*H196*days_yr -> 0 | K196: x | L196: =Control!K$65 -> 0 | M196: x | N196: =(VLOOKUP(State,MCF,2,FALSE)*VLOOKUP(State,manure_sheep,3,FALSE)) -> 0.01154146552 | O196: = | P196: =(J196*L196)*N196 -> 0 | Q196: = | R196: =P196*kg_m3/kg.MT -> 0 | S196: = | T196: =R196/1000000 -> 0 | U196: = | V196: =(T196*CH4GWP)*C_CO2 -> 0 | W196: = | X196: =V196/C_CO2 -> 0
A197: =$A$33 -> 31 | B197: 1994 | C197: =$C$33 -> Goats | E197: x | F197: =Control!C$66 -> 0 | G197: x | H197: =Control!G$66 -> 0 | I197: = | J197: =D197*F197*H197*days_yr -> 0 | K197: x | L197: =Control!K$66 -> 0 | M197: x | N197: =(VLOOKUP(State,MCF,2,FALSE)*VLOOKUP(State,manure_goats,2,FALSE)) -> 0.015 | O197: = | P197: =(J197*L197)*N197 -> 0 | Q197: = | R197: =P197*kg_m3/kg.MT -> 0 | S197: = | T197: =R197/1000000 -> 0 | U197: = | V197: =(T197*CH4GWP)*C_CO2 -> 0 | W197: = | X197: =V197/C_CO2 -> 0
A198: =$A$34 -> 32 | B198: 1994 | C198: =$C$34 -> Horses | E198: x | F198: =Control!C$67 -> 0 | G198: x | H198: =IF(Control!G$67=VS_horses,INDEX(VS_horses2,MATCH($B198,'VS-CattleNEW'!$AO$4:$AO$34,0)),Control!G$67) -> 0 | I198: = | J198: =D198*F198*H198*days_yr -> 0 | K198: x | L198: =Control!K$67 -> 0 | M198: x | N198: =(VLOOKUP(State,MCF,2,FALSE)*VLOOKUP(State,manure_horses,2,FALSE)) -> 0.015 | O198: = | P198: =(J198*L198)*N198 -> 0 | Q198: = | R198: =P198*kg_m3/kg.MT -> 0 | S198: = | T198: =R198/1000000 -> 0 | U198: = | V198: =(T198*CH4GWP)*C_CO2 -> 0 | W198: = | X198: =V198/C_CO2 -> 0
B199: 1994 | C199: =$C$35 -> TOTAL | P199: =SUM(P170:P198) -> 0 | R199: =SUM(R170:R198) -> 0 | T199: =SUM(T170:T198) -> 0 | V199: =SUM(V170:V198) -> 0 | X199: =SUM(X170:X198) -> 0
C201: 1
C202: 2
C203: 3
C204: 4
C205: 5
C206: 6
... 1234 more rows

Sheet N2O from Manure Management
C1: ="3b. N2O from Manure Management in "&StateName -> 3b. N2O from Manure Management in Alaska
C3: N2O from Manure Management | H3: 1990
D4: Number of Animals ('000 head) | F4: Total K-Nitrogen Excreted (kg) | H4: Unvolatilized N from Manure in Anaerobic Lagoons and Liquid Systems (kg) | J4: Unvolatilized N from Manure in Solid Storage, Drylot & Other Systems (kg) | L4: Emissions from Anaerobic Lagoons and Liquid Systems (kg N2O-N) | N4: Emissions from Solid Storage, Drylot, & Other Systems (kg N2O-N) | P4: Total N2O Emissions (kg N2O) | R4: Emissions (MTCE) | T4: Emissions (MMTCE) | V4: Emissions (MMTCO2E)
C5: =Control!$A$101 -> Dairy Cattle
A6: ='CH4 from Manure Management'!A6 -> 2 | B6: =H3 -> 1990 | C6: =Control!$A$102 -> Dairy Cows | D6: ='CH4 from Manure Management'!D6 -> 0 | F6: =D6*1000*(IF(NEx_DairyCow=Control!$F$102,INDEX(NEx_DairyCow2,MATCH(State,NEx_DairyCow3,0),MATCH($B6,'TAM and NEx Rates'!$N$2:$AT$2,0)),NEx_DairyCow)) -> 0 | H6: =F6*(1-VolPercent)*((VLOOKUP($B6&State,mms_dairy,2,FALSE))+(VLOOKUP($B6&State,mms_dairy,3,FALSE))) -> 0 | J6: =F6*(1-VolPercent)*((VLOOKUP($B6&State,mms_dairy,5,FALSE))+(VLOOKUP($B6&State,mms_dairy,7,FALSE))) -> 0 | L6: =H6*LiquidEF -> 0 | M6: + | N6: =J6*SolidEF -> 0 | O6: = | P6: =(L6+N6)*N2O_N2 -> 0 | Q6: = | R6: =P6/kg.MT*N20GWP*C_CO2 -> 0 | S6: = | T6: =R6/10^6 -> 0 | U6: = | V6: =T6/C_CO2 -> 0
A7: ='CH4 from Manure Management'!A7 -> 3 | B7: =B6 -> 1990 | C7: =Control!$A$103 -> Dairy Replacement Heifers | D7: ='CH4 from Manure Management'!D7 -> 0 | F7: =D7*1000*(IF(NEx_DairyHeifer=Control!$F$103,INDEX(NEx_DairyHeifer2,MATCH(State,NEx_DairyHeifer3,0),MATCH($B7,'TAM and NEx Rates'!$N$2:$AT$2,0)),NEx_DairyHeifer)) -> 0 | H7: NA | J7: =F7*(1-VolPercent)*(VLOOKUP(H3&State,manure_dairyheifers,2,FALSE)) -> 0 | L7: NA | M7: + | N7: =J7*SolidEF -> 0 | O7: = | P7: =(N7)*N2O_N2 -> 0 | Q7: = | R7: =P7/kg.MT*N20GWP*C_CO2 -> 0 | S7: = | T7: =R7/10^6 -> 0 | U7: = | V7: =T7/C_CO2 -> 0
B8: =B7 -> 1990 | C8: =Control!$A$104 -> Beef Cattle
A9: ='CH4 from Manure Management'!A9 -> 15 | B9: 1990 | C9: =Control!$A$105 -> Feedlot Heifers | D9: ='CH4 from Manure Management'!D9 -> 0 | F9: =D9*1000*(IF(NEx_feedheifer=Control!$F$105,INDEX(NEx_feedheifer2,MATCH(State,NEx_feedheifer3,0),MATCH($B9,'TAM and NEx Rates'!$N$2:$AT$2,0)),NEx_feedheifer)) -> 0 | H9: NA | J9: =F9*(1-VolPercent)*(VLOOKUP(State,manure_feedlotbeef,2,FALSE)) -> 0 | L9: NA | M9: + | N9: =J9*SolidEF -> 0 | O9: = | P9: =(N9)*N2O_N2 -> 0 | Q9: = | R9: =P9/kg.MT*N20GWP*C_CO2 -> 0 | S9: = | T9: =R9/10^6 -> 0 | U9: = | V9: =T9/C_CO2 -> 0
A10: ='CH4 from Manure Management'!A10 -> 16 | B10: 1990 | C10: =Control!$A$106 -> Feedlot Steer | D10: ='CH4 from Manure Management'!D10 -> 0 | F10: =D10*1000*(IF(NEx_feedsteer=Control!$F$106,INDEX(NEx_feedsteer2,MATCH(State,NEx_feedsteer3,0),MATCH($B10,'TAM and NEx Rates'!$N$2:$AT$2,0)),NEx_feedsteer)) -> 0 | H10: NA | J10: =F10*(1-VolPercent)*(VLOOKUP(State,manure_feedlotbeef,2,FALSE)) -> 0 | L10: NA | M10: + | N10: =J10*SolidEF -> 0 | O10: = | P10: =(N10)*N2O_N2 -> 0 | Q10: = | R10: =P10/kg.MT*N20GWP*C_CO2 -> 0 | S10: = | T10: =R10/10^6 -> 0 | U10: = | V10: =T10/C_CO2 -> 0
B11: 1990 | C11: =Control!$A$112 -> Swine
A12: ='CH4 from Manure Management'!A18 -> 18 | B12: 1990 | C12: =Control!$A$113 -> Breeding Swine | D12: ='CH4 from Manure Management'!D18 -> 0 | F12: =D12*'CH4 from Manure Management'!$F18*(IF(NEx_breedswine=Control!$F$113,INDEX(NEx_breedswine2,MATCH($B12,'TAM and NEx Rates'!$BA$2:$BA$33,0)),NEx_breedswine))*days_yr -> 0 | H12: =F12*(1-VolPercent)*((VLOOKUP($B12&State,manure_swine,4,FALSE))+(VLOOKUP($B12&State,manure_swine,5,FALSE))+(VLOOKUP($B12&State,manure_swine,6,FALSE))) -> 0 | J12: =F12*(1-VolPercent)*(VLOOKUP($B12&State,manure_swine,3,FALSE)) -> 0 | L12: =H12*LiquidEF -> 0 | M12: + | N12: =J12*SolidEF -> 0 | O12: = | P12: =(L12+N12)*N2O_N2 -> 0 | Q12: = | R12: =P12/kg.MT*N20GWP*C_CO2 -> 0 | S12: = | T12: =R12/10^6 -> 0 | U12: = | V12: =T12/C_CO2 -> 0
A13: ='CH4 from Manure Management'!A19 -> 19 | B13: 1990 | C13: =Control!$A$114 -> Market Under 60 lbs | D13: ='CH4 from Manure Management'!D19 -> 0 | F13: =D13*'CH4 from Manure Management'!$F19*(IF(NEx_marketswine_under60=Control!$F$114,INDEX(NEx_marketswine_under60_2,MATCH($B13,'TAM and NEx Rates'!$BA$2:$BA$33,0)),NEx_marketswine_under60))*days_yr -> 0 | H13: =F13*(1-VolPercent)*((VLOOKUP($B13&State,manure_swine,4,FALSE))+(VLOOKUP($B13&State,manure_swine,5,FALSE))+(VLOOKUP($B13&State,manure_swine,6,FALSE))) -> 0 | J13: =F13*(1-VolPercent)*(VLOOKUP($B13&State,manure_swine,3,FALSE)) -> 0 | L13: =H13*LiquidEF -> 0 | M13: + | N13: =J13*SolidEF -> 0 | O13: = | P13: =(L13+N13)*N2O_N2 -> 0 | Q13: = | R13: =P13/kg.MT*N20GWP*C_CO2 -> 0 | S13: = | T13: =R13/10^6 -> 0 | U13: = | V13: =T13/C_CO2 -> 0
A14: ='CH4 from Manure Management'!A20 -> 20 | B14: 1990 | C14: =Control!$A$115 -> Market 60-119 lbs | D14: ='CH4 from Manure Management'!D20 -> 0 | F14: =D14*'CH4 from Manure Management'!$F20*(IF(NEx_marketswine60to119=Control!$F$115,INDEX(NEx_marketswine60to119_2,MATCH($B14,'TAM and NEx Rates'!$BA$2:$BA$33,0)),NEx_marketswine60to119))*days_yr -> 0 | H14: =F14*(1-VolPercent)*((VLOOKUP($B14&State,manure_swine,4,FALSE))+(VLOOKUP($B14&State,manure_swine,5,FALSE))+(VLOOKUP($B14&State,manure_swine,6,FALSE))) -> 0 | J14: =F14*(1-VolPercent)*(VLOOKUP($B14&State,manure_swine,3,FALSE)) -> 0 | L14: =H14*LiquidEF -> 0 | M14: + | N14: =J14*SolidEF -> 0 | O14: = | P14: =(L14+N14)*N2O_N2 -> 0 | Q14: = | R14: =P14/kg.MT*N20GWP*C_CO2 -> 0 | S14: = | T14: =R14/10^6 -> 0 | U14: = | V14: =T14/C_CO2 -> 0
A15: ='CH4 from Manure Management'!A21 -> 21 | B15: 1990 | C15: =Control!$A$116 -> Market 120-179 lbs | D15: ='CH4 from Manure Management'!D21 -> 0 | F15: =D15*'CH4 from Manure Management'!$F21*(IF(NEx_marketswine120to179=Control!$F$116,INDEX(NEx_marketswine120to179_2,MATCH($B15,'TAM and NEx Rates'!$BA$2:$BA$33,0)),NEx_marketswine120to179))*days_yr -> 0 | H15: =F15*(1-VolPercent)*((VLOOKUP($B15&State,manure_swine,4,FALSE))+(VLOOKUP($B15&State,manure_swine,5,FALSE))+(VLOOKUP($B15&State,manure_swine,6,FALSE))) -> 0 | J15: =F15*(1-VolPercent)*(VLOOKUP($B15&State,manure_swine,3,FALSE)) -> 0 | L15: =H15*LiquidEF -> 0 | M15: + | N15: =J15*SolidEF -> 0 | O15: = | P15: =(L15+N15)*N2O_N2 -> 0 | Q15: = | R15: =P15/kg.MT*N20GWP*C_CO2 -> 0 | S15: = | T15: =R15/10^6 -> 0 | U15: = | V15: =T15/C_CO2 -> 0
A16: ='CH4 from Manure Management'!A22 -> 22 | B16: 1990 | C16: =Control!$A$117 -> Market over 180 lbs | D16: ='CH4 from Manure Management'!D22 -> 0 | F16: =D16*'CH4 from Manure Management'!$F22*(IF(NEx_marketswine_over180=Control!$F$117,INDEX(NEx_marketswine_over180_2,MATCH($B16,'TAM and NEx Rates'!$BA$2:$BA$33,0)),NEx_marketswine_over180))*days_yr -> 0 | H16: =F16*(1-VolPercent)*((VLOOKUP($B16&State,manure_swine,4,FALSE))+(VLOOKUP($B16&State,manure_swine,5,FALSE))+(VLOOKUP($B16&State,manure_swine,6,FALSE))) -> 0 | J16: =F16*(1-VolPercent)*(VLOOKUP($B16&State,manure_swine,3,FALSE)) -> 0 | L16: =H16*LiquidEF -> 0 | M16: + | N16: =J16*SolidEF -> 0 | O16: = | P16: =(L16+N16)*N2O_N2 -> 0 | Q16: = | R16: =P16/kg.MT*N20GWP*C_CO2 -> 0 | S16: = | T16: =R16/10^6 -> 0 | U16: = | V16: =T16/C_CO2 -> 0
B17: 1990 | C17: =Control!$A$118 -> Poultry
B18: 1990 | C18: =Control!$A$119 -> Layers
A19: ='CH4 from Manure Management'!A25 -> 23 | B19: 1990 | C19: =Control!$A$120 -> Hens > 1 yr | D19: ='CH4 from Manure Management'!D25 -> 0 | F19: =D19*'CH4 from Manure Management'!$F25*(IF(NEx_hens=Control!$F$120,INDEX(NEx_hens2,MATCH($B19,'TAM and NEx Rates'!$BA$2:$BA$33,0)),NEx_hens))*days_yr -> 0 | H19: =F19*(1-VolPercent)*((VLOOKUP($B19&State,mms_layers,3,FALSE))+(VLOOKUP($B19&State,mms_layers,4,FALSE))) -> 0 | J19: =F19*(1-VolPercent)*((VLOOKUP($B19&State,mms_layers,2,FALSE))+(VLOOKUP($B19&State,mms_layers,5,FALSE))) -> 0 | L19: =H19*LiquidEF -> 0 | M19: + | N19: =F19*(1-VolPercent)*(SolidEF*(VLOOKUP($B19&State,mms_layers,2,FALSE))+nobedEF*(VLOOKUP($B19&State,mms_layers,5,FALSE))) -> 0 | O19: = | P19: =(L19+N19)*N2O_N2 -> 0 | Q19: = | R19: =P19/kg.MT*N20GWP*C_CO2 -> 0 | S19: = | T19: =R19/10^6 -> 0 | U19: = | V19: =T19/C_CO2 -> 0
A20: ='CH4 from Manure Management'!A26 -> 24 | B20: 1990 | C20: =Control!$A$121 -> Pullets | D20: ='CH4 from Manure Management'!D26 -> 0 | F20: =D20*'CH4 from Manure Management'!$F26*(IF(NEx_pullets=Control!$F$121,INDEX(NEx_pullets2,MATCH($B20,'TAM and NEx Rates'!$BA$2:$BA$33,0)),NEx_pullets))*days_yr -> 0 | H20: =F20*(1-VolPercent)*((VLOOKUP($B20&State,mms_layers,3,FALSE))+(VLOOKUP($B20&State,mms_layers,4,FALSE))) -> 0 | J20: =F20*(1-VolPercent)*((VLOOKUP($B20&State,mms_layers,2,FALSE))+(VLOOKUP($B20&State,mms_layers,5,FALSE))) -> 0 | L20: =H20*LiquidEF -> 0 | M20: + | N20: =F20*(1-VolPercent)*(SolidEF*(VLOOKUP($B20&State,mms_layers,2,FALSE))+nobedEF*(VLOOKUP($B20&State,mms_layers,5,FALSE))) -> 0 | O20: = | P20: =(L20+N20)*N2O_N2 -> 0 | Q20: = | R20: =P20/kg.MT*N20GWP*C_CO2 -> 0 | S20: = | T20: =R20/10^6 -> 0 | U20: = | V20: =T20/C_CO2 -> 0
A21: ='CH4 from Manure Management'!A27 -> 25 | B21: 1990 | C21: =Control!$A$122 -> Chickens | D21: ='CH4 from Manure Management'!D27 -> 0 | F21: =D21*'CH4 from Manure Management'!$F27*(IF(NEx_chickens=Control!$F$122,INDEX(NEx_chickens2,MATCH($B21,'TAM and NEx Rates'!$BA$2:$BA$33,0)),NEx_chickens))*days_yr -> 0 | H21: =F21*(1-VolPercent)*((VLOOKUP($B21&State,mms_layers,3,FALSE))+(VLOOKUP($B21&State,mms_layers,4,FALSE))) -> 0 | J21: =F21*(1-VolPercent)*((VLOOKUP($B21&State,mms_layers,2,FALSE))+(VLOOKUP($B21&State,mms_layers,5,FALSE))) -> 0 | L21: =H21*LiquidEF -> 0 | M21: + | N21: =F21*(1-VolPercent)*(SolidEF*(VLOOKUP($B21&State,mms_layers,2,FALSE))+nobedEF*(VLOOKUP($B21&State,mms_layers,5,FALSE))) -> 0 | O21: = | P21: =(L21+N21)*N2O_N2 -> 0 | Q21: = | R21: =P21/kg.MT*N20GWP*C_CO2 -> 0 | S21: = | T21: =R21/10^6 -> 0 | U21: = | V21: =T21/C_CO2 -> 0
A22: ='CH4 from Manure Management'!A28 -> 26 | B22: 1990 | C22: =Control!$A$123 -> Broilers | D22: ='CH4 from Manure Management'!D28 -> 0 | F22: =D22*'CH4 from Manure Management'!$F28*(IF(NEx_broilers=Control!$F$123,INDEX(NEx_broilers2,MATCH($B22,'TAM and NEx Rates'!$BA$2:$BA$33,0)),NEx_broilers))*days_yr -> 0 | H22: NA | J22: =F22*(1-VolPercent)*((VLOOKUP(State,manure_broilers,2,FALSE))) -> 0 | L22: NA | M22: + | N22: =J22*SolidEF -> 0 | O22: = | P22: =(N22)*N2O_N2 -> 0 | Q22: = | R22: =P22/kg.MT*N20GWP*C_CO2 -> 0 | S22: = | T22: =R22/10^6 -> 0 | U22: = | V22: =T22/C_CO2 -> 0
A23: ='CH4 from Manure Management'!A29 -> 27 | B23: 1990 | C23: =Control!$A$124 -> Turkeys | D23: ='CH4 from Manure Management'!D29 -> 0 | F23: =D23*'CH4 from Manure Management'!$F29*(IF(NEx_turkeys=Control!$F$124,INDEX(NEx_turkeys2,MATCH($B23,'TAM and NEx Rates'!$BA$2:$BA$33,0)),NEx_turkeys))*days_yr -> 0 | H23: NA | J23: =F23*(1-VolPercent)*((VLOOKUP(State,manure_broilers,2,FALSE))) -> 0 | L23: NA | M23: + | N23: =J23*SolidEF -> 0 | O23: = | P23: =(N23)*N2O_N2 -> 0 | Q23: = | R23: =P23/kg.MT*N20GWP*C_CO2 -> 0 | S23: = | T23: =R23/10^6 -> 0 | U23: = | V23: =T23/C_CO2 -> 0
B24: 1990 | C24: =Control!$A$125 -> Other
A25: ='CH4 from Manure Management'!A31 -> 29 | B25: 1990 | C25: =Control!$A$126 -> Sheep on Feed | D25: ='CH4 from Manure Management'!D31 -> 0 | F25: =D25*'CH4 from Manure Management'!$F31*(IF(NEx_sheepOF=Control!$F$126,INDEX(NEx_sheep,MATCH($B25,'TAM and NEx Rates'!$BA$2:$BA$33,0)),NEx_sheepOF))*days_yr -> 0 | H25: NA | J25: =F25*(1-VolPercent)*(1-VLOOKUP(State,manure_sheep,2,FALSE)) -> 0 | L25: NA | M25: + | N25: =J25*SolidEF -> 0 | O25: = | P25: =N25*N2O_N2 -> 0 | Q25: = | R25: =P25/kg.MT*N20GWP*C_CO2 -> 0 | S25: = | T25: =R25/10^6 -> 0 | U25: = | V25: =T25/C_CO2 -> 0
A26: ='CH4 from Manure Management'!A32 -> 30 | B26: 1990 | C26: =Control!$A$127 -> Sheep Not on Feed | D26: ='CH4 from Manure Management'!D32 -> 0 | F26: =D26*'CH4 from Manure Management'!$F32*(IF(NEx_sheepNOF=Control!$F$127,INDEX(NEx_sheep,MATCH($B26,'TAM and NEx Rates'!$BA$2:$BA$33,0)),NEx_sheepNOF))*days_yr -> 0 | H26: NA | J26: =F26*(1-VolPercent)*(1-VLOOKUP(State,manure_sheep,3,FALSE)) -> 0 | L26: NA | M26: + | N26: =J26*SolidEF -> 0 | O26: = | P26: =N26*N2O_N2 -> 0 | Q26: = | R26: =P26/kg.MT*N20GWP*C_CO2 -> 0 | S26: = | T26: =R26/10^6 -> 0 | U26: = | V26: =T26/C_CO2 -> 0
C27: TOTAL | F27: =SUM(F6:F26) -> 0 | H27: =SUM(H6:H26) -> 0 | J27: =SUM(J6:J26) -> 0 | L27: =SUM(L6:L26) -> 0 | N27: =SUM(N6:N26) -> 0 | P27: =SUM(P6:P26) -> 0 | R27: =SUM(R6:R26) -> 0 | T27: =R27/10^6 -> 0 | V27: =T27/C_CO2 -> 0
C29: 1
C30: 2
C31: 3
C32: 4
C33: 5
C34: 6
C35: 7
C36: 8
C37: N2O from Manure Management | H37: 1991
D38: Number of Animals ('000 head) | F38: Total K-Nitrogen Excreted (kg) | H38: Unvolatilized N from Manure in Anaerobic Lagoons and Liquid Systems (kg) | J38: Unvolatilized N from Manure in Solid Storage, Drylot & Other Systems (kg) | L38: Emissions from Anaerobic Lagoons and Liquid Systems (kg N2O-N) | N38: Emissions from Solid Storage, Drylot, & Other Systems (kg N2O-N) | P38: Total N2O Emissions (kg N2O) | R38: Emissions (MTCE) | T38: Emissions (MMTCE) | V38: Emissions (MMTCO2E)
C39: =$C$5 -> Dairy Cattle
A40: =$A$6 -> 2 | B40: =H37 -> 1991 | C40: =$C$6 -> Dairy Cows | D40: ='CH4 from Manure Management'!D47 -> 0 | F40: =D40*1000*(IF(NEx_DairyCow=Control!$F$102,INDEX(NEx_DairyCow2,MATCH(State,NEx_DairyCow3,0),MATCH($B40,'TAM and NEx Rates'!$N$2:$AT$2,0)),NEx_DairyCow)) -> 0 | H40: =F40*(1-VolPercent)*((VLOOKUP($B40&State,mms_dairy,2,FALSE))+(VLOOKUP($B40&State,mms_dairy,3,FALSE))) -> 0 | J40: =F40*(1-VolPercent)*((VLOOKUP($B40&State,mms_dairy,5,FALSE))+(VLOOKUP($B40&State,mms_dairy,7,FALSE))) -> 0 | L40: =H40*LiquidEF -> 0 | M40: + | N40: =J40*SolidEF -> 0 | O40: = | P40: =(L40+N40)*N2O_N2 -> 0 | Q40: = | R40: =P40/kg.MT*N20GWP*C_CO2 -> 0 | S40: = | T40: =R40/10^6 -> 0 | U40: = | V40: =T40/C_CO2 -> 0
A41: =$A$7 -> 3 | B41: =B40 -> 1991 | C41: =$C$7 -> Dairy Replacement Heifers | D41: ='CH4 from Manure Management'!D48 -> 0 | F41: =D41*1000*(IF(NEx_DairyHeifer=Control!$F$103,INDEX(NEx_DairyHeifer2,MATCH(State,NEx_DairyHeifer3,0),MATCH($B41,'TAM and NEx Rates'!$N$2:$AT$2,0)),NEx_DairyHeifer)) -> 0 | H41: =F41*(1-VolPercent)*((VLOOKUP($B41&State,mms_dairy,2,FALSE))+(VLOOKUP($B41&State,mms_dairy,3,FALSE))) -> 0 | J41: =F41*(1-VolPercent)*(VLOOKUP(H37&State,manure_dairyheifers,2,FALSE)) -> 0 | L41: =H41*LiquidEF -> 0 | M41: + | N41: =J41*SolidEF -> 0 | O41: = | P41: =(N41)*N2O_N2 -> 0 | Q41: = | R41: =P41/kg.MT*N20GWP*C_CO2 -> 0 | S41: = | T41: =R41/10^6 -> 0 | U41: = | V41: =T41/C_CO2 -> 0
A42: =$A$8 -> 0 | B42: =B41 -> 1991 | C42: =$C$8 -> Beef Cattle
A43: =$A$9 -> 15 | B43: 1991 | C43: =$C$9 -> Feedlot Heifers | D43: ='CH4 from Manure Management'!D50 -> 0 | F43: =D43*1000*(IF(NEx_feedheifer=Control!$F$105,INDEX(NEx_feedheifer2,MATCH(State,NEx_feedheifer3,0),MATCH($B43,'TAM and NEx Rates'!$N$2:$AT$2,0)),NEx_feedheifer)) -> 0 | H43: NA | J43: =F43*(1-VolPercent)*(VLOOKUP(State,manure_feedlotbeef,2,FALSE)) -> 0 | L43: NA | M43: + | N43: =J43*SolidEF -> 0 | O43: = | P43: =(N43)*N2O_N2 -> 0 | Q43: = | R43: =P43/kg.MT*N20GWP*C_CO2 -> 0 | S43: = | T43: =R43/10^6 -> 0 | U43: = | V43: =T43/C_CO2 -> 0
A44: =$A$10 -> 16 | B44: 1991 | C44: =$C$10 -> Feedlot Steer | D44: ='CH4 from Manure Management'!D51 -> 0 | F44: =D44*1000*(IF(NEx_feedsteer=Control!$F$106,INDEX(NEx_feedsteer2,MATCH(State,NEx_feedsteer3,0),MATCH($B44,'TAM and NEx Rates'!$N$2:$AT$2,0)),NEx_feedsteer)) -> 0 | H44: NA | J44: =F44*(1-VolPercent)*(VLOOKUP(State,manure_feedlotbeef,2,FALSE)) -> 0 | L44: NA | M44: + | N44: =J44*SolidEF -> 0 | O44: = | P44: =(N44)*N2O_N2 -> 0 | Q44: = | R44: =P44/kg.MT*N20GWP*C_CO2 -> 0 | S44: = | T44: =R44/10^6 -> 0 | U44: = | V44: =T44/C_CO2 -> 0
A45: =$A$11 -> 0 | B45: 1991 | C45: =$C$11 -> Swine
A46: =$A$12 -> 18 | B46: 1991 | C46: =$C$12 -> Breeding Swine | D46: ='CH4 from Manure Management'!D59 -> 0 | F46: =D46*'CH4 from Manure Management'!$F59*(IF(NEx_breedswine=Control!$F$113,INDEX(NEx_breedswine2,MATCH($B46,'TAM and NEx Rates'!$BA$2:$BA$33,0)),NEx_breedswine))*days_yr -> 0 | H46: =F46*(1-VolPercent)*((VLOOKUP($B46&State,manure_swine,4,FALSE))+(VLOOKUP($B46&State,manure_swine,5,FALSE))+(VLOOKUP($B46&State,manure_swine,6,FALSE))) -> 0 | J46: =F46*(1-VolPercent)*(VLOOKUP($B46&State,manure_swine,3,FALSE)) -> 0 | L46: =H46*LiquidEF -> 0 | M46: + | N46: =J46*SolidEF -> 0 | O46: = | P46: =(L46+N46)*N2O_N2 -> 0 | Q46: = | R46: =P46/kg.MT*N20GWP*C_CO2 -> 0 | S46: = | T46: =R46/10^6 -> 0 | U46: = | V46: =T46/C_CO2 -> 0
A47: =$A$13 -> 19 | B47: 1991 | C47: =$C$13 -> Market Under 60 lbs | D47: ='CH4 from Manure Management'!D60 -> 0 | F47: =D47*'CH4 from Manure Management'!$F60*(IF(NEx_marketswine_under60=Control!$F$114,INDEX(NEx_marketswine_under60_2,MATCH($B47,'TAM and NEx Rates'!$BA$2:$BA$33,0)),NEx_marketswine_under60))*days_yr -> 0 | H47: =F47*(1-VolPercent)*((VLOOKUP($B47&State,manure_swine,4,FALSE))+(VLOOKUP($B47&State,manure_swine,5,FALSE))+(VLOOKUP($B47&State,manure_swine,6,FALSE))) -> 0 | J47: =F47*(1-VolPercent)*(VLOOKUP($B47&State,manure_swine,3,FALSE)) -> 0 | L47: =H47*LiquidEF -> 0 | M47: + | N47: =J47*SolidEF -> 0 | O47: = | P47: =(L47+N47)*N2O_N2 -> 0 | Q47: = | R47: =P47/kg.MT*N20GWP*C_CO2 -> 0 | S47: = | T47: =R47/10^6 -> 0 | U47: = | V47: =T47/C_CO2 -> 0
A48: =$A$14 -> 20 | B48: 1991 | C48: =$C$14 -> Market 60-119 lbs | D48: ='CH4 from Manure Management'!D61 -> 0 | F48: =D48*'CH4 from Manure Management'!$F61*(IF(NEx_marketswine60to119=Control!$F$115,INDEX(NEx_marketswine60to119_2,MATCH($B48,'TAM and NEx Rates'!$BA$2:$BA$33,0)),NEx_marketswine60to119))*days_yr -> 0 | H48: =F48*(1-VolPercent)*((VLOOKUP($B48&State,manure_swine,4,FALSE))+(VLOOKUP($B48&State,manure_swine,5,FALSE))+(VLOOKUP($B48&State,manure_swine,6,FALSE))) -> 0 | J48: =F48*(1-VolPercent)*(VLOOKUP($B48&State,manure_swine,3,FALSE)) -> 0 | L48: =H48*LiquidEF -> 0 | M48: + | N48: =J48*SolidEF -> 0 | O48: = | P48: =(L48+N48)*N2O_N2 -> 0 | Q48: = | R48: =P48/kg.MT*N20GWP*C_CO2 -> 0 | S48: = | T48: =R48/10^6 -> 0 | U48: = | V48: =T48/C_CO2 -> 0
A49: =$A$15 -> 21 | B49: 1991 | C49: =$C$15 -> Market 120-179 lbs | D49: ='CH4 from Manure Management'!D62 -> 0 | F49: =D49*'CH4 from Manure Management'!$F62*(IF(NEx_marketswine120to179=Control!$F$116,INDEX(NEx_marketswine120to179_2,MATCH($B49,'TAM and NEx Rates'!$BA$2:$BA$33,0)),NEx_marketswine120to179))*days_yr -> 0 | H49: =F49*(1-VolPercent)*((VLOOKUP($B49&State,manure_swine,4,FALSE))+(VLOOKUP($B49&State,manure_swine,5,FALSE))+(VLOOKUP($B49&State,manure_swine,6,FALSE))) -> 0 | J49: =F49*(1-VolPercent)*(VLOOKUP($B49&State,manure_swine,3,FALSE)) -> 0 | L49: =H49*LiquidEF -> 0 | M49: + | N49: =J49*SolidEF -> 0 | O49: = | P49: =(L49+N49)*N2O_N2 -> 0 | Q49: = | R49: =P49/kg.MT*N20GWP*C_CO2 -> 0 | S49: = | T49: =R49/10^6 -> 0 | U49: = | V49: =T49/C_CO2 -> 0
A50: =$A$16 -> 22 | B50: 1991 | C50: =$C$16 -> Market over 180 lbs | D50: ='CH4 from Manure Management'!D63 -> 0 | F50: =D50*'CH4 from Manure Management'!$F63*(IF(NEx_marketswine_over180=Control!$F$117,INDEX(NEx_marketswine_over180_2,MATCH($B50,'TAM and NEx Rates'!$BA$2:$BA$33,0)),NEx_marketswine_over180))*days_yr -> 0 | H50: =F50*(1-VolPercent)*((VLOOKUP($B50&State,manure_swine,4,FALSE))+(VLOOKUP($B50&State,manure_swine,5,FALSE))+(VLOOKUP($B50&State,manure_swine,6,FALSE))) -> 0 | J50: =F50*(1-VolPercent)*(VLOOKUP($B50&State,manure_swine,3,FALSE)) -> 0 | L50: =H50*LiquidEF -> 0 | M50: + | N50: =J50*SolidEF -> 0 | O50: = | P50: =(L50+N50)*N2O_N2 -> 0 | Q50: = | R50: =P50/kg.MT*N20GWP*C_CO2 -> 0 | S50: = | T50: =R50/10^6 -> 0 | U50: = | V50: =T50/C_CO2 -> 0
A51: =$A$17 -> 0 | B51: 1991 | C51: =$C$17 -> Poultry
A52: =$A$18 -> 0 | B52: 1991 | C52: =$C$18 -> Layers
A53: =$A$19 -> 23 | B53: 1991 | C53: =$C$19 -> Hens > 1 yr | D53: ='CH4 from Manure Management'!D66 -> 0 | F53: =D53*'CH4 from Manure Management'!$F66*(IF(NEx_hens=Control!$F$120,INDEX(NEx_hens2,MATCH($B53,'TAM and NEx Rates'!$BA$2:$BA$33,0)),NEx_hens))*days_yr -> 0 | H53: =F53*(1-VolPercent)*((VLOOKUP($B53&State,mms_layers,3,FALSE))+(VLOOKUP($B53&State,mms_layers,4,FALSE))) -> 0 | J53: =F53*(1-VolPercent)*((VLOOKUP($B53&State,mms_layers,2,FALSE))+(VLOOKUP($B53&State,mms_layers,5,FALSE))) -> 0 | L53: =H53*LiquidEF -> 0 | M53: + | N53: =F53*(1-VolPercent)*(SolidEF*(VLOOKUP($B53&State,mms_layers,2,FALSE))+nobedEF*(VLOOKUP($B53&State,mms_layers,5,FALSE))) -> 0 | O53: = | P53: =(L53+N53)*N2O_N2 -> 0 | Q53: = | R53: =P53/kg.MT*N20GWP*C_CO2 -> 0 | S53: = | T53: =R53/10^6 -> 0 | U53: = | V53: =T53/C_CO2 -> 0
A54: =$A$20 -> 24 | B54: 1991 | C54: =$C$20 -> Pullets | D54: ='CH4 from Manure Management'!D67 -> 0 | F54: =D54*'CH4 from Manure Management'!$F67*(IF(NEx_pullets=Control!$F$121,INDEX(NEx_pullets2,MATCH($B54,'TAM and NEx Rates'!$BA$2:$BA$33,0)),NEx_pullets))*days_yr -> 0 | H54: =F54*(1-VolPercent)*((VLOOKUP($B54&State,mms_layers,3,FALSE))+(VLOOKUP($B54&State,mms_layers,4,FALSE))) -> 0 | J54: =F54*(1-VolPercent)*((VLOOKUP($B54&State,mms_layers,2,FALSE))+(VLOOKUP($B54&State,mms_layers,5,FALSE))) -> 0 | L54: =H54*LiquidEF -> 0 | M54: + | N54: =F54*(1-VolPercent)*(SolidEF*(VLOOKUP($B54&State,mms_layers,2,FALSE))+nobedEF*(VLOOKUP($B54&State,mms_layers,5,FALSE))) -> 0 | O54: = | P54: =(L54+N54)*N2O_N2 -> 0 | Q54: = | R54: =P54/kg.MT*N20GWP*C_CO2 -> 0 | S54: = | T54: =R54/10^6 -> 0 | U54: = | V54: =T54/C_CO2 -> 0
A55: =$A$21 -> 25 | B55: 1991 | C55: =$C$21 -> Chickens | D55: ='CH4 from Manure Management'!D68 -> 0 | F55: =D55*'CH4 from Manure Management'!$F68*(IF(NEx_chickens=Control!$F$122,INDEX(NEx_chickens2,MATCH($B55,'TAM and NEx Rates'!$BA$2:$BA$33,0)),NEx_chickens))*days_yr -> 0 | H55: =F55*(1-VolPercent)*((VLOOKUP($B55&State,mms_layers,3,FALSE))+(VLOOKUP($B55&State,mms_layers,4,FALSE))) -> 0 | J55: =F55*(1-VolPercent)*((VLOOKUP($B55&State,mms_layers,2,FALSE))+(VLOOKUP($B55&State,mms_layers,5,FALSE))) -> 0 | L55: =H55*LiquidEF -> 0 | M55: + | N55: =F55*(1-VolPercent)*(SolidEF*(VLOOKUP($B55&State,mms_layers,2,FALSE))+nobedEF*(VLOOKUP($B55&State,mms_layers,5,FALSE))) -> 0 | O55: = | P55: =(L55+N55)*N2O_N2 -> 0 | Q55: = | R55: =P55/kg.MT*N20GWP*C_CO2 -> 0 | S55: = | T55: =R55/10^6 -> 0 | U55: = | V55: =T55/C_CO2 -> 0
A56: =$A$22 -> 26 | B56: 1991 | C56: =$C$22 -> Broilers | D56: ='CH4 from Manure Management'!D69 -> 0 | F56: =D56*'CH4 from Manure Management'!$F69*(IF(NEx_broilers=Control!$F$123,INDEX(NEx_broilers2,MATCH($B56,'TAM and NEx Rates'!$BA$2:$BA$33,0)),NEx_broilers))*days_yr -> 0 | H56: NA | J56: =F56*(1-VolPercent)*((VLOOKUP(State,manure_broilers,2,FALSE))) -> 0 | L56: NA | M56: + | N56: =J56*SolidEF -> 0 | O56: = | P56: =(N56)*N2O_N2 -> 0 | Q56: = | R56: =P56/kg.MT*N20GWP*C_CO2 -> 0 | S56: = | T56: =R56/10^6 -> 0 | U56: = | V56: =T56/C_CO2 -> 0
A57: =$A$23 -> 27 | B57: 1991 | C57: =$C$23 -> Turkeys | D57: ='CH4 from Manure Management'!D70 -> 0 | F57: =D57*'CH4 from Manure Management'!$F70*(IF(NEx_turkeys=Control!$F$124,INDEX(NEx_turkeys2,MATCH($B57,'TAM and NEx Rates'!$BA$2:$BA$33,0)),NEx_turkeys))*days_yr -> 0 | H57: NA | J57: =F57*(1-VolPercent)*((VLOOKUP(State,manure_broilers,2,FALSE))) -> 0 | L57: NA | M57: + | N57: =J57*SolidEF -> 0 | O57: = | P57: =(N57)*N2O_N2 -> 0 | Q57: = | R57: =P57/kg.MT*N20GWP*C_CO2 -> 0 | S57: = | T57: =R57/10^6 -> 0 | U57: = | V57: =T57/C_CO2 -> 0
A58: =$A$24 -> 0 | B58: 1991 | C58: =$C$24 -> Other
A59: =$A$25 -> 29 | B59: 1991 | C59: =$C$25 -> Sheep on Feed | D59: ='CH4 from Manure Management'!D72 -> 0 | F59: =D59*'CH4 from Manure Management'!$F72*(IF(NEx_sheepOF=Control!$F$126,INDEX(NEx_sheep,MATCH($B59,'TAM and NEx Rates'!$BA$2:$BA$33,0)),NEx_sheepOF))*days_yr -> 0 | H59: NA | J59: =F59*(1-VolPercent)*(1-VLOOKUP(State,manure_sheep,2,FALSE)) -> 0 | L59: NA | M59: + | N59: =J59*SolidEF -> 0 | O59: = | P59: =N59*N2O_N2 -> 0 | Q59: = | R59: =P59/kg.MT*N20GWP*C_CO2 -> 0 | S59: = | T59: =R59/10^6 -> 0 | U59: = | V59: =T59/C_CO2 -> 0
A60: =$A$26 -> 30 | B60: 1991 | C60: =$C$26 -> Sheep Not on Feed | D60: ='CH4 from Manure Management'!D73 -> 0 | F60: =D60*'CH4 from Manure Management'!$F73*(IF(NEx_sheepNOF=Control!$F$127,INDEX(NEx_sheep,MATCH($B60,'TAM and NEx Rates'!$BA$2:$BA$33,0)),NEx_sheepNOF))*days_yr -> 0 | H60: NA | J60: =F60*(1-VolPercent)*(1-VLOOKUP(State,manure_sheep,3,FALSE)) -> 0 | L60: NA | M60: + | N60: =J60*SolidEF -> 0 | O60: = | P60: =N60*N2O_N2 -> 0 | Q60: = | R60: =P60/kg.MT*N20GWP*C_CO2 -> 0 | S60: = | T60: =R60/10^6 -> 0 | U60: = | V60: =T60/C_CO2 -> 0
C61: =$C$27 -> TOTAL | F61: =SUM(F40:F60) -> 0 | H61: =SUM(H40:H60) -> 0 | J61: =SUM(J40:J60) -> 0 | L61: =SUM(L40:L60) -> 0 | N61: =SUM(N40:N60) -> 0 | P61: =SUM(P40:P60) -> 0 | R61: =SUM(R40:R60) -> 0 | T61: =R61/10^6 -> 0 | V61: =T61/C_CO2 -> 0
C63: 1
C64: 2
C65: 3
C66: 4
C67: 5
C68: 6
C69: 7
C70: 8
C71: N2O from Manure Management | H71: 1992
D72: Number of Animals ('000 head) | F72: Total K-Nitrogen Excreted (kg) | H72: Unvolatilized N from Manure in Anaerobic Lagoons and Liquid Systems (kg) | J72: Unvolatilized N from Manure in Solid Storage, Drylot & Other Systems (kg) | L72: Emissions from Anaerobic Lagoons and Liquid Systems (kg N2O-N) | N72: Emissions from Solid Storage, Drylot, & Other Systems (kg N2O-N) | P72: Total N2O Emissions (kg N2O) | R72: Emissions (MTCE) | T72: Emissions (MMTCE) | V72: Emissions (MMTCO2E)
C73: Dairy
A74: =$A$6 -> 2 | B74: =H71 -> 1992 | C74: =$C$6 -> Dairy Cows | D74: ='CH4 from Manure Management'!D88 -> 0 | F74: =D74*1000*(IF(NEx_DairyCow=Control!$F$102,INDEX(NEx_DairyCow2,MATCH(State,NEx_DairyCow3,0),MATCH($B74,'TAM and NEx Rates'!$N$2:$AT$2,0)),NEx_DairyCow)) -> 0 | H74: =F74*(1-VolPercent)*((VLOOKUP($B74&State,mms_dairy,2,FALSE))+(VLOOKUP($B74&State,mms_dairy,3,FALSE))) -> 0 | J74: =F74*(1-VolPercent)*((VLOOKUP($B74&State,mms_dairy,5,FALSE))+(VLOOKUP($B74&State,mms_dairy,7,FALSE))) -> 0 | L74: =H74*LiquidEF -> 0 | M74: + | N74: =J74*SolidEF -> 0 | O74: = | P74: =(L74+N74)*N2O_N2 -> 0 | Q74: = | R74: =P74/kg.MT*N20GWP*C_CO2 -> 0 | S74: = | T74: =R74/10^6 -> 0 | U74: = | V74: =T74/C_CO2 -> 0
A75: =$A$7 -> 3 | B75: =B74 -> 1992 | C75: =$C$7 -> Dairy Replacement Heifers | D75: ='CH4 from Manure Management'!D89 -> 0 | F75: =D75*1000*(IF(NEx_DairyHeifer=Control!$F$103,INDEX(NEx_DairyHeifer2,MATCH(State,NEx_DairyHeifer3,0),MATCH($B75,'TAM and NEx Rates'!$N$2:$AT$2,0)),NEx_DairyHeifer)) -> 0 | H75: =F75*(1-VolPercent)*((VLOOKUP($B75&State,mms_dairy,2,FALSE))+(VLOOKUP($B75&State,mms_dairy,3,FALSE))) -> 0 | J75: =F75*(1-VolPercent)*(VLOOKUP(H71&State,manure_dairyheifers,2,FALSE)) -> 0 | L75: =H75*LiquidEF -> 0 | M75: + | N75: =J75*SolidEF -> 0 | O75: = | P75: =(N75)*N2O_N2 -> 0 | Q75: = | R75: =P75/kg.MT*N20GWP*C_CO2 -> 0 | S75: = | T75: =R75/10^6 -> 0 | U75: = | V75: =T75/C_CO2 -> 0
A76: =$A$8 -> 0 | B76: =B75 -> 1992 | C76: =$C$8 -> Beef Cattle
A77: =$A$9 -> 15 | B77: 1992 | C77: =$C$9 -> Feedlot Heifers | D77: ='CH4 from Manure Management'!D91 -> 0 | F77: =D77*1000*(IF(NEx_feedheifer=Control!$F$105,INDEX(NEx_feedheifer2,MATCH(State,NEx_feedheifer3,0),MATCH($B77,'TAM and NEx Rates'!$N$2:$AT$2,0)),NEx_feedheifer)) -> 0 | H77: NA | J77: =F77*(1-VolPercent)*(VLOOKUP(State,manure_feedlotbeef,2,FALSE)) -> 0 | L77: NA | M77: + | N77: =J77*SolidEF -> 0 | O77: = | P77: =(N77)*N2O_N2 -> 0 | Q77: = | R77: =P77/kg.MT*N20GWP*C_CO2 -> 0 | S77: = | T77: =R77/10^6 -> 0 | U77: = | V77: =T77/C_CO2 -> 0
A78: =$A$10 -> 16 | B78: 1992 | C78: =$C$10 -> Feedlot Steer | D78: ='CH4 from Manure Management'!D92 -> 0 | F78: =D78*1000*(IF(NEx_feedsteer=Control!$F$106,INDEX(NEx_feedsteer2,MATCH(State,NEx_feedsteer3,0),MATCH($B78,'TAM and NEx Rates'!$N$2:$AT$2,0)),NEx_feedsteer)) -> 0 | H78: NA | J78: =F78*(1-VolPercent)*(VLOOKUP(State,manure_feedlotbeef,2,FALSE)) -> 0 | L78: NA | M78: + | N78: =J78*SolidEF -> 0 | O78: = | P78: =(N78)*N2O_N2 -> 0 | Q78: = | R78: =P78/kg.MT*N20GWP*C_CO2 -> 0 | S78: = | T78: =R78/10^6 -> 0 | U78: = | V78: =T78/C_CO2 -> 0
A79: =$A$11 -> 0 | B79: 1992 | C79: =$C$11 -> Swine
A80: =$A$12 -> 18 | B80: 1992 | C80: =$C$12 -> Breeding Swine | D80: ='CH4 from Manure Management'!D100 -> 0 | F80: =D80*'CH4 from Manure Management'!$F100*(IF(NEx_breedswine=Control!$F$113,INDEX(NEx_breedswine2,MATCH($B78,'TAM and NEx Rates'!$BA$2:$BA$33,0)),NEx_breedswine))*days_yr -> 0 | H80: =F80*(1-VolPercent)*((VLOOKUP($B80&State,manure_swine,4,FALSE))+(VLOOKUP($B80&State,manure_swine,5,FALSE))+(VLOOKUP($B80&State,manure_swine,6,FALSE))) -> 0 | J80: =F80*(1-VolPercent)*(VLOOKUP($B80&State,manure_swine,3,FALSE)) -> 0 | L80: =H80*LiquidEF -> 0 | M80: + | N80: =J80*SolidEF -> 0 | O80: = | P80: =(L80+N80)*N2O_N2 -> 0 | Q80: = | R80: =P80/kg.MT*N20GWP*C_CO2 -> 0 | S80: = | T80: =R80/10^6 -> 0 | U80: = | V80: =T80/C_CO2 -> 0
A81: =$A$13 -> 19 | B81: 1992 | C81: =$C$13 -> Market Under 60 lbs | D81: ='CH4 from Manure Management'!D101 -> 0 | F81: =D81*'CH4 from Manure Management'!$F101*(IF(NEx_marketswine_under60=Control!$F$114,INDEX(NEx_marketswine_under60_2,MATCH($B79,'TAM and NEx Rates'!$BA$2:$BA$33,0)),NEx_marketswine_under60))*days_yr -> 0 | H81: =F81*(1-VolPercent)*((VLOOKUP($B81&State,manure_swine,4,FALSE))+(VLOOKUP($B81&State,manure_swine,5,FALSE))+(VLOOKUP($B81&State,manure_swine,6,FALSE))) -> 0 | J81: =F81*(1-VolPercent)*(VLOOKUP($B81&State,manure_swine,3,FALSE)) -> 0 | L81: =H81*LiquidEF -> 0 | M81: + | N81: =J81*SolidEF -> 0 | O81: = | P81: =(L81+N81)*N2O_N2 -> 0 | Q81: = | R81: =P81/kg.MT*N20GWP*C_CO2 -> 0 | S81: = | T81: =R81/10^6 -> 0 | U81: = | V81: =T81/C_CO2 -> 0
A82: =$A$14 -> 20 | B82: 1992 | C82: =$C$14 -> Market 60-119 lbs | D82: ='CH4 from Manure Management'!D102 -> 0 | F82: =D82*'CH4 from Manure Management'!$F102*(IF(NEx_marketswine60to119=Control!$F$115,INDEX(NEx_marketswine60to119_2,MATCH($B80,'TAM and NEx Rates'!$BA$2:$BA$33,0)),NEx_marketswine60to119))*days_yr -> 0 | H82: =F82*(1-VolPercent)*((VLOOKUP($B82&State,manure_swine,4,FALSE))+(VLOOKUP($B82&State,manure_swine,5,FALSE))+(VLOOKUP($B82&State,manure_swine,6,FALSE))) -> 0 | J82: =F82*(1-VolPercent)*(VLOOKUP($B82&State,manure_swine,3,FALSE)) -> 0 | L82: =H82*LiquidEF -> 0 | M82: + | N82: =J82*SolidEF -> 0 | O82: = | P82: =(L82+N82)*N2O_N2 -> 0 | Q82: = | R82: =P82/kg.MT*N20GWP*C_CO2 -> 0 | S82: = | T82: =R82/10^6 -> 0 | U82: = | V82: =T82/C_CO2 -> 0
A83: =$A$15 -> 21 | B83: 1992 | C83: =$C$15 -> Market 120-179 lbs | D83: ='CH4 from Manure Management'!D103 -> 0 | F83: =D83*'CH4 from Manure Management'!$F103*(IF(NEx_marketswine120to179=Control!$F$116,INDEX(NEx_marketswine120to179_2,MATCH($B81,'TAM and NEx Rates'!$BA$2:$BA$33,0)),NEx_marketswine120to179))*days_yr -> 0 | H83: =F83*(1-VolPercent)*((VLOOKUP($B83&State,manure_swine,4,FALSE))+(VLOOKUP($B83&State,manure_swine,5,FALSE))+(VLOOKUP($B83&State,manure_swine,6,FALSE))) -> 0 | J83: =F83*(1-VolPercent)*(VLOOKUP($B83&State,manure_swine,3,FALSE)) -> 0 | L83: =H83*LiquidEF -> 0 | M83: + | N83: =J83*SolidEF -> 0 | O83: = | P83: =(L83+N83)*N2O_N2 -> 0 | Q83: = | R83: =P83/kg.MT*N20GWP*C_CO2 -> 0 | S83: = | T83: =R83/10^6 -> 0 | U83: = | V83: =T83/C_CO2 -> 0
A84: =$A$16 -> 22 | B84: 1992 | C84: =$C$16 -> Market over 180 lbs | D84: ='CH4 from Manure Management'!D104 -> 0 | F84: =D84*'CH4 from Manure Management'!$F104*(IF(NEx_marketswine_over180=Control!$F$117,INDEX(NEx_marketswine_over180_2,MATCH($B82,'TAM and NEx Rates'!$BA$2:$BA$33,0)),NEx_marketswine_over180))*days_yr -> 0 | H84: =F84*(1-VolPercent)*((VLOOKUP($B84&State,manure_swine,4,FALSE))+(VLOOKUP($B84&State,manure_swine,5,FALSE))+(VLOOKUP($B84&State,manure_swine,6,FALSE))) -> 0 | J84: =F84*(1-VolPercent)*(VLOOKUP($B84&State,manure_swine,3,FALSE)) -> 0 | L84: =H84*LiquidEF -> 0 | M84: + | N84: =J84*SolidEF -> 0 | O84: = | P84: =(L84+N84)*N2O_N2 -> 0 | Q84: = | R84: =P84/kg.MT*N20GWP*C_CO2 -> 0 | S84: = | T84: =R84/10^6 -> 0 | U84: = | V84: =T84/C_CO2 -> 0
A85: =$A$17 -> 0 | B85: 1992 | C85: =$C$17 -> Poultry
A86: =$A$18 -> 0 | B86: 1992 | C86: =$C$18 -> Layers
A87: =$A$19 -> 23 | B87: 1992 | C87: =$C$19 -> Hens > 1 yr | D87: ='CH4 from Manure Management'!D107 -> 0 | F87: =D87*'CH4 from Manure Management'!$F107*(IF(NEx_hens=Control!$F$120,INDEX(NEx_hens2,MATCH($B85,'TAM and NEx Rates'!$BA$2:$BA$33,0)),NEx_hens))*days_yr -> 0 | H87: =F87*(1-VolPercent)*((VLOOKUP($B87&State,mms_layers,3,FALSE))+(VLOOKUP($B87&State,mms_layers,4,FALSE))) -> 0 | J87: =F87*(1-VolPercent)*((VLOOKUP($B87&State,mms_layers,2,FALSE))+(VLOOKUP($B87&State,mms_layers,5,FALSE))) -> 0 | L87: =H87*LiquidEF -> 0 | M87: + | N87: =F87*(1-VolPercent)*(SolidEF*(VLOOKUP($B87&State,mms_layers,2,FALSE))+nobedEF*(VLOOKUP($B87&State,mms_layers,5,FALSE))) -> 0 | O87: = | P87: =(L87+N87)*N2O_N2 -> 0 | Q87: = | R87: =P87/kg.MT*N20GWP*C_CO2 -> 0 | S87: = | T87: =R87/10^6 -> 0 | U87: = | V87: =T87/C_CO2 -> 0
A88: =$A$20 -> 24 | B88: 1992 | C88: =$C$20 -> Pullets | D88: ='CH4 from Manure Management'!D108 -> 0 | F88: =D88*'CH4 from Manure Management'!$F108*(IF(NEx_pullets=Control!$F$121,INDEX(NEx_pullets2,MATCH($B86,'TAM and NEx Rates'!$BA$2:$BA$33,0)),NEx_pullets))*days_yr -> 0 | H88: =F88*(1-VolPercent)*((VLOOKUP($B88&State,mms_layers,3,FALSE))+(VLOOKUP($B88&State,mms_layers,4,FALSE))) -> 0 | J88: =F88*(1-VolPercent)*((VLOOKUP($B88&State,mms_layers,2,FALSE))+(VLOOKUP($B88&State,mms_layers,5,FALSE))) -> 0 | L88: =H88*LiquidEF -> 0 | M88: + | N88: =F88*(1-VolPercent)*(SolidEF*(VLOOKUP($B88&State,mms_layers,2,FALSE))+nobedEF*(VLOOKUP($B88&State,mms_layers,5,FALSE))) -> 0 | O88: = | P88: =(L88+N88)*N2O_N2 -> 0 | Q88: = | R88: =P88/kg.MT*N20GWP*C_CO2 -> 0 | S88: = | T88: =R88/10^6 -> 0 | U88: = | V88: =T88/C_CO2 -> 0
A89: =$A$21 -> 25 | B89: 1992 | C89: =$C$21 -> Chickens | D89: ='CH4 from Manure Management'!D109 -> 0 | F89: =D89*'CH4 from Manure Management'!$F109*(IF(NEx_chickens=Control!$F$122,INDEX(NEx_chickens2,MATCH($B87,'TAM and NEx Rates'!$BA$2:$BA$33,0)),NEx_chickens))*days_yr -> 0 | H89: =F89*(1-VolPercent)*((VLOOKUP($B89&State,mms_layers,3,FALSE))+(VLOOKUP($B89&State,mms_layers,4,FALSE))) -> 0 | J89: =F89*(1-VolPercent)*((VLOOKUP($B89&State,mms_layers,2,FALSE))+(VLOOKUP($B89&State,mms_layers,5,FALSE))) -> 0 | L89: =H89*LiquidEF -> 0 | M89: + | N89: =F89*(1-VolPercent)*(SolidEF*(VLOOKUP($B89&State,mms_layers,2,FALSE))+nobedEF*(VLOOKUP($B89&State,mms_layers,5,FALSE))) -> 0 | O89: = | P89: =(L89+N89)*N2O_N2 -> 0 | Q89: = | R89: =P89/kg.MT*N20GWP*C_CO2 -> 0 | S89: = | T89: =R89/10^6 -> 0 | U89: = | V89: =T89/C_CO2 -> 0
A90: =$A$22 -> 26 | B90: 1992 | C90: =$C$22 -> Broilers | D90: ='CH4 from Manure Management'!D110 -> 0 | F90: =D90*'CH4 from Manure Management'!$F110*(IF(NEx_broilers=Control!$F$123,INDEX(NEx_broilers2,MATCH($B88,'TAM and NEx Rates'!$BA$2:$BA$33,0)),NEx_broilers))*days_yr -> 0 | H90: NA | J90: =F90*(1-VolPercent)*((VLOOKUP(State,manure_broilers,2,FALSE))) -> 0 | L90: NA | M90: + | N90: =J90*SolidEF -> 0 | O90: = | P90: =(N90)*N2O_N2 -> 0 | Q90: = | R90: =P90/kg.MT*N20GWP*C_CO2 -> 0 | S90: = | T90: =R90/10^6 -> 0 | U90: = | V90: =T90/C_CO2 -> 0
A91: =$A$23 -> 27 | B91: 1992 | C91: =$C$23 -> Turkeys | D91: ='CH4 from Manure Management'!D111 -> 0 | F91: =D91*'CH4 from Manure Management'!$F111*(IF(NEx_turkeys=Control!$F$124,INDEX(NEx_turkeys2,MATCH($B89,'TAM and NEx Rates'!$BA$2:$BA$33,0)),NEx_turkeys))*days_yr -> 0 | H91: NA | J91: =F91*(1-VolPercent)*((VLOOKUP(State,manure_broilers,2,FALSE))) -> 0 | L91: NA | M91: + | N91: =J91*SolidEF -> 0 | O91: = | P91: =(N91)*N2O_N2 -> 0 | Q91: = | R91: =P91/kg.MT*N20GWP*C_CO2 -> 0 | S91: = | T91: =R91/10^6 -> 0 | U91: = | V91: =T91/C_CO2 -> 0
A92: =$A$24 -> 0 | B92: 1992 | C92: =$C$24 -> Other
A93: =$A$25 -> 29 | B93: 1992 | C93: =$C$25 -> Sheep on Feed | D93: ='CH4 from Manure Management'!D113 -> 0 | F93: =D93*'CH4 from Manure Management'!$F113*(IF(NEx_sheepOF=Control!$F$126,INDEX(NEx_sheep,MATCH($B91,'TAM and NEx Rates'!$BA$2:$BA$33,0)),NEx_sheepOF))*days_yr -> 0 | H93: NA | J93: =F93*(1-VolPercent)*(1-VLOOKUP(State,manure_sheep,2,FALSE)) -> 0 | L93: NA | M93: + | N93: =J93*SolidEF -> 0 | O93: = | P93: =N93*N2O_N2 -> 0 | Q93: = | R93: =P93/kg.MT*N20GWP*C_CO2 -> 0 | S93: = | T93: =R93/10^6 -> 0 | U93: = | V93: =T93/C_CO2 -> 0
A94: =$A$26 -> 30 | B94: 1992 | C94: =$C$26 -> Sheep Not on Feed | D94: ='CH4 from Manure Management'!D114 -> 0 | F94: =D94*'CH4 from Manure Management'!$F114*(IF(NEx_sheepNOF=Control!$F$127,INDEX(NEx_sheep,MATCH($B92,'TAM and NEx Rates'!$BA$2:$BA$33,0)),NEx_sheepNOF))*days_yr -> 0 | H94: NA | J94: =F94*(1-VolPercent)*(1-VLOOKUP(State,manure_sheep,3,FALSE)) -> 0 | L94: NA | M94: + | N94: =J94*SolidEF -> 0 | O94: = | P94: =N94*N2O_N2 -> 0 | Q94: = | R94: =P94/kg.MT*N20GWP*C_CO2 -> 0 | S94: = | T94: =R94/10^6 -> 0 | U94: = | V94: =T94/C_CO2 -> 0
C95: =$C$27 -> TOTAL | F95: =SUM(F74:F94) -> 0 | H95: =SUM(H74:H94) -> 0 | J95: =SUM(J74:J94) -> 0 | L95: =SUM(L74:L94) -> 0 | N95: =SUM(N74:N94) -> 0 | P95: =SUM(P74:P94) -> 0 | R95: =SUM(R74:R94) -> 0 | T95: =R95/10^6 -> 0 | V95: =T95/C_CO2 -> 0
C97: 1
C98: 2
C99: 3
C100: 4
C101: 5
C102: 6
C103: 7
C104: 8
C105: N2O from Manure Management | H105: 1993
D106: Number of Animals ('000 head) | F106: Total K-Nitrogen Excreted (kg) | H106: Unvolatilized N from Manure in Anaerobic Lagoons and Liquid Systems (kg) | J106: Unvolatilized N from Manure in Solid Storage, Drylot & Other Systems (kg) | L106: Emissions from Anaerobic Lagoons and Liquid Systems (kg N2O-N) | N106: Emissions from Solid Storage, Drylot, & Other Systems (kg N2O-N) | P106: Total N2O Emissions (kg N2O) | R106: Emissions (MTCE) | T106: Emissions (MMTCE) | V106: Emissions (MMTCO2E)
C107: Dairy
A108: =$A$6 -> 2 | B108: =H105 -> 1993 | C108: =$C$6 -> Dairy Cows | D108: ='CH4 from Manure Management'!D129 -> 0 | F108: =D108*1000*(IF(NEx_DairyCow=Control!$F$102,INDEX(NEx_DairyCow2,MATCH(State,NEx_DairyCow3,0),MATCH($B108,'TAM and NEx Rates'!$N$2:$AT$2,0)),NEx_DairyCow)) -> 0 | H108: =F108*(1-VolPercent)*((VLOOKUP($B108&State,mms_dairy,2,FALSE))+(VLOOKUP($B108&State,mms_dairy,3,FALSE))) -> 0 | J108: =F108*(1-VolPercent)*((VLOOKUP($B108&State,mms_dairy,5,FALSE))+(VLOOKUP($B108&State,mms_dairy,7,FALSE))) -> 0 | L108: =H108*LiquidEF -> 0 | M108: + | N108: =J108*SolidEF -> 0 | O108: = | P108: =(L108+N108)*N2O_N2 -> 0 | Q108: = | R108: =P108/kg.MT*N20GWP*C_CO2 -> 0 | S108: = | T108: =R108/10^6 -> 0 | U108: = | V108: =T108/C_CO2 -> 0
A109: =$A$7 -> 3 | B109: =B108 -> 1993 | C109: =$C$7 -> Dairy Replacement Heifers | D109: ='CH4 from Manure Management'!D130 -> 0 | F109: =D109*1000*(IF(NEx_DairyHeifer=Control!$F$103,INDEX(NEx_DairyHeifer2,MATCH(State,NEx_DairyHeifer3,0),MATCH($B109,'TAM and NEx Rates'!$N$2:$AT$2,0)),NEx_DairyHeifer)) -> 0 | H109: =F109*(1-VolPercent)*((VLOOKUP($B109&State,mms_dairy,2,FALSE))+(VLOOKUP($B109&State,mms_dairy,3,FALSE))) -> 0 | J109: =F109*(1-VolPercent)*(VLOOKUP(H105&State,manure_dairyheifers,2,FALSE)) -> 0 | L109: =H109*LiquidEF -> 0 | M109: + | N109: =J109*SolidEF -> 0 | O109: = | P109: =(N109)*N2O_N2 -> 0 | Q109: = | R109: =P109/kg.MT*N20GWP*C_CO2 -> 0 | S109: = | T109: =R109/10^6 -> 0 | U109: = | V109: =T109/C_CO2 -> 0
A110: =$A$8 -> 0 | B110: =B109 -> 1993 | C110: =$C$8 -> Beef Cattle
A111: =$A$9 -> 15 | B111: 1993 | C111: =$C$9 -> Feedlot Heifers | D111: ='CH4 from Manure Management'!D132 -> 0 | F111: =D111*1000*(IF(NEx_feedheifer=Control!$F$105,INDEX(NEx_feedheifer2,MATCH(State,NEx_feedheifer3,0),MATCH($B111,'TAM and NEx Rates'!$N$2:$AT$2,0)),NEx_feedheifer)) -> 0 | H111: NA | J111: =F111*(1-VolPercent)*(VLOOKUP(State,manure_feedlotbeef,2,FALSE)) -> 0 | L111: NA | M111: + | N111: =J111*SolidEF -> 0 | O111: = | P111: =(N111)*N2O_N2 -> 0 | Q111: = | R111: =P111/kg.MT*N20GWP*C_CO2 -> 0 | S111: = | T111: =R111/10^6 -> 0 | U111: = | V111: =T111/C_CO2 -> 0
A112: =$A$10 -> 16 | B112: 1993 | C112: =$C$10 -> Feedlot Steer | D112: ='CH4 from Manure Management'!D133 -> 0 | F112: =D112*1000*(IF(NEx_feedsteer=Control!$F$106,INDEX(NEx_feedsteer2,MATCH(State,NEx_feedsteer3,0),MATCH($B112,'TAM and NEx Rates'!$N$2:$AT$2,0)),NEx_feedsteer)) -> 0 | H112: NA | J112: =F112*(1-VolPercent)*(VLOOKUP(State,manure_feedlotbeef,2,FALSE)) -> 0 | L112: NA | M112: + | N112: =J112*SolidEF -> 0 | O112: = | P112: =(N112)*N2O_N2 -> 0 | Q112: = | R112: =P112/kg.MT*N20GWP*C_CO2 -> 0 | S112: = | T112: =R112/10^6 -> 0 | U112: = | V112: =T112/C_CO2 -> 0
A113: =$A$11 -> 0 | B113: 1993 | C113: =$C$11 -> Swine
A114: =$A$12 -> 18 | B114: 1993 | C114: =$C$12 -> Breeding Swine | D114: ='CH4 from Manure Management'!D141 -> 0 | F114: =D114*'CH4 from Manure Management'!$F141*(IF(NEx_breedswine=Control!$F$113,INDEX(NEx_breedswine2,MATCH($B112,'TAM and NEx Rates'!$BA$2:$BA$33,0)),NEx_breedswine))*days_yr -> 0 | H114: =F114*(1-VolPercent)*((VLOOKUP($B114&State,manure_swine,4,FALSE))+(VLOOKUP($B114&State,manure_swine,5,FALSE))+(VLOOKUP($B114&State,manure_swine,6,FALSE))) -> 0 | J114: =F114*(1-VolPercent)*(VLOOKUP($B114&State,manure_swine,3,FALSE)) -> 0 | L114: =H114*LiquidEF -> 0 | M114: + | N114: =J114*SolidEF -> 0 | O114: = | P114: =(L114+N114)*N2O_N2 -> 0 | Q114: = | R114: =P114/kg.MT*N20GWP*C_CO2 -> 0 | S114: = | T114: =R114/10^6 -> 0 | U114: = | V114: =T114/C_CO2 -> 0
A115: =$A$13 -> 19 | B115: 1993 | C115: =$C$13 -> Market Under 60 lbs | D115: ='CH4 from Manure Management'!D142 -> 0 | F115: =D115*'CH4 from Manure Management'!$F142*(IF(NEx_marketswine_under60=Control!$F$114,INDEX(NEx_marketswine_under60_2,MATCH($B113,'TAM and NEx Rates'!$BA$2:$BA$33,0)),NEx_marketswine_under60))*days_yr -> 0 | H115: =F115*(1-VolPercent)*((VLOOKUP($B115&State,manure_swine,4,FALSE))+(VLOOKUP($B115&State,manure_swine,5,FALSE))+(VLOOKUP($B115&State,manure_swine,6,FALSE))) -> 0 | J115: =F115*(1-VolPercent)*(VLOOKUP($B115&State,manure_swine,3,FALSE)) -> 0 | L115: =H115*LiquidEF -> 0 | M115: + | N115: =J115*SolidEF -> 0 | O115: = | P115: =(L115+N115)*N2O_N2 -> 0 | Q115: = | R115: =P115/kg.MT*N20GWP*C_CO2 -> 0 | S115: = | T115: =R115/10^6 -> 0 | U115: = | V115: =T115/C_CO2 -> 0
A116: =$A$14 -> 20 | B116: 1993 | C116: =$C$14 -> Market 60-119 lbs | D116: ='CH4 from Manure Management'!D143 -> 0 | F116: =D116*'CH4 from Manure Management'!$F143*(IF(NEx_marketswine60to119=Control!$F$115,INDEX(NEx_marketswine60to119_2,MATCH($B114,'TAM and NEx Rates'!$BA$2:$BA$33,0)),NEx_marketswine60to119))*days_yr -> 0 | H116: =F116*(1-VolPercent)*((VLOOKUP($B116&State,manure_swine,4,FALSE))+(VLOOKUP($B116&State,manure_swine,5,FALSE))+(VLOOKUP($B116&State,manure_swine,6,FALSE))) -> 0 | J116: =F116*(1-VolPercent)*(VLOOKUP($B116&State,manure_swine,3,FALSE)) -> 0 | L116: =H116*LiquidEF -> 0 | M116: + | N116: =J116*SolidEF -> 0 | O116: = | P116: =(L116+N116)*N2O_N2 -> 0 | Q116: = | R116: =P116/kg.MT*N20GWP*C_CO2 -> 0 | S116: = | T116: =R116/10^6 -> 0 | U116: = | V116: =T116/C_CO2 -> 0
A117: =$A$15 -> 21 | B117: 1993 | C117: =$C$15 -> Market 120-179 lbs | D117: ='CH4 from Manure Management'!D144 -> 0 | F117: =D117*'CH4 from Manure Management'!$F144*(IF(NEx_marketswine120to179=Control!$F$116,INDEX(NEx_marketswine120to179_2,MATCH($B115,'TAM and NEx Rates'!$BA$2:$BA$33,0)),NEx_marketswine120to179))*days_yr -> 0 | H117: =F117*(1-VolPercent)*((VLOOKUP($B117&State,manure_swine,4,FALSE))+(VLOOKUP($B117&State,manure_swine,5,FALSE))+(VLOOKUP($B117&State,manure_swine,6,FALSE))) -> 0 | J117: =F117*(1-VolPercent)*(VLOOKUP($B117&State,manure_swine,3,FALSE)) -> 0 | L117: =H117*LiquidEF -> 0 | M117: + | N117: =J117*SolidEF -> 0 | O117: = | P117: =(L117+N117)*N2O_N2 -> 0 | Q117: = | R117: =P117/kg.MT*N20GWP*C_CO2 -> 0 | S117: = | T117: =R117/10^6 -> 0 | U117: = | V117: =T117/C_CO2 -> 0
A118: =$A$16 -> 22 | B118: 1993 | C118: =$C$16 -> Market over 180 lbs | D118: ='CH4 from Manure Management'!D145 -> 0 | F118: =D118*'CH4 from Manure Management'!$F145*(IF(NEx_marketswine_over180=Control!$F$117,INDEX(NEx_marketswine_over180_2,MATCH($B116,'TAM and NEx Rates'!$BA$2:$BA$33,0)),NEx_marketswine_over180))*days_yr -> 0 | H118: =F118*(1-VolPercent)*((VLOOKUP($B118&State,manure_swine,4,FALSE))+(VLOOKUP($B118&State,manure_swine,5,FALSE))+(VLOOKUP($B118&State,manure_swine,6,FALSE))) -> 0 | J118: =F118*(1-VolPercent)*(VLOOKUP($B118&State,manure_swine,3,FALSE)) -> 0 | L118: =H118*LiquidEF -> 0 | M118: + | N118: =J118*SolidEF -> 0 | O118: = | P118: =(L118+N118)*N2O_N2 -> 0 | Q118: = | R118: =P118/kg.MT*N20GWP*C_CO2 -> 0 | S118: = | T118: =R118/10^6 -> 0 | U118: = | V118: =T118/C_CO2 -> 0
A119: =$A$17 -> 0 | B119: 1993 | C119: =$C$17 -> Poultry
A120: =$A$18 -> 0 | B120: 1993 | C120: =$C$18 -> Layers
A121: =$A$19 -> 23 | B121: 1993 | C121: =$C$19 -> Hens > 1 yr | D121: ='CH4 from Manure Management'!D148 -> 0 | F121: =D121*'CH4 from Manure Management'!$F148*(IF(NEx_hens=Control!$F$120,INDEX(NEx_hens2,MATCH($B119,'TAM and NEx Rates'!$BA$2:$BA$33,0)),NEx_hens))*days_yr -> 0 | H121: =F121*(1-VolPercent)*((VLOOKUP($B121&State,mms_layers,3,FALSE))+(VLOOKUP($B121&State,mms_layers,4,FALSE))) -> 0 | J121: =F121*(1-VolPercent)*((VLOOKUP($B121&State,mms_layers,2,FALSE))+(VLOOKUP($B121&State,mms_layers,5,FALSE))) -> 0 | L121: =H121*LiquidEF -> 0 | M121: + | N121: =F121*(1-VolPercent)*(SolidEF*(VLOOKUP($B121&State,mms_layers,2,FALSE))+nobedEF*(VLOOKUP($B121&State,mms_layers,5,FALSE))) -> 0 | O121: = | P121: =(L121+N121)*N2O_N2 -> 0 | Q121: = | R121: =P121/kg.MT*N20GWP*C_CO2 -> 0 | S121: = | T121: =R121/10^6 -> 0 | U121: = | V121: =T121/C_CO2 -> 0
A122: =$A$20 -> 24 | B122: 1993 | C122: =$C$20 -> Pullets | D122: ='CH4 from Manure Management'!D149 -> 0 | F122: =D122*'CH4 from Manure Management'!$F149*(IF(NEx_pullets=Control!$F$121,INDEX(NEx_pullets2,MATCH($B120,'TAM and NEx Rates'!$BA$2:$BA$33,0)),NEx_pullets))*days_yr -> 0 | H122: =F122*(1-VolPercent)*((VLOOKUP($B122&State,mms_layers,3,FALSE))+(VLOOKUP($B122&State,mms_layers,4,FALSE))) -> 0 | J122: =F122*(1-VolPercent)*((VLOOKUP($B122&State,mms_layers,2,FALSE))+(VLOOKUP($B122&State,mms_layers,5,FALSE))) -> 0 | L122: =H122*LiquidEF -> 0 | M122: + | N122: =F122*(1-VolPercent)*(SolidEF*(VLOOKUP($B122&State,mms_layers,2,FALSE))+nobedEF*(VLOOKUP($B122&State,mms_layers,5,FALSE))) -> 0 | O122: = | P122: =(L122+N122)*N2O_N2 -> 0 | Q122: = | R122: =P122/kg.MT*N20GWP*C_CO2 -> 0 | S122: = | T122: =R122/10^6 -> 0 | U122: = | V122: =T122/C_CO2 -> 0
A123: =$A$21 -> 25 | B123: 1993 | C123: =$C$21 -> Chickens | D123: ='CH4 from Manure Management'!D150 -> 0 | F123: =D123*'CH4 from Manure Management'!$F150*(IF(NEx_chickens=Control!$F$122,INDEX(NEx_chickens2,MATCH($B121,'TAM and NEx Rates'!$BA$2:$BA$33,0)),NEx_chickens))*days_yr -> 0 | H123: =F123*(1-VolPercent)*((VLOOKUP($B123&State,mms_layers,3,FALSE))+(VLOOKUP($B123&State,mms_layers,4,FALSE))) -> 0 | J123: =F123*(1-VolPercent)*((VLOOKUP($B123&State,mms_layers,2,FALSE))+(VLOOKUP($B123&State,mms_layers,5,FALSE))) -> 0 | L123: =H123*LiquidEF -> 0 | M123: + | N123: =F123*(1-VolPercent)*(SolidEF*(VLOOKUP($B123&State,mms_layers,2,FALSE))+nobedEF*(VLOOKUP($B123&State,mms_layers,5,FALSE))) -> 0 | O123: = | P123: =(L123+N123)*N2O_N2 -> 0 | Q123: = | R123: =P123/kg.MT*N20GWP*C_CO2 -> 0 | S123: = | T123: =R123/10^6 -> 0 | U123: = | V123: =T123/C_CO2 -> 0
A124: =$A$22 -> 26 | B124: 1993 | C124: =$C$22 -> Broilers | D124: ='CH4 from Manure Management'!D151 -> 0 | F124: =D124*'CH4 from Manure Management'!$F151*(IF(NEx_broilers=Control!$F$123,INDEX(NEx_broilers2,MATCH($B122,'TAM and NEx Rates'!$BA$2:$BA$33,0)),NEx_broilers))*days_yr -> 0 | H124: NA | J124: =F124*(1-VolPercent)*((VLOOKUP(State,manure_broilers,2,FALSE))) -> 0 | L124: NA | M124: + | N124: =J124*SolidEF -> 0 | O124: = | P124: =(N124)*N2O_N2 -> 0 | Q124: = | R124: =P124/kg.MT*N20GWP*C_CO2 -> 0 | S124: = | T124: =R124/10^6 -> 0 | U124: = | V124: =T124/C_CO2 -> 0
A125: =$A$23 -> 27 | B125: 1993 | C125: =$C$23 -> Turkeys | D125: ='CH4 from Manure Management'!D152 -> 0 | F125: =D125*'CH4 from Manure Management'!$F152*(IF(NEx_turkeys=Control!$F$124,INDEX(NEx_turkeys2,MATCH($B123,'TAM and NEx Rates'!$BA$2:$BA$33,0)),NEx_turkeys))*days_yr -> 0 | H125: NA | J125: =F125*(1-VolPercent)*((VLOOKUP(State,manure_broilers,2,FALSE))) -> 0 | L125: NA | M125: + | N125: =J125*SolidEF -> 0 | O125: = | P125: =(N125)*N2O_N2 -> 0 | Q125: = | R125: =P125/kg.MT*N20GWP*C_CO2 -> 0 | S125: = | T125: =R125/10^6 -> 0 | U125: = | V125: =T125/C_CO2 -> 0
A126: =$A$24 -> 0 | B126: 1993 | C126: =$C$24 -> Other
A127: =$A$25 -> 29 | B127: 1993 | C127: =$C$25 -> Sheep on Feed | D127: ='CH4 from Manure Management'!D154 -> 0 | F127: =D127*'CH4 from Manure Management'!$F154*(IF(NEx_sheepOF=Control!$F$126,INDEX(NEx_sheep,MATCH($B125,'TAM and NEx Rates'!$BA$2:$BA$33,0)),NEx_sheepOF))*days_yr -> 0 | H127: NA | J127: =F127*(1-VolPercent)*(1-VLOOKUP(State,manure_sheep,2,FALSE)) -> 0 | L127: NA | M127: + | N127: =J127*SolidEF -> 0 | O127: = | P127: =N127*N2O_N2 -> 0 | Q127: = | R127: =P127/kg.MT*N20GWP*C_CO2 -> 0 | S127: = | T127: =R127/10^6 -> 0 | U127: = | V127: =T127/C_CO2 -> 0
A128: =$A$26 -> 30 | B128: 1993 | C128: =$C$26 -> Sheep Not on Feed | D128: ='CH4 from Manure Management'!D155 -> 0 | F128: =D128*'CH4 from Manure Management'!$F155*(IF(NEx_sheepNOF=Control!$F$127,INDEX(NEx_sheep,MATCH($B126,'TAM and NEx Rates'!$BA$2:$BA$33,0)),NEx_sheepNOF))*days_yr -> 0 | H128: NA | J128: =F128*(1-VolPercent)*(1-VLOOKUP(State,manure_sheep,3,FALSE)) -> 0 | L128: NA | M128: + | N128: =J128*SolidEF -> 0 | O128: = | P128: =N128*N2O_N2 -> 0 | Q128: = | R128: =P128/kg.MT*N20GWP*C_CO2 -> 0 | S128: = | T128: =R128/10^6 -> 0 | U128: = | V128: =T128/C_CO2 -> 0
C129: =$C$27 -> TOTAL | F129: =SUM(F108:F128) -> 0 | H129: =SUM(H108:H128) -> 0 | J129: =SUM(J108:J128) -> 0 | L129: =SUM(L108:L128) -> 0 | N129: =SUM(N108:N128) -> 0 | P129: =SUM(P108:P128) -> 0 | R129: =SUM(R108:R128) -> 0 | T129: =R129/10^6 -> 0 | V129: =T129/C_CO2 -> 0
C131: 1
C132: 2
C133: 3
C134: 4
C135: 5
C136: 6
C137: 7
C138: 8
C139: N2O from Manure Management | H139: 1994
D140: Number of Animals ('000 head) | F140: Total K-Nitrogen Excreted (kg) | H140: Unvolatilized N from Manure in Anaerobic Lagoons and Liquid Systems (kg) | J140: Unvolatilized N from Manure in Solid Storage, Drylot & Other Systems (kg) | L140: Emissions from Anaerobic Lagoons and Liquid Systems (kg N2O-N) | N140: Emissions from Solid Storage, Drylot, & Other Systems (kg N2O-N) | P140: Total N2O Emissions (kg N2O) | R140: Emissions (MTCE) | T140: Emissions (MMTCE) | V140: Emissions (MMTCO2E)
C141: Dairy
A142: =$A$6 -> 2 | B142: =H139 -> 1994 | C142: =$C$6 -> Dairy Cows | D142: ='CH4 from Manure Management'!D170 -> 0 | F142: =D142*1000*(IF(NEx_DairyCow=Control!$F$102,INDEX(NEx_DairyCow2,MATCH(State,NEx_DairyCow3,0),MATCH($B142,'TAM and NEx Rates'!$N$2:$AT$2,0)),NEx_DairyCow)) -> 0 | H142: =F142*(1-VolPercent)*((VLOOKUP($B142&State,mms_dairy,2,FALSE))+(VLOOKUP($B142&State,mms_dairy,3,FALSE))) -> 0 | J142: =F142*(1-VolPercent)*((VLOOKUP($B142&State,mms_dairy,5,FALSE))+(VLOOKUP($B142&State,mms_dairy,7,FALSE))) -> 0 | L142: =H142*LiquidEF -> 0 | M142: + | N142: =J142*SolidEF -> 0 | O142: = | P142: =(L142+N142)*N2O_N2 -> 0 | Q142: = | R142: =P142/kg.MT*N20GWP*C_CO2 -> 0 | S142: = | T142: =R142/10^6 -> 0 | U142: = | V142: =T142/C_CO2 -> 0
A143: =$A$7 -> 3 | B143: =B142 -> 1994 | C143: =$C$7 -> Dairy Replacement Heifers | D143: ='CH4 from Manure Management'!D171 -> 0 | F143: =D143*1000*(IF(NEx_DairyHeifer=Control!$F$103,INDEX(NEx_DairyHeifer2,MATCH(State,NEx_DairyHeifer3,0),MATCH($B143,'TAM and NEx Rates'!$N$2:$AT$2,0)),NEx_DairyHeifer)) -> 0 | H143: =F143*(1-VolPercent)*((VLOOKUP($B143&State,mms_dairy,2,FALSE))+(VLOOKUP($B143&State,mms_dairy,3,FALSE))) -> 0 | J143: =F143*(1-VolPercent)*(VLOOKUP(H139&State,manure_dairyheifers,2,FALSE)) -> 0 | L143: =H143*LiquidEF -> 0 | M143: + | N143: =J143*SolidEF -> 0 | O143: = | P143: =(N143)*N2O_N2 -> 0 | Q143: = | R143: =P143/kg.MT*N20GWP*C_CO2 -> 0 | S143: = | T143: =R143/10^6 -> 0 | U143: = | V143: =T143/C_CO2 -> 0
A144: =$A$8 -> 0 | B144: =B143 -> 1994 | C144: =$C$8 -> Beef Cattle
A145: =$A$9 -> 15 | B145: 1994 | C145: =$C$9 -> Feedlot Heifers | D145: ='CH4 from Manure Management'!D173 -> 0 | F145: =D145*1000*(IF(NEx_feedheifer=Control!$F$105,INDEX(NEx_feedheifer2,MATCH(State,NEx_feedheifer3,0),MATCH($B145,'TAM and NEx Rates'!$N$2:$AT$2,0)),NEx_feedheifer)) -> 0 | H145: NA | J145: =F145*(1-VolPercent)*(VLOOKUP(State,manure_feedlotbeef,2,FALSE)) -> 0 | L145: NA | M145: + | N145: =J145*SolidEF -> 0 | O145: = | P145: =(N145)*N2O_N2 -> 0 | Q145: = | R145: =P145/kg.MT*N20GWP*C_CO2 -> 0 | S145: = | T145: =R145/10^6 -> 0 | U145: = | V145: =T145/C_CO2 -> 0
A146: =$A$10 -> 16 | B146: 1994 | C146: =$C$10 -> Feedlot Steer | D146: ='CH4 from Manure Management'!D174 -> 0 | F146: =D146*1000*(IF(NEx_feedsteer=Control!$F$106,INDEX(NEx_feedsteer2,MATCH(State,NEx_feedsteer3,0),MATCH($B146,'TAM and NEx Rates'!$N$2:$AT$2,0)),NEx_feedsteer)) -> 0 | H146: NA | J146: =F146*(1-VolPercent)*(VLOOKUP(State,manure_feedlotbeef,2,FALSE)) -> 0 | L146: NA | M146: + | N146: =J146*SolidEF -> 0 | O146: = | P146: =(N146)*N2O_N2 -> 0 | Q146: = | R146: =P146/kg.MT*N20GWP*C_CO2 -> 0 | S146: = | T146: =R146/10^6 -> 0 | U146: = | V146: =T146/C_CO2 -> 0
A147: =$A$11 -> 0 | B147: 1994 | C147: =$C$11 -> Swine
A148: =$A$12 -> 18 | B148: 1994 | C148: =$C$12 -> Breeding Swine | D148: ='CH4 from Manure Management'!D182 -> 0 | F148: =D148*'CH4 from Manure Management'!$F182*(IF(NEx_breedswine=Control!$F$113,INDEX(NEx_breedswine2,MATCH($B146,'TAM and NEx Rates'!$BA$2:$BA$33,0)),NEx_breedswine))*days_yr -> 0 | H148: =F148*(1-VolPercent)*((VLOOKUP($B148&State,manure_swine,4,FALSE))+(VLOOKUP($B148&State,manure_swine,5,FALSE))+(VLOOKUP($B148&State,manure_swine,6,FALSE))) -> 0 | J148: =F148*(1-VolPercent)*(VLOOKUP($B148&State,manure_swine,3,FALSE)) -> 0 | L148: =H148*LiquidEF -> 0 | M148: + | N148: =J148*SolidEF -> 0 | O148: = | P148: =(L148+N148)*N2O_N2 -> 0 | Q148: = | R148: =P148/kg.MT*N20GWP*C_CO2 -> 0 | S148: = | T148: =R148/10^6 -> 0 | U148: = | V148: =T148/C_CO2 -> 0
A149: =$A$13 -> 19 | B149: 1994 | C149: =$C$13 -> Market Under 60 lbs | D149: ='CH4 from Manure Management'!D183 -> 0 | F149: =D149*'CH4 from Manure Management'!$F183*(IF(NEx_marketswine_under60=Control!$F$114,INDEX(NEx_marketswine_under60_2,MATCH($B147,'TAM and NEx Rates'!$BA$2:$BA$33,0)),NEx_marketswine_under60))*days_yr -> 0 | H149: =F149*(1-VolPercent)*((VLOOKUP($B149&State,manure_swine,4,FALSE))+(VLOOKUP($B149&State,manure_swine,5,FALSE))+(VLOOKUP($B149&State,manure_swine,6,FALSE))) -> 0 | J149: =F149*(1-VolPercent)*(VLOOKUP($B149&State,manure_swine,3,FALSE)) -> 0 | L149: =H149*LiquidEF -> 0 | M149: + | N149: =J149*SolidEF -> 0 | O149: = | P149: =(L149+N149)*N2O_N2 -> 0 | Q149: = | R149: =P149/kg.MT*N20GWP*C_CO2 -> 0 | S149: = | T149: =R149/10^6 -> 0 | U149: = | V149: =T149/C_CO2 -> 0
A150: =$A$14 -> 20 | B150: 1994 | C150: =$C$14 -> Market 60-119 lbs | D150: ='CH4 from Manure Management'!D184 -> 0 | F150: =D150*'CH4 from Manure Management'!$F184*(IF(NEx_marketswine60to119=Control!$F$115,INDEX(NEx_marketswine60to119_2,MATCH($B148,'TAM and NEx Rates'!$BA$2:$BA$33,0)),NEx_marketswine60to119))*days_yr -> 0 | H150: =F150*(1-VolPercent)*((VLOOKUP($B150&State,manure_swine,4,FALSE))+(VLOOKUP($B150&State,manure_swine,5,FALSE))+(VLOOKUP($B150&State,manure_swine,6,FALSE))) -> 0 | J150: =F150*(1-VolPercent)*(VLOOKUP($B150&State,manure_swine,3,FALSE)) -> 0 | L150: =H150*LiquidEF -> 0 | M150: + | N150: =J150*SolidEF -> 0 | O150: = | P150: =(L150+N150)*N2O_N2 -> 0 | Q150: = | R150: =P150/kg.MT*N20GWP*C_CO2 -> 0 | S150: = | T150: =R150/10^6 -> 0 | U150: = | V150: =T150/C_CO2 -> 0
A151: =$A$15 -> 21 | B151: 1994 | C151: =$C$15 -> Market 120-179 lbs | D151: ='CH4 from Manure Management'!D185 -> 0 | F151: =D151*'CH4 from Manure Management'!$F185*(IF(NEx_marketswine120to179=Control!$F$116,INDEX(NEx_marketswine120to179_2,MATCH($B149,'TAM and NEx Rates'!$BA$2:$BA$33,0)),NEx_marketswine120to179))*days_yr -> 0 | H151: =F151*(1-VolPercent)*((VLOOKUP($B151&State,manure_swine,4,FALSE))+(VLOOKUP($B151&State,manure_swine,5,FALSE))+(VLOOKUP($B151&State,manure_swine,6,FALSE))) -> 0 | J151: =F151*(1-VolPercent)*(VLOOKUP($B151&State,manure_swine,3,FALSE)) -> 0 | L151: =H151*LiquidEF -> 0 | M151: + | N151: =J151*SolidEF -> 0 | O151: = | P151: =(L151+N151)*N2O_N2 -> 0 | Q151: = | R151: =P151/kg.MT*N20GWP*C_CO2 -> 0 | S151: = | T151: =R151/10^6 -> 0 | U151: = | V151: =T151/C_CO2 -> 0
A152: =$A$16 -> 22 | B152: 1994 | C152: =$C$16 -> Market over 180 lbs | D152: ='CH4 from Manure Management'!D186 -> 0 | F152: =D152*'CH4 from Manure Management'!$F186*(IF(NEx_marketswine_over180=Control!$F$117,INDEX(NEx_marketswine_over180_2,MATCH($B150,'TAM and NEx Rates'!$BA$2:$BA$33,0)),NEx_marketswine_over180))*days_yr -> 0 | H152: =F152*(1-VolPercent)*((VLOOKUP($B152&State,manure_swine,4,FALSE))+(VLOOKUP($B152&State,manure_swine,5,FALSE))+(VLOOKUP($B152&State,manure_swine,6,FALSE))) -> 0 | J152: =F152*(1-VolPercent)*(VLOOKUP($B152&State,manure_swine,3,FALSE)) -> 0 | L152: =H152*LiquidEF -> 0 | M152: + | N152: =J152*SolidEF -> 0 | O152: = | P152: =(L152+N152)*N2O_N2 -> 0 | Q152: = | R152: =P152/kg.MT*N20GWP*C_CO2 -> 0 | S152: = | T152: =R152/10^6 -> 0 | U152: = | V152: =T152/C_CO2 -> 0
A153: =$A$17 -> 0 | B153: 1994 | C153: =$C$17 -> Poultry
A154: =$A$18 -> 0 | B154: 1994 | C154: =$C$18 -> Layers
A155: =$A$19 -> 23 | B155: 1994 | C155: =$C$19 -> Hens > 1 yr | D155: ='CH4 from Manure Management'!D189 -> 0 | F155: =D155*'CH4 from Manure Management'!$F189*(IF(NEx_hens=Control!$F$120,INDEX(NEx_hens2,MATCH($B153,'TAM and NEx Rates'!$BA$2:$BA$33,0)),NEx_hens))*days_yr -> 0 | H155: =F155*(1-VolPercent)*((VLOOKUP($B155&State,mms_layers,3,FALSE))+(VLOOKUP($B155&State,mms_layers,4,FALSE))) -> 0 | J155: =F155*(1-VolPercent)*((VLOOKUP($B155&State,mms_layers,2,FALSE))+(VLOOKUP($B155&State,mms_layers,5,FALSE))) -> 0 | L155: =H155*LiquidEF -> 0 | M155: + | N155: =F155*(1-VolPercent)*(SolidEF*(VLOOKUP($B155&State,mms_layers,2,FALSE))+nobedEF*(VLOOKUP($B155&State,mms_layers,5,FALSE))) -> 0 | O155: = | P155: =(L155+N155)*N2O_N2 -> 0 | Q155: = | R155: =P155/kg.MT*N20GWP*C_CO2 -> 0 | S155: = | T155: =R155/10^6 -> 0 | U155: = | V155: =T155/C_CO2 -> 0
A156: =$A$20 -> 24 | B156: 1994 | C156: =$C$20 -> Pullets | D156: ='CH4 from Manure Management'!D190 -> 0 | F156: =D156*'CH4 from Manure Management'!$F190*(IF(NEx_pullets=Control!$F$121,INDEX(NEx_pullets2,MATCH($B154,'TAM and NEx Rates'!$BA$2:$BA$33,0)),NEx_pullets))*days_yr -> 0 | H156: =F156*(1-VolPercent)*((VLOOKUP($B156&State,mms_layers,3,FALSE))+(VLOOKUP($B156&State,mms_layers,4,FALSE))) -> 0 | J156: =F156*(1-VolPercent)*((VLOOKUP($B156&State,mms_layers,2,FALSE))+(VLOOKUP($B156&State,mms_layers,5,FALSE))) -> 0 | L156: =H156*LiquidEF -> 0 | M156: + | N156: =F156*(1-VolPercent)*(SolidEF*(VLOOKUP($B156&State,mms_layers,2,FALSE))+nobedEF*(VLOOKUP($B156&State,mms_layers,5,FALSE))) -> 0 | O156: = | P156: =(L156+N156)*N2O_N2 -> 0 | Q156: = | R156: =P156/kg.MT*N20GWP*C_CO2 -> 0 | S156: = | T156: =R156/10^6 -> 0 | U156: = | V156: =T156/C_CO2 -> 0
A157: =$A$21 -> 25 | B157: 1994 | C157: =$C$21 -> Chickens | D157: ='CH4 from Manure Management'!D191 -> 0 | F157: =D157*'CH4 from Manure Management'!$F191*(IF(NEx_chickens=Control!$F$122,INDEX(NEx_chickens2,MATCH($B155,'TAM and NEx Rates'!$BA$2:$BA$33,0)),NEx_chickens))*days_yr -> 0 | H157: =F157*(1-VolPercent)*((VLOOKUP($B157&State,mms_layers,3,FALSE))+(VLOOKUP($B157&State,mms_layers,4,FALSE))) -> 0 | J157: =F157*(1-VolPercent)*((VLOOKUP($B157&State,mms_layers,2,FALSE))+(VLOOKUP($B157&State,mms_layers,5,FALSE))) -> 0 | L157: =H157*LiquidEF -> 0 | M157: + | N157: =F157*(1-VolPercent)*(SolidEF*(VLOOKUP($B157&State,mms_layers,2,FALSE))+nobedEF*(VLOOKUP($B157&State,mms_layers,5,FALSE))) -> 0 | O157: = | P157: =(L157+N157)*N2O_N2 -> 0 | Q157: = | R157: =P157/kg.MT*N20GWP*C_CO2 -> 0 | S157: = | T157: =R157/10^6 -> 0 | U157: = | V157: =T157/C_CO2 -> 0
A158: =$A$22 -> 26 | B158: 1994 | C158: =$C$22 -> Broilers | D158: ='CH4 from Manure Management'!D192 -> 0 | F158: =D158*'CH4 from Manure Management'!$F192*(IF(NEx_broilers=Control!$F$123,INDEX(NEx_broilers2,MATCH($B156,'TAM and NEx Rates'!$BA$2:$BA$33,0)),NEx_broilers))*days_yr -> 0 | H158: NA | J158: =F158*(1-VolPercent)*((VLOOKUP(State,manure_broilers,2,FALSE))) -> 0 | L158: NA | M158: + | N158: =J158*SolidEF -> 0 | O158: = | P158: =(N158)*N2O_N2 -> 0 | Q158: = | R158: =P158/kg.MT*N20GWP*C_CO2 -> 0 | S158: = | T158: =R158/10^6 -> 0 | U158: = | V158: =T158/C_CO2 -> 0
A159: =$A$23 -> 27 | B159: 1994 | C159: =$C$23 -> Turkeys | D159: ='CH4 from Manure Management'!D193 -> 0 | F159: =D159*'CH4 from Manure Management'!$F193*(IF(NEx_turkeys=Control!$F$124,INDEX(NEx_turkeys2,MATCH($B157,'TAM and NEx Rates'!$BA$2:$BA$33,0)),NEx_turkeys))*days_yr -> 0 | H159: NA | J159: =F159*(1-VolPercent)*((VLOOKUP(State,manure_broilers,2,FALSE))) -> 0 | L159: NA | M159: + | N159: =J159*SolidEF -> 0 | O159: = | P159: =(N159)*N2O_N2 -> 0 | Q159: = | R159: =P159/kg.MT*N20GWP*C_CO2 -> 0 | S159: = | T159: =R159/10^6 -> 0 | U159: = | V159: =T159/C_CO2 -> 0
A160: =$A$24 -> 0 | B160: 1994 | C160: =$C$24 -> Other
A161: =$A$25 -> 29 | B161: 1994 | C161: =$C$25 -> Sheep on Feed | D161: ='CH4 from Manure Management'!D195 -> 0 | F161: =D161*'CH4 from Manure Management'!$F195*(IF(NEx_sheepOF=Control!$F$126,INDEX(NEx_sheep,MATCH($B159,'TAM and NEx Rates'!$BA$2:$BA$33,0)),NEx_sheepOF))*days_yr -> 0 | H161: NA | J161: =F161*(1-VolPercent)*(1-VLOOKUP(State,manure_sheep,2,FALSE)) -> 0 | L161: NA | M161: + | N161: =J161*SolidEF -> 0 | O161: = | P161: =N161*N2O_N2 -> 0 | Q161: = | R161: =P161/kg.MT*N20GWP*C_CO2 -> 0 | S161: = | T161: =R161/10^6 -> 0 | U161: = | V161: =T161/C_CO2 -> 0
A162: =$A$26 -> 30 | B162: 1994 | C162: =$C$26 -> Sheep Not on Feed | D162: ='CH4 from Manure Management'!D196 -> 0 | F162: =D162*'CH4 from Manure Management'!$F196*(IF(NEx_sheepNOF=Control!$F$127,INDEX(NEx_sheep,MATCH($B160,'TAM and NEx Rates'!$BA$2:$BA$33,0)),NEx_sheepNOF))*days_yr -> 0 | H162: NA | J162: =F162*(1-VolPercent)*(1-VLOOKUP(State,manure_sheep,3,FALSE)) -> 0 | L162: NA | M162: + | N162: =J162*SolidEF -> 0 | O162: = | P162: =N162*N2O_N2 -> 0 | Q162: = | R162: =P162/kg.MT*N20GWP*C_CO2 -> 0 | S162: = | T162: =R162/10^6 -> 0 | U162: = | V162: =T162/C_CO2 -> 0
C163: =$C$27 -> TOTAL | F163: =SUM(F142:F162) -> 0 | H163: =SUM(H142:H162) -> 0 | J163: =SUM(J142:J162) -> 0 | L163: =SUM(L142:L162) -> 0 | N163: =SUM(N142:N162) -> 0 | P163: =SUM(P142:P162) -> 0 | R163: =SUM(R142:R162) -> 0 | T163: =R163/10^6 -> 0 | V163: =T163/C_CO2 -> 0
C165: 1
C166: 2
C167: 3
C168: 4
C169: 5
C170: 6
C171: 7
C172: 8
C173: N2O from Manure Management | H173: 1995
D174: Number of Animals ('000 head) | F174: Total K-Nitrogen Excreted (kg) | H174: Unvolatilized N from manure in anaerobic lagoons and liquid systems (kg) | J174: Unvolatilized N from manure in solid storage, drylot and other systems (kg) | L174: Emissions from anaerobic lagoons and liquid systems(kg N2O-N) | N174: Emissions from solid storage, drylot, and other systems (kg N2O-N) | P174: Total N2O Emissions (kg N2O) | R174: Emissions (MTCE) | T174: Emissions (MMTCE) | V174: Emissions (MMTCO2E)
C175: Dairy
A176: =$A$6 -> 2 | B176: =H173 -> 1995 | C176: =$C$6 -> Dairy Cows | D176: ='CH4 from Manure Management'!D211 -> 0 | F176: =D176*1000*(IF(NEx_DairyCow=Control!$F$102,INDEX(NEx_DairyCow2,MATCH(State,NEx_DairyCow3,0),MATCH($B176,'TAM and NEx Rates'!$N$2:$AT$2,0)),NEx_DairyCow)) -> 0 | H176: =F176*(1-VolPercent)*((VLOOKUP($B176&State,mms_dairy,2,FALSE))+(VLOOKUP($B176&State,mms_dairy,3,FALSE))) -> 0 | J176: =F176*(1-VolPercent)*((VLOOKUP($B176&State,mms_dairy,5,FALSE))+(VLOOKUP($B176&State,mms_dairy,7,FALSE))) -> 0 | L176: =H176*LiquidEF -> 0 | M176: + | N176: =J176*SolidEF -> 0 | O176: = | P176: =(L176+N176)*N2O_N2 -> 0 | Q176: = | R176: =P176/kg.MT*N20GWP*C_CO2 -> 0 | S176: = | T176: =R176/10^6 -> 0 | U176: = | V176: =T176/C_CO2 -> 0
A177: =$A$7 -> 3 | B177: =B176 -> 1995 | C177: =$C$7 -> Dairy Replacement Heifers | D177: ='CH4 from Manure Management'!D212 -> 0 | F177: =D177*1000*(IF(NEx_DairyHeifer=Control!$F$103,INDEX(NEx_DairyHeifer2,MATCH(State,NEx_DairyHeifer3,0),MATCH($B177,'TAM and NEx Rates'!$N$2:$AT$2,0)),NEx_DairyHeifer)) -> 0 | H177: =F177*(1-VolPercent)*((VLOOKUP($B177&State,mms_dairy,2,FALSE))+(VLOOKUP($B177&State,mms_dairy,3,FALSE))) -> 0 | J177: =F177*(1-VolPercent)*(VLOOKUP(H173&State,manure_dairyheifers,2,FALSE)) -> 0 | L177: =H177*LiquidEF -> 0 | M177: + | N177: =J177*SolidEF -> 0 | O177: = | P177: =(N177)*N2O_N2 -> 0 | Q177: = | R177: =P177/kg.MT*N20GWP*C_CO2 -> 0 | S177: = | T177: =R177/10^6 -> 0 | U177: = | V177: =T177/C_CO2 -> 0
A178: =$A$8 -> 0 | B178: =B177 -> 1995 | C178: =$C$8 -> Beef Cattle
A179: =$A$9 -> 15 | B179: 1995 | C179: =$C$9 -> Feedlot Heifers | D179: ='CH4 from Manure Management'!D214 -> 0 | F179: =D179*1000*(IF(NEx_feedheifer=Control!$F$105,INDEX(NEx_feedheifer2,MATCH(State,NEx_feedheifer3,0),MATCH($B179,'TAM and NEx Rates'!$N$2:$AT$2,0)),NEx_feedheifer)) -> 0 | H179: NA | J179: =F179*(1-VolPercent)*(VLOOKUP(State,manure_feedlotbeef,2,FALSE)) -> 0 | L179: NA | M179: + | N179: =J179*SolidEF -> 0 | O179: = | P179: =(N179)*N2O_N2 -> 0 | Q179: = | R179: =P179/kg.MT*N20GWP*C_CO2 -> 0 | S179: = | T179: =R179/10^6 -> 0 | U179: = | V179: =T179/C_CO2 -> 0
A180: =$A$10 -> 16 | B180: 1995 | C180: =$C$10 -> Feedlot Steer | D180: ='CH4 from Manure Management'!D215 -> 0 | F180: =D180*1000*(IF(NEx_feedsteer=Control!$F$106,INDEX(NEx_feedsteer2,MATCH(State,NEx_feedsteer3,0),MATCH($B180,'TAM and NEx Rates'!$N$2:$AT$2,0)),NEx_feedsteer)) -> 0 | H180: NA | J180: =F180*(1-VolPercent)*(VLOOKUP(State,manure_feedlotbeef,2,FALSE)) -> 0 | L180: NA | M180: + | N180: =J180*SolidEF -> 0 | O180: = | P180: =(N180)*N2O_N2 -> 0 | Q180: = | R180: =P180/kg.MT*N20GWP*C_CO2 -> 0 | S180: = | T180: =R180/10^6 -> 0 | U180: = | V180: =T180/C_CO2 -> 0
A181: =$A$11 -> 0 | B181: 1995 | C181: =$C$11 -> Swine
A182: =$A$12 -> 18 | B182: 1995 | C182: =$C$12 -> Breeding Swine | D182: ='CH4 from Manure Management'!D223 -> 0 | F182: =D182*'CH4 from Manure Management'!$F223*(IF(NEx_breedswine=Control!$F$113,INDEX(NEx_breedswine2,MATCH($B180,'TAM and NEx Rates'!$BA$2:$BA$33,0)),NEx_breedswine))*days_yr -> 0 | H182: =F182*(1-VolPercent)*((VLOOKUP($B182&State,manure_swine,4,FALSE))+(VLOOKUP($B182&State,manure_swine,5,FALSE))+(VLOOKUP($B182&State,manure_swine,6,FALSE))) -> 0 | J182: =F182*(1-VolPercent)*(VLOOKUP($B182&State,manure_swine,3,FALSE)) -> 0 | L182: =H182*LiquidEF -> 0 | M182: + | N182: =J182*SolidEF -> 0 | O182: = | P182: =(L182+N182)*N2O_N2 -> 0 | Q182: = | R182: =P182/kg.MT*N20GWP*C_CO2 -> 0 | S182: = | T182: =R182/10^6 -> 0 | U182: = | V182: =T182/C_CO2 -> 0
A183: =$A$13 -> 19 | B183: 1995 | C183: =$C$13 -> Market Under 60 lbs | D183: ='CH4 from Manure Management'!D224 -> 0 | F183: =D183*'CH4 from Manure Management'!$F224*(IF(NEx_marketswine_under60=Control!$F$114,INDEX(NEx_marketswine_under60_2,MATCH($B181,'TAM and NEx Rates'!$BA$2:$BA$33,0)),NEx_marketswine_under60))*days_yr -> 0 | H183: =F183*(1-VolPercent)*((VLOOKUP($B183&State,manure_swine,4,FALSE))+(VLOOKUP($B183&State,manure_swine,5,FALSE))+(VLOOKUP($B183&State,manure_swine,6,FALSE))) -> 0 | J183: =F183*(1-VolPercent)*(VLOOKUP($B183&State,manure_swine,3,FALSE)) -> 0 | L183: =H183*LiquidEF -> 0 | M183: + | N183: =J183*SolidEF -> 0 | O183: = | P183: =(L183+N183)*N2O_N2 -> 0 | Q183: = | R183: =P183/kg.MT*N20GWP*C_CO2 -> 0 | S183: = | T183: =R183/10^6 -> 0 | U183: = | V183: =T183/C_CO2 -> 0
A184: =$A$14 -> 20 | B184: 1995 | C184: =$C$14 -> Market 60-119 lbs | D184: ='CH4 from Manure Management'!D225 -> 0 | F184: =D184*'CH4 from Manure Management'!$F225*(IF(NEx_marketswine60to119=Control!$F$115,INDEX(NEx_marketswine60to119_2,MATCH($B182,'TAM and NEx Rates'!$BA$2:$BA$33,0)),NEx_marketswine60to119))*days_yr -> 0 | H184: =F184*(1-VolPercent)*((VLOOKUP($B184&State,manure_swine,4,FALSE))+(VLOOKUP($B184&State,manure_swine,5,FALSE))+(VLOOKUP($B184&State,manure_swine,6,FALSE))) -> 0 | J184: =F184*(1-VolPercent)*(VLOOKUP($B184&State,manure_swine,3,FALSE)) -> 0 | L184: =H184*LiquidEF -> 0 | M184: + | N184: =J184*SolidEF -> 0 | O184: = | P184: =(L184+N184)*N2O_N2 -> 0 | Q184: = | R184: =P184/kg.MT*N20GWP*C_CO2 -> 0 | S184: = | T184: =R184/10^6 -> 0 | U184: = | V184: =T184/C_CO2 -> 0
A185: =$A$15 -> 21 | B185: 1995 | C185: =$C$15 -> Market 120-179 lbs | D185: ='CH4 from Manure Management'!D226 -> 0 | F185: =D185*'CH4 from Manure Management'!$F226*(IF(NEx_marketswine120to179=Control!$F$116,INDEX(NEx_marketswine120to179_2,MATCH($B183,'TAM and NEx Rates'!$BA$2:$BA$33,0)),NEx_marketswine120to179))*days_yr -> 0 | H185: =F185*(1-VolPercent)*((VLOOKUP($B185&State,manure_swine,4,FALSE))+(VLOOKUP($B185&State,manure_swine,5,FALSE))+(VLOOKUP($B185&State,manure_swine,6,FALSE))) -> 0 | J185: =F185*(1-VolPercent)*(VLOOKUP($B185&State,manure_swine,3,FALSE)) -> 0 | L185: =H185*LiquidEF -> 0 | M185: + | N185: =J185*SolidEF -> 0 | O185: = | P185: =(L185+N185)*N2O_N2 -> 0 | Q185: = | R185: =P185/kg.MT*N20GWP*C_CO2 -> 0 | S185: = | T185: =R185/10^6 -> 0 | U185: = | V185: =T185/C_CO2 -> 0
A186: =$A$16 -> 22 | B186: 1995 | C186: =$C$16 -> Market over 180 lbs | D186: ='CH4 from Manure Management'!D227 -> 0 | F186: =D186*'CH4 from Manure Management'!$F227*(IF(NEx_marketswine_over180=Control!$F$117,INDEX(NEx_marketswine_over180_2,MATCH($B184,'TAM and NEx Rates'!$BA$2:$BA$33,0)),NEx_marketswine_over180))*days_yr -> 0 | H186: =F186*(1-VolPercent)*((VLOOKUP($B186&State,manure_swine,4,FALSE))+(VLOOKUP($B186&State,manure_swine,5,FALSE))+(VLOOKUP($B186&State,manure_swine,6,FALSE))) -> 0 | J186: =F186*(1-VolPercent)*(VLOOKUP($B186&State,manure_swine,3,FALSE)) -> 0 | L186: =H186*LiquidEF -> 0 | M186: + | N186: =J186*SolidEF -> 0 | O186: = | P186: =(L186+N186)*N2O_N2 -> 0 | Q186: = | R186: =P186/kg.MT*N20GWP*C_CO2 -> 0 | S186: = | T186: =R186/10^6 -> 0 | U186: = | V186: =T186/C_CO2 -> 0
A187: =$A$17 -> 0 | B187: 1995 | C187: =$C$17 -> Poultry
A188: =$A$18 -> 0 | B188: 1995 | C188: =$C$18 -> Layers
A189: =$A$19 -> 23 | B189: 1995 | C189: =$C$19 -> Hens > 1 yr | D189: ='CH4 from Manure Management'!D230 -> 0 | F189: =D189*'CH4 from Manure Management'!$F230*(IF(NEx_hens=Control!$F$120,INDEX(NEx_hens2,MATCH($B187,'TAM and NEx Rates'!$BA$2:$BA$33,0)),NEx_hens))*days_yr -> 0 | H189: =F189*(1-VolPercent)*((VLOOKUP($B189&State,mms_layers,3,FALSE))+(VLOOKUP($B189&State,mms_layers,4,FALSE))) -> 0 | J189: =F189*(1-VolPercent)*((VLOOKUP($B189&State,mms_layers,2,FALSE))+(VLOOKUP($B189&State,mms_layers,5,FALSE))) -> 0 | L189: =H189*LiquidEF -> 0 | M189: + | N189: =F189*(1-VolPercent)*(SolidEF*(VLOOKUP($B189&State,mms_layers,2,FALSE))+nobedEF*(VLOOKUP($B189&State,mms_layers,5,FALSE))) -> 0 | O189: = | P189: =(L189+N189)*N2O_N2 -> 0 | Q189: = | R189: =P189/kg.MT*N20GWP*C_CO2 -> 0 | S189: = | T189: =R189/10^6 -> 0 | U189: = | V189: =T189/C_CO2 -> 0
A190: =$A$20 -> 24 | B190: 1995 | C190: =$C$20 -> Pullets | D190: ='CH4 from Manure Management'!D231 -> 0 | F190: =D190*'CH4 from Manure Management'!$F231*(IF(NEx_pullets=Control!$F$121,INDEX(NEx_pullets2,MATCH($B188,'TAM and NEx Rates'!$BA$2:$BA$33,0)),NEx_pullets))*days_yr -> 0 | H190: =F190*(1-VolPercent)*((VLOOKUP($B190&State,mms_layers,3,FALSE))+(VLOOKUP($B190&State,mms_layers,4,FALSE))) -> 0 | J190: =F190*(1-VolPercent)*((VLOOKUP($B190&State,mms_layers,2,FALSE))+(VLOOKUP($B190&State,mms_layers,5,FALSE))) -> 0 | L190: =H190*LiquidEF -> 0 | M190: + | N190: =F190*(1-VolPercent)*(SolidEF*(VLOOKUP($B190&State,mms_layers,2,FALSE))+nobedEF*(VLOOKUP($B190&State,mms_layers,5,FALSE))) -> 0 | O190: = | P190: =(L190+N190)*N2O_N2 -> 0 | Q190: = | R190: =P190/kg.MT*N20GWP*C_CO2 -> 0 | S190: = | T190: =R190/10^6 -> 0 | U190: = | V190: =T190/C_CO2 -> 0
A191: =$A$21 -> 25 | B191: 1995 | C191: =$C$21 -> Chickens | D191: ='CH4 from Manure Management'!D232 -> 0 | F191: =D191*'CH4 from Manure Management'!$F232*(IF(NEx_chickens=Control!$F$122,INDEX(NEx_chickens2,MATCH($B189,'TAM and NEx Rates'!$BA$2:$BA$33,0)),NEx_chickens))*days_yr -> 0 | H191: =F191*(1-VolPercent)*((VLOOKUP($B191&State,mms_layers,3,FALSE))+(VLOOKUP($B191&State,mms_layers,4,FALSE))) -> 0 | J191: =F191*(1-VolPercent)*((VLOOKUP($B191&State,mms_layers,2,FALSE))+(VLOOKUP($B191&State,mms_layers,5,FALSE))) -> 0 | L191: =H191*LiquidEF -> 0 | M191: + | N191: =F191*(1-VolPercent)*(SolidEF*(VLOOKUP($B191&State,mms_layers,2,FALSE))+nobedEF*(VLOOKUP($B191&State,mms_layers,5,FALSE))) -> 0 | O191: = | P191: =(L191+N191)*N2O_N2 -> 0 | Q191: = | R191: =P191/kg.MT*N20GWP*C_CO2 -> 0 | S191: = | T191: =R191/10^6 -> 0 | U191: = | V191: =T191/C_CO2 -> 0
A192: =$A$22 -> 26 | B192: 1995 | C192: =$C$22 -> Broilers | D192: ='CH4 from Manure Management'!D233 -> 0 | F192: =D192*'CH4 from Manure Management'!$F233*(IF(NEx_broilers=Control!$F$123,INDEX(NEx_broilers2,MATCH($B190,'TAM and NEx Rates'!$BA$2:$BA$33,0)),NEx_broilers))*days_yr -> 0 | H192: NA | J192: =F192*(1-VolPercent)*((VLOOKUP(State,manure_broilers,2,FALSE))) -> 0 | L192: NA | M192: + | N192: =J192*SolidEF -> 0 | O192: = | P192: =(N192)*N2O_N2 -> 0 | Q192: = | R192: =P192/kg.MT*N20GWP*C_CO2 -> 0 | S192: = | T192: =R192/10^6 -> 0 | U192: = | V192: =T192/C_CO2 -> 0
A193: =$A$23 -> 27 | B193: 1995 | C193: =$C$23 -> Turkeys | D193: ='CH4 from Manure Management'!D234 -> 0 | F193: =D193*'CH4 from Manure Management'!$F234*(IF(NEx_turkeys=Control!$F$124,INDEX(NEx_turkeys2,MATCH($B191,'TAM and NEx Rates'!$BA$2:$BA$33,0)),NEx_turkeys))*days_yr -> 0 | H193: NA | J193: =F193*(1-VolPercent)*((VLOOKUP(State,manure_broilers,2,FALSE))) -> 0 | L193: NA | M193: + | N193: =J193*SolidEF -> 0 | O193: = | P193: =(N193)*N2O_N2 -> 0 | Q193: = | R193: =P193/kg.MT*N20GWP*C_CO2 -> 0 | S193: = | T193: =R193/10^6 -> 0 | U193: = | V193: =T193/C_CO2 -> 0
A194: =$A$24 -> 0 | B194: 1995 | C194: =$C$24 -> Other
A195: =$A$25 -> 29 | B195: 1995 | C195: =$C$25 -> Sheep on Feed | D195: ='CH4 from Manure Management'!D236 -> 0 | F195: =D195*'CH4 from Manure Management'!$F236*(IF(NEx_sheepOF=Control!$F$126,INDEX(NEx_sheep,MATCH($B193,'TAM and NEx Rates'!$BA$2:$BA$33,0)),NEx_sheepOF))*days_yr -> 0 | H195: NA | J195: =F195*(1-VolPercent)*(1-VLOOKUP(State,manure_sheep,2,FALSE)) -> 0 | L195: NA | M195: + | N195: =J195*SolidEF -> 0 | O195: = | P195: =N195*N2O_N2 -> 0 | Q195: = | R195: =P195/kg.MT*N20GWP*C_CO2 -> 0 | S195: = | T195: =R195/10^6 -> 0 | U195: = | V195: =T195/C_CO2 -> 0
A196: =$A$26 -> 30 | B196: 1995 | C196: =$C$26 -> Sheep Not on Feed | D196: ='CH4 from Manure Management'!D237 -> 0 | F196: =D196*'CH4 from Manure Management'!$F237*(IF(NEx_sheepNOF=Control!$F$127,INDEX(NEx_sheep,MATCH($B194,'TAM and NEx Rates'!$BA$2:$BA$33,0)),NEx_sheepNOF))*days_yr -> 0 | H196: NA | J196: =F196*(1-VolPercent)*(1-VLOOKUP(State,manure_sheep,3,FALSE)) -> 0 | L196: NA | M196: + | N196: =J196*SolidEF -> 0 | O196: = | P196: =N196*N2O_N2 -> 0 | Q196: = | R196: =P196/kg.MT*N20GWP*C_CO2 -> 0 | S196: = | T196: =R196/10^6 -> 0 | U196: = | V196: =T196/C_CO2 -> 0
C197: =$C$27 -> TOTAL | F197: =SUM(F176:F196) -> 0 | H197: =SUM(H176:H196) -> 0 | J197: =SUM(J176:J196) -> 0 | L197: =SUM(L176:L196) -> 0 | N197: =SUM(N176:N196) -> 0 | P197: =SUM(P176:P196) -> 0 | R197: =SUM(R176:R196) -> 0 | T197: =R197/10^6 -> 0 | V197: =T197/C_CO2 -> 0
C199: 1
C200: 2
C201: 3
C202: 4
C203: 5
C204: 6
C205: 7
C206: 8
C207: N2O from Manure Management | H207: 1996
... 981 more rows

Sheet Ag Soils-Plant-Residues&Legumes
C1: ="4a. Ag Soils- Plant Residues & Legumes in "&StateName -> 4a. Ag Soils- Plant Residues & Legumes in Alaska
C3: Agriculture Soils - Emissions from Residues, Legumes, & Histosols | N3: 1990
C4: Legumes and Crop Residue Calculations
D5: Units | F5: Crop Production | H5: Crop Production (metric tons) | J5: N Returned to Soils (kg) | L5: N-Fixed by Crops (kg) | O5: Direct N2O Emissions (metric tons N2O) | Q5: Direct Emissions (MMTCE) | S5: Direct Emissions (MMTCO2E)
A6: 2 | B6: =N3 -> 1990 | C6: Alfalfa | D6: '000 tons | H6: =F6*MT_ton*1000 -> 0 | J6: NA | L6: =(H6*kg.MT)*(1+constants!D$30)*Control!C$75*constants!$B$28 -> 0 | N6: Residues | O6: =J27/kg.MT*EF.Dir*N2O_N2 -> 0 | Q6: =O6*N2OGWP*C_CO2*10^-6 -> 0 | S6: =Q6/C_CO2 -> 0
A7: 3 | B7: =B6 -> 1990 | C7: Corn for Grain | D7: '000 bushels | H7: =F7*1000*constants!C$31 -> 0 | J7: =(H7*constants!$B$6)*constants!D$31*Control!C$76*Control!G$76*Control!K$76 -> 0 | L7: NA | N7: Legumes | O7: =L27/kg.MT*EF.Dir*N2O_N2 -> 0 | Q7: =O7*N2OGWP*C_CO2*10^-6 -> 0 | S7: =Q7/C_CO2 -> 0
A8: 4 | B8: =B7 -> 1990 | C8: All Wheat | D8: '000 bushels | H8: =F8*1000*constants!C$32 -> 0 | J8: =(H8*constants!$B$6)*constants!D$32*Control!C$77*Control!G$77*Control!K$77 -> 0 | L8: NA
A9: 5 | B9: 1990 | C9: Barley | D9: '000 bushels | H9: =F9*1000*constants!C$33 -> 0 | J9: =(H9*constants!$B$6)*constants!D$33*Control!C$78*Control!G$78*Control!K$78 -> 0 | L9: NA
A10: 6 | B10: 1990 | C10: Sorghum for Grain | D10: '000 bushels | H10: =F10*1000*constants!C$34 -> 0 | J10: =(H10*constants!$B$6)*constants!D$34*Control!C$79*Control!G$79*Control!K$79 -> 0 | L10: NA
A11: 7 | B11: 1990 | C11: Oats | D11: '000 bushels | H11: =F11*1000*constants!C$35 -> 0 | J11: =(H11*constants!$B$6)*constants!D$35*Control!C$80*Control!G$80*Control!K$80 -> 0 | L11: NA
A12: 8 | B12: 1990 | C12: Rye | D12: '000 bushels | H12: =F12*1000*constants!C$36 -> 0 | J12: =(H12*constants!$B$6)*constants!D$36*Control!C$81*Control!G$81*Control!K$81 -> 0 | L12: NA
A13: 9 | B13: 1990 | C13: Millet | D13: '000 bushels | H13: =F13*1000*constants!C$37 -> 0 | J13: =(H13*constants!$B$6)*constants!D$37*Control!C$82*Control!G$82*Control!K$82 -> 0 | L13: NA
A14: 10 | B14: 1990 | C14: Rice | D14: '000 hundredweight | H14: =(F14*constants!B$5)*constants!B$15 -> 0 | J14: =(H14*constants!$B$6)*constants!D$38*Control!C$83*Control!G$83*Control!K$83 -> 0 | L14: NA
A15: 11 | B15: 1990 | C15: Soybeans | D15: '000 bushels | H15: =F15*1000*constants!C$39 -> 0 | J15: =(H15*constants!$B$6)*constants!D$39*Control!C$84*Control!G$84*Control!K$84 -> 0 | L15: =(H15*kg.MT)*(1+constants!D$39)*Control!C$84*constants!$B$28 -> 0
A16: 12 | B16: 1990 | C16: Peanuts | D16: '000 lbs | H16: =(F16*1000/constants!B$4)*constants!B$3 -> 0 | J16: =(H16*constants!$B$6)*constants!D$40*Control!C$85*Control!G$85*Control!K$85 -> 0 | L16: =(H16*kg.MT)*(1+constants!D$40)*Control!C$85*constants!$B$28 -> 0
A17: 13 | B17: 1990 | C17: Dry Edible Beans | D17: '000 hundredweight | H17: =(F17*constants!B$5)*constants!B$15 -> 0 | J17: =(H17*constants!$B$6)*constants!D$41*Control!C$86*Control!G$86*Control!K$86 -> 0 | L17: =(H17*kg.MT)*(1+constants!D$41)*Control!C$86*constants!$B$28 -> 0
A18: 14 | B18: 1990 | C18: Dry Edible Peas | D18: '000 hundredweight | H18: =(F18*constants!B$5)*constants!B$15 -> 0 | J18: =(H18*constants!$B$6)*constants!D$42*Control!C$87*Control!G$87*Control!K$87 -> 0 | L18: =(H18*kg.MT)*(1+constants!D$42)*Control!C$87*constants!$B$28 -> 0
A19: 15 | B19: 1990 | C19: Austrian Winter Peas | D19: '000 hundredweight | H19: =(F19*constants!B$5)*constants!B$15 -> 0 | J19: =(H19*constants!$B$6)*constants!D$43*Control!C$88*Control!G$88*Control!K$88 -> 0 | L19: =(H19*kg.MT)*(1+constants!D$43)*Control!C$88*constants!$B$28 -> 0
A20: 16 | B20: 1990 | C20: Lentils | D20: '000 hundredweight | H20: =(F20*constants!B$5)*constants!B$15 -> 0 | J20: =(H20*constants!$B$6)*constants!D$44*Control!C$89*Control!G$89*Control!K$89 -> 0 | L20: =(H20*kg.MT)*(1+constants!D$44)*Control!C$89*constants!$B$28 -> 0
A21: 17 | B21: =B20 -> 1990 | C21: Wrinkled Seed Peas | D21: '000 hundredweight | H21: =(F21*constants!B$5)*constants!B$15 -> 0 | J21: =(H21*constants!$B$6)*constants!D$45*Control!C$90*Control!G$90*Control!K$90 -> 0 | L21: =(H21*kg.MT)*(1+constants!D$45)*Control!C$90*constants!$B$28 -> 0
B22: 1990 | C22: Red Clover | D22: metric tons | H22: =F22 -> 0 | J22: NA | L22: =(H22*kg.MT)*constants!$B$28 -> 0
B23: 1990 | C23: White Clover | D23: metric tons | H23: =F23 -> 0 | J23: NA | L23: =(H23*kg.MT)*constants!$B$28 -> 0
B24: 1990 | C24: Birdsfoot Trefoil | D24: metric tons | H24: =F24 -> 0 | J24: NA | L24: =(H24*kg.MT)*constants!$B$28 -> 0
B25: 1990 | C25: Arrowleaf Clover | D25: metric tons | H25: =F25 -> 0 | J25: NA | L25: =(H25*kg.MT)*constants!$B$28 -> 0
B26: 1990 | C26: Crimson Clover | D26: metric tons | H26: =F26 -> 0 | J26: NA | L26: =(H26*kg.MT)*constants!$B$28 -> 0
C27: TOTAL | H27: =SUM(H6:H26) -> 0 | J27: =SUM(J6:J26) -> 0 | L27: =SUM(L6:L26) -> 0
C29: Histosols (High Organic Content Soils)
D30: Acreage Cultivated | F30: Hectares Cultivated | H30: Emissions (kg N2O-N) | J30: Direct N2O Emissions (metric tons N2O) | L30: Direct Emissions (MMTCE) | N30: Direct Emissions (MMTCO2E)
C31: Temperate Climate | F31: =D31*ac.ha -> 0 | H31: =F31*HistEF -> 0 | J31: =H31*N2O_N2*(1/kg.MT) -> 0 | L31: =J31*N2OGWP*C_CO2*10^-6 -> 0 | N31: =L31/C_CO2 -> 0
C32: Sub-tropical Climate | F32: =D32*ac.ha -> 0 | H32: =F32*TropHistEF -> 0 | J32: =H32*N2O_N2*(1/kg.MT) -> 0 | L32: =J32*N2OGWP*C_CO2*10^-6 -> 0 | N32: =L32/C_CO2 -> 0
C33: TOTAL | H33: =SUM(H31:H32) -> 0 | J33: =SUM(J31:J32) -> 0 | L33: =SUM(L31:L32) -> 0 | N33: =L33/C_CO2 -> 0
C35: Agriculture Soils - Emissions from Residues, Legumes, & Histosols | N35: 1991
C36: Legumes and Crop Residue Calculations
D37: Units | F37: Crop Production | H37: Crop Production (metric tons) | J37: N Returned to Soils (kg) | L37: N-Fixed by Crops (kg) | O37: Direct N2O Emissions (metric tons N2O) | Q37: Direct Emissions (MMTCE) | S37: Direct Emissions (MMTCO2E)
A38: 2 | B38: =N35 -> 1991 | C38: Alfalfa | D38: '000 tons | H38: =F38*MT_ton*1000 -> 0 | J38: NA | L38: =(H38*kg.MT)*(1+constants!D$30)*Control!C$75*constants!$B$28 -> 0 | N38: Residues | O38: =J59/kg.MT*EF.Dir*N2O_N2 -> 0 | Q38: =O38*N2OGWP*C_CO2*10^-6 -> 0 | S38: =Q38/C_CO2 -> 0
A39: 3 | B39: =B38 -> 1991 | C39: Corn for Grain | D39: '000 bushels | H39: =F39*1000*constants!C$31 -> 0 | J39: =(H39*constants!$B$6)*constants!D$31*Control!C$76*Control!G$76*Control!K$76 -> 0 | L39: NA | N39: Legumes | O39: =L59/kg.MT*EF.Dir*N2O_N2 -> 0 | Q39: =O39*N2OGWP*C_CO2*10^-6 -> 0 | S39: =Q39/C_CO2 -> 0
A40: 4 | B40: =B39 -> 1991 | C40: All Wheat | D40: '000 bushels | H40: =F40*1000*constants!C$32 -> 0 | J40: =(H40*constants!$B$6)*constants!D$32*Control!C$77*Control!G$77*Control!K$77 -> 0 | L40: NA
A41: 5 | B41: 1991 | C41: Barley | D41: '000 bushels | H41: =F41*1000*constants!C$33 -> 0 | J41: =(H41*constants!$B$6)*constants!D$33*Control!C$78*Control!G$78*Control!K$78 -> 0 | L41: NA
A42: 6 | B42: 1991 | C42: Sorghum for Grain | D42: '000 bushels | H42: =F42*1000*constants!C$34 -> 0 | J42: =(H42*constants!$B$6)*constants!D$34*Control!C$79*Control!G$79*Control!K$79 -> 0 | L42: NA
A43: 7 | B43: 1991 | C43: Oats | D43: '000 bushels | H43: =F43*1000*constants!C$35 -> 0 | J43: =(H43*constants!$B$6)*constants!D$35*Control!C$80*Control!G$80*Control!K$80 -> 0 | L43: NA
A44: 8 | B44: 1991 | C44: Rye | D44: '000 bushels | H44: =F44*1000*constants!C$36 -> 0 | J44: =(H44*constants!$B$6)*constants!D$36*Control!C$81*Control!G$81*Control!K$81 -> 0 | L44: NA
A45: 9 | B45: 1991 | C45: Millet | D45: '000 bushels | H45: =F45*1000*constants!C$37 -> 0 | J45: =(H45*constants!$B$6)*constants!D$37*Control!C$82*Control!G$82*Control!K$82 -> 0 | L45: NA
A46: 10 | B46: 1991 | C46: Rice | D46: '000 hundredweight | H46: =(F46*constants!B$5)*constants!B$15 -> 0 | J46: =(H46*constants!$B$6)*constants!D$38*Control!C$83*Control!G$83*Control!K$83 -> 0 | L46: NA
A47: 11 | B47: 1991 | C47: Soybeans | D47: '000 bushels | H47: =F47*1000*constants!C$39 -> 0 | J47: =(H47*constants!$B$6)*constants!D$39*Control!C$84*Control!G$84*Control!K$84 -> 0 | L47: =(H47*kg.MT)*(1+constants!D$39)*Control!C$84*constants!$B$28 -> 0
A48: 12 | B48: 1991 | C48: Peanuts | D48: '000 lbs | H48: =(F48*1000/constants!B$4)*constants!B$3 -> 0 | J48: =(H48*constants!$B$6)*constants!D$40*Control!C$85*Control!G$85*Control!K$85 -> 0 | L48: =(H48*kg.MT)*(1+constants!D$40)*Control!C$85*constants!$B$28 -> 0
A49: 13 | B49: 1991 | C49: Dry Edible Beans | D49: '000 hundredweight | H49: =(F49*constants!B$5)*constants!B$15 -> 0 | J49: =(H49*constants!$B$6)*constants!D$41*Control!C$86*Control!G$86*Control!K$86 -> 0 | L49: =(H49*kg.MT)*(1+constants!D$41)*Control!C$86*constants!$B$28 -> 0
A50: 14 | B50: 1991 | C50: Dry Edible Peas | D50: '000 hundredweight | H50: =(F50*constants!B$5)*constants!B$15 -> 0 | J50: =(H50*constants!$B$6)*constants!D$42*Control!C$87*Control!G$87*Control!K$87 -> 0 | L50: =(H50*kg.MT)*(1+constants!D$42)*Control!C$87*constants!$B$28 -> 0
A51: 15 | B51: 1991 | C51: Austrian Winter Peas | D51: '000 hundredweight | H51: =(F51*constants!B$5)*constants!B$15 -> 0 | J51: =(H51*constants!$B$6)*constants!D$43*Control!C$88*Control!G$88*Control!K$88 -> 0 | L51: =(H51*kg.MT)*(1+constants!D$43)*Control!C$88*constants!$B$28 -> 0
A52: 16 | B52: 1991 | C52: Lentils | D52: '000 hundredweight | H52: =(F52*constants!B$5)*constants!B$15 -> 0 | J52: =(H52*constants!$B$6)*constants!D$44*Control!C$89*Control!G$89*Control!K$89 -> 0 | L52: =(H52*kg.MT)*(1+constants!D$44)*Control!C$89*constants!$B$28 -> 0
A53: 17 | B53: 1991 | C53: Wrinkled Seed Peas | D53: '000 hundredweight | H53: =(F53*constants!B$5)*constants!B$15 -> 0 | J53: =(H53*constants!$B$6)*constants!D$45*Control!C$90*Control!G$90*Control!K$90 -> 0 | L53: =(H53*kg.MT)*(1+constants!D$45)*Control!C$90*constants!$B$28 -> 0
B54: 1991 | C54: Red Clover | D54: metric tons | H54: =F54 -> 0 | J54: NA | L54: =(H54*kg.MT)*constants!$B$28 -> 0
B55: 1991 | C55: White Clover | D55: metric tons | H55: =F55 -> 0 | J55: NA | L55: =(H55*kg.MT)*constants!$B$28 -> 0
B56: 1991 | C56: Birdsfoot Trefoil | D56: metric tons | H56: =F56 -> 0 | J56: NA | L56: =(H56*kg.MT)*constants!$B$28 -> 0
B57: 1991 | C57: Arrowleaf Clover | D57: metric tons | H57: =F57 -> 0 | J57: NA | L57: =(H57*kg.MT)*constants!$B$28 -> 0
B58: 1991 | C58: Crimson Clover | D58: metric tons | H58: =F58 -> 0 | J58: NA | L58: =(H58*kg.MT)*constants!$B$28 -> 0
C59: TOTAL | H59: =SUM(H38:H58) -> 0 | J59: =SUM(J38:J53) -> 0 | L59: =SUM(L38:L58) -> 0
C61: Histosols (High Organic Content Soils)
D62: Acreage Cultivated | F62: Hectares Cultivated | H62: Emissions (kg N2O-N) | J62: Direct N2O Emissions (metric tons N2O) | L62: Direct Emissions (MMTCE) | N62: Direct Emissions (MMTCO2E)
C63: Temperate Climate | F63: =D63*ac.ha -> 0 | H63: =F63*HistEF -> 0 | J63: =H63*N2O_N2*(1/kg.MT) -> 0 | L63: =J63*N2OGWP*C_CO2*10^-6 -> 0 | N63: =L63/C_CO2 -> 0
C64: Sub-tropical Climate | F64: =D64*ac.ha -> 0 | H64: =F64*TropHistEF -> 0 | J64: =H64*N2O_N2*(1/kg.MT) -> 0 | L64: =J64*N2OGWP*C_CO2*10^-6 -> 0 | N64: =L64/C_CO2 -> 0
C65: TOTAL | H65: =SUM(H63:H64) -> 0 | J65: =SUM(J63:J64) -> 0 | L65: =SUM(L63:L64) -> 0 | N65: =L65/C_CO2 -> 0
C67: Agriculture Soils - Emissions from Residues, Legumes, & Histosols | N67: 1992
C68: Legumes and Crop Residue Calculations
D69: Units | F69: Crop Production | H69: Crop Production (metric tons) | J69: N Returned to Soils (kg) | L69: N-Fixed by Crops (kg) | O69: Direct N2O Emissions (metric tons N2O) | Q69: Direct Emissions (MMTCE) | S69: Direct Emissions (MMTCO2E)
A70: 2 | B70: =N67 -> 1992 | C70: Alfalfa | D70: '000 tons | H70: =F70*MT_ton*1000 -> 0 | J70: NA | L70: =(H70*kg.MT)*(1+constants!D$30)*Control!C$75*constants!$B$28 -> 0 | N70: Residues | O70: =J91/kg.MT*EF.Dir*N2O_N2 -> 0 | Q70: =O70*N2OGWP*C_CO2*10^-6 -> 0 | S70: =Q70/C_CO2 -> 0
A71: 3 | B71: =B70 -> 1992 | C71: Corn for Grain | D71: '000 bushels | H71: =F71*1000*constants!C$31 -> 0 | J71: =(H71*constants!$B$6)*constants!D$31*Control!C$76*Control!G$76*Control!K$76 -> 0 | L71: NA | N71: Legumes | O71: =L91/kg.MT*EF.Dir*N2O_N2 -> 0 | Q71: =O71*N2OGWP*C_CO2*10^-6 -> 0 | S71: =Q71/C_CO2 -> 0
A72: 4 | B72: =B71 -> 1992 | C72: All Wheat | D72: '000 bushels | H72: =F72*1000*constants!C$32 -> 0 | J72: =(H72*constants!$B$6)*constants!D$32*Control!C$77*Control!G$77*Control!K$77 -> 0 | L72: NA
A73: 5 | B73: 1992 | C73: Barley | D73: '000 bushels | H73: =F73*1000*constants!C$33 -> 0 | J73: =(H73*constants!$B$6)*constants!D$33*Control!C$78*Control!G$78*Control!K$78 -> 0 | L73: NA
A74: 6 | B74: 1992 | C74: Sorghum for Grain | D74: '000 bushels | H74: =F74*1000*constants!C$34 -> 0 | J74: =(H74*constants!$B$6)*constants!D$34*Control!C$79*Control!G$79*Control!K$79 -> 0 | L74: NA
A75: 7 | B75: 1992 | C75: Oats | D75: '000 bushels | H75: =F75*1000*constants!C$35 -> 0 | J75: =(H75*constants!$B$6)*constants!D$35*Control!C$80*Control!G$80*Control!K$80 -> 0 | L75: NA
A76: 8 | B76: 1992 | C76: Rye | D76: '000 bushels | H76: =F76*1000*constants!C$36 -> 0 | J76: =(H76*constants!$B$6)*constants!D$36*Control!C$81*Control!G$81*Control!K$81 -> 0 | L76: NA
A77: 9 | B77: 1992 | C77: Millet | D77: '000 bushels | H77: =F77*1000*constants!C$37 -> 0 | J77: =(H77*constants!$B$6)*constants!D$37*Control!C$82*Control!G$82*Control!K$82 -> 0 | L77: NA
A78: 10 | B78: 1992 | C78: Rice | D78: '000 hundredweight | H78: =(F78*constants!B$5)*constants!B$15 -> 0 | J78: =(H78*constants!$B$6)*constants!D$38*Control!C$83*Control!G$83*Control!K$83 -> 0 | L78: NA
A79: 11 | B79: 1992 | C79: Soybeans | D79: '000 bushels | H79: =F79*1000*constants!C$39 -> 0 | J79: =(H79*constants!$B$6)*constants!D$39*Control!C$84*Control!G$84*Control!K$84 -> 0 | L79: =(H79*kg.MT)*(1+constants!D$39)*Control!C$84*constants!$B$28 -> 0
A80: 12 | B80: 1992 | C80: Peanuts | D80: '000 lbs | H80: =(F80*1000/constants!B$4)*constants!B$3 -> 0 | J80: =(H80*constants!$B$6)*constants!D$40*Control!C$85*Control!G$85*Control!K$85 -> 0 | L80: =(H80*kg.MT)*(1+constants!D$40)*Control!C$85*constants!$B$28 -> 0
A81: 13 | B81: =B80 -> 1992 | C81: Dry Edible Beans | D81: '000 hundredweight | H81: =(F81*constants!B$5)*constants!B$15 -> 0 | J81: =(H81*constants!$B$6)*constants!D$41*Control!C$86*Control!G$86*Control!K$86 -> 0 | L81: =(H81*kg.MT)*(1+constants!D$41)*Control!C$86*constants!$B$28 -> 0
A82: 14 | B82: 1992 | C82: Dry Edible Peas | D82: '000 hundredweight | H82: =(F82*constants!B$5)*constants!B$15 -> 0 | J82: =(H82*constants!$B$6)*constants!D$42*Control!C$87*Control!G$87*Control!K$87 -> 0 | L82: =(H82*kg.MT)*(1+constants!D$42)*Control!C$87*constants!$B$28 -> 0
A83: 15 | B83: 1992 | C83: Austrian Winter Peas | D83: '000 hundredweight | H83: =(F83*constants!B$5)*constants!B$15 -> 0 | J83: =(H83*constants!$B$6)*constants!D$43*Control!C$88*Control!G$88*Control!K$88 -> 0 | L83: =(H83*kg.MT)*(1+constants!D$43)*Control!C$88*constants!$B$28 -> 0
A84: 16 | B84: 1992 | C84: Lentils | D84: '000 hundredweight | H84: =(F84*constants!B$5)*constants!B$15 -> 0 | J84: =(H84*constants!$B$6)*constants!D$44*Control!C$89*Control!G$89*Control!K$89 -> 0 | L84: =(H84*kg.MT)*(1+constants!D$44)*Control!C$89*constants!$B$28 -> 0
A85: 17 | B85: 1992 | C85: Wrinkled Seed Peas | D85: '000 hundredweight | H85: =(F85*constants!B$5)*constants!B$15 -> 0 | J85: =(H85*constants!$B$6)*constants!D$45*Control!C$90*Control!G$90*Control!K$90 -> 0 | L85: =(H85*kg.MT)*(1+constants!D$45)*Control!C$90*constants!$B$28 -> 0
B86: 1992 | C86: Red Clover | D86: metric tons | H86: =F86 -> 0 | J86: NA | L86: =(H86*kg.MT)*constants!$B$28 -> 0
B87: 1992 | C87: White Clover | D87: metric tons | H87: =F87 -> 0 | J87: NA | L87: =(H87*kg.MT)*constants!$B$28 -> 0
B88: 1992 | C88: Birdsfoot Trefoil | D88: metric tons | H88: =F88 -> 0 | J88: NA | L88: =(H88*kg.MT)*constants!$B$28 -> 0
B89: 1992 | C89: Arrowleaf Clover | D89: metric tons | H89: =F89 -> 0 | J89: NA | L89: =(H89*kg.MT)*constants!$B$28 -> 0
B90: 1992 | C90: Crimson Clover | D90: metric tons | H90: =F90 -> 0 | J90: NA | L90: =(H90*kg.MT)*constants!$B$28 -> 0
C91: TOTAL | H91: =SUM(H70:H90) -> 0 | J91: =SUM(J70:J85) -> 0 | L91: =SUM(L70:L90) -> 0
C93: Histosols (High Organic Content Soils)
D94: Acreage Cultivated | F94: Hectares Cultivated | H94: Emissions (kg N2O-N) | J94: Direct N2O Emissions (metric tons N2O) | L94: Direct Emissions (MMTCE) | N94: Direct Emissions (MMTCO2E)
C95: Temperate Climate | F95: =D95*ac.ha -> 0 | H95: =F95*HistEF -> 0 | J95: =H95*N2O_N2*(1/kg.MT) -> 0 | L95: =J95*N2OGWP*C_CO2*10^-6 -> 0 | N95: =L95/C_CO2 -> 0
C96: Sub-tropical Climate | F96: =D96*ac.ha -> 0 | H96: =F96*TropHistEF -> 0 | J96: =H96*N2O_N2*(1/kg.MT) -> 0 | L96: =J96*N2OGWP*C_CO2*10^-6 -> 0 | N96: =L96/C_CO2 -> 0
C97: TOTAL | H97: =SUM(H95:H96) -> 0 | J97: =SUM(J95:J96) -> 0 | L97: =SUM(L95:L96) -> 0 | N97: =L97/C_CO2 -> 0
C99: Agriculture Soils - Emissions from Residues, Legumes, & Histosols | N99: 1993
C100: Legumes and Crop Residue Calculations
D101: Units | F101: Crop Production | H101: Crop Production (metric tons) | J101: N Returned to Soils (kg) | L101: N-Fixed by Crops (kg) | O101: Direct N2O Emissions (metric tons N2O) | Q101: Direct Emissions (MMTCE) | S101: Direct Emissions (MMTCO2E)
A102: 2 | B102: =N99 -> 1993 | C102: Alfalfa | D102: '000 tons | H102: =F102*MT_ton*1000 -> 0 | J102: NA | L102: =(H102*kg.MT)*(1+constants!D$30)*Control!C$75*constants!$B$28 -> 0 | N102: Residues | O102: =J123/kg.MT*EF.Dir*N2O_N2 -> 0 | Q102: =O102*N2OGWP*C_CO2*10^-6 -> 0 | S102: =Q102/C_CO2 -> 0
A103: 3 | B103: =B102 -> 1993 | C103: Corn for Grain | D103: '000 bushels | H103: =F103*1000*constants!C$31 -> 0 | J103: =(H103*constants!$B$6)*constants!D$31*Control!C$76*Control!G$76*Control!K$76 -> 0 | L103: NA | N103: Legumes | O103: =L123/kg.MT*EF.Dir*N2O_N2 -> 0 | Q103: =O103*N2OGWP*C_CO2*10^-6 -> 0 | S103: =Q103/C_CO2 -> 0
A104: 4 | B104: =B103 -> 1993 | C104: All Wheat | D104: '000 bushels | H104: =F104*1000*constants!C$32 -> 0 | J104: =(H104*constants!$B$6)*constants!D$32*Control!C$77*Control!G$77*Control!K$77 -> 0 | L104: NA
A105: 5 | B105: 1993 | C105: Barley | D105: '000 bushels | H105: =F105*1000*constants!C$33 -> 0 | J105: =(H105*constants!$B$6)*constants!D$33*Control!C$78*Control!G$78*Control!K$78 -> 0 | L105: NA
A106: 6 | B106: 1993 | C106: Sorghum for Grain | D106: '000 bushels | H106: =F106*1000*constants!C$34 -> 0 | J106: =(H106*constants!$B$6)*constants!D$34*Control!C$79*Control!G$79*Control!K$79 -> 0 | L106: NA
A107: 7 | B107: 1993 | C107: Oats | D107: '000 bushels | H107: =F107*1000*constants!C$35 -> 0 | J107: =(H107*constants!$B$6)*constants!D$35*Control!C$80*Control!G$80*Control!K$80 -> 0 | L107: NA
A108: 8 | B108: 1993 | C108: Rye | D108: '000 bushels | H108: =F108*1000*constants!C$36 -> 0 | J108: =(H108*constants!$B$6)*constants!D$36*Control!C$81*Control!G$81*Control!K$81 -> 0 | L108: NA
A109: 9 | B109: 1993 | C109: Millet | D109: '000 bushels | H109: =F109*1000*constants!C$37 -> 0 | J109: =(H109*constants!$B$6)*constants!D$37*Control!C$82*Control!G$82*Control!K$82 -> 0 | L109: NA
A110: 10 | B110: 1993 | C110: Rice | D110: '000 hundredweight | H110: =(F110*constants!B$5)*constants!B$15 -> 0 | J110: =(H110*constants!$B$6)*constants!D$38*Control!C$83*Control!G$83*Control!K$83 -> 0 | L110: NA
A111: 11 | B111: 1993 | C111: Soybeans | D111: '000 bushels | H111: =F111*1000*constants!C$39 -> 0 | J111: =(H111*constants!$B$6)*constants!D$39*Control!C$84*Control!G$84*Control!K$84 -> 0 | L111: =(H111*kg.MT)*(1+constants!D$39)*Control!C$84*constants!$B$28 -> 0
A112: 12 | B112: 1993 | C112: Peanuts | D112: '000 lbs | H112: =(F112*1000/constants!B$4)*constants!B$3 -> 0 | J112: =(H112*constants!$B$6)*constants!D$40*Control!C$85*Control!G$85*Control!K$85 -> 0 | L112: =(H112*kg.MT)*(1+constants!D$40)*Control!C$85*constants!$B$28 -> 0
A113: 13 | B113: 1993 | C113: Dry Edible Beans | D113: '000 hundredweight | H113: =(F113*constants!B$5)*constants!B$15 -> 0 | J113: =(H113*constants!$B$6)*constants!D$41*Control!C$86*Control!G$86*Control!K$86 -> 0 | L113: =(H113*kg.MT)*(1+constants!D$41)*Control!C$86*constants!$B$28 -> 0
A114: 14 | B114: 1993 | C114: Dry Edible Peas | D114: '000 hundredweight | H114: =(F114*constants!B$5)*constants!B$15 -> 0 | J114: =(H114*constants!$B$6)*constants!D$42*Control!C$87*Control!G$87*Control!K$87 -> 0 | L114: =(H114*kg.MT)*(1+constants!D$42)*Control!C$87*constants!$B$28 -> 0
A115: 15 | B115: 1993 | C115: Austrian Winter Peas | D115: '000 hundredweight | H115: =(F115*constants!B$5)*constants!B$15 -> 0 | J115: =(H115*constants!$B$6)*constants!D$43*Control!C$88*Control!G$88*Control!K$88 -> 0 | L115: =(H115*kg.MT)*(1+constants!D$43)*Control!C$88*constants!$B$28 -> 0
A116: 16 | B116: 1993 | C116: Lentils | D116: '000 hundredweight | H116: =(F116*constants!B$5)*constants!B$15 -> 0 | J116: =(H116*constants!$B$6)*constants!D$44*Control!C$89*Control!G$89*Control!K$89 -> 0 | L116: =(H116*kg.MT)*(1+constants!D$44)*Control!C$89*constants!$B$28 -> 0
A117: 17 | B117: 1993 | C117: Wrinkled Seed Peas | D117: '000 hundredweight | H117: =(F117*constants!B$5)*constants!B$15 -> 0 | J117: =(H117*constants!$B$6)*constants!D$45*Control!C$90*Control!G$90*Control!K$90 -> 0 | L117: =(H117*kg.MT)*(1+constants!D$45)*Control!C$90*constants!$B$28 -> 0
B118: 1993 | C118: Red Clover | D118: metric tons | H118: =F118 -> 0 | J118: NA | L118: =(H118*kg.MT)*constants!$B$28 -> 0
B119: 1993 | C119: White Clover | D119: metric tons | H119: =F119 -> 0 | J119: NA | L119: =(H119*kg.MT)*constants!$B$28 -> 0
B120: 1993 | C120: Birdsfoot Trefoil | D120: metric tons | H120: =F120 -> 0 | J120: NA | L120: =(H120*kg.MT)*constants!$B$28 -> 0
B121: 1993 | C121: Arrowleaf Clover | D121: metric tons | H121: =F121 -> 0 | J121: NA | L121: =(H121*kg.MT)*constants!$B$28 -> 0
B122: 1993 | C122: Crimson Clover | D122: metric tons | H122: =F122 -> 0 | J122: NA | L122: =(H122*kg.MT)*constants!$B$28 -> 0
C123: TOTAL | H123: =SUM(H102:H122) -> 0 | J123: =SUM(J102:J117) -> 0 | L123: =SUM(L102:L122) -> 0
C125: Histosols (High Organic Content Soils)
D126: Acreage Cultivated | F126: Hectares Cultivated | H126: Emissions (kg N2O-N) | J126: Direct N2O Emissions (metric tons N2O) | L126: Direct Emissions (MMTCE) | N126: Direct Emissions (MMTCO2E)
C127: Temperate Climate | F127: =D127*ac.ha -> 0 | H127: =F127*HistEF -> 0 | J127: =H127*N2O_N2*(1/kg.MT) -> 0 | L127: =J127*N2OGWP*C_CO2*10^-6 -> 0 | N127: =L127/C_CO2 -> 0
C128: Sub-tropical Climate | F128: =D128*ac.ha -> 0 | H128: =F128*TropHistEF -> 0 | J128: =H128*N2O_N2*(1/kg.MT) -> 0 | L128: =J128*N2OGWP*C_CO2*10^-6 -> 0 | N128: =L128/C_CO2 -> 0
C129: TOTAL | H129: =SUM(H127:H128) -> 0 | J129: =SUM(J127:J128) -> 0 | L129: =SUM(L127:L128) -> 0 | N129: =L129/C_CO2 -> 0
C131: Agriculture Soils - Emissions from Residues, Legumes, & Histosols | N131: 1994
C132: Legumes and Crop Residue Calculations
D133: Units | F133: Crop Production | H133: Crop Production (metric tons) | J133: N Returned to Soils (kg) | L133: N-Fixed by Crops (kg) | O133: Direct N2O Emissions (metric tons N2O) | Q133: Direct Emissions (MMTCE) | S133: Direct Emissions (MMTCO2E)
A134: 2 | B134: =N131 -> 1994 | C134: Alfalfa | D134: '000 tons | H134: =F134*MT_ton*1000 -> 0 | J134: NA | L134: =(H134*kg.MT)*(1+constants!D$30)*Control!C$75*constants!$B$28 -> 0 | N134: Residues | O134: =J155/kg.MT*EF.Dir*N2O_N2 -> 0 | Q134: =O134*N2OGWP*C_CO2*10^-6 -> 0 | S134: =Q134/C_CO2 -> 0
A135: 3 | B135: =B134 -> 1994 | C135: Corn for Grain | D135: '000 bushels | H135: =F135*1000*constants!C$31 -> 0 | J135: =(H135*constants!$B$6)*constants!D$31*Control!C$76*Control!G$76*Control!K$76 -> 0 | L135: NA | N135: Legumes | O135: =L155/kg.MT*EF.Dir*N2O_N2 -> 0 | Q135: =O135*N2OGWP*C_CO2*10^-6 -> 0 | S135: =Q135/C_CO2 -> 0
A136: 4 | B136: =B135 -> 1994 | C136: All Wheat | D136: '000 bushels | H136: =F136*1000*constants!C$32 -> 0 | J136: =(H136*constants!$B$6)*constants!D$32*Control!C$77*Control!G$77*Control!K$77 -> 0 | L136: NA
A137: 5 | B137: 1994 | C137: Barley | D137: '000 bushels | H137: =F137*1000*constants!C$33 -> 0 | J137: =(H137*constants!$B$6)*constants!D$33*Control!C$78*Control!G$78*Control!K$78 -> 0 | L137: NA
A138: 6 | B138: 1994 | C138: Sorghum for Grain | D138: '000 bushels | H138: =F138*1000*constants!C$34 -> 0 | J138: =(H138*constants!$B$6)*constants!D$34*Control!C$79*Control!G$79*Control!K$79 -> 0 | L138: NA
A139: 7 | B139: 1994 | C139: Oats | D139: '000 bushels | H139: =F139*1000*constants!C$35 -> 0 | J139: =(H139*constants!$B$6)*constants!D$35*Control!C$80*Control!G$80*Control!K$80 -> 0 | L139: NA
A140: 8 | B140: 1994 | C140: Rye | D140: '000 bushels | H140: =F140*1000*constants!C$36 -> 0 | J140: =(H140*constants!$B$6)*constants!D$36*Control!C$81*Control!G$81*Control!K$81 -> 0 | L140: NA
A141: 9 | B141: 1994 | C141: Millet | D141: '000 bushels | H141: =F141*1000*constants!C$37 -> 0 | J141: =(H141*constants!$B$6)*constants!D$37*Control!C$82*Control!G$82*Control!K$82 -> 0 | L141: NA
A142: 10 | B142: 1994 | C142: Rice | D142: '000 hundredweight | H142: =(F142*constants!B$5)*constants!B$15 -> 0 | J142: =(H142*constants!$B$6)*constants!D$38*Control!C$83*Control!G$83*Control!K$83 -> 0 | L142: NA
A143: 11 | B143: 1994 | C143: Soybeans | D143: '000 bushels | H143: =F143*1000*constants!C$39 -> 0 | J143: =(H143*constants!$B$6)*constants!D$39*Control!C$84*Control!G$84*Control!K$84 -> 0 | L143: =(H143*kg.MT)*(1+constants!D$39)*Control!C$84*constants!$B$28 -> 0
A144: 12 | B144: 1994 | C144: Peanuts | D144: '000 lbs | H144: =(F144*1000/constants!B$4)*constants!B$3 -> 0 | J144: =(H144*constants!$B$6)*constants!D$40*Control!C$85*Control!G$85*Control!K$85 -> 0 | L144: =(H144*kg.MT)*(1+constants!D$40)*Control!C$85*constants!$B$28 -> 0
A145: 13 | B145: 1994 | C145: Dry Edible Beans | D145: '000 hundredweight | H145: =(F145*constants!B$5)*constants!B$15 -> 0 | J145: =(H145*constants!$B$6)*constants!D$41*Control!C$86*Control!G$86*Control!K$86 -> 0 | L145: =(H145*kg.MT)*(1+constants!D$41)*Control!C$86*constants!$B$28 -> 0
A146: 14 | B146: 1994 | C146: Dry Edible Peas | D146: '000 hundredweight | H146: =(F146*constants!B$5)*constants!B$15 -> 0 | J146: =(H146*constants!$B$6)*constants!D$42*Control!C$87*Control!G$87*Control!K$87 -> 0 | L146: =(H146*kg.MT)*(1+constants!D$42)*Control!C$87*constants!$B$28 -> 0
A147: 15 | B147: 1994 | C147: Austrian Winter Peas | D147: '000 hundredweight | H147: =(F147*constants!B$5)*constants!B$15 -> 0 | J147: =(H147*constants!$B$6)*constants!D$43*Control!C$88*Control!G$88*Control!K$88 -> 0 | L147: =(H147*kg.MT)*(1+constants!D$43)*Control!C$88*constants!$B$28 -> 0
A148: 16 | B148: 1994 | C148: Lentils | D148: '000 hundredweight | H148: =(F148*constants!B$5)*constants!B$15 -> 0 | J148: =(H148*constants!$B$6)*constants!D$44*Control!C$89*Control!G$89*Control!K$89 -> 0 | L148: =(H148*kg.MT)*(1+constants!D$44)*Control!C$89*constants!$B$28 -> 0
A149: 17 | B149: 1994 | C149: Wrinkled Seed Peas | D149: '000 hundredweight | H149: =(F149*constants!B$5)*constants!B$15 -> 0 | J149: =(H149*constants!$B$6)*constants!D$45*Control!C$90*Control!G$90*Control!K$90 -> 0 | L149: =(H149*kg.MT)*(1+constants!D$45)*Control!C$90*constants!$B$28 -> 0
B150: 1994 | C150: Red Clover | D150: metric tons | H150: =F150 -> 0 | J150: NA | L150: =(H150*kg.MT)*constants!$B$28 -> 0
B151: 1994 | C151: White Clover | D151: metric tons | H151: =F151 -> 0 | J151: NA | L151: =(H151*kg.MT)*constants!$B$28 -> 0
B152: 1994 | C152: Birdsfoot Trefoil | D152: metric tons | H152: =F152 -> 0 | J152: NA | L152: =(H152*kg.MT)*constants!$B$28 -> 0
B153: 1994 | C153: Arrowleaf Clover | D153: metric tons | H153: =F153 -> 0 | J153: NA | L153: =(H153*kg.MT)*constants!$B$28 -> 0
B154: 1994 | C154: Crimson Clover | D154: metric tons | H154: =F154 -> 0 | J154: NA | L154: =(H154*kg.MT)*constants!$B$28 -> 0
C155: TOTAL | H155: =SUM(H134:H154) -> 0 | J155: =SUM(J134:J149) -> 0 | L155: =SUM(L134:L154) -> 0
C157: Histosols (High Organic Content Soils)
D158: Acreage Cultivated | F158: Hectares Cultivated | H158: Emissions (kg N2O-N) | J158: Direct N2O Emissions (metric tons N2O) | L158: Direct Emissions (MMTCE) | N158: Direct Emissions (MMTCO2E)
C159: Temperate Climate | F159: =D159*ac.ha -> 0 | H159: =F159*HistEF -> 0 | J159: =H159*N2O_N2*(1/kg.MT) -> 0 | L159: =J159*N2OGWP*C_CO2*10^-6 -> 0 | N159: =L159/C_CO2 -> 0
C160: Sub-tropical Climate | F160: =D160*ac.ha -> 0 | H160: =F160*TropHistEF -> 0 | J160: =H160*N2O_N2*(1/kg.MT) -> 0 | L160: =J160*N2OGWP*C_CO2*10^-6 -> 0 | N160: =L160/C_CO2 -> 0
C161: TOTAL | H161: =SUM(H159:H160) -> 0 | J161: =SUM(J159:J160) -> 0 | L161: =SUM(L159:L160) -> 0 | N161: =L161/C_CO2 -> 0
C163: Agriculture Soils - Emissions from Residues, Legumes, & Histosols | N163: 1995
C164: Legumes and Crop Residue Calculations
D165: Units | F165: Crop Production | H165: Crop Production (metric tons) | J165: N Returned to Soils (kg) | L165: N-Fixed by Crops (kg) | O165: Direct N2O Emissions (metric tons N2O) | Q165: Direct Emissions (MMTCE) | S165: Direct Emissions (MMTCO2E)
A166: 2 | B166: =N163 -> 1995 | C166: Alfalfa | D166: '000 tons | H166: =F166*MT_ton*1000 -> 0 | J166: NA | L166: =(H166*kg.MT)*(1+constants!D$30)*Control!C$75*constants!$B$28 -> 0 | N166: Residues | O166: =J187/kg.MT*EF.Dir*N2O_N2 -> 0 | Q166: =O166*N2OGWP*C_CO2*10^-6 -> 0 | S166: =Q166/C_CO2 -> 0
A167: 3 | B167: =B166 -> 1995 | C167: Corn for Grain | D167: '000 bushels | H167: =F167*1000*constants!C$31 -> 0 | J167: =(H167*constants!$B$6)*constants!D$31*Control!C$76*Control!G$76*Control!K$76 -> 0 | L167: NA | N167: Legumes | O167: =L187/kg.MT*EF.Dir*N2O_N2 -> 0 | Q167: =O167*N2OGWP*C_CO2*10^-6 -> 0 | S167: =Q167/C_CO2 -> 0
A168: 4 | B168: =B167 -> 1995 | C168: All Wheat | D168: '000 bushels | H168: =F168*1000*constants!C$32 -> 0 | J168: =(H168*constants!$B$6)*constants!D$32*Control!C$77*Control!G$77*Control!K$77 -> 0 | L168: NA
A169: 5 | B169: 1995 | C169: Barley | D169: '000 bushels | H169: =F169*1000*constants!C$33 -> 0 | J169: =(H169*constants!$B$6)*constants!D$33*Control!C$78*Control!G$78*Control!K$78 -> 0 | L169: NA
A170: 6 | B170: 1995 | C170: Sorghum for Grain | D170: '000 bushels | H170: =F170*1000*constants!C$34 -> 0 | J170: =(H170*constants!$B$6)*constants!D$34*Control!C$79*Control!G$79*Control!K$79 -> 0 | L170: NA
A171: 7 | B171: 1995 | C171: Oats | D171: '000 bushels | H171: =F171*1000*constants!C$35 -> 0 | J171: =(H171*constants!$B$6)*constants!D$35*Control!C$80*Control!G$80*Control!K$80 -> 0 | L171: NA
A172: 8 | B172: 1995 | C172: Rye | D172: '000 bushels | H172: =F172*1000*constants!C$36 -> 0 | J172: =(H172*constants!$B$6)*constants!D$36*Control!C$81*Control!G$81*Control!K$81 -> 0 | L172: NA
A173: 9 | B173: 1995 | C173: Millet | D173: '000 bushels | H173: =F173*1000*constants!C$37 -> 0 | J173: =(H173*constants!$B$6)*constants!D$37*Control!C$82*Control!G$82*Control!K$82 -> 0 | L173: NA
A174: 10 | B174: 1995 | C174: Rice | D174: '000 hundredweight | H174: =(F174*constants!B$5)*constants!B$15 -> 0 | J174: =(H174*constants!$B$6)*constants!D$38*Control!C$83*Control!G$83*Control!K$83 -> 0 | L174: NA
A175: 11 | B175: 1995 | C175: Soybeans | D175: '000 bushels | H175: =F175*1000*constants!C$39 -> 0 | J175: =(H175*constants!$B$6)*constants!D$39*Control!C$84*Control!G$84*Control!K$84 -> 0 | L175: =(H175*kg.MT)*(1+constants!D$39)*Control!C$84*constants!$B$28 -> 0
A176: 12 | B176: 1995 | C176: Peanuts | D176: '000 lbs | H176: =(F176*1000/constants!B$4)*constants!B$3 -> 0 | J176: =(H176*constants!$B$6)*constants!D$40*Control!C$85*Control!G$85*Control!K$85 -> 0 | L176: =(H176*kg.MT)*(1+constants!D$40)*Control!C$85*constants!$B$28 -> 0
A177: 13 | B177: 1995 | C177: Dry Edible Beans | D177: '000 hundredweight | H177: =(F177*constants!B$5)*constants!B$15 -> 0 | J177: =(H177*constants!$B$6)*constants!D$41*Control!C$86*Control!G$86*Control!K$86 -> 0 | L177: =(H177*kg.MT)*(1+constants!D$41)*Control!C$86*constants!$B$28 -> 0
A178: 14 | B178: 1995 | C178: Dry Edible Peas | D178: '000 hundredweight | H178: =(F178*constants!B$5)*constants!B$15 -> 0 | J178: =(H178*constants!$B$6)*constants!D$42*Control!C$87*Control!G$87*Control!K$87 -> 0 | L178: =(H178*kg.MT)*(1+constants!D$42)*Control!C$87*constants!$B$28 -> 0
A179: 15 | B179: 1995 | C179: Austrian Winter Peas | D179: '000 hundredweight | H179: =(F179*constants!B$5)*constants!B$15 -> 0 | J179: =(H179*constants!$B$6)*constants!D$43*Control!C$88*Control!G$88*Control!K$88 -> 0 | L179: =(H179*kg.MT)*(1+constants!D$43)*Control!C$88*constants!$B$28 -> 0
A180: 16 | B180: 1995 | C180: Lentils | D180: '000 hundredweight | H180: =(F180*constants!B$5)*constants!B$15 -> 0 | J180: =(H180*constants!$B$6)*constants!D$44*Control!C$89*Control!G$89*Control!K$89 -> 0 | L180: =(H180*kg.MT)*(1+constants!D$44)*Control!C$89*constants!$B$28 -> 0
A181: 17 | B181: 1995 | C181: Wrinkled Seed Peas | D181: '000 hundredweight | H181: =(F181*constants!B$5)*constants!B$15 -> 0 | J181: =(H181*constants!$B$6)*constants!D$45*Control!C$90*Control!G$90*Control!K$90 -> 0 | L181: =(H181*kg.MT)*(1+constants!D$45)*Control!C$90*constants!$B$28 -> 0
B182: 1995 | C182: Red Clover | D182: metric tons | H182: =F182 -> 0 | J182: NA | L182: =(H182*kg.MT)*constants!$B$28 -> 0
B183: 1995 | C183: White Clover | D183: metric tons | H183: =F183 -> 0 | J183: NA | L183: =(H183*kg.MT)*constants!$B$28 -> 0
B184: 1995 | C184: Birdsfoot Trefoil | D184: metric tons | H184: =F184 -> 0 | J184: NA | L184: =(H184*kg.MT)*constants!$B$28 -> 0
B185: 1995 | C185: Arrowleaf Clover | D185: metric tons | H185: =F185 -> 0 | J185: NA | L185: =(H185*kg.MT)*constants!$B$28 -> 0
B186: 1995 | C186: Crimson Clover | D186: metric tons | H186: =F186 -> 0 | J186: NA | L186: =(H186*kg.MT)*constants!$B$28 -> 0
C187: TOTAL | H187: =SUM(H166:H186) -> 0 | J187: =SUM(J166:J181) -> 0 | L187: =SUM(L166:L186) -> 0
C189: Histosols (High Organic Content Soils)
D190: Acreage Cultivated | F190: Hectares Cultivated | H190: Emissions (kg N2O-N) | J190: Direct N2O Emissions (metric tons N2O) | L190: Direct Emissions (MMTCE) | N190: Direct Emissions (MMTCO2E)
C191: Temperate Climate | F191: =D191*ac.ha -> 0 | H191: =F191*HistEF -> 0 | J191: =H191*N2O_N2*(1/kg.MT) -> 0 | L191: =J191*N2OGWP*C_CO2*10^-6 -> 0 | N191: =L191/C_CO2 -> 0
C192: Sub-tropical Climate | F192: =D192*ac.ha -> 0 | H192: =F192*TropHistEF -> 0 | J192: =H192*N2O_N2*(1/kg.MT) -> 0 | L192: =J192*N2OGWP*C_CO2*10^-6 -> 0 | N192: =L192/C_CO2 -> 0
C193: TOTAL | H193: =SUM(H191:H192) -> 0 | J193: =SUM(J191:J192) -> 0 | L193: =SUM(L191:L192) -> 0 | N193: =L193/C_CO2 -> 0
C195: Agriculture Soils - Emissions from Residues, Legumes, & Histosols | N195: 1996
C196: Legumes and Crop Residue Calculations
D197: Units | F197: Crop Production | H197: Crop Production (metric tons) | J197: N Returned to Soils (kg) | L197: N-Fixed by Crops (kg) | O197: Direct N2O Emissions (metric tons N2O) | Q197: Direct Emissions (MMTCE) | S197: Direct Emissions (MMTCO2E)
A198: 2 | B198: =N195 -> 1996 | C198: Alfalfa | D198: '000 tons | H198: =F198*MT_ton*1000 -> 0 | J198: NA | L198: =(H198*kg.MT)*(1+constants!D$30)*Control!C$75*constants!$B$28 -> 0 | N198: Residues | O198: =J219/kg.MT*EF.Dir*N2O_N2 -> 0 | Q198: =O198*N2OGWP*C_CO2*10^-6 -> 0 | S198: =Q198/C_CO2 -> 0
A199: 3 | B199: =B198 -> 1996 | C199: Corn for Grain | D199: '000 bushels | H199: =F199*1000*constants!C$31 -> 0 | J199: =(H199*constants!$B$6)*constants!D$31*Control!C$76*Control!G$76*Control!K$76 -> 0 | L199: NA | N199: Legumes | O199: =L219/kg.MT*EF.Dir*N2O_N2 -> 0 | Q199: =O199*N2OGWP*C_CO2*10^-6 -> 0 | S199: =Q199/C_CO2 -> 0
A200: 4 | B200: =B199 -> 1996 | C200: All Wheat | D200: '000 bushels | H200: =F200*1000*constants!C$32 -> 0 | J200: =(H200*constants!$B$6)*constants!D$32*Control!C$77*Control!G$77*Control!K$77 -> 0 | L200: NA
A201: 5 | B201: 1996 | C201: Barley | D201: '000 bushels | H201: =F201*1000*constants!C$33 -> 0 | J201: =(H201*constants!$B$6)*constants!D$33*Control!C$78*Control!G$78*Control!K$78 -> 0 | L201: NA
A202: 6 | B202: 1996 | C202: Sorghum for Grain | D202: '000 bushels | H202: =F202*1000*constants!C$34 -> 0 | J202: =(H202*constants!$B$6)*constants!D$34*Control!C$79*Control!G$79*Control!K$79 -> 0 | L202: NA
A203: 7 | B203: 1996 | C203: Oats | D203: '000 bushels | H203: =F203*1000*constants!C$35 -> 0 | J203: =(H203*constants!$B$6)*constants!D$35*Control!C$80*Control!G$80*Control!K$80 -> 0 | L203: NA
A204: 8 | B204: 1996 | C204: Rye | D204: '000 bushels | H204: =F204*1000*constants!C$36 -> 0 | J204: =(H204*constants!$B$6)*constants!D$36*Control!C$81*Control!G$81*Control!K$81 -> 0 | L204: NA
A205: 9 | B205: 1996 | C205: Millet | D205: '000 bushels | H205: =F205*1000*constants!C$37 -> 0 | J205: =(H205*constants!$B$6)*constants!D$37*Control!C$82*Control!G$82*Control!K$82 -> 0 | L205: NA
A206: 10 | B206: 1996 | C206: Rice | D206: '000 hundredweight | H206: =(F206*constants!B$5)*constants!B$15 -> 0 | J206: =(H206*constants!$B$6)*constants!D$38*Control!C$83*Control!G$83*Control!K$83 -> 0 | L206: NA
A207: 11 | B207: 1996 | C207: Soybeans | D207: '000 bushels | H207: =F207*1000*constants!C$39 -> 0 | J207: =(H207*constants!$B$6)*constants!D$39*Control!C$84*Control!G$84*Control!K$84 -> 0 | L207: =(H207*kg.MT)*(1+constants!D$39)*Control!C$84*constants!$B$28 -> 0
A208: 12 | B208: 1996 | C208: Peanuts | D208: '000 lbs | H208: =(F208*1000/constants!B$4)*constants!B$3 -> 0 | J208: =(H208*constants!$B$6)*constants!D$40*Control!C$85*Control!G$85*Control!K$85 -> 0 | L208: =(H208*kg.MT)*(1+constants!D$40)*Control!C$85*constants!$B$28 -> 0
A209: 13 | B209: 1996 | C209: Dry Edible Beans | D209: '000 hundredweight | H209: =(F209*constants!B$5)*constants!B$15 -> 0 | J209: =(H209*constants!$B$6)*constants!D$41*Control!C$86*Control!G$86*Control!K$86 -> 0 | L209: =(H209*kg.MT)*(1+constants!D$41)*Control!C$86*constants!$B$28 -> 0
A210: 14 | B210: 1996 | C210: Dry Edible Peas | D210: '000 hundredweight | H210: =(F210*constants!B$5)*constants!B$15 -> 0 | J210: =(H210*constants!$B$6)*constants!D$42*Control!C$87*Control!G$87*Control!K$87 -> 0 | L210: =(H210*kg.MT)*(1+constants!D$42)*Control!C$87*constants!$B$28 -> 0
A211: 15 | B211: 1996 | C211: Austrian Winter Peas | D211: '000 hundredweight | H211: =(F211*constants!B$5)*constants!B$15 -> 0 | J211: =(H211*constants!$B$6)*constants!D$43*Control!C$88*Control!G$88*Control!K$88 -> 0 | L211: =(H211*kg.MT)*(1+constants!D$43)*Control!C$88*constants!$B$28 -> 0
A212: 16 | B212: 1996 | C212: Lentils | D212: '000 hundredweight | H212: =(F212*constants!B$5)*constants!B$15 -> 0 | J212: =(H212*constants!$B$6)*constants!D$44*Control!C$89*Control!G$89*Control!K$89 -> 0 | L212: =(H212*kg.MT)*(1+constants!D$44)*Control!C$89*constants!$B$28 -> 0
A213: 17 | B213: 1996 | C213: Wrinkled Seed Peas | D213: '000 hundredweight | H213: =(F213*constants!B$5)*constants!B$15 -> 0 | J213: =(H213*constants!$B$6)*constants!D$45*Control!C$90*Control!G$90*Control!K$90 -> 0 | L213: =(H213*kg.MT)*(1+constants!D$45)*Control!C$90*constants!$B$28 -> 0
... 881 more rows

Sheet Ag Soils-Plant-Fertilizers
C1: ="4b. Ag Soils Plant Fertilizer Emissions in "&StateName -> 4b. Ag Soils Plant Fertilizer Emissions in Alaska
C3: Agriculture Soils - Emissions from Fertilizers | L3: 1990
C4: Fertilizer Calculations
C5: Growing Year Entry | D5: Total Fertilizer Use (kg N) | F5: Total N in Fertilizers (Calendar Year) | H5: Unvolatized N (kg) | J5: Volatized N (kg) | L5: Direct N2O Emissions (metric tons) | N5: Indirect N2O Emissions (metric tons) | P5: Direct Emissions (MMTCE) | R5: Indirect Emissions (MMTCE) | T5: Direct Emissions (MMTCO2E) | V5: Indirect Emissions (MMTCO2E)
B6: =L3 -> 1990 | C6: Synthetic | F6: =$D6*0.65+$D22*0.35 -> 0 | H6: =($F6*(1-VolSyn)) -> 0 | J6: =$F6*VolSyn -> 0 | L6: =(H6+H7)/kg.MT*EF.Dir*N2O_N2 -> 0 | N6: =(J6+J7)/kg.MT*Vol.EF*N2O_N2 -> 0 | P6: =L6*N2OGWP*C_CO2*10^-6 -> 0 | R6: =N6*N2OGWP*C_CO2*10^-6 -> 0 | T6: =P6/C_CO2 -> 0 | V6: =R6/C_CO2 -> 0
C7: Organic | D7: =SUM(D8:D14) -> 0 | F7: =SUM(F8:F14) -> 0 | H7: =$F16*NOrg*(1-VolOrg) -> 0 | J7: =$F16*NOrg*VolOrg -> 0
B8: =B6 -> 1990 | C8: Dried Blood | F8: =$D8*0.65+$D24*0.35 -> 0
B9: =B8 -> 1990 | C9: Compost | F9: 0
B10: =B8 -> 1990 | C10: Dried Manure | F10: 0
B11: =B9 -> 1990 | C11: Activated Sewage Sludge | F11: 0
B12: =B10 -> 1990 | C12: Other Sewage Sludge | F12: 0
B13: =B11 -> 1990 | C13: Tankage | F13: 0
B14: =B12 -> 1990 | C14: Other | F14: 0
C15: Dried Manure % | D15: =IF(D7=0,0,D10/D7) -> 0 | F15: =IF(F7=0,0,F10/F7) -> 0
C16: Non-Manure Organics | D16: =D7*(1-D15) -> 0 | F16: =F7*(1-F15) -> 0
C17: Manure Organics | D17: =D7*D15 -> 0 | F17: =F7*F15 -> 0
C19: Agriculture Soils - Emissions from Fertilizers | L19: 1991
C20: Fertilizer Calculations
C21: Growing Year Entry | D21: Total Fertilizer Use (kg N) | F21: Total N in Fertilizers (Calendar Year) | H21: Unvolatized N (kg) | J21: Volatized N (kg) | L21: Direct N2O Emissions (metric tons) | N21: Indirect N2O Emissions (metric tons) | P21: Direct Emissions (MMTCE) | R21: Indirect Emissions (MMTCE) | T21: Direct Emissions (MMTCO2E) | V21: Indirect Emissions (MMTCO2E)
B22: =L19 -> 1991 | C22: Synthetic | F22: =$D22*0.65+$D38*0.35 -> 0 | H22: =($F22*(1-VolSyn)) -> 0 | J22: =$F22*VolSyn -> 0 | L22: =(H22+H23)/kg.MT*EF.Dir*N2O_N2 -> 0 | N22: =(J22+J23)/kg.MT*Vol.EF*N2O_N2 -> 0 | P22: =L22*N2OGWP*C_CO2*10^-6 -> 0 | R22: =N22*N2OGWP*C_CO2*10^-6 -> 0 | T22: =P22/C_CO2 -> 0 | V22: =R22/C_CO2 -> 0
C23: Organic | D23: =SUM(D24:D30) -> 0 | F23: =SUM(F24:F30) -> 0 | H23: =$F32*NOrg*(1-VolOrg) -> 0 | J23: =$F32*NOrg*VolOrg -> 0
B24: =B22 -> 1991 | C24: Dried Blood | F24: =$D24*0.65+$D40*0.35 -> 0
B25: =B24 -> 1991 | C25: Compost | F25: 0
B26: =B24 -> 1991 | C26: Dried Manure | F26: 0
B27: =B25 -> 1991 | C27: Activated Sewage Sludge | F27: 0
B28: =B26 -> 1991 | C28: Other Sewage Sludge | F28: 0
B29: =B27 -> 1991 | C29: Tankage | F29: 0
B30: =B28 -> 1991 | C30: Other | F30: 0
C31: Dried Manure % | D31: =IF(D23=0,0,D26/D23) -> 0 | F31: =IF(F23=0,0,F26/F23) -> 0
C32: Non-Manure Organics | D32: =D23*(1-D31) -> 0 | F32: =F23*(1-F31) -> 0
C33: Manure Organics | D33: =D23*D31 -> 0 | F33: =F23*F31 -> 0
C35: Agriculture Soils - Emissions from Fertilizers | L35: 1992
C36: Fertilizer Calculations
C37: Growing Year Entry | D37: Total Fertilizer Use (kg N) | F37: Total N in Fertilizers (Calendar Year) | H37: Unvolatized N (kg) | J37: Volatized N (kg) | L37: Direct N2O Emissions (metric tons) | N37: Indirect N2O Emissions (metric tons) | P37: Direct Emissions (MMTCE) | R37: Indirect Emissions (MMTCE) | T37: Direct Emissions (MMTCO2E) | V37: Indirect Emissions (MMTCO2E)
B38: =L35 -> 1992 | C38: Synthetic | F38: =$D38*0.65+$D54*0.35 -> 0 | H38: =($F38*(1-VolSyn)) -> 0 | J38: =$F38*VolSyn -> 0 | L38: =(H38+H39)/kg.MT*EF.Dir*N2O_N2 -> 0 | N38: =(J38+J39)/kg.MT*Vol.EF*N2O_N2 -> 0 | P38: =L38*N2OGWP*C_CO2*10^-6 -> 0 | R38: =N38*N2OGWP*C_CO2*10^-6 -> 0 | T38: =P38/C_CO2 -> 0 | V38: =R38/C_CO2 -> 0
C39: Organic | D39: =SUM(D40:D46) -> 0 | F39: =SUM(F40:F46) -> 0 | H39: =$F48*NOrg*(1-VolOrg) -> 0 | J39: =$F48*NOrg*VolOrg -> 0
B40: =B38 -> 1992 | C40: Dried Blood | F40: =$D40*0.65+$D56*0.35 -> 0
B41: =B40 -> 1992 | C41: Compost | F41: 0
B42: =B40 -> 1992 | C42: Dried Manure | F42: 0
B43: =B41 -> 1992 | C43: Activated Sewage Sludge | F43: 0
B44: =B42 -> 1992 | C44: Other Sewage Sludge | F44: 0
B45: =B43 -> 1992 | C45: Tankage | F45: 0
B46: =B44 -> 1992 | C46: Other | F46: 0
C47: Dried Manure % | D47: =IF(D39=0,0,D42/D39) -> 0 | F47: =IF(F39=0,0,F42/F39) -> 0
C48: Non-Manure Organics | D48: =D39*(1-D47) -> 0 | F48: =F39*(1-F47) -> 0
C49: Manure Organics | D49: =D39*D47 -> 0 | F49: =F39*F47 -> 0
C51: Agriculture Soils - Emissions from Fertilizers | L51: 1993
C52: Fertilizer Calculations
C53: Growing Year Entry | D53: Total Fertilizer Use (kg N) | F53: Total N in Fertilizers (Calendar Year) | H53: Unvolatized N (kg) | J53: Volatized N (kg) | L53: Direct N2O Emissions (metric tons) | N53: Indirect N2O Emissions (metric tons) | P53: Direct Emissions (MMTCE) | R53: Indirect Emissions (MMTCE) | T53: Direct Emissions (MMTCO2E) | V53: Indirect Emissions (MMTCO2E)
B54: =L51 -> 1993 | C54: Synthetic | F54: =$D54*0.65+$D70*0.35 -> 0 | H54: =($F54*(1-VolSyn)) -> 0 | J54: =$F54*VolSyn -> 0 | L54: =(H54+H55)/kg.MT*EF.Dir*N2O_N2 -> 0 | N54: =(J54+J55)/kg.MT*Vol.EF*N2O_N2 -> 0 | P54: =L54*N2OGWP*C_CO2*10^-6 -> 0 | R54: =N54*N2OGWP*C_CO2*10^-6 -> 0 | T54: =P54/C_CO2 -> 0 | V54: =R54/C_CO2 -> 0
C55: Organic | D55: =SUM(D56:D62) -> 0 | F55: =SUM(F56:F62) -> 0 | H55: =$F64*NOrg*(1-VolOrg) -> 0 | J55: =$F64*NOrg*VolOrg -> 0
B56: =B54 -> 1993 | C56: Dried Blood | F56: =$D56*0.65+$D72*0.35 -> 0
B57: =B56 -> 1993 | C57: Compost | F57: 0
B58: =B56 -> 1993 | C58: Dried Manure | F58: 0
B59: =B57 -> 1993 | C59: Activated Sewage Sludge | F59: 0
B60: =B58 -> 1993 | C60: Other Sewage Sludge | F60: 0
B61: =B59 -> 1993 | C61: Tankage | F61: 0
B62: =B60 -> 1993 | C62: Other | F62: 0
C63: Dried Manure % | D63: =IF(D55=0,0,D58/D55) -> 0 | F63: =IF(F55=0,0,F58/F55) -> 0
C64: Non-Manure Organics | D64: =D55*(1-D63) -> 0 | F64: =F55*(1-F63) -> 0
C65: Manure Organics | D65: =D55*D63 -> 0 | F65: =F55*F63 -> 0
C67: Agriculture Soils - Emissions from Fertilizers | L67: 1994
C68: Fertilizer Calculations
C69: Growing Year Entry | D69: Total Fertilizer Use (kg N) | F69: Total N in Fertilizers (Calendar Year) | H69: Unvolatized N (kg) | J69: Volatized N (kg) | L69: Direct N2O Emissions (metric tons) | N69: Indirect N2O Emissions (metric tons) | P69: Direct Emissions (MMTCE) | R69: Indirect Emissions (MMTCE) | T69: Direct Emissions (MMTCO2E) | V69: Indirect Emissions (MMTCO2E)
B70: =L67 -> 1994 | C70: Synthetic | F70: =$D70*0.65+$D86*0.35 -> 0 | H70: =($F70*(1-VolSyn)) -> 0 | J70: =$F70*VolSyn -> 0 | L70: =(H70+H71)/kg.MT*EF.Dir*N2O_N2 -> 0 | N70: =(J70+J71)/kg.MT*Vol.EF*N2O_N2 -> 0 | P70: =L70*N2OGWP*C_CO2*10^-6 -> 0 | R70: =N70*N2OGWP*C_CO2*10^-6 -> 0 | T70: =P70/C_CO2 -> 0 | V70: =R70/C_CO2 -> 0
C71: Organic | D71: =SUM(D72:D78) -> 0 | F71: =SUM(F72:F78) -> 0 | H71: =$F80*NOrg*(1-VolOrg) -> 0 | J71: =$F80*NOrg*VolOrg -> 0
B72: =B70 -> 1994 | C72: Dried Blood | F72: =$D72*0.65+$D88*0.35 -> 0
B73: =B72 -> 1994 | C73: Compost | F73: 0
B74: =B72 -> 1994 | C74: Dried Manure | F74: 0
B75: =B73 -> 1994 | C75: Activated Sewage Sludge | F75: 0
B76: =B74 -> 1994 | C76: Other Sewage Sludge | F76: 0
B77: =B75 -> 1994 | C77: Tankage | F77: 0
B78: =B76 -> 1994 | C78: Other | F78: 0
C79: Dried Manure % | D79: =IF(D71=0,0,D74/D71) -> 0 | F79: =IF(F71=0,0,F74/F71) -> 0
C80: Non-Manure Organics | D80: =D71*(1-D79) -> 0 | F80: =F71*(1-F79) -> 0
C81: Manure Organics | D81: =D71*D79 -> 0 | F81: =F71*F79 -> 0
C83: Agriculture Soils - Emissions from Fertilizers | L83: 1995
C84: Fertilizer Calculations
C85: Growing Year Entry | D85: Total Fertilizer Use (kg N) | F85: Total N in Fertilizers (Calendar Year) | H85: Unvolatized N (kg) | J85: Volatized N (kg) | L85: Direct N2O Emissions (metric tons) | N85: Indirect N2O Emissions (metric tons) | P85: Direct Emissions (MMTCE) | R85: Indirect Emissions (MMTCE) | T85: Direct Emissions (MMTCO2E) | V85: Indirect Emissions (MMTCO2E)
B86: =L83 -> 1995 | C86: Synthetic | F86: =$D86*0.65+$D102*0.35 -> 0 | H86: =($F86*(1-VolSyn)) -> 0 | J86: =$F86*VolSyn -> 0 | L86: =(H86+H87)/kg.MT*EF.Dir*N2O_N2 -> 0 | N86: =(J86+J87)/kg.MT*Vol.EF*N2O_N2 -> 0 | P86: =L86*N2OGWP*C_CO2*10^-6 -> 0 | R86: =N86*N2OGWP*C_CO2*10^-6 -> 0 | T86: =P86/C_CO2 -> 0 | V86: =R86/C_CO2 -> 0
C87: Organic | D87: =SUM(D88:D94) -> 0 | F87: =SUM(F88:F94) -> 0 | H87: =$F96*NOrg*(1-VolOrg) -> 0 | J87: =$F96*NOrg*VolOrg -> 0
B88: =B86 -> 1995 | C88: Dried Blood | F88: =$D88*0.65+$D104*0.35 -> 0
B89: =B88 -> 1995 | C89: Compost | F89: 0
B90: =B88 -> 1995 | C90: Dried Manure | F90: 0
B91: =B89 -> 1995 | C91: Activated Sewage Sludge | F91: 0
B92: =B90 -> 1995 | C92: Other Sewage Sludge | F92: 0
B93: =B91 -> 1995 | C93: Tankage | F93: 0
B94: =B92 -> 1995 | C94: Other | F94: 0
C95: Dried Manure % | D95: =IF(D87=0,0,D90/D87) -> 0 | F95: =IF(F87=0,0,F90/F87) -> 0
C96: Non-Manure Organics | D96: =D87*(1-D95) -> 0 | F96: =F87*(1-F95) -> 0
C97: Manure Organics | D97: =D87*D95 -> 0 | F97: =F87*F95 -> 0
C99: Agriculture Soils - Emissions from Fertilizers | L99: 1996
C100: Fertilizer Calculations
C101: Growing Year Entry | D101: Total Fertilizer Use (kg N) | F101: Total N in Fertilizers (Calendar Year) | H101: Unvolatized N (kg) | J101: Volatized N (kg) | L101: Direct N2O Emissions (metric tons) | N101: Indirect N2O Emissions (metric tons) | P101: Direct Emissions (MMTCE) | R101: Indirect Emissions (MMTCE) | T101: Direct Emissions (MMTCO2E) | V101: Indirect Emissions (MMTCO2E)
B102: =L99 -> 1996 | C102: Synthetic | F102: =$D102*0.65+$D118*0.35 -> 0 | H102: =($F102*(1-VolSyn)) -> 0 | J102: =$F102*VolSyn -> 0 | L102: =(H102+H103)/kg.MT*EF.Dir*N2O_N2 -> 0 | N102: =(J102+J103)/kg.MT*Vol.EF*N2O_N2 -> 0 | P102: =L102*N2OGWP*C_CO2*10^-6 -> 0 | R102: =N102*N2OGWP*C_CO2*10^-6 -> 0 | T102: =P102/C_CO2 -> 0 | V102: =R102/C_CO2 -> 0
C103: Organic | D103: =SUM(D104:D110) -> 0 | F103: =SUM(F104:F110) -> 0 | H103: =$F112*NOrg*(1-VolOrg) -> 0 | J103: =$F112*NOrg*VolOrg -> 0
B104: =B102 -> 1996 | C104: Dried Blood | F104: =$D104*0.65+$D120*0.35 -> 0
B105: =B104 -> 1996 | C105: Compost | F105: 0
B106: =B104 -> 1996 | C106: Dried Manure | F106: 0
B107: =B105 -> 1996 | C107: Activated Sewage Sludge | F107: 0
B108: =B106 -> 1996 | C108: Other Sewage Sludge | F108: 0
B109: =B107 -> 1996 | C109: Tankage | F109: 0
B110: =B108 -> 1996 | C110: Other | F110: 0
C111: Dried Manure % | D111: =IF(D103=0,0,D106/D103) -> 0 | F111: =IF(F103=0,0,F106/F103) -> 0
C112: Non-Manure Organics | D112: =D103*(1-D111) -> 0 | F112: =F103*(1-F111) -> 0
C113: Manure Organics | D113: =D103*D111 -> 0 | F113: =F103*F111 -> 0
C115: Agriculture Soils - Emissions from Fertilizers | L115: 1997
C116: Fertilizer Calculations
C117: Growing Year Entry | D117: Total Fertilizer Use (kg N) | F117: Total N in Fertilizers (Calendar Year) | H117: Unvolatized N (kg) | J117: Volatized N (kg) | L117: Direct N2O Emissions (metric tons) | N117: Indirect N2O Emissions (metric tons) | P117: Direct Emissions (MMTCE) | R117: Indirect Emissions (MMTCE) | T117: Direct Emissions (MMTCO2E) | V117: Indirect Emissions (MMTCO2E)
B118: =L115 -> 1997 | C118: Synthetic | F118: =$D118*0.65+$D134*0.35 -> 0 | H118: =($F118*(1-VolSyn)) -> 0 | J118: =$F118*VolSyn -> 0 | L118: =(H118+H119)/kg.MT*EF.Dir*N2O_N2 -> 0 | N118: =(J118+J119)/kg.MT*Vol.EF*N2O_N2 -> 0 | P118: =L118*N2OGWP*C_CO2*10^-6 -> 0 | R118: =N118*N2OGWP*C_CO2*10^-6 -> 0 | T118: =P118/C_CO2 -> 0 | V118: =R118/C_CO2 -> 0
C119: Organic | D119: =SUM(D120:D126) -> 0 | F119: =SUM(F120:F126) -> 0 | H119: =$F128*NOrg*(1-VolOrg) -> 0 | J119: =$F128*NOrg*VolOrg -> 0
B120: =B118 -> 1997 | C120: Dried Blood | F120: =$D120*0.65+$D136*0.35 -> 0
B121: =B120 -> 1997 | C121: Compost | F121: 0
B122: =B120 -> 1997 | C122: Dried Manure | F122: 0
B123: =B121 -> 1997 | C123: Activated Sewage Sludge | F123: 0
B124: =B122 -> 1997 | C124: Other Sewage Sludge | F124: 0
B125: =B123 -> 1997 | C125: Tankage | F125: 0
B126: =B124 -> 1997 | C126: Other | F126: 0
C127: Dried Manure % | D127: =IF(D119=0,0,D122/D119) -> 0 | F127: =IF(F119=0,0,F122/F119) -> 0
C128: Non-Manure Organics | D128: =D119*(1-D127) -> 0 | F128: =F119*(1-F127) -> 0
C129: Manure Organics | D129: =D119*D127 -> 0 | F129: =F119*F127 -> 0
C131: Agriculture Soils - Emissions from Fertilizers | L131: 1998
C132: Fertilizer Calculations
C133: Growing Year Entry | D133: Total Fertilizer Use (kg N) | F133: Total N in Fertilizers (Calendar Year) | H133: Unvolatized N (kg) | J133: Volatized N (kg) | L133: Direct N2O Emissions (metric tons) | N133: Indirect N2O Emissions (metric tons) | P133: Direct Emissions (MMTCE) | R133: Indirect Emissions (MMTCE) | T133: Direct Emissions (MMTCO2E) | V133: Indirect Emissions (MMTCO2E)
B134: =L131 -> 1998 | C134: Synthetic | F134: =$D134*0.65+$D150*0.35 -> 0 | H134: =($F134*(1-VolSyn)) -> 0 | J134: =$F134*VolSyn -> 0 | L134: =(H134+H135)/kg.MT*EF.Dir*N2O_N2 -> 0 | N134: =(J134+J135)/kg.MT*Vol.EF*N2O_N2 -> 0 | P134: =L134*N2OGWP*C_CO2*10^-6 -> 0 | R134: =N134*N2OGWP*C_CO2*10^-6 -> 0 | T134: =P134/C_CO2 -> 0 | V134: =R134/C_CO2 -> 0
C135: Organic | D135: =SUM(D136:D142) -> 0 | F135: =SUM(F136:F142) -> 0 | H135: =$F144*NOrg*(1-VolOrg) -> 0 | J135: =$F144*NOrg*VolOrg -> 0
B136: =B134 -> 1998 | C136: Dried Blood | F136: =$D136*0.65+$D152*0.35 -> 0
B137: =B136 -> 1998 | C137: Compost | F137: 0
B138: =B136 -> 1998 | C138: Dried Manure | F138: 0
B139: =B137 -> 1998 | C139: Activated Sewage Sludge | F139: 0
B140: =B138 -> 1998 | C140: Other Sewage Sludge | F140: 0
B141: =B139 -> 1998 | C141: Tankage | F141: 0
B142: =B140 -> 1998 | C142: Other | F142: 0
C143: Dried Manure % | D143: =IF(D135=0,0,D138/D135) -> 0 | F143: =IF(F135=0,0,F138/F135) -> 0
C144: Non-Manure Organics | D144: =D135*(1-D143) -> 0 | F144: =F135*(1-F143) -> 0
C145: Manure Organics | D145: =D135*D143 -> 0 | F145: =F135*F143 -> 0
C147: Agriculture Soils - Emissions from Fertilizers | L147: 1999
C148: Fertilizer Calculations
C149: Growing Year Entry | D149: Total Fertilizer Use (kg N) | F149: Total N in Fertilizers (Calendar Year) | H149: Unvolatized N (kg) | J149: Volatized N (kg) | L149: Direct N2O Emissions (metric tons) | N149: Indirect N2O Emissions (metric tons) | P149: Direct Emissions (MMTCE) | R149: Indirect Emissions (MMTCE) | T149: Direct Emissions (MMTCO2E) | V149: Indirect Emissions (MMTCO2E)
B150: =L147 -> 1999 | C150: Synthetic | F150: =$D150*0.65+$D166*0.35 -> 0 | H150: =($F150*(1-VolSyn)) -> 0 | J150: =$F150*VolSyn -> 0 | L150: =(H150+H151)/kg.MT*EF.Dir*N2O_N2 -> 0 | N150: =(J150+J151)/kg.MT*Vol.EF*N2O_N2 -> 0 | P150: =L150*N2OGWP*C_CO2*10^-6 -> 0 | R150: =N150*N2OGWP*C_CO2*10^-6 -> 0 | T150: =P150/C_CO2 -> 0 | V150: =R150/C_CO2 -> 0
C151: Organic | D151: =SUM(D152:D158) -> 0 | F151: =SUM(F152:F158) -> 0 | H151: =$F160*NOrg*(1-VolOrg) -> 0 | J151: =$F160*NOrg*VolOrg -> 0
B152: =B150 -> 1999 | C152: Dried Blood | F152: =$D152*0.65+$D168*0.35 -> 0
B153: =B152 -> 1999 | C153: Compost | F153: 0
B154: =B152 -> 1999 | C154: Dried Manure | F154: 0
B155: =B153 -> 1999 | C155: Activated Sewage Sludge | F155: 0
B156: =B154 -> 1999 | C156: Other Sewage Sludge | F156: 0
B157: =B155 -> 1999 | C157: Tankage | F157: 0
B158: =B156 -> 1999 | C158: Other | F158: 0
C159: Dried Manure % | D159: =IF(D151=0,0,D154/D151) -> 0 | F159: =IF(F151=0,0,F154/F151) -> 0
C160: Non-Manure Organics | D160: =D151*(1-D159) -> 0 | F160: =F151*(1-F159) -> 0
C161: Manure Organics | D161: =D151*D159 -> 0 | F161: =F151*F159 -> 0
C163: Agriculture Soils - Emissions from Fertilizers | L163: 2000
C164: Fertilizer Calculations
C165: Growing Year Entry | D165: Total Fertilizer Use (kg N) | F165: Total N in Fertilizers (Calendar Year) | H165: Unvolatized N (kg) | J165: Volatized N (kg) | L165: Direct N2O Emissions (metric tons) | N165: Indirect N2O Emissions (metric tons) | P165: Direct Emissions (MMTCE) | R165: Indirect Emissions (MMTCE) | T165: Direct Emissions (MMTCO2E) | V165: Indirect Emissions (MMTCO2E)
B166: =L163 -> 2000 | C166: Synthetic | F166: =$D166*0.65+$D182*0.35 -> 0 | H166: =($F166*(1-VolSyn)) -> 0 | J166: =$F166*VolSyn -> 0 | L166: =(H166+H167)/kg.MT*EF.Dir*N2O_N2 -> 0 | N166: =(J166+J167)/kg.MT*Vol.EF*N2O_N2 -> 0 | P166: =L166*N2OGWP*C_CO2*10^-6 -> 0 | R166: =N166*N2OGWP*C_CO2*10^-6 -> 0 | T166: =P166/C_CO2 -> 0 | V166: =R166/C_CO2 -> 0
C167: Organic | D167: =SUM(D168:D174) -> 0 | F167: =SUM(F168:F174) -> 0 | H167: =$F176*NOrg*(1-VolOrg) -> 0 | J167: =$F176*NOrg*VolOrg -> 0
B168: =B166 -> 2000 | C168: Dried Blood | F168: =$D168*0.65+$D184*0.35 -> 0
B169: =B168 -> 2000 | C169: Compost | F169: 0
B170: =B168 -> 2000 | C170: Dried Manure | F170: 0
B171: =B169 -> 2000 | C171: Activated Sewage Sludge | F171: 0
B172: =B170 -> 2000 | C172: Other Sewage Sludge | F172: 0
B173: =B171 -> 2000 | C173: Tankage | F173: 0
B174: =B172 -> 2000 | C174: Other | F174: 0
C175: Dried Manure % | D175: =IF(D167=0,0,D170/D167) -> 0 | F175: =IF(F167=0,0,F170/F167) -> 0
C176: Non-Manure Organics | D176: =D167*(1-D175) -> 0 | F176: =F167*(1-F175) -> 0
C177: Manure Organics | D177: =D167*D175 -> 0 | F177: =F167*F175 -> 0
C179: Agriculture Soils - Emissions from Fertilizers | L179: 2001
C180: Fertilizer Calculations
C181: Growing Year Entry | D181: Total Fertilizer Use (kg N) | F181: Total N in Fertilizers (Calendar Year) | H181: Unvolatized N (kg) | J181: Volatized N (kg) | L181: Direct N2O Emissions (metric tons) | N181: Indirect N2O Emissions (metric tons) | P181: Direct Emissions (MMTCE) | R181: Indirect Emissions (MMTCE) | T181: Direct Emissions (MMTCO2E) | V181: Indirect Emissions (MMTCO2E)
B182: =L179 -> 2001 | C182: Synthetic | F182: =$D182*0.65+$D198*0.35 -> 0 | H182: =($F182*(1-VolSyn)) -> 0 | J182: =$F182*VolSyn -> 0 | L182: =(H182+H183)/kg.MT*EF.Dir*N2O_N2 -> 0 | N182: =(J182+J183)/kg.MT*Vol.EF*N2O_N2 -> 0 | P182: =L182*N2OGWP*C_CO2*10^-6 -> 0 | R182: =N182*N2OGWP*C_CO2*10^-6 -> 0 | T182: =P182/C_CO2 -> 0 | V182: =R182/C_CO2 -> 0
C183: Organic | D183: =SUM(D184:D190) -> 0 | F183: =SUM(F184:F190) -> 0 | H183: =$F192*NOrg*(1-VolOrg) -> 0 | J183: =$F192*NOrg*VolOrg -> 0
B184: =B182 -> 2001 | C184: Dried Blood | F184: =$D184*0.65+$D200*0.35 -> 0
B185: =B184 -> 2001 | C185: Compost | F185: 0
B186: =B184 -> 2001 | C186: Dried Manure | F186: 0
B187: =B185 -> 2001 | C187: Activated Sewage Sludge | F187: 0
B188: =B186 -> 2001 | C188: Other Sewage Sludge | F188: 0
B189: =B187 -> 2001 | C189: Tankage | F189: 0
B190: =B188 -> 2001 | C190: Other | F190: 0
C191: Dried Manure % | D191: =IF(D183=0,0,D186/D183) -> 0 | F191: =IF(F183=0,0,F186/F183) -> 0
C192: Non-Manure Organics | D192: =D183*(1-D191) -> 0 | F192: =F183*(1-F191) -> 0
C193: Manure Organics | D193: =D183*D191 -> 0 | F193: =F183*F191 -> 0
C195: Agriculture Soils - Emissions from Fertilizers | L195: 2002
C196: Fertilizer Calculations
C197: Growing Year Entry | D197: Total Fertilizer Use (kg N) | F197: Total N in Fertilizers (Calendar Year) | H197: Unvolatized N (kg) | J197: Volatized N (kg) | L197: Direct N2O Emissions (metric tons) | N197: Indirect N2O Emissions (metric tons) | P197: Direct Emissions (MMTCE) | R197: Indirect Emissions (MMTCE) | T197: Direct Emissions (MMTCO2E) | V197: Indirect Emissions (MMTCO2E)
B198: =L195 -> 2002 | C198: Synthetic | F198: =$D198*0.65+$D214*0.35 -> 0 | H198: =($F198*(1-VolSyn)) -> 0 | J198: =$F198*VolSyn -> 0 | L198: =(H198+H199)/kg.MT*EF.Dir*N2O_N2 -> 0 | N198: =(J198+J199)/kg.MT*Vol.EF*N2O_N2 -> 0 | P198: =L198*N2OGWP*C_CO2*10^-6 -> 0 | R198: =N198*N2OGWP*C_CO2*10^-6 -> 0 | T198: =P198/C_CO2 -> 0 | V198: =R198/C_CO2 -> 0
C199: Organic | D199: =SUM(D200:D206) -> 0 | F199: =SUM(F200:F206) -> 0 | H199: =$F208*NOrg*(1-VolOrg) -> 0 | J199: =$F208*NOrg*VolOrg -> 0
B200: =B198 -> 2002 | C200: Dried Blood | F200: =$D200*0.65+$D216*0.35 -> 0
B201: =B200 -> 2002 | C201: Compost | F201: 0
B202: =B200 -> 2002 | C202: Dried Manure | F202: 0
B203: =B201 -> 2002 | C203: Activated Sewage Sludge | F203: 0
B204: =B202 -> 2002 | C204: Other Sewage Sludge | F204: 0
B205: =B203 -> 2002 | C205: Tankage | F205: 0
B206: =B204 -> 2002 | C206: Other | F206: 0
C207: Dried Manure % | D207: =IF(D199=0,0,D202/D199) -> 0 | F207: =IF(F199=0,0,F202/F199) -> 0
C208: Non-Manure Organics | D208: =D199*(1-D207) -> 0 | F208: =F199*(1-F207) -> 0
C209: Manure Organics | D209: =D199*D207 -> 0 | F209: =F199*F207 -> 0
C211: Agriculture Soils - Emissions from Fertilizers | L211: 2003
C212: Fertilizer Calculations
C213: Growing Year Entry | D213: Total Fertilizer Use (kg N) | F213: Total N in Fertilizers (Calendar Year) | H213: Unvolatized N (kg) | J213: Volatized N (kg) | L213: Direct N2O Emissions (metric tons) | N213: Indirect N2O Emissions (metric tons) | P213: Direct Emissions (MMTCE) | R213: Indirect Emissions (MMTCE) | T213: Direct Emissions (MMTCO2E) | V213: Indirect Emissions (MMTCO2E)
B214: =L211 -> 2003 | C214: Synthetic | F214: =$D214*0.65+$D230*0.35 -> 0 | H214: =($F214*(1-VolSyn)) -> 0 | J214: =$F214*VolSyn -> 0 | L214: =(H214+H215)/kg.MT*EF.Dir*N2O_N2 -> 0 | N214: =(J214+J215)/kg.MT*Vol.EF*N2O_N2 -> 0 | P214: =L214*N2OGWP*C_CO2*10^-6 -> 0 | R214: =N214*N2OGWP*C_CO2*10^-6 -> 0 | T214: =P214/C_CO2 -> 0 | V214: =R214/C_CO2 -> 0
... 355 more rows

Sheet Ag Soils-Animals
C1: ="4c. Agriculture Soils- Animal Emissions in "&StateName -> 4c. Agriculture Soils- Animal Emissions in Alaska
C3: Agriculture Soils - Emissions from Animals & Runoff | L3: 1990
G4: Nitrogen Excretion Checker against N2O from Manure Management | J4: K-NITROGEN EXCRETED BY MANAGEMENT SYSTEM (kg) | P4: DIRECT EMISSIONS (MT N)
D5: Number of Animals ('000 head) | F5: Total K-Nitrogen Excreted (kg) | H5: Indirect Animal N2O Emissions (metric tons N) | J5: Managed Systems | L5: Unmanaged Systems - Pasture, Range, and Paddock | N5: Unmanaged Systems - Daily Spread | P5: Manure Applied to Soils | R5: Pasture, Range and Paddock | T5: Leaching and Runoff
C6: =Control!$A$101 -> Dairy Cattle
A7: ='animal data'!D2 -> 2 | B7: =L$3 -> 1990 | C7: =Control!$A$102 -> Dairy Cows | D7: ='CH4 from Manure Management'!D6 -> 0 | F7: =D7*1000*(IF(NEx_DairyCow=Control!$F$102,INDEX(NEx_DairyCow2,MATCH(State,NEx_DairyCow3,0),MATCH($B7,'TAM and NEx Rates'!$N$2:$AT$2,0)),NEx_DairyCow)) -> 0 | G7: =F7-'N2O from Manure Management'!F6 -> 0 | H7: =(F7*VolPercent_Indirect*NH3_NOxEF)/1000 -> 0 | J7: =F7*(VLOOKUP(L3&State,mms_dairy,2,FALSE)+VLOOKUP(L3&State,mms_dairy,3,FALSE)+VLOOKUP(L3&State,mms_dairy,5,FALSE)+VLOOKUP(L3&State,mms_dairy,7,FALSE)) -> 0 | L7: =F7*(VLOOKUP(L3&State,mms_dairy,6,FALSE)) -> 0 | N7: =F7*(VLOOKUP(L3&State,mms_dairy,4,FALSE)) -> 0 | P7: =((J7+N7)*(1-VolPercent_Indirect)*NonVolEF)/kg.MT -> 0 | R7: =(L7*prpEF)/kg.MT -> 0 | T7: ='Ag Soils-Plant-Fertilizers'!H7 -> 0 | U7: Unvolatilized N from Organic Fertilizers (kg)
A8: ='animal data'!E2 -> 3 | B8: =L$3 -> 1990 | C8: =Control!$A$103 -> Dairy Replacement Heifers | D8: ='CH4 from Manure Management'!D7 -> 0 | F8: =D8*1000*(IF(NEx_DairyHeifer=Control!$F$103,INDEX(NEx_DairyHeifer2,MATCH(State,NEx_DairyHeifer3,0),MATCH($B8,'TAM and NEx Rates'!$N$2:$AT$2,0)),NEx_DairyHeifer)) -> 0 | G8: =F8-'N2O from Manure Management'!F7 -> 0 | H8: =(F8*VolPercent_Indirect*NH3_NOxEF)/1000 -> 0 | J8: =F8*(VLOOKUP(L3&State,manure_dairyheifers,2,FALSE)) -> 0 | L8: =F8*(VLOOKUP(L3&State,manure_dairyheifers,3,FALSE)) -> 0 | N8: =F8*(VLOOKUP(L3&State,manure_dairyheifers,4,FALSE)) -> 0 | P8: =((J8+N8)*(1-VolPercent_Indirect)*NonVolEF)/kg.MT -> 0 | R8: =(L8*prpEF)/kg.MT -> 0 | T8: ='Ag Soils-Plant-Fertilizers'!H6 -> 0 | U8: Unvolatilized N from Synthetic Fertilizers (kg)
B9: =L$3 -> 1990 | C9: =Control!$A$104 -> Beef Cattle | T9: =SUM(T7:T8)/kg.MT*LeachEF -> 0 | U9: Fertilizer Runoff/Leached (metric tons N)
A10: ='animal data'!Q2 -> 15 | B10: =L$3 -> 1990 | C10: =Control!$A$105 -> Feedlot Heifers | D10: ='CH4 from Manure Management'!D9 -> 0 | F10: =D10*1000*(IF(NEx_feedheifer=Control!$F$105,INDEX(NEx_feedheifer2,MATCH(State,NEx_feedheifer3,0),MATCH($B10,'TAM and NEx Rates'!$N$2:$AT$2,0)),NEx_feedheifer)) -> 0 | G10: =F10-'N2O from Manure Management'!F9 -> 0 | H10: =(F10*VolPercent_Indirect*NH3_NOxEF)/1000 -> 0 | J10: =F10*(VLOOKUP(State,manure_feedlotbeef,2,FALSE)) -> 0 | L10: NA | N10: NA | P10: =(J10*(1-VolPercent_Indirect)*NonVolEF)/kg.MT -> 0 | R10: NA
A11: ='animal data'!R2 -> 16 | B11: 1990 | C11: =Control!$A$106 -> Feedlot Steer | D11: ='CH4 from Manure Management'!D10 -> 0 | F11: =D11*1000*(IF(NEx_feedsteer=Control!$F$106,INDEX(NEx_feedsteer2,MATCH(State,NEx_feedsteer3,0),MATCH($B11,'TAM and NEx Rates'!$N$2:$AT$2,0)),NEx_feedsteer)) -> 0 | G11: =F11-'N2O from Manure Management'!F10 -> 0 | H11: 0 | J11: =F11*(VLOOKUP(State,manure_feedlotbeef,2,FALSE)) -> 0 | L11: NA | N11: NA | P11: =(J11*(1-VolPercent_Indirect)*NonVolEF)/kg.MT -> 0 | R11: NA | T11: =F35 -> 0 | U11: Total N excreted by Livestock (kg)
A12: ='animal data'!N2 -> 12 | B12: 1990 | C12: =Control!$A$107 -> Bulls | D12: ='CH4 from Manure Management'!D11 -> 0 | F12: =D12*1000*(IF(NEx_NOF_Bull=Control!$F$107,INDEX(NEx_NOF_Bull2,MATCH(State,NEx_NOF_Bull3,0),MATCH($B12,'TAM and NEx Rates'!$N$2:$AT$2,0)),NEx_NOF_Bull)) -> 0 | H12: 0 | J12: NA | L12: =F12*(VLOOKUP(State,manure_nofbeef,2,FALSE)) -> 0 | N12: NA | P12: NA | R12: =(L12*prpEF)/kg.MT -> 0 | T12: =(T11*(1-VolPercent)*LeachEF)/kg.MT -> 0 | U12: Manure Runoff/Leached (metric tons N)
A13: ='animal data'!P2 -> 14 | B13: 1990 | C13: =Control!$A$108 -> Calves | D13: ='CH4 from Manure Management'!D12 -> 0 | F13: =D13*'CH4 from Manure Management'!$F12*(IF(NEx_NOF_calf=Control!$F$108,INDEX(NEx_NOF_calf2,MATCH($B13,'TAM and NEx Rates'!$BA$2:$BA$33,0)),NEx_NOF_calf))*days_yr -> 0 | H13: 0 | J13: NA | L13: =F13*(VLOOKUP(State,manure_nofbeef,2,FALSE)) -> 0 | N13: NA | P13: NA | R13: =(L13*prpEF)/kg.MT -> 0
A14: ='animal data'!H2 -> 6 | B14: 1990 | C14: =Control!$A$109 -> Beef Cows | D14: ='CH4 from Manure Management'!D13 -> 0 | F14: =D14*1000*(IF(NEx_NOF_Cow=Control!$F$109,INDEX(NEx_NOF_Cow2,MATCH(State,NEx_NOF_Cow3,0),MATCH($B14,'TAM and NEx Rates'!$N$2:$AT$2,0)),NEx_NOF_Cow)) -> 0 | H14: 0 | J14: NA | L14: =F14*(VLOOKUP(State,manure_nofbeef,2,FALSE)) -> 0 | N14: NA | P14: NA | R14: =(L14*prpEF)/kg.MT -> 0 | T14: =SUM(T9,T12)*LeachEF2 -> 0 | U14: TOTAL Runoff/Leached (metric tons N2O-N)
A15: ='animal data'!M2 -> 11 | B15: 1990 | C15: =Control!$A$110 -> Steer Stockers | D15: ='CH4 from Manure Management'!D15 -> 0 | F15: =D15*1000*(IF(NEx_NOF_Steer=Control!$F$110,INDEX(NEx_NOF_Steer2,MATCH(State,NEx_NOF_Steer3,0),MATCH($B15,'TAM and NEx Rates'!$N$2:$AT$2,0)),NEx_NOF_Steer)) -> 0 | H15: 0 | J15: NA | L15: =F15*(VLOOKUP(State,manure_nofbeef,2,FALSE)) -> 0 | N15: NA | P15: NA | R15: =(L15*prpEF)/kg.MT -> 0
A16: ='animal data'!O2 -> 13 | B16: 1990 | C16: =Control!$A$111 -> Total Beef Heifers | D16: ='CH4 from Manure Management'!D16+'CH4 from Manure Management'!D14 -> 0 | F16: =D16*1000*(IF(NEx_NOF_heifers=Control!$F$111,INDEX(NEx_NOF_heifers2,MATCH(State,NEx_NOF_heifers3,0),MATCH($B16,'TAM and NEx Rates'!$N$2:$AT$2,0)),NEx_NOF_heifers)) -> 0 | H16: 0 | J16: NA | L16: =F16*(VLOOKUP(State,manure_nofbeef,2,FALSE)) -> 0 | N16: NA | P16: NA | R16: =(L16*prpEF)/kg.MT -> 0
B17: 1990 | C17: =Control!$A$112 -> Swine
A18: ='animal data'!T2 -> 18 | B18: =L$3 -> 1990 | C18: =Control!$A$113 -> Breeding Swine | D18: ='CH4 from Manure Management'!D18 -> 0 | F18: =D18*'CH4 from Manure Management'!$F18*(IF(NEx_breedswine=Control!$F$113,INDEX(NEx_breedswine2,MATCH($B18,'TAM and NEx Rates'!$BA$2:$BA$33,0)),NEx_breedswine))*days_yr -> 0 | G18: =F18-'N2O from Manure Management'!F12 -> 0 | H18: =(F18*VolPercent_Indirect*NH3_NOxEF)/1000 -> 0 | J18: =F18*(VLOOKUP(L3&State,manure_swine,3,FALSE)+VLOOKUP(L3&State,manure_swine,4,FALSE)+VLOOKUP(L3&State,manure_swine,5,FALSE)+VLOOKUP(L3&State,manure_swine,6,FALSE)) -> 0 | L18: =F18*(VLOOKUP(L3&State,manure_swine,2,FALSE)) -> 0 | N18: NA | P18: =(J18*(1-VolPercent_Indirect)*NonVolEF)/kg.MT -> 0 | R18: =(L18*prpEF)/kg.MT -> 0
A19: ='animal data'!U2 -> 19 | B19: 1990 | C19: =Control!$A$114 -> Market Under 60 lbs | D19: ='CH4 from Manure Management'!D19 -> 0 | F19: =D19*'CH4 from Manure Management'!$F19*(IF(NEx_marketswine_under60=Control!$F$114,INDEX(NEx_marketswine_under60_2,MATCH($B19,'TAM and NEx Rates'!$BA$2:$BA$33,0)),NEx_marketswine_under60))*days_yr -> 0 | G19: =F19-'N2O from Manure Management'!F13 -> 0 | H19: =(F19*VolPercent_Indirect*NH3_NOxEF)/1000 -> 0 | J19: =F19*(VLOOKUP(L3&State,manure_swine,3,FALSE)+VLOOKUP(L3&State,manure_swine,4,FALSE)+VLOOKUP(L3&State,manure_swine,5,FALSE)+VLOOKUP(L3&State,manure_swine,6,FALSE)) -> 0 | L19: =F19*(VLOOKUP(L3&State,manure_swine,2,FALSE)) -> 0 | N19: NA | P19: =(J19*(1-VolPercent_Indirect)*NonVolEF)/kg.MT -> 0 | R19: =(L19*prpEF)/kg.MT -> 0
A20: ='animal data'!V2 -> 20 | B20: 1990 | C20: =Control!$A$115 -> Market 60-119 lbs | D20: ='CH4 from Manure Management'!D20 -> 0 | F20: =D20*'CH4 from Manure Management'!$F20*(IF(NEx_marketswine60to119=Control!$F$115,INDEX(NEx_marketswine60to119_2,MATCH($B20,'TAM and NEx Rates'!$BA$2:$BA$33,0)),NEx_marketswine60to119))*days_yr -> 0 | G20: =F20-'N2O from Manure Management'!F14 -> 0 | H20: =(F20*VolPercent_Indirect*NH3_NOxEF)/1000 -> 0 | J20: =F20*(VLOOKUP(L3&State,manure_swine,3,FALSE)+VLOOKUP(L3&State,manure_swine,4,FALSE)+VLOOKUP(L3&State,manure_swine,5,FALSE)+VLOOKUP(L3&State,manure_swine,6,FALSE)) -> 0 | L20: =F20*(VLOOKUP(L3&State,manure_swine,2,FALSE)) -> 0 | N20: NA | P20: =(J20*(1-VolPercent_Indirect)*NonVolEF)/kg.MT -> 0 | R20: =(L20*prpEF)/kg.MT -> 0
A21: ='animal data'!W2 -> 21 | B21: 1990 | C21: =Control!$A$116 -> Market 120-179 lbs | D21: ='CH4 from Manure Management'!D21 -> 0 | F21: =D21*'CH4 from Manure Management'!$F21*(IF(NEx_marketswine120to179=Control!$F$116,INDEX(NEx_marketswine120to179_2,MATCH($B21,'TAM and NEx Rates'!$BA$2:$BA$33,0)),NEx_marketswine120to179))*days_yr -> 0 | G21: =F21-'N2O from Manure Management'!F15 -> 0 | H21: =(F21*VolPercent_Indirect*NH3_NOxEF)/1000 -> 0 | J21: =F21*(VLOOKUP(L3&State,manure_swine,3,FALSE)+VLOOKUP(L3&State,manure_swine,4,FALSE)+VLOOKUP(L3&State,manure_swine,5,FALSE)+VLOOKUP(L3&State,manure_swine,6,FALSE)) -> 0 | L21: =F21*(VLOOKUP(L3&State,manure_swine,2,FALSE)) -> 0 | N21: NA | P21: =(J21*(1-VolPercent_Indirect)*NonVolEF)/kg.MT -> 0 | R21: =(L21*prpEF)/kg.MT -> 0
A22: ='animal data'!X2 -> 22 | B22: 1990 | C22: =Control!$A$117 -> Market over 180 lbs | D22: ='CH4 from Manure Management'!D22 -> 0 | F22: =D22*'CH4 from Manure Management'!$F22*(IF(NEx_marketswine_over180=Control!$F$117,INDEX(NEx_marketswine_over180_2,MATCH($B22,'TAM and NEx Rates'!$BA$2:$BA$33,0)),NEx_marketswine_over180))*days_yr -> 0 | G22: =F22-'N2O from Manure Management'!F16 -> 0 | H22: =(F22*VolPercent_Indirect*NH3_NOxEF)/1000 -> 0 | J22: =F22*(VLOOKUP(L3&State,manure_swine,3,FALSE)+VLOOKUP(L3&State,manure_swine,4,FALSE)+VLOOKUP(L3&State,manure_swine,5,FALSE)+VLOOKUP(L3&State,manure_swine,6,FALSE)) -> 0 | L22: =F22*(VLOOKUP(L3&State,manure_swine,2,FALSE)) -> 0 | N22: NA | P22: =(J22*(1-VolPercent_Indirect)*NonVolEF)/kg.MT -> 0 | R22: =(L22*prpEF)/kg.MT -> 0
B23: 1990 | C23: =Control!$A$118 -> Poultry
B24: =L$3 -> 1990 | C24: =Control!$A$119 -> Layers
A25: ='animal data'!Y2 -> 23 | B25: 1990 | C25: =Control!$A$120 -> Hens > 1 yr | D25: ='CH4 from Manure Management'!D25 -> 0 | F25: =D25*'CH4 from Manure Management'!$F25*(IF(NEx_hens=Control!$F$120,INDEX(NEx_hens2,MATCH($B25,'TAM and NEx Rates'!$BA$2:$BA$33,0)),NEx_hens))*days_yr -> 0 | G25: =F25-'N2O from Manure Management'!F19 -> 0 | H25: =(F25*VolPercent_Indirect*NH3_NOxEF)/1000 -> 0 | J25: =F25*(VLOOKUP(L3&State,mms_layers,2,FALSE)+VLOOKUP(L3&State,mms_layers,3,FALSE)+VLOOKUP(L3&State,mms_layers,4,FALSE)+VLOOKUP(L3&State,mms_layers,5,FALSE)) -> 0 | L25: NA | N25: NA | P25: =(J25*(1-PoultryNotManaged)*(1-VolPercent_Indirect)*NonVolEF)/kg.MT -> 0 | R25: NA
A26: ='animal data'!Z2 -> 24 | B26: 1990 | C26: =Control!$A$121 -> Pullets | D26: ='CH4 from Manure Management'!D26 -> 0 | F26: =D26*'CH4 from Manure Management'!$F26*(IF(NEx_pullets=Control!$F$121,INDEX(NEx_pullets2,MATCH($B26,'TAM and NEx Rates'!$BA$2:$BA$33,0)),NEx_pullets))*days_yr -> 0 | G26: =F26-'N2O from Manure Management'!F20 -> 0 | H26: =(F26*VolPercent_Indirect*NH3_NOxEF)/1000 -> 0 | J26: =F26*(VLOOKUP(L3&State,mms_layers,2,FALSE)+VLOOKUP(L3&State,mms_layers,3,FALSE)+VLOOKUP(L3&State,mms_layers,4,FALSE)+VLOOKUP(L3&State,mms_layers,5,FALSE)) -> 0 | L26: NA | N26: NA | P26: =(J26*(1-PoultryNotManaged)*(1-VolPercent_Indirect)*NonVolEF)/kg.MT -> 0 | R26: NA
A27: ='animal data'!AA2 -> 25 | B27: 1990 | C27: =Control!$A$122 -> Chickens | D27: ='CH4 from Manure Management'!D27 -> 0 | F27: =D27*'CH4 from Manure Management'!$F27*(IF(NEx_chickens=Control!$F$122,INDEX(NEx_chickens2,MATCH($B27,'TAM and NEx Rates'!$BA$2:$BA$33,0)),NEx_chickens))*days_yr -> 0 | G27: =F27-'N2O from Manure Management'!F21 -> 0 | H27: =(F27*VolPercent_Indirect*NH3_NOxEF)/1000 -> 0 | J27: =F27*(VLOOKUP(L3&State,mms_layers,2,FALSE)+VLOOKUP(L3&State,mms_layers,3,FALSE)+VLOOKUP(L3&State,mms_layers,4,FALSE)+VLOOKUP(L3&State,mms_layers,5,FALSE)) -> 0 | L27: NA | N27: NA | P27: =(J27*(1-PoultryNotManaged)*(1-VolPercent_Indirect)*NonVolEF)/kg.MT -> 0 | R27: NA
A28: ='animal data'!AB2 -> 26 | B28: 1990 | C28: =Control!$A$123 -> Broilers | D28: ='CH4 from Manure Management'!D28 -> 0 | F28: =D28*'CH4 from Manure Management'!$F28*(IF(NEx_broilers=Control!$F$123,INDEX(NEx_broilers2,MATCH($B28,'TAM and NEx Rates'!$BA$2:$BA$33,0)),NEx_broilers))*days_yr -> 0 | G28: =F28-'N2O from Manure Management'!F22 -> 0 | H28: =(F28*VolPercent_Indirect*NH3_NOxEF)/1000 -> 0 | J28: =F28*(VLOOKUP(State,manure_broilers,2,FALSE)) -> 0 | L28: NA | N28: NA | P28: =(J28*(1-PoultryNotManaged)*(1-VolPercent_Indirect)*NonVolEF)/kg.MT -> 0 | R28: NA
A29: ='animal data'!AC2 -> 27 | B29: 1990 | C29: =Control!$A$124 -> Turkeys | D29: ='CH4 from Manure Management'!D29 -> 0 | F29: =D29*'CH4 from Manure Management'!$F29*(IF(NEx_turkeys=Control!$F$124,INDEX(NEx_turkeys2,MATCH($B29,'TAM and NEx Rates'!$BA$2:$BA$33,0)),NEx_turkeys))*days_yr -> 0 | G29: =F29-'N2O from Manure Management'!F23 -> 0 | H29: =(F29*VolPercent_Indirect*NH3_NOxEF)/1000 -> 0 | J29: =F29*(VLOOKUP(State,manure_turkeys,2,FALSE)) -> 0 | L29: =F29*(VLOOKUP(State,manure_turkeys,3,FALSE)) -> 0 | N29: NA | P29: =(J29*(1-PoultryNotManaged)*(1-VolPercent_Indirect)*NonVolEF)/kg.MT -> 0 | R29: =(L29*prpEF)/kg.MT -> 0
B30: 1990 | C30: =Control!$A$125 -> Other
A31: ='animal data'!AE2 -> 29 | B31: =L$3 -> 1990 | C31: =Control!$A$126 -> Sheep on Feed | D31: ='CH4 from Manure Management'!D31 -> 0 | F31: =D31*'CH4 from Manure Management'!$F31*(IF(NEx_sheepOF=Control!$F$126,INDEX(NEx_sheep,MATCH($B31,'TAM and NEx Rates'!$BA$2:$BA$33,0)),NEx_sheepOF))*days_yr -> 0 | G31: =F31-'N2O from Manure Management'!F25 -> 0 | H31: =(F31*VolPercent_Indirect*NH3_NOxEF)/1000 -> 0 | J31: =F31*(1-VLOOKUP(State,manure_sheep,2,FALSE)) -> 0 | L31: =F31*(VLOOKUP(State,manure_sheep,2,FALSE)) -> 0 | N31: NA | P31: =(J31*(1-VolPercent_Indirect)*NonVolEF)/kg.MT -> 0 | R31: =(L31*prpEF)/kg.MT -> 0
A32: ='animal data'!AF2 -> 30 | B32: =L$3 -> 1990 | C32: =Control!$A$127 -> Sheep Not on Feed | D32: ='CH4 from Manure Management'!D32 -> 0 | F32: =D32*'CH4 from Manure Management'!$F32*(IF(NEx_sheepNOF=Control!$F$127,INDEX(NEx_sheep,MATCH($B32,'TAM and NEx Rates'!$BA$2:$BA$33,0)),NEx_sheepNOF))*days_yr -> 0 | G32: =F32-'N2O from Manure Management'!F26 -> 0 | H32: =(F32*VolPercent_Indirect*NH3_NOxEF)/1000 -> 0 | J32: =F32*(1-VLOOKUP(State,manure_sheep,3,FALSE)) -> 0 | L32: =F32*(VLOOKUP(State,manure_sheep,3,FALSE)) -> 0 | N32: NA | P32: =(J32*(1-VolPercent_Indirect)*NonVolEF)/kg.MT -> 0 | R32: =(L32*prpEF)/kg.MT -> 0
A33: ='animal data'!AG2 -> 31 | B33: =L$3 -> 1990 | C33: =Control!$A$128 -> Goats | D33: ='CH4 from Manure Management'!D33 -> 0 | F33: =D33*'CH4 from Manure Management'!$F33*(IF(NEx_goats=Control!$F$128,INDEX(NEx_goats2,MATCH($B33,'TAM and NEx Rates'!$BA$2:$BA$33,0)),NEx_goats))*days_yr -> 0 | H33: =(F33*VolPercent_Indirect*NH3_NOxEF)/1000 -> 0 | J33: NA | L33: =F33*(VLOOKUP(State,manure_goats,2,FALSE)) -> 0 | N33: NA | P33: NA | R33: =(L33*prpEF)/kg.MT -> 0
A34: ='animal data'!AH2 -> 32 | B34: =L$3 -> 1990 | C34: =Control!$A$129 -> Horses | D34: ='CH4 from Manure Management'!D34 -> 0 | F34: =D34*'CH4 from Manure Management'!$F34*(IF(NEx_horses=Control!$F$129,INDEX(NEx_horses2,MATCH($B34,'TAM and NEx Rates'!$BA$2:$BA$33,0)),NEx_horses))*days_yr -> 0 | H34: =(F34*VolPercent_Indirect*NH3_NOxEF)/1000 -> 0 | J34: NA | L34: =F34*VLOOKUP(State,manure_horses,2,FALSE) -> 0 | N34: NA | P34: NA | R34: =(L34*prpEF)/kg.MT -> 0
C35: TOTAL | F35: =SUM(F7:F34) -> 0 | H35: =SUM(H7:H34) -> 0 | J35: =SUM(J7:J34) -> 0 | L35: =SUM(L7:L34) -> 0 | N35: =SUM(N7:N34) -> 0 | P35: =SUM(P7:P34) -> 0 | R35: =SUM(R7:R34) -> 0
C37: EMISSIONS SUMMARY 1990
H38: Livestock (Metric Tons N2O) | J38: Livestock (MMTCE) | L38: Livestock (MMTCO2E) | P38: Leaching and Runoff (Metric Tons N2O) | R38: Leaching and Runoff (MMTCE) | T38: Leaching and Runoff (MMTCO2E)
D39: Indirect N2O Emissions | H39: =H35*N2O_N2 -> 0 | J39: =H39*N2OGWP*C_CO2*10^-6 -> 0 | L39: =J39*C_CO2 -> 0 | O39: TOTAL Runoff/Leached | P39: =T14*N2O_N2 -> 0 | R39: =P39*N2OGWP*C_CO2*10^-6 -> 0 | T39: =R39/C_CO2 -> 0
F40: Direct N2O Emissions - Manure Applied to Soils (including Daily Spread) | H40: =P35*N2O_N2 -> 0 | J40: =H40*N2OGWP*C_CO2*10^-6 -> 0 | L40: =J40*C_CO2 -> 0 | O40: Fertilizer Runoff/Leached | P40: =SUM(T9)*LeachEF2*N2O_N2 -> 0 | R40: =P40*N2OGWP*C_CO2*10^-6 -> 0 | T40: =R40/C_CO2 -> 0
F41: Direct N2O Emissions - Pasture, Range, and Paddock | H41: =R35*N2O_N2 -> 0 | J41: =H41*N2OGWP*C_CO2*10^-6 -> 0 | L41: =J41*C_CO2 -> 0 | O41: Manure Runoff/Leached | P41: =SUM(T12)*LeachEF2*N2O_N2 -> 0 | R41: =P41*N2OGWP*C_CO2*10^-6 -> 0 | T41: =R41/C_CO2 -> 0
D42: Direct N2O Emissions | H42: =SUM(H40:H41) -> 0 | J42: =H42*N2OGWP*C_CO2*10^-6 -> 0 | L42: =J42*C_CO2 -> 0
C44: Agriculture Soils - Emissions from Animals & Runoff | L44: 1991
J45: K-NITROGEN EXCRETED BY MANAGEMENT SYSTEM (kg): | P45: DIRECT EMISSIONS (MT N)
D46: Number of Animals ('000 head) | F46: Total K-Nitrogen Excreted (kg) | H46: Indirect Animal N2O Emissions (metric tons N) | J46: Managed Systems | L46: Unmanaged Systems - Pasture, Range, and Paddock | N46: Unmanaged Systems - Daily Spread | P46: Manure Applied to Soils | R46: Pasture, Range and Paddock | T46: Leaching and Runoff
C47: =$C$6 -> Dairy Cattle
A48: =A7 -> 2 | B48: =L$44 -> 1991 | C48: =$C$7 -> Dairy Cows | D48: ='CH4 from Manure Management'!D47 -> 0 | F48: =D48*1000*(IF(NEx_DairyCow=Control!$F$102,INDEX(NEx_DairyCow2,MATCH(State,NEx_DairyCow3,0),MATCH($B48,'TAM and NEx Rates'!$N$2:$AT$2,0)),NEx_DairyCow)) -> 0 | G48: =F48-'N2O from Manure Management'!F40 -> 0 | H48: =(F48*VolPercent_Indirect*NH3_NOxEF)/1000 -> 0 | J48: =F48*(VLOOKUP(L44&State,mms_dairy,2,FALSE)+VLOOKUP(L44&State,mms_dairy,3,FALSE)+VLOOKUP(L44&State,mms_dairy,5,FALSE)+VLOOKUP(L44&State,mms_dairy,7,FALSE)) -> 0 | L48: =F48*(VLOOKUP(L44&State,mms_dairy,6,FALSE)) -> 0 | N48: =F48*(VLOOKUP(L44&State,mms_dairy,4,FALSE)) -> 0 | P48: =((J48+N48)*(1-VolPercent_Indirect)*NonVolEF)/kg.MT -> 0 | R48: =(L48*prpEF)/kg.MT -> 0 | T48: ='Ag Soils-Plant-Fertilizers'!H23 -> 0 | U48: Unvolatilized N from Organic Fertilizers (kg)
A49: =A8 -> 3 | B49: =L$44 -> 1991 | C49: =$C$8 -> Dairy Replacement Heifers | D49: ='CH4 from Manure Management'!D48 -> 0 | F49: =D49*1000*(IF(NEx_DairyHeifer=Control!$F$103,INDEX(NEx_DairyHeifer2,MATCH(State,NEx_DairyHeifer3,0),MATCH($B49,'TAM and NEx Rates'!$N$2:$AT$2,0)),NEx_DairyHeifer)) -> 0 | G49: =F49-'N2O from Manure Management'!F41 -> 0 | H49: =(F49*VolPercent_Indirect*NH3_NOxEF)/1000 -> 0 | J49: =F49*(VLOOKUP(L44&State,manure_dairyheifers,2,FALSE)) -> 0 | L49: =F49*(VLOOKUP(L44&State,manure_dairyheifers,3,FALSE)) -> 0 | N49: =F49*(VLOOKUP(L44&State,manure_dairyheifers,4,FALSE)) -> 0 | P49: =((J49+N49)*(1-VolPercent_Indirect)*NonVolEF)/kg.MT -> 0 | R49: =(L49*prpEF)/kg.MT -> 0 | T49: ='Ag Soils-Plant-Fertilizers'!H22 -> 0 | U49: Unvolatilized N from Synthetic Fertilizers (kg)
A50: 0 | B50: =L$44 -> 1991 | C50: =$C$9 -> Beef Cattle | T50: =SUM(T48:T49)/kg.MT*LeachEF -> 0 | U50: Fertilizer Runoff/Leached (metric tons N)
A51: 15 | B51: =L$44 -> 1991 | C51: =$C$10 -> Feedlot Heifers | D51: ='CH4 from Manure Management'!D50 -> 0 | F51: =D51*1000*(IF(NEx_feedheifer=Control!$F$105,INDEX(NEx_feedheifer2,MATCH(State,NEx_feedheifer3,0),MATCH($B51,'TAM and NEx Rates'!$N$2:$AT$2,0)),NEx_feedheifer)) -> 0 | G51: =F51-'N2O from Manure Management'!F43 -> 0 | H51: =(F51*VolPercent_Indirect*NH3_NOxEF)/1000 -> 0 | J51: =F51*(VLOOKUP(State,manure_feedlotbeef,2,FALSE)) -> 0 | L51: NA | N51: NA | P51: =(J51*(1-VolPercent_Indirect)*NonVolEF)/kg.MT -> 0 | R51: NA
A52: 16 | B52: 1991 | C52: =$C$11 -> Feedlot Steer | D52: ='CH4 from Manure Management'!D51 -> 0 | F52: =D52*1000*(IF(NEx_feedsteer=Control!$F$106,INDEX(NEx_feedsteer2,MATCH(State,NEx_feedsteer3,0),MATCH($B52,'TAM and NEx Rates'!$N$2:$AT$2,0)),NEx_feedsteer)) -> 0 | G52: =F52-'N2O from Manure Management'!F44 -> 0 | H52: 0 | J52: =F52*(VLOOKUP(State,manure_feedlotbeef,2,FALSE)) -> 0 | L52: NA | N52: NA | P52: =(J52*(1-VolPercent_Indirect)*NonVolEF)/kg.MT -> 0 | R52: NA | T52: =F76 -> 0 | U52: Total N excreted by Livestock (kg)
A53: 12 | B53: 1991 | C53: =$C$12 -> Bulls | D53: ='CH4 from Manure Management'!D52 -> 0 | F53: =D53*1000*(IF(NEx_NOF_Bull=Control!$F$107,INDEX(NEx_NOF_Bull2,MATCH(State,NEx_NOF_Bull3,0),MATCH($B53,'TAM and NEx Rates'!$N$2:$AT$2,0)),NEx_NOF_Bull)) -> 0 | H53: 0 | J53: NA | L53: =F53*(VLOOKUP(State,manure_nofbeef,2,FALSE)) -> 0 | N53: NA | P53: NA | R53: =(L53*prpEF)/kg.MT -> 0 | T53: =(T52*(1-VolPercent)*LeachEF)/kg.MT -> 0 | U53: Manure Runoff/Leached (metric tons N)
A54: 14 | B54: 1991 | C54: =$C$13 -> Calves | D54: ='CH4 from Manure Management'!D53 -> 0 | F54: =D54*'CH4 from Manure Management'!$F53*(IF(NEx_NOF_calf=Control!$F$108,INDEX(NEx_NOF_calf2,MATCH($B54,'TAM and NEx Rates'!$BA$2:$BA$33,0)),NEx_NOF_calf))*days_yr -> 0 | H54: 0 | J54: NA | L54: =F54*(VLOOKUP(State,manure_nofbeef,2,FALSE)) -> 0 | N54: NA | P54: NA | R54: =(L54*prpEF)/kg.MT -> 0
A55: 6 | B55: 1991 | C55: =$C$14 -> Beef Cows | D55: ='CH4 from Manure Management'!D54 -> 0 | F55: =D55*1000*(IF(NEx_NOF_Cow=Control!$F$109,INDEX(NEx_NOF_Cow2,MATCH(State,NEx_NOF_Cow3,0),MATCH($B55,'TAM and NEx Rates'!$N$2:$AT$2,0)),NEx_NOF_Cow)) -> 0 | H55: 0 | J55: NA | L55: =F55*(VLOOKUP(State,manure_nofbeef,2,FALSE)) -> 0 | N55: NA | P55: NA | R55: =(L55*prpEF)/kg.MT -> 0 | T55: =SUM(T50,T53)*LeachEF2 -> 0 | U55: TOTAL Runoff/Leached (metric tons N2O-N)
A56: 11 | B56: 1991 | C56: =$C$15 -> Steer Stockers | D56: ='CH4 from Manure Management'!D56 -> 0 | F56: =D56*1000*(IF(NEx_NOF_Steer=Control!$F$110,INDEX(NEx_NOF_Steer2,MATCH(State,NEx_NOF_Steer3,0),MATCH($B56,'TAM and NEx Rates'!$N$2:$AT$2,0)),NEx_NOF_Steer)) -> 0 | H56: 0 | J56: NA | L56: =F56*(VLOOKUP(State,manure_nofbeef,2,FALSE)) -> 0 | N56: NA | P56: NA | R56: =(L56*prpEF)/kg.MT -> 0
A57: 13 | B57: 1991 | C57: =$C$16 -> Total Beef Heifers | D57: ='CH4 from Manure Management'!D55+'CH4 from Manure Management'!D57 -> 0 | F57: =D57*1000*(IF(NEx_NOF_heifers=Control!$F$111,INDEX(NEx_NOF_heifers2,MATCH(State,NEx_NOF_heifers3,0),MATCH($B57,'TAM and NEx Rates'!$N$2:$AT$2,0)),NEx_NOF_heifers)) -> 0 | H57: 0 | J57: NA | L57: =F57*(VLOOKUP(State,manure_nofbeef,2,FALSE)) -> 0 | N57: NA | P57: NA | R57: =(L57*prpEF)/kg.MT -> 0
A58: 0 | B58: 1991 | C58: =$C$17 -> Swine
A59: 18 | B59: =L$44 -> 1991 | C59: =$C$18 -> Breeding Swine | D59: ='CH4 from Manure Management'!D59 -> 0 | F59: =D59*'CH4 from Manure Management'!$F59*(IF(NEx_breedswine=Control!$F$113,INDEX(NEx_breedswine2,MATCH($B59,'TAM and NEx Rates'!$BA$2:$BA$33,0)),NEx_breedswine))*days_yr -> 0 | G59: =F59-'N2O from Manure Management'!F46 -> 0 | H59: =(F59*VolPercent_Indirect*NH3_NOxEF)/1000 -> 0 | J59: =F59*(VLOOKUP(L44&State,manure_swine,3,FALSE)+VLOOKUP(L44&State,manure_swine,4,FALSE)+VLOOKUP(L44&State,manure_swine,5,FALSE)+VLOOKUP(L44&State,manure_swine,6,FALSE)) -> 0 | L59: =F59*(VLOOKUP(L44&State,manure_swine,2,FALSE)) -> 0 | N59: NA | P59: =(J59*(1-VolPercent_Indirect)*NonVolEF)/kg.MT -> 0 | R59: =(L59*prpEF)/kg.MT -> 0
A60: 19 | B60: 1991 | C60: =$C$19 -> Market Under 60 lbs | D60: ='CH4 from Manure Management'!D60 -> 0 | F60: =D60*'CH4 from Manure Management'!$F60*(IF(NEx_marketswine_under60=Control!$F$114,INDEX(NEx_marketswine_under60_2,MATCH($B60,'TAM and NEx Rates'!$BA$2:$BA$33,0)),NEx_marketswine_under60))*days_yr -> 0 | G60: =F60-'N2O from Manure Management'!F47 -> 0 | H60: =(F60*VolPercent_Indirect*NH3_NOxEF)/1000 -> 0 | J60: =F60*(VLOOKUP(L44&State,manure_swine,3,FALSE)+VLOOKUP(L44&State,manure_swine,4,FALSE)+VLOOKUP(L44&State,manure_swine,5,FALSE)+VLOOKUP(L44&State,manure_swine,6,FALSE)) -> 0 | L60: =F60*(VLOOKUP(L44&State,manure_swine,2,FALSE)) -> 0 | N60: NA | P60: =(J60*(1-VolPercent_Indirect)*NonVolEF)/kg.MT -> 0 | R60: =(L60*prpEF)/kg.MT -> 0
A61: 20 | B61: 1991 | C61: =$C$20 -> Market 60-119 lbs | D61: ='CH4 from Manure Management'!D61 -> 0 | F61: =D61*'CH4 from Manure Management'!$F61*(IF(NEx_marketswine60to119=Control!$F$115,INDEX(NEx_marketswine60to119_2,MATCH($B61,'TAM and NEx Rates'!$BA$2:$BA$33,0)),NEx_marketswine60to119))*days_yr -> 0 | G61: =F61-'N2O from Manure Management'!F48 -> 0 | H61: =(F61*VolPercent_Indirect*NH3_NOxEF)/1000 -> 0 | J61: =F61*(VLOOKUP(L44&State,manure_swine,3,FALSE)+VLOOKUP(L44&State,manure_swine,4,FALSE)+VLOOKUP(L44&State,manure_swine,5,FALSE)+VLOOKUP(L44&State,manure_swine,6,FALSE)) -> 0 | L61: =F61*(VLOOKUP(L44&State,manure_swine,2,FALSE)) -> 0 | N61: NA | P61: =(J61*(1-VolPercent_Indirect)*NonVolEF)/kg.MT -> 0 | R61: =(L61*prpEF)/kg.MT -> 0
A62: 21 | B62: 1991 | C62: =$C$21 -> Market 120-179 lbs | D62: ='CH4 from Manure Management'!D62 -> 0 | F62: =D62*'CH4 from Manure Management'!$F62*(IF(NEx_marketswine120to179=Control!$F$116,INDEX(NEx_marketswine120to179_2,MATCH($B62,'TAM and NEx Rates'!$BA$2:$BA$33,0)),NEx_marketswine120to179))*days_yr -> 0 | G62: =F62-'N2O from Manure Management'!F49 -> 0 | H62: =(F62*VolPercent_Indirect*NH3_NOxEF)/1000 -> 0 | J62: =F62*(VLOOKUP(L44&State,manure_swine,3,FALSE)+VLOOKUP(L44&State,manure_swine,4,FALSE)+VLOOKUP(L44&State,manure_swine,5,FALSE)+VLOOKUP(L44&State,manure_swine,6,FALSE)) -> 0 | L62: =F62*(VLOOKUP(L44&State,manure_swine,2,FALSE)) -> 0 | N62: NA | P62: =(J62*(1-VolPercent_Indirect)*NonVolEF)/kg.MT -> 0 | R62: =(L62*prpEF)/kg.MT -> 0
A63: 22 | B63: 1991 | C63: =$C$22 -> Market over 180 lbs | D63: ='CH4 from Manure Management'!D63 -> 0 | F63: =D63*'CH4 from Manure Management'!$F63*(IF(NEx_marketswine_over180=Control!$F$117,INDEX(NEx_marketswine_over180_2,MATCH($B63,'TAM and NEx Rates'!$BA$2:$BA$33,0)),NEx_marketswine_over180))*days_yr -> 0 | G63: =F63-'N2O from Manure Management'!F50 -> 0 | H63: =(F63*VolPercent_Indirect*NH3_NOxEF)/1000 -> 0 | J63: =F63*(VLOOKUP(L44&State,manure_swine,3,FALSE)+VLOOKUP(L44&State,manure_swine,4,FALSE)+VLOOKUP(L44&State,manure_swine,5,FALSE)+VLOOKUP(L44&State,manure_swine,6,FALSE)) -> 0 | L63: =F63*(VLOOKUP(L44&State,manure_swine,2,FALSE)) -> 0 | N63: NA | P63: =(J63*(1-VolPercent_Indirect)*NonVolEF)/kg.MT -> 0 | R63: =(L63*prpEF)/kg.MT -> 0
A64: 0 | B64: 1991 | C64: =$C$23 -> Poultry
A65: 0 | B65: =L$44 -> 1991 | C65: =$C$24 -> Layers
A66: 23 | B66: 1991 | C66: =$C$25 -> Hens > 1 yr | D66: ='CH4 from Manure Management'!D66 -> 0 | F66: =D66*'CH4 from Manure Management'!$F66*(IF(NEx_hens=Control!$F$120,INDEX(NEx_hens2,MATCH($B66,'TAM and NEx Rates'!$BA$2:$BA$33,0)),NEx_hens))*days_yr -> 0 | G66: =F66-'N2O from Manure Management'!F53 -> 0 | H66: =(F66*VolPercent_Indirect*NH3_NOxEF)/1000 -> 0 | J66: =F66*(VLOOKUP(L44&State,mms_layers,2,FALSE)+VLOOKUP(L44&State,mms_layers,3,FALSE)+VLOOKUP(L44&State,mms_layers,4,FALSE)+VLOOKUP(L44&State,mms_layers,5,FALSE)) -> 0 | L66: NA | N66: NA | P66: =(J66*(1-PoultryNotManaged)*(1-VolPercent_Indirect)*NonVolEF)/kg.MT -> 0 | R66: NA
A67: 24 | B67: 1991 | C67: =$C$26 -> Pullets | D67: ='CH4 from Manure Management'!D67 -> 0 | F67: =D67*'CH4 from Manure Management'!$F67*(IF(NEx_pullets=Control!$F$121,INDEX(NEx_pullets2,MATCH($B67,'TAM and NEx Rates'!$BA$2:$BA$33,0)),NEx_pullets))*days_yr -> 0 | G67: =F67-'N2O from Manure Management'!F54 -> 0 | H67: =(F67*VolPercent_Indirect*NH3_NOxEF)/1000 -> 0 | J67: =F67*(VLOOKUP(L44&State,mms_layers,2,FALSE)+VLOOKUP(L44&State,mms_layers,3,FALSE)+VLOOKUP(L44&State,mms_layers,4,FALSE)+VLOOKUP(L44&State,mms_layers,5,FALSE)) -> 0 | L67: NA | N67: NA | P67: =(J67*(1-PoultryNotManaged)*(1-VolPercent_Indirect)*NonVolEF)/kg.MT -> 0 | R67: NA
A68: 25 | B68: 1991 | C68: =$C$27 -> Chickens | D68: ='CH4 from Manure Management'!D68 -> 0 | F68: =D68*'CH4 from Manure Management'!$F68*(IF(NEx_chickens=Control!$F$122,INDEX(NEx_chickens2,MATCH($B68,'TAM and NEx Rates'!$BA$2:$BA$33,0)),NEx_chickens))*days_yr -> 0 | G68: =F68-'N2O from Manure Management'!F55 -> 0 | H68: =(F68*VolPercent_Indirect*NH3_NOxEF)/1000 -> 0 | J68: =F68*(VLOOKUP(L44&State,mms_layers,2,FALSE)+VLOOKUP(L44&State,mms_layers,3,FALSE)+VLOOKUP(L44&State,mms_layers,4,FALSE)+VLOOKUP(L44&State,mms_layers,5,FALSE)) -> 0 | L68: NA | N68: NA | P68: =(J68*(1-PoultryNotManaged)*(1-VolPercent_Indirect)*NonVolEF)/kg.MT -> 0 | R68: NA
A69: 26 | B69: 1991 | C69: =$C$28 -> Broilers | D69: ='CH4 from Manure Management'!D69 -> 0 | F69: =D69*'CH4 from Manure Management'!$F69*(IF(NEx_broilers=Control!$F$123,INDEX(NEx_broilers2,MATCH($B69,'TAM and NEx Rates'!$BA$2:$BA$33,0)),NEx_broilers))*days_yr -> 0 | G69: =F69-'N2O from Manure Management'!F56 -> 0 | H69: =(F69*VolPercent_Indirect*NH3_NOxEF)/1000 -> 0 | J69: =F69*(VLOOKUP(State,manure_broilers,2,FALSE)) -> 0 | L69: NA | N69: NA | P69: =(J69*(1-PoultryNotManaged)*(1-VolPercent_Indirect)*NonVolEF)/kg.MT -> 0 | R69: NA
A70: 27 | B70: 1991 | C70: =$C$29 -> Turkeys | D70: ='CH4 from Manure Management'!D70 -> 0 | F70: =D70*'CH4 from Manure Management'!$F70*(IF(NEx_turkeys=Control!$F$124,INDEX(NEx_turkeys2,MATCH($B70,'TAM and NEx Rates'!$BA$2:$BA$33,0)),NEx_turkeys))*days_yr -> 0 | G70: =F70-'N2O from Manure Management'!F57 -> 0 | H70: =(F70*VolPercent_Indirect*NH3_NOxEF)/1000 -> 0 | J70: =F70*(VLOOKUP(State,manure_turkeys,2,FALSE)) -> 0 | L70: =F70*(VLOOKUP(State,manure_turkeys,3,FALSE)) -> 0 | N70: NA | P70: =(J70*(1-PoultryNotManaged)*(1-VolPercent_Indirect)*NonVolEF)/kg.MT -> 0 | R70: =(L70*prpEF)/kg.MT -> 0
A71: 0 | B71: 1991 | C71: =$C$30 -> Other
